Workbook

Sheet Letter (hidden)
A1: clean
A2: Important!!
A3: If you accidentally stumbled into this page do not change any information on this page.
A5: Contact Name | B5: Contact Name
A6: Company Name | B6: Co Name
A7: Address | B7: Address
A8: =B8&", "&C8&" "&D8 -> City, State, Zip, | B8: City, State, Zip
A9: Dear | B9: Dear
A10: Rep Name | B10: Rep Name
A11: Contact Phone | B11: Contact Phone
B12: SAP ID
B13: Cust Grp 3
A14: Date | B14: Date
A24: Please do not change cell A25.
A25: 2020-09-22 | B25: Quote Date
A36: Equipment Type | B36: Sweeper
A37: Country | B37: USA
B40: 39107.48756

Sheet CRM Mapping (hidden)

Sheet Log (hidden)
A1: Date | B1: UpdatedBy | C1: Description
A2: 2019-08-23 | B2: Pao Leepalao | C2: show user ID instead of full name on approve box
A3: 2019-08-23 | B3: Pao Leepalao | C3: date stamp when it's approved (yellow and red)
A4: 2019-08-23 | B4: Pao Leepalao | C4: revision date on all machine tabs
A5: 2019-08-23 | B5: Pao Leepalao | C5: change log (date, name, what changed) - hide tab
A6: 2019-08-23 | B6: Pao Leepalao | C6: fix T6 quick ship hide/show blank qty issue
A7: 2019-08-23 | B7: Jeannie Smallish | C7: T300/SS300: removed drain hose/cap
A8: 2019-08-23 | B8: Jeannie Smallish | C8: T20/M20/M30/S30/800/T16 quick ship: update built-in values
A9: 2019-08-23 | B9: Jeannie Smallish | C9: T16: update preconfigured machines
A10: 2019-08-23 | B10: Jeannie Smallish | C10: T20/S30: prices correction
A11: 2019-08-23 | B11: Pao Leepalao | C11: Update freight rates
A12: 2019-09-16 | B12: Jeannie Smallish | C12: corrected column issue on Extractors
A13: 2019-09-16 | B13: Jeannie Smallish | C13: Add new machine S10_Quick_Ship
A14: 2019-09-16 | B14: Pao Leepalao | C14: Discount/Service rates for S10_Quick_Ship
A15: 2019-09-16 | B15: Pao Leepalao | C15: Update leasing contact for Tennant
A16: 2019-10-02 | B16: Pao Leepalao | C16: Update finance rates - US Bank
A17: 2019-10-02 | B17: Pao Leepalao | C17: Add governance approval process
A18: 2019-10-21 | B18: Jeannie/Pao | C18: S20_LP_Quick_Ship
A19: 2019-10-21 | B19: Jeannie/Pao | C19: S30_Quick_Ship
A20: 2019-11-04 | B20: Jeannie/Pao | C20: VC Changes for T17, M17, T600, T600e, T12, and T16
A21: 2019-11-04 | B21: Jeannie/Pao | C21: Price update for T600
A22: 2019-11-08 | B22: Pao Leepalao | C22: Fix GT formatting issue
A23: 2019-12-04 | B23: Pao/Jeannie | C23: New 2020 price increase
A24: 2019-12-04 | B24: Pao Leepalao | C24: Only positive allow in custom solution
A25: 2020-01-03 | B25: Pao Leepalao | C25: US Bank 2020 rates
A26: 2020-04-01 | B26: Pao Leepalao | C26: Q2 US Bank rates
A27: 2020-04-01 | B27: Pao Leepalao | C27: new service contract and rate for AMR

Sheet Start_Here
A1: Distributor | C1: Please fill out as much buyer information as you can. Overkey addresses and contacts for proper display on the machine sheets. | O1: Alabama | P1: Discount | Q1: ALL OTHER COUNTIES
O2: Arkansas | P2: =TTDiscountLow -> 0 | Q2: BAXTER
A3: Buyer Information | O3: Arizona | P3: =TTDiscountHigh -> 5 | Q3: BENTON
B4: CRM Address Information | F4: Who is Buying the Machine? (Bill-To for Machine Aquisition Info) (Please Verify) | I4: Select One | O4: British Columbia | Q4: DALE
B5: Company | C5: =Letter!$A$6 -> Company Name | F5: Company | H5: Company Name | O5: Canada | Q5: ESCAMBIA
B6: Address | C6: =Address -> Address | F6: Address | H6: Address | O6: California | Q6: GENEVA
B7: City, State Zip | C7: =CityStateZip -> City, State, Zip, | F7: City, State Zip | H7: City, State Zip | O7: Colorado | Q7: HENRY
B8: Name | C8: =ContactName -> Contact Name | F8: Name | H8: Contact Name | O8: Connecticut | Q8: HOUSTON
B9: Phone | C9: =Letter!$A$11 -> Contact Phone | F9: Phone | H9: Contact Phone | O9: District of Columbia | Q9: LEE
O10: Delaware | Q10: RUSSELL
B11: Where is the Machine Being Shipped? (Ship-To Info) (Please Verify) | D11: Select One | F11: Where is the Machine Being Used? (Machine Use Location - Specific) (Please Verify) | I11: Select One | O11: Florida
B12: Company | C12: Company Name | F12: Company | H12: Company Name | O12: Georgia
B13: Address | C13: Address | F13: Address | H13: Address | O13: Hawaii
B14: City, State Zip | C14: City, State Zip | F14: City, State Zip | H14: City, State Zip | O14: Iowa
B15: Name | C15: Contact Name | F15: Name | H15: Contact Name | O15: Idaho
B16: Phone | C16: Contact Phone | F16: Phone | H16: Contact Phone | O16: Illinois
O17: Indiana
B18: Who Owns the Machine? (Sold-To Info) (Please Verify) | D18: Select One | F18: Who Pays for Service on the Machine? (Service Bill-To Info) (Please Verify) | I18: Select One | O18: Kansas
B19: Company | C19: Company Name | F19: Company | H19: Company Name | O19: Kentucky
B20: Address | C20: Address | F20: Address | H20: Address | O20: Louisiana
B21: City, State Zip | C21: City, State Zip | F21: City, State Zip | H21: City, State Zip | O21: Massachusetts
B22: Name | C22: Contact Name | F22: Name | H22: Contact Name | O22: Maryland
B23: Phone | C23: Contact Phone | F23: Phone | H23: Contact Phone | O23: Maine
O24: Michigan
B25: Customer Number | C25: =Letter!$A$12 -> 0 | F25: Finance Partner | H25: TennantTrue Details | O25: Minnesota
B26: Authorized Buyer's Name | F26: First Western Equipment Finance | H26: State | O26: Missouri
B27: Buyer's Phone # | O27: Mississippi
B28: Requested Delivery Date | F28: Select Market | H28: County | O28: Montana
B29: Cust Grp 3 | C29: =Letter!$A$13 -> 0 | F29: Internal use only | O29: North Carolina
H30: National Account | O30: North Dakota
B31: Shipping / Carrier Instructions: | F31: Quote Service | O31: Nebraska
F32: Yes | H32: TennantTrue Discount (%) | O32: New Hampshire
O33: New Jersey
O34: New Mexico
B35: Seller Info | O35: Nevada
B36: Letter/Quote | E36: Terms and Conditions | O36: New York
B37: Company | C37: Tennant Sales and Service Company | E37: Ask your local sales rep for estimated lead times. Verify when placing order | O37: Ohio
B38: Address | C38: 10400 Clean Street | E38: All orders subject to acceptance by Tennant Sales and Service Company, Minneapolis, Minnesota | O38: Oklahoma
C39: Eden Prairie, MN 55344 | E39: Prices subject to change without notice. | O39: Ontario
E40: Terms: Net 30 days. Subject to any applicable taxes. | O40: Oregon
B41: Name | C41: =RepName -> Rep Name | E41: Freight: Machines and accessory orders delivered FOB shipping point Frt PPD & Add | O41: Pennsylvania
E42: Parts, supplies, detergents and floor treating material orders delivered FOB | O42: Prince Edward Isle
B43: Phone | C43: 800-553-8033 | E43: shipping point Frt PPD | O43: Rhode Island
B44: Fax | C44: 763-513-2116 | E44: All orders are subject to Tennant’s General Terms and Conditions available at http://www.tennantco.com/terms. | O44: Quebec
E45: Printed General Terms and Conditions are also available upon request. | O45: South Carolina
O46: South Dakota
B47: Footer | O47: Tennessee
B48: Line 1 | C48: TENNANT · 10400 Clean Street · Eden Prairie, MN 55344 · | O48: Texas
B49: Line 2 | C49: PHONE:800-553-8033 · FAX:763-513-2116 | O49: Utah
O50: Virginia
O51: Vermont
O52: Washington
O53: West Virginia
O54: Wisconsin
O55: Wyoming
C58: Battery Surcharge | D58: Price
C59: 36 Volt Machines | D59: 0
C60: 24 Volt Machines | D60: 0
C61: Small 24 Volt Machines | D61: 0

Sheet Cover_Letter
A1: =Letter!$A$25 -> 2020-09-22
A4: =Start_Here!C37 -> Tennant Sales and Service Company
A5: =Start_Here!C38 -> 10400 Clean Street
A6: =Start_Here!C39 -> Eden Prairie, MN 55344
A7: =Start_Here!C40 -> 0
A9: =Start_Here!$C$22 -> Contact Name
A10: =Start_Here!$C$19 -> Company Name
A11: =Start_Here!$C$20 -> Address
A12: =Start_Here!$C$21 -> City, State Zip
A14: =Salutation -> Dear
A16: Thank you for your interest in TENNANT maintenance equipment. We are pleased to send you the attached quotation and literature on the products you are considering.
A18: A variety of lease and finance programs are available that will allow you to maximize the cost savings and productivity advantages that Tennant provides.
A20: I will be in contact with you, but in the meantime, feel free to call my sales office listed below, should you need to--your questions are invited and your orders will be given prompt attention.
A22: Yours Truly,
A26: =Start_Here!$C$41 -> Rep Name
A27: =Start_Here!C37 -> Tennant Sales and Service Company
A28: =Start_Here!C38 -> 10400 Clean Street
A29: =Start_Here!$C$39 -> Eden Prairie, MN 55344
A30: =Start_Here!$C$43 -> 800-553-8033
A32: attachment
A35: =Start_Here!C48 -> TENNANT · 10400 Clean Street · Eden Prairie, MN 55344 ·
A36: =Start_Here!C49 -> PHONE:800-553-8033 · FAX:763-513-2116

Sheet TennantTrue Summary_ (hidden)
O8: Choose the best plan for you
B9: Prepared for: | K9: Prepared On:
B10: =Start_Here!$C$22 -> Contact Name | K10: =Letter!$A$25 -> 2020-09-22
B11: =Start_Here!$C$19 -> Company Name
B12: =Start_Here!$C$20 -> Address
B13: =Start_Here!$C$21 -> City, State Zip
C16: Machine 1 | E16: Term | I16: Service Hours
C18: Used Machine? | E18: Gold | F18: Silver | G18: Pay As You Go | H18: Block of Time - Weekly | I18: Block of Time - Bi-Weekly | K18: On Demand
C19: Monthly Rate
C20: Annually
C21: Pre Pay 12 mo
C22: Per Visit
C23: Hourly Labor Rate | E23: See Below
C24: Site Visit Charge
C28: Machine 2 | E28: Term | I28: Service Hours
C30: Used Machine? | E30: Gold | F30: Silver | G30: Pay As You Go | H30: Block of Time - Weekly | I30: Block of Time - Bi-Weekly | K30: On Demand
C31: Monthly Rate
C32: Annually
C33: Pre Pay 36 mo
C34: Per Visit
C35: Hourly Labor Rate | E35: See Below
C36: Site Visit Charge
C40: Machine 3 | E40: Term | I40: Service Hours
C42: Used Machine? | E42: Gold | F42: Silver | G42: Pay As You Go | H42: Block of Time - Weekly | I42: Block of Time - Bi-Weekly | K42: On Demand
C43: Monthly Rate
C44: Annually
C45: Pre Pay 36 mo
C46: Per Visit
C47: Hourly Labor Rate | E47: See Below
C48: Site Visit Charge
B50: **All rates and fees above reflect service for one (1) unit with the exception of Block of Time service.
B52: ** Breakdown service calls for Silver customers include a Site Visit Charge and will be billed at the current "Pay As You Go" Hourly Labor Rate. Parts will be billed at list price.
B57: Tennant Company Sales Representative: | G57: =Start_Here!$C$41 -> Rep Name
B59: Customer
B60: Accepted By*:
B61: Print Name:
B62: Title:
B63: Date:
C64: *Acceptance is contingent upon customer review and approval of the Master Usage Agreement and the Usage Schedule / Equipment Schedule.
C66: **This quote is good for 60 days from the above date.

Sheet _R3_E5
A1: _R3_E5 | C1: =Start_Here!$C19 -> Company Name
A2: =SUM(H55) -> 0 | C2: =Start_Here!$C20 -> Address
C3: =Start_Here!$C21 -> City, State Zip
C4: =Start_Here!$C22 -> Contact Name
C5: =Start_Here!$C$41 -> Rep Name
C6: =Start_Here!$C$37 -> Tennant Sales and Service Company
C7: =Start_Here!$C$38 -> 10400 Clean Street
C8: =Start_Here!$C$39 -> Eden Prairie, MN 55344
C9: =Start_Here!$C$43 -> 800-553-8033 | F9: Quote Date : | H9: =Letter!$A$25 -> 2020-09-22
C11: =Help!C2 -> US Date Rev - 5/6/2025
F12: Quote Request Information
C13: New Machine Warranty | H13: Fax (quote only)
C14: 36 MONTHS OR 2500 HOURS ON PARTS | H14: Mail (quote,lit, specs)
C15: 36 MONTHS – LABOR | H15: Fax + Mail
C16: 90 DAYS – TRAVEL ON BATTERY UNITS ONLY
C17: 10 YEARS ON ROTOMOLDED PARTS | F17: Primary Use
C18: BATTERIES ARE PRORATED OVER 12 MONTHS | H18: Inside
H19: Outside
C22: Description | E22: Referencel# | F22: Price Each | G22: Qty | H22: Extended Pr
G23: =SUM(G24) -> 0
C24: R3 - Cord Electric 5-gal. ReadySpace® Interim Carpet Cleaner | E24: 9004192 | F24: 6428 | H24: =G24*F24 -> 0 | I24: =IFERROR(IFERROR(VLOOKUP(E24,Surcharge!A:B,2,FALSE)*G24, VLOOKUP(E24 & "",Surcharge!A:B,2,FALSE)*G24), "") ->  | Q24: =VLOOKUP(E24,'MPF SAP Download PreConfigured'!C:E,3,FALSE) -> 6428
C25: 15" cleaning path. Complete package includes removable, Hygenic® fully cleanable 5 gallon (19 liter) solution/recovery tanks, Insta-Adjust™ handle, two ReadySpace® rollers, 50-ft (15-m) "safety yellow" power cord and multi-language operator manual. CRI certified, Bronze Cleaning Performance. | G25: =SUM(G24) -> 0 | I25: =IFERROR(IFERROR(VLOOKUP(E25,Surcharge!A:B,2,FALSE)*G25, VLOOKUP(E25 & "",Surcharge!A:B,2,FALSE)*G25), "") -> 
C26: Boxed Dimensions: 34" L x 22" W x 37" H (860 mm x 560 mm x 940 mm). * | G26: =SUM(G25) -> 0 | I26: =IFERROR(IFERROR(VLOOKUP(E26,Surcharge!A:B,2,FALSE)*G26, VLOOKUP(E26 & "",Surcharge!A:B,2,FALSE)*G26), "") -> 
C27: Shipping Weight: 154 lbs. (70 kg) | G27: =SUM(G26) -> 0 | I27: =IFERROR(IFERROR(VLOOKUP(E27,Surcharge!A:B,2,FALSE)*G27, VLOOKUP(E27 & "",Surcharge!A:B,2,FALSE)*G27), "") -> 
I28: =IFERROR(IFERROR(VLOOKUP(E28,Surcharge!A:B,2,FALSE)*G28, VLOOKUP(E28 & "",Surcharge!A:B,2,FALSE)*G28), "") -> 
G29: =SUM(G30) -> 0 | I29: =IFERROR(IFERROR(VLOOKUP(E29,Surcharge!A:B,2,FALSE)*G29, VLOOKUP(E29 & "",Surcharge!A:B,2,FALSE)*G29), "") -> 
C30: E5 - Cord Electric 5-gal. Extractor | E30: 9004194 | F30: 5095 | H30: =G30*F30 -> 0 | I30: =IFERROR(IFERROR(VLOOKUP(E30,Surcharge!A:B,2,FALSE)*G30, VLOOKUP(E30 & "",Surcharge!A:B,2,FALSE)*G30), "") ->  | Q30: =VLOOKUP(E30,'MPF SAP Download PreConfigured'!C:E,3,FALSE) -> 5095
C31: 15" cleaning path. Complete package includes removable, Hygenic® fully cleanable 5 gallon (19 liter) solution/recovery tanks, Insta-Adjust™ handle, one double-tuft reverse pattern chevron brush, 50-ft (15-m) "safety yellow" power cord and multi-language operator manual. CRI certified, Silver Cleaning Performance. | G31: =SUM(G30) -> 0 | I31: =IFERROR(IFERROR(VLOOKUP(E31,Surcharge!A:B,2,FALSE)*G31, VLOOKUP(E31 & "",Surcharge!A:B,2,FALSE)*G31), "") -> 
C32: Boxed Dimensions: 34" L x 22" W x 37" H (860 mm x 560 mm x 940 mm). * | G32: =SUM(G31) -> 0 | I32: =IFERROR(IFERROR(VLOOKUP(E32,Surcharge!A:B,2,FALSE)*G32, VLOOKUP(E32 & "",Surcharge!A:B,2,FALSE)*G32), "") -> 
C33: Shipping Weight: 138 lbs. (63 kg) | G33: =SUM(G32) -> 0 | I33: =IFERROR(IFERROR(VLOOKUP(E33,Surcharge!A:B,2,FALSE)*G33, VLOOKUP(E33 & "",Surcharge!A:B,2,FALSE)*G33), "") -> 
I34: =IFERROR(IFERROR(VLOOKUP(E34,Surcharge!A:B,2,FALSE)*G34, VLOOKUP(E34 & "",Surcharge!A:B,2,FALSE)*G34), "") -> 
G35: =SUM(#REF!) ->  | I35: =IFERROR(IFERROR(VLOOKUP(E35,Surcharge!A:B,2,FALSE)*G35, VLOOKUP(E35 & "",Surcharge!A:B,2,FALSE)*G35), "") -> 
I36: =IFERROR(IFERROR(VLOOKUP(E36,Surcharge!A:B,2,FALSE)*G36, VLOOKUP(E36 & "",Surcharge!A:B,2,FALSE)*G36), "") -> 
B37: Custom Solution--write in description, qty, price, and PN if applicable | F37: =SUM(F38) -> 0 | I37: =IFERROR(IFERROR(VLOOKUP(E37,Surcharge!A:B,2,FALSE)*G37, VLOOKUP(E37 & "",Surcharge!A:B,2,FALSE)*G37), "") -> 
E38: Insert Prices Here | F38: =SUM(G39:G42) -> 0 | I38: =IFERROR(IFERROR(VLOOKUP(E38,Surcharge!A:B,2,FALSE)*G38, VLOOKUP(E38 & "",Surcharge!A:B,2,FALSE)*G38), "") -> 
E39: Custom | G39: =IF(F39 <> "", 1, 0) -> 0 | H39: =G39*F39 -> 0 | I39: =IFERROR(IFERROR(VLOOKUP(E39,Surcharge!A:B,2,FALSE)*G39, VLOOKUP(E39 & "",Surcharge!A:B,2,FALSE)*G39), "") -> 
E40: Custom | G40: =IF(F40 <> "", 1, 0) -> 0 | H40: =G40*F40 -> 0 | I40: =IFERROR(IFERROR(VLOOKUP(E40,Surcharge!A:B,2,FALSE)*G40, VLOOKUP(E40 & "",Surcharge!A:B,2,FALSE)*G40), "") -> 
E41: Custom | G41: 0 | H41: =G41*F41 -> 0 | I41: =IFERROR(IFERROR(VLOOKUP(E41,Surcharge!A:B,2,FALSE)*G41, VLOOKUP(E41 & "",Surcharge!A:B,2,FALSE)*G41), "") -> 
E42: Custom | G42: 0 | H42: =G42*F42 -> 0 | I42: =IFERROR(IFERROR(VLOOKUP(E42,Surcharge!A:B,2,FALSE)*G42, VLOOKUP(E42 & "",Surcharge!A:B,2,FALSE)*G42), "") -> 
F43: =ROUND(SUM(H24:H42), 0) -> 0 | G43: =SUM(F44) -> 0
E44: Machine Subtotal | F44: =ROUND(SUM(H24:H42), 0) -> 0 | G44: =G43 -> 0
B45: Discounts | G45: =SUM(G46) -> 0
G46: =SUM(G47:G48) -> 0
E47: Discount % | G47: =IF(F47 <> "", 1, 0) -> 0 | H47: =IF(G47*(F47*0.01)*F43 < 0, G47*(F47*0.01)*F43, -(G47*(F47*0.01)*F43)) -> 0
E48: Discount $ | G48: =IF(F48 <> "", 1, 0) -> 0 | H48: =IF(G48*F48 < 0, G48*F48, -(G48*F48)) -> 0
E49: Discount Total | F49: =SUM(H47:H48) -> 0 | G49: =SUM(F49) -> 0
F50: =#REF! ->  | G50: =#REF! -> 
G51: =G50 -> 
C52: Prepaid and Add | E52: Freight | G52: =IF(F52 <> "", 1, 0) -> 0 | H52: =G52*F52 -> 0
C53: Subject to all applicable taxes | E53: Tax | G53: 0 | H53: =G53*F53 -> 0
G54: =SUM(G55) -> 0
E55: MACHINE TOTAL* | G55: =SUM(H55) -> 0 | H55: =SUM(H24:H53) -> 0 | M55: This goes to "My Documents"
H56: =SUM(H55) -> 0
B57: Financing
C59: Is customer interested in financing? | D59: Yes
C61: If not, why?
C64: First Western Equipment Finance - Leasing Calculation Option: | E64: Option 1 | G64: Option 2 | J64: =Financing!A38 -> Rates 2025 - Rev. 5/6/2025
E65: Monthly Payment | F65: Cost Per Day | G65: Monthly Payment | H65: Cost Per Day | J65: =Financing!A39 -> “Blank Payment Amounts Indicate The Financing Option Or Purchase Options Selected Are Not
C66: Purchase Option: | E66: FWEF: $1 Buyout Lease | G66: FWEF: Municipal Lease | J66: =Financing!A40 -> Applicable Or The Machine Total Is Below The Minimum Amount For The Selected Vendor”
C67: 24 Months | E67: 0 | F67: 0 | G67: 0 | H67: 0 | J67: =Financing!A41 -> "Quoted monthly payments are estimates only and are based on a certain level of credit rating.
C68: 30 Months | E68: 0 | F68: 0 | G68: 0 | H68: 0 | J68: =Financing!A42 -> Actual monthly payments may be higher depending on your credit rating."
C69: 36 Months | E69: 0 | F69: 0 | G69: 0 | H69: 0 | J69: =Financing!A43 -> “Financing rates do not include Pre-Paid Service”
C70: 48 Months | E70: 0 | F70: 0 | G70: 0 | H70: 0 | J70: =Financing!A44 -> 0
D72: Benefits of Equipment Financing:
D73: • Spreads out investment over time. | F73: • Keep current with latest technology.
D74: • Preserve capital. | F74: • Service and parts bundling available.
D75: • Low monthly payment. | F75: • Pay for labor savings as you go.
C78: Bundled Offerings | E78: Flexclean – Fair Market Value | G78: Flexclean - $1 Buyout
C79: FlexClean: | E79: 36 Month Term | G79: 36 Month Term | J79: No | K79: AB Brushes
C80: Hours included per Month: | E80: Gold | F80: Silver | G80: Gold | H80: Silver | I80: Check
C81: < 30/mo. (Avg. 1hr./day) | K81: =FlexCleanCalc!$A21 -> “FlexClean monthly rates include payment for both machine and service.”
C82: < 60/mo. (Avg. 2hrs./day)
C83: < 90/mo. (Avg. 3hrs./day)
C84: *This value assumes one service contract regardless of the number of UNITS included in the quote
C87: Bundled Offerings | E87: Flexclean – Fair Market Value | G87: Flexclean - $1 Buyout
C88: FlexClean 2: | E88: 48 Month Term | G88: 48 Month Term
C89: Hours included per Month: | E89: Gold | F89: Silver | G89: Gold | H89: Silver
C90: < 30/mo. (Avg. 1hr./day)
C91: < 60/mo. (Avg. 2hrs./day)
C92: < 90/mo. (Avg. 3hrs./day)
C93: *This value assumes one service contract regardless of the number of UNITS included in the quote
C95: Bundled Offerings | E95: Flexclean – Fair Market Value | G95: Flexclean - $1 Buyout
C96: FlexClean 3: | E96: 60 Month Term | G96: 60 Month Term
C97: Hours included per Month: | E97: Gold | F97: Silver | G97: Gold | H97: Silver
C98: < 30/mo. (Avg. 1hr./day)
C99: < 60/mo. (Avg. 2hrs./day)
C100: < 90/mo. (Avg. 3hrs./day)
C101: *This value assumes one service contract regardless of the number of UNITS included in the quote
B103: TennantTrue | D103: 0
C105: Is customer interested in service program? | D105: Yes | E105: *State/County selection required for TennantTrue service options
C107: If not, why?
C109: Term: | D109: 36 | F109: AB Brushes | G109: No
C110: Monthly machine usage (hrs): | D110: < 30/mo. (Avg. 1hr./day)
C112: TennantTrue: | D112: Gold Contract | F112: Silver Contract
C113: Per Visit
C114: Monthly
C115: Annually
C116: Pre-Pay Full Term
C117: Hourly Labor Rate
C118: Site Visit
C120: * Verify customer current pricing prior to quote.
C121: **All rates and fees above reflect service for one (1) unit with the exception of Block of Time service.
C122: *Block of Time is available in 1 Year Term only and is priced as such no matter the term selection on this template.
C126: Quote Special Instructions:
C129: =Start_Here!E36 -> Terms and Conditions
C130: =Start_Here!E37 -> Ask your local sales rep for estimated lead times. Verify when placing order
C131: =Start_Here!E38 -> All orders subject to acceptance by Tennant Sales and Service Company, Minneapolis, Minnesota
C132: =Start_Here!E39 -> Prices subject to change without notice.
C133: =Start_Here!E40 -> Terms: Net 30 days. Subject to any applicable taxes.
C134: =Start_Here!E41 -> Freight: Machines and accessory orders delivered FOB shipping point Frt PPD & Add
C135: =Start_Here!E42 -> Parts, supplies, detergents and floor treating material orders delivered FOB
C136: =Start_Here!E43 -> shipping point Frt PPD
C137: =Start_Here!E44 -> All orders are subject to Tennant’s General Terms and Conditions available at http://www.tennantco.com/terms.
C138: =Start_Here!E45 -> Printed General Terms and Conditions are also available upon request.
C139: =Start_Here!E46 -> 0
F141: Quote Date : | H141: =Letter!$A$25 -> 2020-09-22
B142: Order Placement Information: To place your order, fill in PO# and customer signatures,
B143: call or fax to the numbers listed below. Customer Purchase Order is required.
B144: If information is missing, orders will be entered and held until all information is received.
C145: Customer Number | E145: Cust Grp 3
C146: =Start_Here!$C$25 -> 0 | E146: =Start_Here!$C$29 -> 0
C147: =Start_Here!$B$18 -> Who Owns the Machine? (Sold-To Info) (Please Verify)
A148: Company | C148: =Start_Here!$C$19 -> Company Name
A149: Address | C149: =Start_Here!$C$20 -> Address
C150: =Start_Here!$C$21 -> City, State Zip
A151: Name | C151: =Start_Here!$C$22 -> Contact Name
A152: Phone | C152: =Start_Here!$C$23 -> Contact Phone
C153: =Start_Here!$B$11 -> Where is the Machine Being Shipped? (Ship-To Info) (Please Verify)
A154: Company | C154: =Start_Here!$C$12 -> Company Name
A155: Address | C155: =Start_Here!$C$13 -> Address
C156: =Start_Here!$C$14 -> City, State Zip
A157: Name | C157: =Start_Here!$C$15 -> Contact Name
A158: Phone | C158: =Start_Here!$C$16 -> Contact Phone
C159: =Start_Here!$B$31 -> Shipping / Carrier Instructions: | E159: Order Special Instructions:
C160: =Start_Here!$C$32 -> 0
C162: Customer Purchase Order No.
C163: (please attach copy)
C166: Tax Exempt | E166: Yes
E167: No
C168: If Yes, attach a copy of your exemption certificate.
C170: Requested Delivery Date
C171: =Start_Here!$C$28 -> 0
C173: =Start_Here!$C$26 -> 0 | E173: =Start_Here!$C$27 -> 0
B174: 0 | C174: Authorized Buyer (please print) | E174: Phone Number
B177: 0 | C177: Authorized Buyer Signature
C179: =Start_Here!$C$41 -> Rep Name
C180: Tennant Representative
A183: Specialized Maintenance Equipment
A184: =Start_Here!$C$47 -> 0
A185: =Start_Here!$C$48 -> TENNANT · 10400 Clean Street · Eden Prairie, MN 55344 ·

Sheet Dual_Tech_ReadySpace_R14
A1: Dual_Tech_ReadySpace_R14 | C1: =Start_Here!$C19 -> Company Name
A2: =SUM(H94) -> 0 | C2: =Start_Here!$C20 -> Address
C3: =Start_Here!$C21 -> City, State Zip
C4: =Start_Here!$C22 -> Contact Name
C5: =Start_Here!$C$41 -> Rep Name
C6: =Start_Here!$C$37 -> Tennant Sales and Service Company
C7: =Start_Here!$C$38 -> 10400 Clean Street
C8: =Start_Here!$C$39 -> Eden Prairie, MN 55344
C9: =Start_Here!$C$43 -> 800-553-8033 | F9: Quote Date : | H9: =Letter!$A$25 -> 2020-09-22
C11: =Help!C2 -> US Date Rev - 5/6/2025
C12: BUILT-IN “TENNANT VALUE” INCLUDES:
C14: ReadySpace® cleaning technology and deep extraction | E14: Standard (4) 6V 360AH battery pack
C15: 700mm/28" cleaning path | E15: Battery Tray
C16: 121 l/32-gal. solution & 106 l/28-gal. recovery tanks | E16: 25 Amp Off-board charger
C17: Hygenic® fully cleanable solution/recovery tanks | E17: One set of ReadySpace® rollers & extraction brushes
C18: Solution tank empty indicator | E18: Rugged DuramerTM Tank Construction
C19: Recovery tank full indicator | E19: Vacuum fan in-line air filter
C20: Touch Panel Controls | E20: Virtual DVD manual
C21: Featuring on-board diagnostics | E21: Operators manual
C22: One-button operation | E22: CRI certified, Bronze Cleaning Performance
C23: E-stop, hour meter and horn
C26: TENNANT COMPANY WARRANTY
C27: 3 YEARS OR 1500 HOURS ON ALL COMPONENTS, 3 YEARS LABOR
C28: 90 DAYS TRAVEL, 10 YEARS ON DURAMERTM TANKS
F30: Quote Request Information
H31: Fax (quote only)
H32: Mail (quote,lit, specs)
H33: Fax + Mail
F35: Primary Use
H36: Inside
H37: Outside
C40: Description | E40: Referencel# | F40: Price Each | G40: Qty | H40: Extended Pr
F41: US List | G41: *
B42: Base Configuration | G42: =SUM(G43,G46,G52) -> 0
C43: Cleaning Type | G43: =SUM(G44) -> 0
C44: R14 Ride-On Dual Technolgy Carpet Maintainer 700mm/28" | E44: R14-700 | F44: 28871 | H44: =G44*F44 -> 0 | I44: =IFERROR(IFERROR(VLOOKUP(E44,Surcharge!A:B,2,FALSE)*G44, VLOOKUP(E44 & "",Surcharge!A:B,2,FALSE)*G44), "") -> 0
I45: =IFERROR(IFERROR(VLOOKUP(E45,Surcharge!A:B,2,FALSE)*G45, VLOOKUP(E45 & "",Surcharge!A:B,2,FALSE)*G45), "") -> 
C46: Battery Type | G46: =SUM(G47:G48,G50) -> 0 | I46: =IFERROR(IFERROR(VLOOKUP(E46,Surcharge!A:B,2,FALSE)*G46, VLOOKUP(E46 & "",Surcharge!A:B,2,FALSE)*G46), "") -> 
C47: Wet 360AH C/20 (Kit of 4 batteries) | E47: 9000815 | F47: N/C | H47: =IF(G47=0," ","N/C") ->  | I47: =IFERROR(IFERROR(VLOOKUP(E47,Surcharge!A:B,2,FALSE)*G47, VLOOKUP(E47 & "",Surcharge!A:B,2,FALSE)*G47), "") -> 
C48: Without Battery (Note 1) | F48: -658 | H48: =G48*F48 -> 0 | I48: =IFERROR(IFERROR(VLOOKUP(E48,Surcharge!A:B,2,FALSE)*G48, VLOOKUP(E48 & "",Surcharge!A:B,2,FALSE)*G48), "") -> 
I49: =IFERROR(IFERROR(VLOOKUP(E49,Surcharge!A:B,2,FALSE)*G49, VLOOKUP(E49 & "",Surcharge!A:B,2,FALSE)*G49), "") -> 
C50: Manual Battery Watering Kit (Note 2) | E50: 9009619 | F50: 628 | H50: =G50*F50 -> 0 | I50: =IFERROR(IFERROR(VLOOKUP(E50,Surcharge!A:B,2,FALSE)*G50, VLOOKUP(E50 & "",Surcharge!A:B,2,FALSE)*G50), "") -> 
I51: =IFERROR(IFERROR(VLOOKUP(E51,Surcharge!A:B,2,FALSE)*G51, VLOOKUP(E51 & "",Surcharge!A:B,2,FALSE)*G51), "") -> 
C52: Charger | E52: Reference Number | G52: =SUM(G53:G54) -> 0 | I52: =IFERROR(IFERROR(VLOOKUP(E52,Surcharge!A:B,2,FALSE)*G52, VLOOKUP(E52 & "",Surcharge!A:B,2,FALSE)*G52), "") -> 
C53: 25A 100-240V AC 50/60Hz 1Ph | E53: 1043663 | F53: N/C | H53: =IF(G53=0," ","N/C") ->  | I53: =IFERROR(IFERROR(VLOOKUP(E53,Surcharge!A:B,2,FALSE)*G53, VLOOKUP(E53 & "",Surcharge!A:B,2,FALSE)*G53), "") -> 
C54: Without Charger | F54: -375 | H54: =G54*F54 -> 0 | I54: =IFERROR(IFERROR(VLOOKUP(E54,Surcharge!A:B,2,FALSE)*G54, VLOOKUP(E54 & "",Surcharge!A:B,2,FALSE)*G54), "") -> 
I55: =IFERROR(IFERROR(VLOOKUP(E55,Surcharge!A:B,2,FALSE)*G55, VLOOKUP(E55 & "",Surcharge!A:B,2,FALSE)*G55), "") -> 
B56: Machine Protection & Safety | E56: Reference Number | G56: =SUM(G57:G59) -> 0 | I56: =IFERROR(IFERROR(VLOOKUP(E56,Surcharge!A:B,2,FALSE)*G56, VLOOKUP(E56 & "",Surcharge!A:B,2,FALSE)*G56), "") -> 
C57: Seat Belt | E57: 9018587 | F57: 97 | H57: =G57*F57 -> 0
C58: Strobe Light on Tank | E58: 9000580 | F58: 787 | H58: =G58*F58 -> 0 | I58: =IFERROR(IFERROR(VLOOKUP(E58,Surcharge!A:B,2,FALSE)*G58, VLOOKUP(E58 & "",Surcharge!A:B,2,FALSE)*G58), "") -> 
C59: Utility Basket (small storage) | E59: 1018315 | F59: 248 | H59: =G59*F59 -> 0 | I59: =IFERROR(IFERROR(VLOOKUP(E59,Surcharge!A:B,2,FALSE)*G59, VLOOKUP(E59 & "",Surcharge!A:B,2,FALSE)*G59), "") -> 
I60: =IFERROR(IFERROR(VLOOKUP(E60,Surcharge!A:B,2,FALSE)*G60, VLOOKUP(E60 & "",Surcharge!A:B,2,FALSE)*G60), "") -> 
B61: Support | E61: Reference Number | G61: =SUM(G62:G69) -> 0 | I61: =IFERROR(IFERROR(VLOOKUP(E61,Surcharge!A:B,2,FALSE)*G61, VLOOKUP(E61 & "",Surcharge!A:B,2,FALSE)*G61), "") -> 
C62: R14 Operator Manual (English) | E62: 1032047 | F62: N/C | H62: =IF(G62=0," ","N/C") ->  | I62: =IFERROR(IFERROR(VLOOKUP(E62,Surcharge!A:B,2,FALSE)*G62, VLOOKUP(E62 & "",Surcharge!A:B,2,FALSE)*G62), "") -> 
C63: R14 Operator Manual (Spanish) | E63: 1032123 | F63: N/C | I63: =IFERROR(IFERROR(VLOOKUP(E63,Surcharge!A:B,2,FALSE)*G63, VLOOKUP(E63 & "",Surcharge!A:B,2,FALSE)*G63), "") -> 
C64: R14 Operator Manual (French) | E64: 1032124 | F64: N/C | I64: =IFERROR(IFERROR(VLOOKUP(E64,Surcharge!A:B,2,FALSE)*G64, VLOOKUP(E64 & "",Surcharge!A:B,2,FALSE)*G64), "") -> 
C65: Additional Operator Manual | E65: see above | F65: 173 | H65: =G65*F65 -> 0 | I65: =IFERROR(IFERROR(VLOOKUP(E65,Surcharge!A:B,2,FALSE)*G65, VLOOKUP(E65 & "",Surcharge!A:B,2,FALSE)*G65), "") -> 
C66: R14 Parts Manual | E66: 1032125 | F66: 23 | H66: =G66*F66 -> 0 | I66: =IFERROR(IFERROR(VLOOKUP(E66,Surcharge!A:B,2,FALSE)*G66, VLOOKUP(E66 & "",Surcharge!A:B,2,FALSE)*G66), "") -> 
C67: Service Manual | E67: 1032129 | F67: N/C | H67: =IF(G67=0," ","N/C") ->  | I67: =IFERROR(IFERROR(VLOOKUP(E67,Surcharge!A:B,2,FALSE)*G67, VLOOKUP(E67 & "",Surcharge!A:B,2,FALSE)*G67), "") -> 
I68: =IFERROR(IFERROR(VLOOKUP(E68,Surcharge!A:B,2,FALSE)*G68, VLOOKUP(E68 & "",Surcharge!A:B,2,FALSE)*G68), "") -> 
C69: Packaging (Note 3) | G69: =SUM(G70:G72) -> 0 | I69: =IFERROR(IFERROR(VLOOKUP(E69,Surcharge!A:B,2,FALSE)*G69, VLOOKUP(E69 & "",Surcharge!A:B,2,FALSE)*G69), "") -> 
C70: Pad Wrap | F70: N/C | H70: =IF(G70=0," ","N/C") ->  | I70: =IFERROR(IFERROR(VLOOKUP(E70,Surcharge!A:B,2,FALSE)*G70, VLOOKUP(E70 & "",Surcharge!A:B,2,FALSE)*G70), "") -> 
C71: Skid w/Carton, Non-Stackable | E71: 9002882 | F71: 512 | H71: =G71*F71 -> 0 | I71: =IFERROR(IFERROR(VLOOKUP(E71,Surcharge!A:B,2,FALSE)*G71, VLOOKUP(E71 & "",Surcharge!A:B,2,FALSE)*G71), "") -> 
C72: Skid with Stretch Wrap | E72: 9007286 | F72: 350 | H72: =G72*F72 -> 0 | I72: =IFERROR(IFERROR(VLOOKUP(E72,Surcharge!A:B,2,FALSE)*G72, VLOOKUP(E72 & "",Surcharge!A:B,2,FALSE)*G72), "") -> 
I73: =IFERROR(IFERROR(VLOOKUP(E73,Surcharge!A:B,2,FALSE)*G73, VLOOKUP(E73 & "",Surcharge!A:B,2,FALSE)*G73), "") -> 
G74: =SUM(#REF!) -> 
B76: Custom Solution--write in description, qty, price, and PN if applicable | F76: =SUM(F77) -> 0 | G76: =SUM(G77) -> 0
E77: Insert Prices Here | F77: =SUM(G78:G81) -> 0 | G77: =SUM(G78:G81) -> 0
E78: Custom | G78: =IF(F78 <> "", 1, 0) -> 0 | H78: =G78*F78 -> 0
E79: Custom | G79: =IF(F79 <> "", 1, 0) -> 0 | H79: =G79*F79 -> 0
E80: Custom | G80: 0 | H80: =G80*F80 -> 0
E81: Custom | G81: 0 | H81: =G81*F81 -> 0
F82: =ROUND(SUM(H44:H81), 0) -> 0 | G82: =SUM(F83) -> 0
E83: Machine Subtotal | F83: =ROUND(SUM(H44:H81), 0) -> 0 | G83: =G82 -> 0
B84: Discounts | G84: =SUM(G85) -> 0
G85: =SUM(G86:G87) -> 0
E86: Discount % | G86: =IF(F86 <> "", 1, 0) -> 0 | H86: =IF(G86*(F86*0.01)*F82 < 0, G86*(F86*0.01)*F82, -(G86*(F86*0.01)*F82)) -> 0
E87: Discount $ | G87: =IF(F87 <> "", 1, 0) -> 0 | H87: =IF(G87*F87 < 0, G87*F87, -(G87*F87)) -> 0
E88: Discount Total | F88: =SUM(H86:H87) -> 0 | G88: =SUM(F88) -> 0
F89: =#REF! ->  | G89: =#REF! -> 
G90: =G89 -> 
C91: Prepaid and Add | E91: Freight | G91: =IF(F91 <> "", 1, 0) -> 0 | H91: =G91*F91 -> 0
C92: Subject to all applicable taxes | E92: Tax | G92: 0 | H92: =G92*F92 -> 0
G93: =SUM(G94) -> 0
E94: MACHINE TOTAL* | G94: =SUM(H94) -> 0 | H94: =SUM(H44:H92) -> 0 | M94: This goes to "My Documents"
H95: =SUM(H94) -> 0
B96: Financing
C98: Is customer interested in financing? | D98: Yes
C100: If not, why?
C103: First Western Equipment Finance - Leasing Calculation Option: | E103: Option 1 | G103: Option 2 | J103: =Financing!A38 -> Rates 2025 - Rev. 5/6/2025
E104: Monthly Payment | F104: Cost Per Day | G104: Monthly Payment | H104: Cost Per Day | J104: =Financing!A39 -> “Blank Payment Amounts Indicate The Financing Option Or Purchase Options Selected Are Not
C105: Purchase Option: | E105: FWEF: $1 Buyout Lease | G105: FWEF: Municipal Lease | J105: =Financing!A40 -> Applicable Or The Machine Total Is Below The Minimum Amount For The Selected Vendor”
C106: 24 Months | E106: 0 | F106: 0 | G106: 0 | H106: 0 | J106: =Financing!A41 -> "Quoted monthly payments are estimates only and are based on a certain level of credit rating.
C107: 30 Months | E107: 0 | F107: 0 | G107: 0 | H107: 0 | J107: =Financing!A42 -> Actual monthly payments may be higher depending on your credit rating."
C108: 36 Months | E108: 0 | F108: 0 | G108: 0 | H108: 0 | J108: =Financing!A43 -> “Financing rates do not include Pre-Paid Service”
C109: 48 Months | E109: 0 | F109: 0 | G109: 0 | H109: 0 | J109: =Financing!A44 -> 0
D111: Benefits of Equipment Financing:
D112: • Spreads out investment over time. | F112: • Keep current with latest technology.
D113: • Preserve capital. | F113: • Service and parts bundling available.
D114: • Low monthly payment. | F114: • Pay for labor savings as you go.
C117: Bundled Offerings | E117: Flexclean – Fair Market Value | G117: Flexclean - $1 Buyout
C118: FlexClean: | E118: 36 Month Term | G118: 36 Month Term | J118: No | K118: AB Brushes
C119: Hours included per Month: | E119: Gold | F119: Silver | G119: Gold | H119: Silver | I119: Check
C120: < 30/mo. (Avg. 1hr./day) | K120: =FlexCleanCalc!$A21 -> “FlexClean monthly rates include payment for both machine and service.”
C121: < 60/mo. (Avg. 2hrs./day)
C122: < 90/mo. (Avg. 3hrs./day)
C123: *This value assumes one service contract regardless of the number of UNITS included in the quote
C126: Bundled Offerings | E126: Flexclean – Fair Market Value | G126: Flexclean - $1 Buyout
C127: FlexClean 2: | E127: 48 Month Term | G127: 48 Month Term
C128: Hours included per Month: | E128: Gold | F128: Silver | G128: Gold | H128: Silver
C129: < 30/mo. (Avg. 1hr./day)
C130: < 60/mo. (Avg. 2hrs./day)
C131: < 90/mo. (Avg. 3hrs./day)
C132: *This value assumes one service contract regardless of the number of UNITS included in the quote
C134: Bundled Offerings | E134: Flexclean – Fair Market Value | G134: Flexclean - $1 Buyout
C135: FlexClean 3: | E135: 60 Month Term | G135: 60 Month Term
C136: Hours included per Month: | E136: Gold | F136: Silver | G136: Gold | H136: Silver
C137: < 30/mo. (Avg. 1hr./day)
C138: < 60/mo. (Avg. 2hrs./day)
C139: < 90/mo. (Avg. 3hrs./day)
C140: *This value assumes one service contract regardless of the number of UNITS included in the quote
B142: TennantTrue | D142: 0
C144: Is customer interested in service program? | D144: Yes | E144: *State/County selection required for TennantTrue service options
C146: If not, why?
C148: Term: | D148: 36 | F148: AB Brushes | G148: No
C149: Monthly machine usage (hrs): | D149: < 30/mo. (Avg. 1hr./day)
C151: TennantTrue: | D151: Gold Contract | F151: Silver Contract
C152: Per Visit | F152: 501
C153: Monthly | D153: 164 | F153: 88
C154: Annually | F154: 1035
C155: Pre-Pay Full Term | D155: 5682 | F155: 3042
C156: Hourly Labor Rate
C157: Site Visit
C159: * Verify customer current pricing prior to quote.
C160: **All rates and fees above reflect service for one (1) unit with the exception of Block of Time service.
C161: *Block of Time is available in 1 Year Term only and is priced as such no matter the term selection on this template.
C165: Quote Special Instructions:
C168: =Start_Here!E36 -> Terms and Conditions
C169: =Start_Here!E37 -> Ask your local sales rep for estimated lead times. Verify when placing order
C170: =Start_Here!E38 -> All orders subject to acceptance by Tennant Sales and Service Company, Minneapolis, Minnesota
C171: =Start_Here!E39 -> Prices subject to change without notice.
C172: =Start_Here!E40 -> Terms: Net 30 days. Subject to any applicable taxes.
C173: =Start_Here!E41 -> Freight: Machines and accessory orders delivered FOB shipping point Frt PPD & Add
C174: =Start_Here!E42 -> Parts, supplies, detergents and floor treating material orders delivered FOB
C175: =Start_Here!E43 -> shipping point Frt PPD
C176: =Start_Here!E44 -> All orders are subject to Tennant’s General Terms and Conditions available at http://www.tennantco.com/terms.
C177: =Start_Here!E45 -> Printed General Terms and Conditions are also available upon request.
C178: =Start_Here!E46 -> 0
F180: Quote Date : | H180: =Letter!$A$25 -> 2020-09-22
B181: Order Placement Information: To place your order, fill in PO# and customer signatures,
B182: call or fax to the numbers listed below. Customer Purchase Order is required.
B183: If information is missing, orders will be entered and held until all information is received.
C184: Customer Number | E184: Cust Grp 3
C185: =Start_Here!$C$25 -> 0 | E185: =Start_Here!$C$29 -> 0
C186: =Start_Here!$B$18 -> Who Owns the Machine? (Sold-To Info) (Please Verify)
A187: Company | C187: =Start_Here!$C$19 -> Company Name
A188: Address | C188: =Start_Here!$C$20 -> Address
C189: =Start_Here!$C$21 -> City, State Zip
A190: Name | C190: =Start_Here!$C$22 -> Contact Name
A191: Phone | C191: =Start_Here!$C$23 -> Contact Phone
C192: =Start_Here!$B$11 -> Where is the Machine Being Shipped? (Ship-To Info) (Please Verify)
A193: Company | C193: =Start_Here!$C$12 -> Company Name
A194: Address | C194: =Start_Here!$C$13 -> Address
C195: =Start_Here!$C$14 -> City, State Zip
A196: Name | C196: =Start_Here!$C$15 -> Contact Name
A197: Phone | C197: =Start_Here!$C$16 -> Contact Phone
C198: =Start_Here!$B$31 -> Shipping / Carrier Instructions: | E198: Order Special Instructions:
C199: =Start_Here!$C$32 -> 0
C201: Customer Purchase Order No.
C202: (please attach copy)
C205: Tax Exempt | E205: Yes
E206: No
C207: If Yes, attach a copy of your exemption certificate.
C209: Requested Delivery Date
C210: =Start_Here!$C$28 -> 0
C212: =Start_Here!$C$26 -> 0 | E212: =Start_Here!$C$27 -> 0
B213: 0 | C213: Authorized Buyer (please print) | E213: Phone Number
B216: 0 | C216: Authorized Buyer Signature
C218: =Start_Here!$C$41 -> Rep Name
C219: Tennant Representative
A222: Specialized Maintenance Equipment
A223: =Start_Here!$C$47 -> 0
A224: =Start_Here!$C$48 -> TENNANT · 10400 Clean Street · Eden Prairie, MN 55344 ·
B226: Notes
B227: 1 | C227: Customer MUST order Skid w/Carton, Non-Stackable if WITHOUT BATTERY is selected. Continental USA orders ONLY.
B229: 2 | C229: Only available as factory-installed when batteries are ordered with machine.
B231: 3 | C231: Pad wrap available only in the Continental US and is the default packaging method.
C232: Customer MUST order Skid w/Carton, Non-Stackable or Skid w/Stretch Wrap if WITHOUT BATTERY is selected.
C233: Skid w/Carton, Non-Stackable is mandatory when shipping to AK and HI. Packaging is added at No Charge when shipping
C234: to these locations.
B236: 4 | C236: Shipping Weights and Dimensions | D236: Pad Wrap | E236: Skid w/ Carton
C238: Weight (w/360AH batteries) | D238: 590 lbs / 268 Kg | E238: 650 lbs / 295 Kg
C239: Length | D239: 60" / 1,524mm | E239: 68" / 1,727mm
C240: Width | D240: 28" / 711mm | E240: 33" / 838mm
C241: Height | D241: 42" / 1,067mm | E241: 48" / 1,219mm

Sheet Dual_Tech_ReadySpace_1610
A1: Dual_Tech_ReadySpace_1610 | C1: =Start_Here!$C19 -> Company Name
A2: =SUM(H91) -> 0 | C2: =Start_Here!$C20 -> Address
C3: =Start_Here!$C21 -> City, State Zip
C4: =Start_Here!$C22 -> Contact Name
C5: =Start_Here!$C$41 -> Rep Name
C6: =Start_Here!$C$37 -> Tennant Sales and Service Company
C7: =Start_Here!$C$38 -> 10400 Clean Street
C8: =Start_Here!$C$39 -> Eden Prairie, MN 55344
C9: =Start_Here!$C$43 -> 800-553-8033 | F9: Quote Date : | H9: =Letter!$A$25 -> 2020-09-22
C11: =Help!C2 -> US Date Rev - 5/6/2025
C12: BUILT-IN “TENNANT VALUE” INCLUDES:
C14: ReadySpace® cleaning technology and deep extraction | E14: Standard (4) 6V 240 AH battery pack
C15: 560mm/22" cleaning path | E15: Battery Tray
C16: 72 l/21-gal. solution and recovery tanks | E16: 19 AH Off-board charger
C17: One set of ReadySpace® rollers & extraction brushes | E17: Rugged DuramerTM Tank Construction
C18: High Traction Tires | E18: Operators video
C19: Battery Discharger Indicator | E19: Operators manual
C20: Hour meter | E20: CRI certified, Bronze Cleaning Performance
C23: TENNANT COMPANY WARRANTY
C24: 3 YEARS OR 2500 HOURS ON ALL COMPONENTS, 3 YEARS LABOR
C25: 90 DAYS TRAVEL, 10 YEARS ON DURAMERTM TANKS
F27: Quote Request Information
H28: Fax (quote only)
H29: Mail (quote,lit, specs)
H30: Fax + Mail
F32: Primary Use
H33: Inside
H34: Outside
C37: Description | E37: Referencel# | F37: Price Each | G37: Qty | H37: Extended Pr
F38: 2022 US List | G38: *
B39: Pre-Configured Machines (Note 1) | G39: =SUM(G40:G41,G43) -> 0
C40: 1610 ReadySpace Walk-Behind w/ Wet 240AH Battery and Charger | E40: MV-1610-0001 | F40: 20517 | H40: =G40*F40 -> 0 | I40: =IFERROR(IFERROR(VLOOKUP(E40,Surcharge!A:B,2,FALSE)*G40, VLOOKUP(E40 & "",Surcharge!A:B,2,FALSE)*G40), "") -> 0 | P40: =VLOOKUP(E40,'MPF SAP Download PreConfigured'!C:E,3,FALSE) -> 20516
C41: 1610 ReadySpace Walk-Behind w/ AGM 200AH Battery and Charger | E41: MV-1610-0002 | F41: 21088 | H41: =G41*F41 -> 0 | I41: =IFERROR(IFERROR(VLOOKUP(E41,Surcharge!A:B,2,FALSE)*G41, VLOOKUP(E41 & "",Surcharge!A:B,2,FALSE)*G41), "") -> 0 | P41: =VLOOKUP(E41,'MPF SAP Download PreConfigured'!C:E,3,FALSE) -> 21086
C42: Above unit includes both Extraction Brushes and ReadySpace Rollers, an English Operator Manual. These units are packaged in a Skid w/Carton for shipment via LTL Carries. | G42: =SUM(G40:G41) -> 0 | I42: =IFERROR(IFERROR(VLOOKUP(E42,Surcharge!A:B,2,FALSE)*G42, VLOOKUP(E42 & "",Surcharge!A:B,2,FALSE)*G42), "") -> 
C43: 1610 ReadySpace, 240AH Battery, Off-Board Charger | E43: MV-1610-0008 | F43: 20042 | H43: =G43*F43 -> 0 | I43: =IFERROR(IFERROR(VLOOKUP(E43,Surcharge!A:B,2,FALSE)*G43, VLOOKUP(E43 & "",Surcharge!A:B,2,FALSE)*G43), "") -> 0 | P43: =VLOOKUP(E43,'MPF SAP Download PreConfigured'!C:E,3,FALSE) -> 20042
G44: =SUM(G43) -> 0 | I44: =IFERROR(IFERROR(VLOOKUP(E44,Surcharge!A:B,2,FALSE)*G44, VLOOKUP(E44 & "",Surcharge!A:B,2,FALSE)*G44), "") -> 
C45: Above unit includes both Extraction Brushes and ReadySpace Rollers and an English Operator Manual. This unit will ship Pad Wrap via Logix Transportation. This unit cannot ship to AK or HI. | G45: =SUM(G44) -> 0 | I45: =IFERROR(IFERROR(VLOOKUP(E45,Surcharge!A:B,2,FALSE)*G45, VLOOKUP(E45 & "",Surcharge!A:B,2,FALSE)*G45), "") -> 
G46: =SUM(G45) -> 0 | I46: =IFERROR(IFERROR(VLOOKUP(E46,Surcharge!A:B,2,FALSE)*G46, VLOOKUP(E46 & "",Surcharge!A:B,2,FALSE)*G46), "") -> 
B47: Base Configuration | G47: =SUM(G48,G51,G56) -> 0 | I47: =IFERROR(IFERROR(VLOOKUP(E47,Surcharge!A:B,2,FALSE)*G47, VLOOKUP(E47 & "",Surcharge!A:B,2,FALSE)*G47), "") -> 
C48: Cleaning Type | G48: =SUM(G49) -> 0 | I48: =IFERROR(IFERROR(VLOOKUP(E48,Surcharge!A:B,2,FALSE)*G48, VLOOKUP(E48 & "",Surcharge!A:B,2,FALSE)*G48), "") -> 
C49: 1610 Walk-Behind Dual Technolgy Carpet Maintainer 560mm/22" | E49: 1610-560 | F49: 20042 | H49: =G49*F49 -> 0 | I49: =IFERROR(IFERROR(VLOOKUP(E49,Surcharge!A:B,2,FALSE)*G49, VLOOKUP(E49 & "",Surcharge!A:B,2,FALSE)*G49), "") -> 0
I50: =IFERROR(IFERROR(VLOOKUP(E50,Surcharge!A:B,2,FALSE)*G50, VLOOKUP(E50 & "",Surcharge!A:B,2,FALSE)*G50), "") -> 
C51: Battery Type | G51: =SUM(G52:G54) -> 0 | I51: =IFERROR(IFERROR(VLOOKUP(E51,Surcharge!A:B,2,FALSE)*G51, VLOOKUP(E51 & "",Surcharge!A:B,2,FALSE)*G51), "") -> 
C52: Wet 240AH C/20 (Kit of 4 batteries) | E52: 9012452 | F52: N/C | H52: =IF(G52=0," ","N/C") ->  | I52: =IFERROR(IFERROR(VLOOKUP(E52,Surcharge!A:B,2,FALSE)*G52, VLOOKUP(E52 & "",Surcharge!A:B,2,FALSE)*G52), "") -> 
C53: Sealed/MF AGM 200AH C/20 (Kit of 4 batteries) | E53: 9012454 | F53: 571 | H53: =G53*F53 -> 0 | I53: =IFERROR(IFERROR(VLOOKUP(E53,Surcharge!A:B,2,FALSE)*G53, VLOOKUP(E53 & "",Surcharge!A:B,2,FALSE)*G53), "") -> 
C54: Without Battery (Note 2) | F54: -952 | H54: =G54*F54 -> 0 | I54: =IFERROR(IFERROR(VLOOKUP(E54,Surcharge!A:B,2,FALSE)*G54, VLOOKUP(E54 & "",Surcharge!A:B,2,FALSE)*G54), "") -> 
I55: =IFERROR(IFERROR(VLOOKUP(E55,Surcharge!A:B,2,FALSE)*G55, VLOOKUP(E55 & "",Surcharge!A:B,2,FALSE)*G55), "") -> 
C56: Charger | G56: =SUM(G57:G59) -> 0 | I56: =IFERROR(IFERROR(VLOOKUP(E56,Surcharge!A:B,2,FALSE)*G56, VLOOKUP(E56 & "",Surcharge!A:B,2,FALSE)*G56), "") -> 
C57: 19A 120V-240V AC 50/60Hz 1Ph | E57: 1029256 | F57: N/C | H57: =IF(G57=0," ","N/C") ->  | I57: =IFERROR(IFERROR(VLOOKUP(E57,Surcharge!A:B,2,FALSE)*G57, VLOOKUP(E57 & "",Surcharge!A:B,2,FALSE)*G57), "") -> 
C58: 19A 120V-240V AC 50/60Hz 1Ph (for sealed batteries) | E58: 1058164 | F58: N/C | H58: =IF(G58=0," ","N/C") ->  | I58: =IFERROR(IFERROR(VLOOKUP(E58,Surcharge!A:B,2,FALSE)*G58, VLOOKUP(E58 & "",Surcharge!A:B,2,FALSE)*G58), "") -> 
C59: Without Charger | F59: -718 | H59: =G59*F59 -> 0 | I59: =IFERROR(IFERROR(VLOOKUP(E59,Surcharge!A:B,2,FALSE)*G59, VLOOKUP(E59 & "",Surcharge!A:B,2,FALSE)*G59), "") -> 
I60: =IFERROR(IFERROR(VLOOKUP(E60,Surcharge!A:B,2,FALSE)*G60, VLOOKUP(E60 & "",Surcharge!A:B,2,FALSE)*G60), "") -> 
B61: Support | E61: Reference Number | G61: =SUM(G62:G64) -> 0 | I61: =IFERROR(IFERROR(VLOOKUP(E61,Surcharge!A:B,2,FALSE)*G61, VLOOKUP(E61 & "",Surcharge!A:B,2,FALSE)*G61), "") -> 
C62: 1610 Operator Manual (English/Spanish/French) | E62: 9003458 | F62: N/C | H62: =IF(G62=0," ","N/C") ->  | I62: =IFERROR(IFERROR(VLOOKUP(E62,Surcharge!A:B,2,FALSE)*G62, VLOOKUP(E62 & "",Surcharge!A:B,2,FALSE)*G62), "") -> 
C63: Additional Operator Manual | E63: see above | F63: 51 | H63: =G63*F63 -> 0 | I63: =IFERROR(IFERROR(VLOOKUP(E63,Surcharge!A:B,2,FALSE)*G63, VLOOKUP(E63 & "",Surcharge!A:B,2,FALSE)*G63), "") -> 
C64: Parts Manual (English) | E64: 9003456 | F64: 23 | H64: =G64*F64 -> 0 | I64: =IFERROR(IFERROR(VLOOKUP(E64,Surcharge!A:B,2,FALSE)*G64, VLOOKUP(E64 & "",Surcharge!A:B,2,FALSE)*G64), "") -> 
I65: =IFERROR(IFERROR(VLOOKUP(E65,Surcharge!A:B,2,FALSE)*G65, VLOOKUP(E65 & "",Surcharge!A:B,2,FALSE)*G65), "") -> 
C66: Packaging (Note 3) | G66: =SUM(G67:G69) -> 0 | I66: =IFERROR(IFERROR(VLOOKUP(E66,Surcharge!A:B,2,FALSE)*G66, VLOOKUP(E66 & "",Surcharge!A:B,2,FALSE)*G66), "") -> 
C67: Pad Wrap | F67: N/C | H67: =IF(G67=0," ","N/C") ->  | I67: =IFERROR(IFERROR(VLOOKUP(E67,Surcharge!A:B,2,FALSE)*G67, VLOOKUP(E67 & "",Surcharge!A:B,2,FALSE)*G67), "") -> 
C68: Skid w/Carton, Stackable | E68: 9012455 | F68: 475 | H68: =G68*F68 -> 0 | I68: =IFERROR(IFERROR(VLOOKUP(E68,Surcharge!A:B,2,FALSE)*G68, VLOOKUP(E68 & "",Surcharge!A:B,2,FALSE)*G68), "") -> 
C69: Skid with Stretch Wrap | E69: 9012456 | F69: 360 | H69: =G69*F69 -> 0 | I69: =IFERROR(IFERROR(VLOOKUP(E69,Surcharge!A:B,2,FALSE)*G69, VLOOKUP(E69 & "",Surcharge!A:B,2,FALSE)*G69), "") -> 
I70: =IFERROR(IFERROR(VLOOKUP(E70,Surcharge!A:B,2,FALSE)*G70, VLOOKUP(E70 & "",Surcharge!A:B,2,FALSE)*G70), "") -> 
G71: =SUM(#REF!) ->  | I71: =IFERROR(IFERROR(VLOOKUP(E71,Surcharge!A:B,2,FALSE)*G71, VLOOKUP(E71 & "",Surcharge!A:B,2,FALSE)*G71), "") -> 
I72: =IFERROR(IFERROR(VLOOKUP(E72,Surcharge!A:B,2,FALSE)*G72, VLOOKUP(E72 & "",Surcharge!A:B,2,FALSE)*G72), "") -> 
B73: Custom Solution--write in description, qty, price, and PN if applicable | F73: =SUM(F74) -> 0 | G73: =SUM(G74) -> 0 | I73: =IFERROR(IFERROR(VLOOKUP(E73,Surcharge!A:B,2,FALSE)*G73, VLOOKUP(E73 & "",Surcharge!A:B,2,FALSE)*G73), "") -> 
E74: Insert Prices Here | F74: =SUM(G75:G78) -> 0 | G74: =SUM(G75:G78) -> 0 | I74: =IFERROR(IFERROR(VLOOKUP(E74,Surcharge!A:B,2,FALSE)*G74, VLOOKUP(E74 & "",Surcharge!A:B,2,FALSE)*G74), "") -> 
E75: Custom | G75: =IF(F75 <> "", 1, 0) -> 0 | H75: =G75*F75 -> 0 | I75: =IFERROR(IFERROR(VLOOKUP(E75,Surcharge!A:B,2,FALSE)*G75, VLOOKUP(E75 & "",Surcharge!A:B,2,FALSE)*G75), "") -> 
E76: Custom | G76: =IF(F76 <> "", 1, 0) -> 0 | H76: =G76*F76 -> 0 | I76: =IFERROR(IFERROR(VLOOKUP(E76,Surcharge!A:B,2,FALSE)*G76, VLOOKUP(E76 & "",Surcharge!A:B,2,FALSE)*G76), "") -> 
E77: Custom | G77: 0 | H77: =G77*F77 -> 0 | I77: =IFERROR(IFERROR(VLOOKUP(E77,Surcharge!A:B,2,FALSE)*G77, VLOOKUP(E77 & "",Surcharge!A:B,2,FALSE)*G77), "") -> 
E78: Custom | G78: 0 | H78: =G78*F78 -> 0 | I78: =IFERROR(IFERROR(VLOOKUP(E78,Surcharge!A:B,2,FALSE)*G78, VLOOKUP(E78 & "",Surcharge!A:B,2,FALSE)*G78), "") -> 
F79: =ROUND(SUM(H40:H78), 0) -> 0 | G79: =SUM(F80) -> 0
E80: Machine Subtotal | F80: =ROUND(SUM(H40:H78), 0) -> 0 | G80: =G79 -> 0
B81: Discounts | G81: =SUM(G82) -> 0
G82: =SUM(G83:G84) -> 0
E83: Discount % | G83: =IF(F83 <> "", 1, 0) -> 0 | H83: =IF(G83*(F83*0.01)*F79 < 0, G83*(F83*0.01)*F79, -(G83*(F83*0.01)*F79)) -> 0
E84: Discount $ | G84: =IF(F84 <> "", 1, 0) -> 0 | H84: =IF(G84*F84 < 0, G84*F84, -(G84*F84)) -> 0
E85: Discount Total | F85: =SUM(H83:H84) -> 0 | G85: =SUM(F85) -> 0
F86: =#REF! ->  | G86: =#REF! -> 
G87: =G86 -> 
C88: Prepaid and Add | E88: Freight | G88: =IF(F88 <> "", 1, 0) -> 0 | H88: =G88*F88 -> 0
C89: Subject to all applicable taxes | E89: Tax | G89: 0 | H89: =G89*F89 -> 0
G90: =SUM(G91) -> 0
E91: MACHINE TOTAL* | G91: =SUM(H91) -> 0 | H91: =SUM(H40:H89) -> 0 | M91: This goes to "My Documents"
H92: =SUM(H91) -> 0
B93: Financing
C95: Is customer interested in financing? | D95: Yes
C97: If not, why?
C100: First Western Equipment Finance - Leasing Calculation Option: | E100: Option 1 | G100: Option 2 | J100: =Financing!A38 -> Rates 2025 - Rev. 5/6/2025
E101: Monthly Payment | F101: Cost Per Day | G101: Monthly Payment | H101: Cost Per Day | J101: =Financing!A39 -> “Blank Payment Amounts Indicate The Financing Option Or Purchase Options Selected Are Not
C102: Purchase Option: | E102: FWEF: $1 Buyout Lease | G102: FWEF: Municipal Lease | J102: =Financing!A40 -> Applicable Or The Machine Total Is Below The Minimum Amount For The Selected Vendor”
C103: 24 Months | E103: 0 | F103: 0 | G103: 0 | H103: 0 | J103: =Financing!A41 -> "Quoted monthly payments are estimates only and are based on a certain level of credit rating.
C104: 30 Months | E104: 0 | F104: 0 | G104: 0 | H104: 0 | J104: =Financing!A42 -> Actual monthly payments may be higher depending on your credit rating."
C105: 36 Months | E105: 0 | F105: 0 | G105: 0 | H105: 0 | J105: =Financing!A43 -> “Financing rates do not include Pre-Paid Service”
C106: 48 Months | E106: 0 | F106: 0 | G106: 0 | H106: 0 | J106: =Financing!A44 -> 0
D108: Benefits of Equipment Financing:
D109: • Spreads out investment over time. | F109: • Keep current with latest technology.
D110: • Preserve capital. | F110: • Service and parts bundling available.
D111: • Low monthly payment. | F111: • Pay for labor savings as you go.
C114: Bundled Offerings | E114: Flexclean – Fair Market Value | G114: Flexclean - $1 Buyout
C115: FlexClean: | E115: 36 Month Term | G115: 36 Month Term | J115: No | K115: AB Brushes
C116: Hours included per Month: | E116: Gold | F116: Silver | G116: Gold | H116: Silver | I116: Check
C117: < 30/mo. (Avg. 1hr./day) | K117: =FlexCleanCalc!$A21 -> “FlexClean monthly rates include payment for both machine and service.”
C118: < 60/mo. (Avg. 2hrs./day)
C119: < 90/mo. (Avg. 3hrs./day)
C120: *This value assumes one service contract regardless of the number of UNITS included in the quote
C123: Bundled Offerings | E123: Flexclean – Fair Market Value | G123: Flexclean - $1 Buyout
C124: FlexClean 2: | E124: 48 Month Term | G124: 48 Month Term
C125: Hours included per Month: | E125: Gold | F125: Silver | G125: Gold | H125: Silver
C126: < 30/mo. (Avg. 1hr./day)
C127: < 60/mo. (Avg. 2hrs./day)
C128: < 90/mo. (Avg. 3hrs./day)
C129: *This value assumes one service contract regardless of the number of UNITS included in the quote
C131: Bundled Offerings | E131: Flexclean – Fair Market Value | G131: Flexclean - $1 Buyout
C132: FlexClean 3: | E132: 60 Month Term | G132: 60 Month Term
C133: Hours included per Month: | E133: Gold | F133: Silver | G133: Gold | H133: Silver
C134: < 30/mo. (Avg. 1hr./day)
C135: < 60/mo. (Avg. 2hrs./day)
C136: < 90/mo. (Avg. 3hrs./day)
C137: *This value assumes one service contract regardless of the number of UNITS included in the quote
B139: TennantTrue | D139: 0
C141: Is customer interested in service program? | D141: Yes | E141: *State/County selection required for TennantTrue service options
C143: If not, why?
C145: Term: | D145: 36 | F145: AB Brushes | G145: No
C146: Monthly machine usage (hrs): | D146: < 30/mo. (Avg. 1hr./day)
C148: TennantTrue: | D148: Gold Contract | F148: Silver Contract
C149: Per Visit | F149: 392
C150: Monthly | D150: 120 | F150: 67
C151: Annually | F151: 785
C152: Pre-Pay Full Term | D152: 4162 | F152: 2305
C153: Hourly Labor Rate
C154: Site Visit
C156: * Verify customer current pricing prior to quote.
C157: **All rates and fees above reflect service for one (1) unit with the exception of Block of Time service.
C158: *Block of Time is available in 1 Year Term only and is priced as such no matter the term selection on this template.
C162: Quote Special Instructions:
C165: =Start_Here!E36 -> Terms and Conditions
C166: =Start_Here!E37 -> Ask your local sales rep for estimated lead times. Verify when placing order
C167: =Start_Here!E38 -> All orders subject to acceptance by Tennant Sales and Service Company, Minneapolis, Minnesota
C168: =Start_Here!E39 -> Prices subject to change without notice.
C169: =Start_Here!E40 -> Terms: Net 30 days. Subject to any applicable taxes.
C170: =Start_Here!E41 -> Freight: Machines and accessory orders delivered FOB shipping point Frt PPD & Add
C171: =Start_Here!E42 -> Parts, supplies, detergents and floor treating material orders delivered FOB
C172: =Start_Here!E43 -> shipping point Frt PPD
C173: =Start_Here!E44 -> All orders are subject to Tennant’s General Terms and Conditions available at http://www.tennantco.com/terms.
C174: =Start_Here!E45 -> Printed General Terms and Conditions are also available upon request.
C175: =Start_Here!E46 -> 0
F177: Quote Date : | H177: =Letter!$A$25 -> 2020-09-22
B178: Order Placement Information: To place your order, fill in PO# and customer signatures,
B179: call or fax to the numbers listed below. Customer Purchase Order is required.
B180: If information is missing, orders will be entered and held until all information is received.
C181: Customer Number | E181: Cust Grp 3
C182: =Start_Here!$C$25 -> 0 | E182: =Start_Here!$C$29 -> 0
C183: =Start_Here!$B$18 -> Who Owns the Machine? (Sold-To Info) (Please Verify)
A184: Company | C184: =Start_Here!$C$19 -> Company Name
A185: Address | C185: =Start_Here!$C$20 -> Address
C186: =Start_Here!$C$21 -> City, State Zip
A187: Name | C187: =Start_Here!$C$22 -> Contact Name
A188: Phone | C188: =Start_Here!$C$23 -> Contact Phone
C189: =Start_Here!$B$11 -> Where is the Machine Being Shipped? (Ship-To Info) (Please Verify)
A190: Company | C190: =Start_Here!$C$12 -> Company Name
A191: Address | C191: =Start_Here!$C$13 -> Address
C192: =Start_Here!$C$14 -> City, State Zip
A193: Name | C193: =Start_Here!$C$15 -> Contact Name
A194: Phone | C194: =Start_Here!$C$16 -> Contact Phone
C195: =Start_Here!$B$31 -> Shipping / Carrier Instructions: | E195: Order Special Instructions:
C196: =Start_Here!$C$32 -> 0
C198: Customer Purchase Order No.
C199: (please attach copy)
C202: Tax Exempt | E202: Yes
E203: No
C204: If Yes, attach a copy of your exemption certificate.
C206: Requested Delivery Date
C207: =Start_Here!$C$28 -> 0
C209: =Start_Here!$C$26 -> 0 | E209: =Start_Here!$C$27 -> 0
B210: 0 | C210: Authorized Buyer (please print) | E210: Phone Number
B213: 0 | C213: Authorized Buyer Signature
C215: =Start_Here!$C$41 -> Rep Name
C216: Tennant Representative
A219: Specialized Maintenance Equipment
A220: =Start_Here!$C$47 -> 0
A221: =Start_Here!$C$48 -> TENNANT · 10400 Clean Street · Eden Prairie, MN 55344 ·
B223: Notes
B224: 1 | C224: Pre-Configured Machines cannot add or change options. All units will be packaged and shipped as stated above.
C225: When ordering, provide the reference number listed above. Price does not include freight or tax. Availability of units
C226: and lead time may vary.
B228: 2 | C228: Customer MUST order Skid w/Carton, Stackable or Skid with Stretch Wrap if WITHOUT BATTERY is selected.
C229: Continental USA orders ONLY.
B231: 3 | C231: Pad wrap available only in the Continental US and is the default packaging method.
C232: Customer MUST order Skid w/Carton, Stackable or Skid w/Stretch Wrap if WITHOUT BATTERY is selected.
C233: Skid w/Carton, Stackable or Skid w/Stretch Wrap will both ship via LTL carrier. Pad Wrap will ship via Logix.
C234: Skid w/Carton, Stackable is mandatory when shipping to AK and HI. Packaging is added at No Charge when shipping
C235: to these locations.
B237: 4 | C237: Shipping Weights and dimensions | D237: Pad Wrap | E237: Skid w/ Carton
C239: Weight (w/240AH Battery) | D239: 590 lbs / 268 Kg | E239: 670 lbs / 304 Kg
C240: Length | D240: 60" / 1,524mm | E240: 67" / 1,702mm
C241: Width | D241: 28" / 710mm | E241: 33" / 838mm
C242: Height | D242: 42" / 1,066mm | E242: 48" / 1,219mm

Sheet Carpet_Extractors
A1: Carpet_Extractors | C1: =Start_Here!$C19 -> Company Name
A2: =SUM(H78) -> 0 | C2: =Start_Here!$C20 -> Address
C3: =Start_Here!$C21 -> City, State Zip
C4: =Start_Here!$C22 -> Contact Name
C5: =Start_Here!$C$41 -> Rep Name
C6: =Start_Here!$C$37 -> Tennant Sales and Service Company
C7: =Start_Here!$C$38 -> 10400 Clean Street
C8: =Start_Here!$C$39 -> Eden Prairie, MN 55344
C9: =Start_Here!$C$43 -> 800-553-8033 | F9: Quote Date : | H9: =Letter!$A$25 -> 2020-09-22
C11: =Help!C2 -> US Date Rev - 5/6/2025
C13: New Machine Warranty
C14: 36 MONTHS OR 2500 HOURS ON PARTS
C15: 36 MONTHS – LABOR
C16: 90 DAYS – TRAVEL ON BATTERY UNITS ONLY
C17: 10 YEARS ON ROTOMOLDED PARTS | F17: Quote Request Information
C18: BATTERIES ARE PRORATED OVER 12 MONTHS | H18: Fax (quote only)
H19: Mail (quote,lit, specs)
C20: EC2 & EC5 | H20: Fax + Mail
C21: 2 Years Parts
C22: 1 Year Labor | F22: Primary Use
C23: 90 Day Travel | H23: Inside
H24: Outside
C27: Description | E27: Referencel# | F27: Price Each | G27: Qty | H27: Extended Pr
G28: *
C29: 1510 Battery Operated Automatic Extractor | E29: 614002 | F29: 17727 | H29: =G29*F29 -> 0 | I29: =IFERROR(IFERROR(VLOOKUP(E29,Surcharge!A:B,2,FALSE)*G29, VLOOKUP(E29 & "",Surcharge!A:B,2,FALSE)*G29), "") -> 0 | R29: =VLOOKUP(E29,'MPF SAP Download PreConfigured'!C:E,3,FALSE) -> 17727
C30: 21-gal (80 liter) solution tank, 22" (5580mm) cleaning path, 100 psi, mode controls for deep and surface cleaning, dual vac motors. Complete package includes four 240 AH 6-volt batteries and 20 amp charger. | G30: =SUM(G29) -> 0 | I30: =IFERROR(IFERROR(VLOOKUP(E30,Surcharge!A:B,2,FALSE)*G30, VLOOKUP(E30 & "",Surcharge!A:B,2,FALSE)*G30), "") -> 
C31: Boxed dimensions: 71L x 34W x 52H (1803mm x 864mm x 1321mm) | G31: =SUM(G30) -> 0 | I31: =IFERROR(IFERROR(VLOOKUP(E31,Surcharge!A:B,2,FALSE)*G31, VLOOKUP(E31 & "",Surcharge!A:B,2,FALSE)*G31), "") -> 
C32: Shipping Weight: 600 lbs. / Cu. Ft.: 36 | G32: =SUM(G31) -> 0 | I32: =IFERROR(IFERROR(VLOOKUP(E32,Surcharge!A:B,2,FALSE)*G32, VLOOKUP(E32 & "",Surcharge!A:B,2,FALSE)*G32), "") -> 
I33: =IFERROR(IFERROR(VLOOKUP(E33,Surcharge!A:B,2,FALSE)*G33, VLOOKUP(E33 & "",Surcharge!A:B,2,FALSE)*G33), "") -> 
G34: =SUM(G35) -> 0 | I34: =IFERROR(IFERROR(VLOOKUP(E34,Surcharge!A:B,2,FALSE)*G34, VLOOKUP(E34 & "",Surcharge!A:B,2,FALSE)*G34), "") -> 
C35: 1530 Cord Electric Automatic Extractor | E35: 614000 | F35: 13942 | H35: =G35*F35 -> 0 | I35: =IFERROR(IFERROR(VLOOKUP(E35,Surcharge!A:B,2,FALSE)*G35, VLOOKUP(E35 & "",Surcharge!A:B,2,FALSE)*G35), "") ->  | R35: =VLOOKUP(E35,'MPF SAP Download PreConfigured'!C:E,3,FALSE) -> 13942
C36: 30-gal (114 liter) solution tank, 22" (5580mm) cleaning path, 100 psi, mode controls for deep and surface cleaning. ETL US/C* | G36: =SUM(G35) -> 0 | I36: =IFERROR(IFERROR(VLOOKUP(E36,Surcharge!A:B,2,FALSE)*G36, VLOOKUP(E36 & "",Surcharge!A:B,2,FALSE)*G36), "") -> 
C37: Boxed dimensions: 71L x 34W x 52H (1803mm x 864mm x 1321mm) | G37: =SUM(G36) -> 0 | I37: =IFERROR(IFERROR(VLOOKUP(E37,Surcharge!A:B,2,FALSE)*G37, VLOOKUP(E37 & "",Surcharge!A:B,2,FALSE)*G37), "") -> 
C38: Shipping Weight: 344 lbs. / Cu. Ft.: 36 | G38: =SUM(G37) -> 0 | I38: =IFERROR(IFERROR(VLOOKUP(E38,Surcharge!A:B,2,FALSE)*G38, VLOOKUP(E38 & "",Surcharge!A:B,2,FALSE)*G38), "") -> 
I39: =IFERROR(IFERROR(VLOOKUP(E39,Surcharge!A:B,2,FALSE)*G39, VLOOKUP(E39 & "",Surcharge!A:B,2,FALSE)*G39), "") -> 
G40: =SUM(G41) -> 0 | I40: =IFERROR(IFERROR(VLOOKUP(E40,Surcharge!A:B,2,FALSE)*G40, VLOOKUP(E40 & "",Surcharge!A:B,2,FALSE)*G40), "") -> 
C41: EX-SC-1020 - Self-Contained Extractor | E41: 9007486 | F41: 5089 | H41: =G41*F41 -> 0 | I41: =IFERROR(IFERROR(VLOOKUP(E41,Surcharge!A:B,2,FALSE)*G41, VLOOKUP(E41 & "",Surcharge!A:B,2,FALSE)*G41), "") ->  | R41: =VLOOKUP(E41,'MPF SAP Download PreConfigured'!C:E,3,FALSE) -> 5089
C42: Patented, 10-gal. Expansion cavity, 20" (508mm) cleaning path, 100 psi, 137" (3480mm) waterlift. ETL US/C* CRI certified, Bronze Cleaning Performance. | G42: =SUM(G41) -> 0 | I42: =IFERROR(IFERROR(VLOOKUP(E42,Surcharge!A:B,2,FALSE)*G42, VLOOKUP(E42 & "",Surcharge!A:B,2,FALSE)*G42), "") -> 
C43: Boxed dimensions: 41L x 22W x 45H (1041mm x 559mm x 1143mm) | G43: =SUM(G42) -> 0 | I43: =IFERROR(IFERROR(VLOOKUP(E43,Surcharge!A:B,2,FALSE)*G43, VLOOKUP(E43 & "",Surcharge!A:B,2,FALSE)*G43), "") -> 
C44: Shipping Weight: 142 lbs. / Cu. Ft.: 23.5 | G44: =SUM(G43) -> 0 | I44: =IFERROR(IFERROR(VLOOKUP(E44,Surcharge!A:B,2,FALSE)*G44, VLOOKUP(E44 & "",Surcharge!A:B,2,FALSE)*G44), "") -> 
I45: =IFERROR(IFERROR(VLOOKUP(E45,Surcharge!A:B,2,FALSE)*G45, VLOOKUP(E45 & "",Surcharge!A:B,2,FALSE)*G45), "") -> 
G46: =SUM(G47) -> 0 | I46: =IFERROR(IFERROR(VLOOKUP(E46,Surcharge!A:B,2,FALSE)*G46, VLOOKUP(E46 & "",Surcharge!A:B,2,FALSE)*G46), "") -> 
C47: EH5 Heated Canister Extractor | E47: 9011454 | F47: 9435 | H47: =G47*F47 -> 0 | I47: =IFERROR(IFERROR(VLOOKUP(E47,Surcharge!A:B,2,FALSE)*G47, VLOOKUP(E47 & "",Surcharge!A:B,2,FALSE)*G47), "") ->  | R47: =VLOOKUP(E47,'MPF SAP Download PreConfigured'!C:E,3,FALSE) -> 9435
C48: 15 gal. capacity, 50-500 psi, Heated, 13" (330mm) High Airflow Titanium Carpet wand with 2 Unijets, 15-ft. (4.5m) vacuum and solution hoses. 2-40 ft(12.2m) Hospital Grade safety yellow electrical cords (dual cord 15A each cord). Hand tool sold separately. CRI certified - Gold Cleaning Performance with High Airflow Titanium wand & Platinum. | G48: =SUM(G47) -> 0 | I48: =IFERROR(IFERROR(VLOOKUP(E48,Surcharge!A:B,2,FALSE)*G48, VLOOKUP(E48 & "",Surcharge!A:B,2,FALSE)*G48), "") -> 
C49: ETL-certified to UL & CSA Standards. | G49: =SUM(G48) -> 0 | I49: =IFERROR(IFERROR(VLOOKUP(E49,Surcharge!A:B,2,FALSE)*G49, VLOOKUP(E49 & "",Surcharge!A:B,2,FALSE)*G49), "") -> 
C50: Boxed Dimensions: 28.5in x 38in x 55in 724mm x 965mm x 1397mm | G50: =SUM(G49) -> 0 | I50: =IFERROR(IFERROR(VLOOKUP(E50,Surcharge!A:B,2,FALSE)*G50, VLOOKUP(E50 & "",Surcharge!A:B,2,FALSE)*G50), "") -> 
C51: Shipping Weight: 185lb/84kg | G51: =SUM(G50) -> 0 | I51: =IFERROR(IFERROR(VLOOKUP(E51,Surcharge!A:B,2,FALSE)*G51, VLOOKUP(E51 & "",Surcharge!A:B,2,FALSE)*G51), "") -> 
I52: =IFERROR(IFERROR(VLOOKUP(E52,Surcharge!A:B,2,FALSE)*G52, VLOOKUP(E52 & "",Surcharge!A:B,2,FALSE)*G52), "") -> 
I53: =IFERROR(IFERROR(VLOOKUP(E53,Surcharge!A:B,2,FALSE)*G53, VLOOKUP(E53 & "",Surcharge!A:B,2,FALSE)*G53), "") -> 
C54: EC2 Canister Extractor | G54: =SUM(G60:G61) -> 0 | I54: =IFERROR(IFERROR(VLOOKUP(E54,Surcharge!A:B,2,FALSE)*G54, VLOOKUP(E54 & "",Surcharge!A:B,2,FALSE)*G54), "") -> 
C55: 15 gal. capacity, 220 psi, 13" (330mm) Stainless Steel or Titanium Carpet wand with 2 Unijets, 15-ft. (XXm) vacuum and solution hoses, 40 ft (12.2m) Hospital Grade safety yellow electrical cord (single 15A cord). Hand tool sold separately. CRI certified, Gold Cleaning Performance | G55: =SUM(G54) -> 0 | I55: =IFERROR(IFERROR(VLOOKUP(E55,Surcharge!A:B,2,FALSE)*G55, VLOOKUP(E55 & "",Surcharge!A:B,2,FALSE)*G55), "") -> 
C56: ETL-certified to UL & CSA Standards. | G56: =SUM(G55) -> 0 | I56: =IFERROR(IFERROR(VLOOKUP(E56,Surcharge!A:B,2,FALSE)*G56, VLOOKUP(E56 & "",Surcharge!A:B,2,FALSE)*G56), "") -> 
C57: Boxed Dimensions: 28.5in x 38in x 55in 724mm x 965mm x 1397mm | G57: =SUM(G56) -> 0 | I57: =IFERROR(IFERROR(VLOOKUP(E57,Surcharge!A:B,2,FALSE)*G57, VLOOKUP(E57 & "",Surcharge!A:B,2,FALSE)*G57), "") -> 
C58: Shipping Weight: 160lbs/72.5kg | G58: =SUM(G57) -> 0 | I58: =IFERROR(IFERROR(VLOOKUP(E58,Surcharge!A:B,2,FALSE)*G58, VLOOKUP(E58 & "",Surcharge!A:B,2,FALSE)*G58), "") -> 
G59: =SUM(G60:G61) -> 0 | I59: =IFERROR(IFERROR(VLOOKUP(E59,Surcharge!A:B,2,FALSE)*G59, VLOOKUP(E59 & "",Surcharge!A:B,2,FALSE)*G59), "") -> 
C60: EC2, 220 psi (15.2 bar) Canister Extractor w/ Stainless Steel carpet wand and vacuum and solution hoses | E60: 9011638 | F60: 5682 | H60: =G60*F60 -> 0 | I60: =IFERROR(IFERROR(VLOOKUP(E60,Surcharge!A:B,2,FALSE)*G60, VLOOKUP(E60 & "",Surcharge!A:B,2,FALSE)*G60), "") ->  | R60: =VLOOKUP(E60,'MPF SAP Download PreConfigured'!C:E,3,FALSE) -> 5682
C61: EC2, 220 psi (15.2 bar) Canister Extractor w/ High Airflow Titanium carpet wand and vacuum and solution hoses | E61: 9012278 | F61: 6116 | H61: =G61*F61 -> 0 | I61: =IFERROR(IFERROR(VLOOKUP(E61,Surcharge!A:B,2,FALSE)*G61, VLOOKUP(E61 & "",Surcharge!A:B,2,FALSE)*G61), "") ->  | R61: =VLOOKUP(E61,'MPF SAP Download PreConfigured'!C:E,3,FALSE) -> 6116
I62: =IFERROR(IFERROR(VLOOKUP(E62,Surcharge!A:B,2,FALSE)*G62, VLOOKUP(E62 & "",Surcharge!A:B,2,FALSE)*G62), "") -> 
I63: =IFERROR(IFERROR(VLOOKUP(E63,Surcharge!A:B,2,FALSE)*G63, VLOOKUP(E63 & "",Surcharge!A:B,2,FALSE)*G63), "") -> 
G64: =SUM(#REF!) ->  | I64: =IFERROR(IFERROR(VLOOKUP(E64,Surcharge!A:B,2,FALSE)*G64, VLOOKUP(E64 & "",Surcharge!A:B,2,FALSE)*G64), "") -> 
I65: =IFERROR(IFERROR(VLOOKUP(E65,Surcharge!A:B,2,FALSE)*G65, VLOOKUP(E65 & "",Surcharge!A:B,2,FALSE)*G65), "") -> 
F66: =ROUND(SUM(H29:H65), 0) -> 0 | G66: =SUM(F67) -> 0
E67: Machine Subtotal | F67: =ROUND(SUM(H29:H65), 0) -> 0 | G67: =G66 -> 0
B68: Discounts | G68: =SUM(G69) -> 0
G69: =SUM(G70:G71) -> 0
E70: Discount % | G70: =IF(F70 <> "", 1, 0) -> 0 | H70: =IF(G70*(F70*0.01)*F66 < 0, G70*(F70*0.01)*F66, -(G70*(F70*0.01)*F66)) -> 0
E71: Discount $ | G71: =IF(F71 <> "", 1, 0) -> 0 | H71: =IF(G71*F71 < 0, G71*F71, -(G71*F71)) -> 0
E72: Discount Total | F72: =SUM(H70:H71) -> 0 | G72: =SUM(F72) -> 0
F73: =#REF! ->  | G73: =#REF! -> 
G74: =G73 -> 
C75: Prepaid and Add | E75: Freight | G75: =IF(F75 <> "", 1, 0) -> 0 | H75: =G75*F75 -> 0
C76: Subject to all applicable taxes | E76: Tax | G76: 0 | H76: =G76*F76 -> 0
G77: =SUM(G78) -> 0
E78: MACHINE TOTAL* | G78: =SUM(H78) -> 0 | H78: =SUM(H29:H76) -> 0 | M78: This goes to "My Documents"
H79: =SUM(H78) -> 0
B80: Financing
C82: Is customer interested in financing? | D82: Yes
C84: If not, why?
C87: First Western Equipment Finance - Leasing Calculation Option: | E87: Option 1 | G87: Option 2 | J87: =Financing!A38 -> Rates 2025 - Rev. 5/6/2025
E88: Monthly Payment | F88: Cost Per Day | G88: Monthly Payment | H88: Cost Per Day | J88: =Financing!A39 -> “Blank Payment Amounts Indicate The Financing Option Or Purchase Options Selected Are Not
C89: Purchase Option: | E89: FWEF: $1 Buyout Lease | G89: FWEF: Municipal Lease | J89: =Financing!A40 -> Applicable Or The Machine Total Is Below The Minimum Amount For The Selected Vendor”
C90: 24 Months | E90: 0 | F90: 0 | G90: 0 | H90: 0 | J90: =Financing!A41 -> "Quoted monthly payments are estimates only and are based on a certain level of credit rating.
C91: 30 Months | E91: 0 | F91: 0 | G91: 0 | H91: 0 | J91: =Financing!A42 -> Actual monthly payments may be higher depending on your credit rating."
C92: 36 Months | E92: 0 | F92: 0 | G92: 0 | H92: 0 | J92: =Financing!A43 -> “Financing rates do not include Pre-Paid Service”
C93: 48 Months | E93: 0 | F93: 0 | G93: 0 | H93: 0 | J93: =Financing!A44 -> 0
D95: Benefits of Equipment Financing:
D96: • Spreads out investment over time. | F96: • Keep current with latest technology.
D97: • Preserve capital. | F97: • Service and parts bundling available.
D98: • Low monthly payment. | F98: • Pay for labor savings as you go.
C101: Bundled Offerings | E101: Flexclean – Fair Market Value | G101: Flexclean - $1 Buyout
C102: FlexClean: | E102: 36 Month Term | G102: 36 Month Term | J102: No | K102: AB Brushes
C103: Hours included per Month: | E103: Gold | F103: Silver | G103: Gold | H103: Silver | I103: Check
C104: < 30/mo. (Avg. 1hr./day) | K104: =FlexCleanCalc!$A21 -> “FlexClean monthly rates include payment for both machine and service.”
C105: < 60/mo. (Avg. 2hrs./day)
C106: < 90/mo. (Avg. 3hrs./day)
C107: *This value assumes one service contract regardless of the number of UNITS included in the quote
C110: Bundled Offerings | E110: Flexclean – Fair Market Value | G110: Flexclean - $1 Buyout
C111: FlexClean 2: | E111: 48 Month Term | G111: 48 Month Term
C112: Hours included per Month: | E112: Gold | F112: Silver | G112: Gold | H112: Silver
C113: < 30/mo. (Avg. 1hr./day)
C114: < 60/mo. (Avg. 2hrs./day)
C115: < 90/mo. (Avg. 3hrs./day)
C116: *This value assumes one service contract regardless of the number of UNITS included in the quote
C118: Bundled Offerings | E118: Flexclean – Fair Market Value | G118: Flexclean - $1 Buyout
C119: FlexClean 3: | E119: 60 Month Term | G119: 60 Month Term
C120: Hours included per Month: | E120: Gold | F120: Silver | G120: Gold | H120: Silver
C121: < 30/mo. (Avg. 1hr./day)
C122: < 60/mo. (Avg. 2hrs./day)
C123: < 90/mo. (Avg. 3hrs./day)
C124: *This value assumes one service contract regardless of the number of UNITS included in the quote
B126: TennantTrue | D126: 0
C128: Is customer interested in service program? | D128: Yes | E128: *State/County selection required for TennantTrue service options
C130: If not, why?
C132: Term: | D132: 36 | F132: AB Brushes | G132: No
C133: Monthly machine usage (hrs): | D133: < 30/mo. (Avg. 1hr./day)
C135: TennantTrue: | D135: Gold Contract | F135: Silver Contract
C136: Per Visit | F136: 336
C137: Monthly | D137: 112 | F137: 56
C138: Annually | F138: 659
C139: Pre-Pay Full Term | D139: 3882 | F139: 1936
C140: Hourly Labor Rate
C141: Site Visit
C143: * Verify customer current pricing prior to quote.
C144: **All rates and fees above reflect service for one (1) unit with the exception of Block of Time service.
C145: *Block of Time is available in 1 Year Term only and is priced as such no matter the term selection on this template.
C149: Quote Special Instructions:
C152: =Start_Here!E36 -> Terms and Conditions
C153: =Start_Here!E37 -> Ask your local sales rep for estimated lead times. Verify when placing order
C154: =Start_Here!E38 -> All orders subject to acceptance by Tennant Sales and Service Company, Minneapolis, Minnesota
C155: =Start_Here!E39 -> Prices subject to change without notice.
C156: =Start_Here!E40 -> Terms: Net 30 days. Subject to any applicable taxes.
C157: =Start_Here!E41 -> Freight: Machines and accessory orders delivered FOB shipping point Frt PPD & Add
C158: =Start_Here!E42 -> Parts, supplies, detergents and floor treating material orders delivered FOB
C159: =Start_Here!E43 -> shipping point Frt PPD
C160: =Start_Here!E44 -> All orders are subject to Tennant’s General Terms and Conditions available at http://www.tennantco.com/terms.
C161: =Start_Here!E45 -> Printed General Terms and Conditions are also available upon request.
C162: =Start_Here!E46 -> 0
F164: Quote Date : | H164: =Letter!$A$25 -> 2020-09-22
B165: Order Placement Information: To place your order, fill in PO# and customer signatures,
B166: call or fax to the numbers listed below. Customer Purchase Order is required.
B167: If information is missing, orders will be entered and held until all information is received.
C168: Customer Number | E168: Cust Grp 3
C169: =Start_Here!$C$25 -> 0 | E169: =Start_Here!$C$29 -> 0
C170: =Start_Here!$B$18 -> Who Owns the Machine? (Sold-To Info) (Please Verify)
A171: Company | C171: =Start_Here!$C$19 -> Company Name
A172: Address | C172: =Start_Here!$C$20 -> Address
C173: =Start_Here!$C$21 -> City, State Zip
A174: Name | C174: =Start_Here!$C$22 -> Contact Name
A175: Phone | C175: =Start_Here!$C$23 -> Contact Phone
C176: =Start_Here!$B$11 -> Where is the Machine Being Shipped? (Ship-To Info) (Please Verify)
A177: Company | C177: =Start_Here!$C$12 -> Company Name
A178: Address | C178: =Start_Here!$C$13 -> Address
C179: =Start_Here!$C$14 -> City, State Zip
A180: Name | C180: =Start_Here!$C$15 -> Contact Name
A181: Phone | C181: =Start_Here!$C$16 -> Contact Phone
C182: =Start_Here!$B$31 -> Shipping / Carrier Instructions: | E182: Order Special Instructions:
C183: =Start_Here!$C$32 -> 0
C185: Customer Purchase Order No.
C186: (please attach copy)
C189: Tax Exempt | E189: Yes
E190: No
C191: If Yes, attach a copy of your exemption certificate.
C193: Requested Delivery Date
C194: =Start_Here!$C$28 -> 0
C196: =Start_Here!$C$26 -> 0 | E196: =Start_Here!$C$27 -> 0
B197: 0 | C197: Authorized Buyer (please print) | E197: Phone Number
B200: 0 | C200: Authorized Buyer Signature
C202: =Start_Here!$C$41 -> Rep Name
C203: Tennant Representative
A206: Specialized Maintenance Equipment
A207: =Start_Here!$C$47 -> 0
A208: =Start_Here!$C$48 -> TENNANT · 10400 Clean Street · Eden Prairie, MN 55344 ·

Sheet MPF SAP Download (2) (hidden)
A1: Master Price File (MPF) - Products with Variant Numbers (VKs)
A3: Download Date: | C3: 2024-10-15
A4: Price Adj Effective Date: | C4: 2025-01-01 | D4: Next steps - Write steps to update.
A5: Table name = | C5: MPF_Table
A7: Material + Variant Lookup Key | B7: PL | C7: Material | D7: Variant | E7: 2025 List | F7: Material Description | G7: PH
A8: =C8&D8 -> M-3640VK_PWRVACWND_AWK | B8: 01 | C8: M-3640 | D8: VK_PWRVACWND_AWK | E8: 331 | F8: Accessory Wand Kit | G8: 302406
A9: M-3640VK_SDEBRSLOC_D | B9: 01 | C9: M-3640 | D9: VK_SDEBRSLOC_D | E9: 940 | F9: Side Brush: Dual | G9: 302406
A10: M-3640VK_DSTCTLFLR_PFB | B10: 01 | C10: M-3640 | D10: VK_DSTCTLFLR_PFB | E10: -560 | F10: Paper Filter Bag | G10: 302406
A11: M-3640VK_ULERTG_E | B11: 01 | C11: M-3640 | D11: VK_ULERTG_E | E11: N/C | F11: UL® Type E | G11: 302406
A12: M-3640VK_CARCLNEQUPKG_ERT | B12: 01 | C12: M-3640 | D12: VK_CARCLNEQUPKG_ERT | E12: 648 | F12: Carp Clean Eqp Ext | G12: 302406
A13: M-3640VK_BTY_WO | B13: 01 | C13: M-3640 | D13: VK_BTY_WO | E13: -262 | F13: Without Battery | G13: 302406
A14: M-3640VK_BASE_3640-BTY | B14: 01 | C14: M-3640 | D14: VK_BASE_3640-BTY | E14: 17429 | F14: 3640-E | G14: 302406
A15: M-3640VK_BTYWTRSYS | B15: 01 | C15: M-3640 | D15: VK_BTYWTRSYS | E15: 631 | F15: Battery Watering Sys | G15: 302406
A16: M-3640VK_UL TYPE EE | B16: 01 | C16: M-3640 | D16: VK_UL TYPE EE | E16: 2836 | F16: UL® Type EE | G16: 302406
A17: M-3640VK_UL TYPE E | B17: 01 | C17: M-3640 | D17: VK_UL TYPE E | E17: N/C | F17: UL® Type E | G17: 302406
A18: M-3640VK_PWRVACWND_WO | B18: 01 | C18: M-3640 | D18: VK_PWRVACWND_WO | E18: N/C | F18: Pump w/o WandPump | G18: 302406
A19: M-3640VK_PKG_SSKD_USCAMX | B19: 01 | C19: M-3640 | D19: VK_PKG_SSKD_USCAMX | E19: 496 | F19: Skid-Cart,Stack | G19: 302406
A20: M-3640VK_CLNTOL_PYP | B20: 01 | C20: M-3640 | D20: VK_CLNTOL_PYP | E20: N/C | F20: Poly Brush | G20: 302406
A21: M-3640VK_ULERTG_EE | B21: 01 | C21: M-3640 | D21: VK_ULERTG_EE | E21: 2836 | F21: UL® Type EE | G21: 302406
A22: M-3640VK_PARMNL | B22: 01 | C22: M-3640 | D22: VK_PARMNL | E22: 25 | F22: Parts Manual | G22: 302406
A23: M-3640VK_PKG_SSKD | B23: 01 | C23: M-3640 | D23: VK_PKG_SSKD | E23: 496 | F23: Stack Skid/Carton | G23: 302406
A24: M-3640VK_PKG_PAD | B24: 01 | C24: M-3640 | D24: VK_PKG_PAD | E24: N/C | F24: Pad Wrap | G24: 302406
A25: M-3640VK_NONMKTTRE_WTP | B25: 01 | C25: M-3640 | D25: VK_NONMKTTRE_WTP | E25: 676 | F25: Trs,WideTrackPneum. | G25: 302406
A26: M-3640VK_NONMKTTRE_BSR | B26: 01 | C26: M-3640 | D26: VK_NONMKTTRE_BSR | E26: N/C | F26: Tire Blk Sld Rubber | G26: 302406
A27: M-3640VK_HPRDMPAST | B27: 01 | C27: M-3640 | D27: VK_HPRDMPAST | E27: 209 | F27: Hopper Dump Assist | G27: 302406
A28: M-3640VK_HEPFLR | B28: 01 | C28: M-3640 | D28: VK_HEPFLR | E28: 7216 | F28: HEPA Filter | G28: 302406
A29: M-3640VK_EMYSTP | B29: 01 | C29: M-3640 | D29: VK_EMYSTP | E29: 346 | F29: Emergency Stop | G29: 302406
A30: M-3640VK_DSTCTLFLR_PFLR | B30: 01 | C30: M-3640 | D30: VK_DSTCTLFLR_PFLR | E30: N/C | F30: Panel Filter Kit | G30: 302406
A31: M-3640VK_CLNTOL_UMB | B31: 01 | C31: M-3640 | D31: VK_CLNTOL_UMB | E31: N/C | F31: Union Mix Brush | G31: 302406
A32: M-3640VK_CLNTOL_SWB | B32: 01 | C32: M-3640 | D32: VK_CLNTOL_SWB | E32: N/C | F32: Sand Wedge Brush | G32: 302406
A33: M-3640VK_CLNTOL_PYPW | B33: 01 | C33: M-3640 | D33: VK_CLNTOL_PYPW | E33: N/C | F33: Poly & Wire Brush | G33: 302406
A34: M-3640VK_CHG_WO | B34: 01 | C34: M-3640 | D34: VK_CHG_WO | E34: -138 | F34: Without Charger | G34: 302406
A35: M-3640VK_CHG_19A100V5060H1 | B35: 01 | C35: M-3640 | D35: VK_CHG_19A100V5060H1 | E35: 186 | F35: Ch19A 100V 5060H1P | G35: 302406
A36: M-3640VK_CHG_11A100V5060H1 | B36: 01 | C36: M-3640 | D36: VK_CHG_11A100V5060H1 | E36: N/C | F36: Ch11A 100V 5060H1P | G36: 302406
A37: M-3640VK_CARCLNEQUPKG_SRT | B37: 01 | C37: M-3640 | D37: VK_CARCLNEQUPKG_SRT | E37: 648 | F37: Carp Clean Eqp Std | G37: 302406
A38: M-3640VK_BTY_W225C20 | B38: 01 | C38: M-3640 | D38: VK_BTY_W225C20 | E38: 511 | F38: Bty Wet 225AH C20 | G38: 302406
A39: M-3640VK_BTY_W130C20 | B39: 01 | C39: M-3640 | D39: VK_BTY_W130C20 | E39: N/C | F39: Bty Wet 130AH C20 | G39: 302406
A40: M-3640VK_ADLOPRMNL | B40: 01 | C40: M-3640 | D40: VK_ADLOPRMNL | E40: 101 | F40: Add Operator Manual | G40: 302406
A41: M-3640VK_SRVMNL | B41: 01 | C41: M-3640 | D41: VK_SRVMNL | E41: 229 | F41: Service Manual | G41: 302406
A42: M-3640VK_SDECLNTOL_PYP | B42: 01 | C42: M-3640 | D42: VK_SDECLNTOL_PYP | E42: N/C | F42: Side Poly Brush | G42: 302406
A43: M-3640VK_SDEBRSLOC_RH | B43: 01 | C43: M-3640 | D43: VK_SDEBRSLOC_RH | E43: N/C | F43: Side Brush: RH | G43: 302406
A44: M-3640VK_PWRVACWND_LW | B44: 01 | C44: M-3640 | D44: VK_PWRVACWND_LW | E44: N/C | F44: Live Wand | G44: 302406
A45: M-3640VK_PKG_WSKD | B45: 01 | C45: M-3640 | D45: VK_PKG_WSKD | E45: 336 | F45: Skid w/Stretch Wrap | G45: 302406
A46: M-S10VK_CLNTOL_UMB | B46: 01 | C46: M-S10 | D46: VK_CLNTOL_UMB | E46: 223 | F46: Union Mix Brush | G46: 302601
A47: M-S10VK_CHG_13A85V5060H1P_OFF | B47: 01 | C47: M-S10 | D47: VK_CHG_13A85V5060H1P_OFF | E47: N/C | F47: Ch13A 85V 50/60H Off | G47: 302601
A48: M-S10VK_ADLOPRMNL | B48: 01 | C48: M-S10 | D48: VK_ADLOPRMNL | E48: 63 | F48: Add Operator Manual | G48: 302601
A49: M-S10VK_BTY_W130C20 | B49: 01 | C49: M-S10 | D49: VK_BTY_W130C20 | E49: 761 | F49: Bty Wet 130AH C20 | G49: 302601
A50: M-S10VK_CLNTOL_D430NYL_IC | B50: 01 | C50: M-S10 | D50: VK_CLNTOL_D430NYL_IC | E50: 317 | F50: D430/17 Nyl Brush IC | G50: 302601
A51: M-S10VK_CHG_WO | B51: 01 | C51: M-S10 | D51: VK_CHG_WO | E51: N/C | F51: Without Charger | G51: 302601
A52: M-S10VK_BTY_A140C20 | B52: 01 | C52: M-S10 | D52: VK_BTY_A140C20 | E52: 2142 | F52: Bty AGM 140AH C20 | G52: 302601
A53: M-S10VK_BTY_WO | B53: 01 | C53: M-S10 | D53: VK_BTY_WO | E53: N/C | F53: Without Battery | G53: 302601
A54: M-S10VK_CLNTOL_PYP | B54: 01 | C54: M-S10 | D54: VK_CLNTOL_PYP | E54: N/C | F54: Poly Brush | G54: 302601
A55: M-S10VK_BASE_S10-BTY | B55: 01 | C55: M-S10 | D55: VK_BASE_S10-BTY | E55: 15970 | F55: S10 BTY | G55: 302601
A56: M-S10VK_SDECLNTOL_PYP | B56: 01 | C56: M-S10 | D56: VK_SDECLNTOL_PYP | E56: N/C | F56: Side Poly Brush | G56: 302601
A57: M-S10VK_CLNTOL_NYL | B57: 01 | C57: M-S10 | D57: VK_CLNTOL_NYL | E57: 241 | F57: Nylon Brush | G57: 302601
A58: M-S10VK_BTY_W110C5 | B58: 01 | C58: M-S10 | D58: VK_BTY_W110C5 | E58: N/C | F58: Bty Wet 110AH C5 | G58: 302601
A59: M-S10VK_PKG_PAD | B59: 01 | C59: M-S10 | D59: VK_PKG_PAD | E59: N/C | F59: Pad Wrap | G59: 302601
A60: M-S10VK_CHG_13A85V5060H1P_ON | B60: 01 | C60: M-S10 | D60: VK_CHG_13A85V5060H1P_ON | E60: N/C | F60: Ch13A 85V 50/60Hz On | G60: 302601
A61: M-S10VK_PKG_SSKD | B61: 01 | C61: M-S10 | D61: VK_PKG_SSKD | E61: 432 | F61: Stack Skid/Carton | G61: 302601
A62: M-S10VK_CLNTOL_FBWB | B62: 01 | C62: M-S10 | D62: VK_CLNTOL_FBWB | E62: N/C | F62: Fiber & Wire Brush | G62: 302601
A63: M-S10VK_FLRSYS_HEPA | B63: 01 | C63: M-S10 | D63: VK_FLRSYS_HEPA | E63: 5254 | F63: HEPA Filter System | G63: 302601
A64: M-S10VK_CLNTOL_UMB18 | B64: 01 | C64: M-S10 | D64: VK_CLNTOL_UMB18 | E64: 289 | F64: Union Mix, 18-row | G64: 302601
A65: M-S10VK_OPRVID | B65: 01 | C65: M-S10 | D65: VK_OPRVID | E65: N/C | F65: Operator Video | G65: 302601
A66: M-S10VK_SDECLNTOL_NYL | B66: 01 | C66: M-S10 | D66: VK_SDECLNTOL_NYL | E66: N/C | F66: Side Nylon Brush | G66: 302601
A67: M-S10VK_SRVMNL | B67: 01 | C67: M-S10 | D67: VK_SRVMNL | E67: 270 | F67: Service Manual | G67: 302601
A68: M-S10VK_BASE_S10-BTY_STD | B68: 01 | C68: M-S10 | D68: VK_BASE_S10-BTY_STD | E68: 15970 | F68: S10 Bty Sweeper - STD | G68: 302601
A69: M-S10VK_S10-B | B69: 01 | C69: M-S10 | D69: VK_S10-B | E69: 15970 | F69: S10 Battery Swpr | G69: 302601
A70: M-S10VK_BTY_W150C20 | B70: 01 | C70: M-S10 | D70: VK_BTY_W150C20 | E70: 906 | F70: Bty Wet 150AH C20 | G70: 302601
A71: M-S10VK_CLNTOL_FBWB18 | B71: 01 | C71: M-S10 | D71: VK_CLNTOL_FBWB18 | E71: 334 | F71: Fiber & Wire, 18-row | G71: 302601
A72: =C72&D72 -> M-6100VK_CLNTOL_PYPWIN | B72: 01 | C72: M-6100 | D72: VK_CLNTOL_PYPWIN | E72: N/C | F72: Poly Window Brush | G72: 303050
A73: M-6100VK_SDECLNTOL_PYP | B73: 01 | C73: M-6100 | D73: VK_SDECLNTOL_PYP | E73: N/C | F73: Side Poly Brush | G73: 303050
A74: M-6100VK_SDEBRSDSTCTL_D_RH | B74: 01 | C74: M-6100 | D74: VK_SDEBRSDSTCTL_D_RH | E74: 1246 | F74: SideBrshDustCntrl Dry RH | G74: 303050
A75: M-6100VK_MOPTYP_BM | B75: 01 | C75: M-6100 | D75: VK_MOPTYP_BM | E75: N/C | F75: Blue Mop | G75: 303050
A76: M-6100VK_SRVMNL | B76: 01 | C76: M-6100 | D76: VK_SRVMNL | E76: 272 | F76: Service Manual | G76: 303050
A77: M-6100VK_PARMNL | B77: 01 | C77: M-6100 | D77: VK_PARMNL | E77: 28 | F77: Parts Manual | G77: 303050
A78: M-6100VK_STLCSENOTBTY_Y | B78: 01 | C78: M-6100 | D78: VK_STLCSENOTBTY_Y | E78: 506 | F78: Steel Case | G78: 303050
A79: M-6100VK_MCHCOM | B79: 01 | C79: M-6100 | D79: VK_MCHCOM | E79: 1367 | F79: IRIS Telemetry | G79: 303050
A80: M-6100VK_MOP | B80: 01 | C80: M-6100 | D80: VK_MOP | E80: 2450 | F80: QuickMop | G80: 303050
A81: M-6100VK_FLRSYS_HEPA | B81: 01 | C81: M-6100 | D81: VK_FLRSYS_HEPA | E81: 6542 | F81: HEPA Filter System | G81: 303050
A82: M-6100VK_CHG_WO | B82: 01 | C82: M-6100 | D82: VK_CHG_WO | E82: -321 | F82: Without Charger | G82: 303050
A83: M-6100VK_WRNLGTANDALM_AU | B83: 01 | C83: M-6100 | D83: VK_WRNLGTANDALM_AU | E83: 577 | F83: Audio BU Alarm | G83: 303050
A84: M-6100VK_SLADSTFLTPKG_D | B84: 01 | C84: M-6100 | D84: VK_SLADSTFLTPKG_D | E84: 8445 | F84: HEPA Dust Filter Pkg: Dual | G84: 303050
A85: M-6100VK_BTYCRT_1 | B85: 01 | C85: M-6100 | D85: VK_BTYCRT_1 | E85: 2607 | F85: Battery Cart | G85: 303050
A86: M-6100VK_ALTSTBFLSLNS_R | B86: 01 | C86: M-6100 | D86: VK_ALTSTBFLSLNS_R | E86: N/C | F86: Alternate Lens-Red | G86: 303050
A87: M-6100VK_21A85V5060H1P_G180 | B87: 01 | C87: M-6100 | D87: VK_21A85V5060H1P_G180 | E87: 481 | F87: Ch21A 85V 5060H1P | G87: 303050
A88: M-6100VK_SDEBRSLOC_D_NC | B88: 01 | C88: M-6100 | D88: VK_SDEBRSLOC_D_NC | E88: N/C | F88: Side Brush: Dual | G88: 303050
A89: M-6100VK_SDEBRSDSTCTL_D_RH_NC | B89: 01 | C89: M-6100 | D89: VK_SDEBRSDSTCTL_D_RH_NC | E89: N/C | F89: SideBrshDustCntrl Dry RH | G89: 303050
A90: M-6100VK_BASE_6100-B_STD | B90: 01 | C90: M-6100 | D90: VK_BASE_6100-B_STD | E90: 24171 | F90: 6100 Bty Standard Config | G90: 303050
A91: M-6100VK_WRKLGT | B91: 01 | C91: M-6100 | D91: VK_WRKLGT | E91: 435 | F91: Work Light | G91: 303050
A92: M-6100VK_BTY_WO | B92: 01 | C92: M-6100 | D92: VK_BTY_WO | E92: -496 | F92: Without Battery | G92: 303050
A93: M-6100VK_BTYEXCSYS_RO | B93: 01 | C93: M-6100 | D93: VK_BTYEXCSYS_RO | E93: 1094 | F93: Bty Rollout Sys. | G93: 303050
A94: M-6100VK_CSMSLN_CC | B94: 01 | C94: M-6100 | D94: VK_CSMSLN_CC | E94: 4404 | F94: Custom Color | G94: 303050
A95: M-6100VK_STLCSENOTBTY | B95: 01 | C95: M-6100 | D95: VK_STLCSENOTBTY | E95: 506 | F95: Steel Case | G95: 303050
A96: M-6100VK_PWRVACWND_VACWNDHP_ON | B96: 01 | C96: M-6100 | D96: VK_PWRVACWND_VACWNDHP_ON | E96: 5331 | F96: Vacuum Wand HP | G96: 303050
A97: M-6100VK_BTY_W225C20 | B97: 01 | C97: M-6100 | D97: VK_BTY_W225C20 | E97: N/C | F97: Bty Wet 225AH C20 | G97: 303050
A98: M-6100VK_PKG_PAD | B98: 01 | C98: M-6100 | D98: VK_PKG_PAD | E98: N/C | F98: Pad Wrap | G98: 303050
A99: M-6100VK_RERTRE_SR | B99: 01 | C99: M-6100 | D99: VK_RERTRE_SR | E99: N/C | F99: Trs Rear Solid Rbr | G99: 303050
A100: M-6100VK_SDEBRSLOC_D | B100: 01 | C100: M-6100 | D100: VK_SDEBRSLOC_D | E100: 1196 | F100: Side Brush: Dual | G100: 303050
A101: M-6100VK_FLRSYS_HEPA_NC | B101: 01 | C101: M-6100 | D101: VK_FLRSYS_HEPA_NC | E101: N/C | F101: HEPA Filter System | G101: 303050
A102: M-6100VK_WRNLGTANDALM_AUSL | B102: 01 | C102: M-6100 | D102: VK_WRNLGTANDALM_AUSL | E102: 789 | F102: AV BU AlrmStrobe Lnl | G102: 303050
A103: M-6100VK_FREEXT | B103: 01 | C103: M-6100 | D103: VK_FREEXT | E103: 235 | F103: Fire Extinguisher | G103: 303050
A104: M-6100VK_SDECLNTOL_HDPYP | B104: 01 | C104: M-6100 | D104: VK_SDECLNTOL_HDPYP | E104: N/C | F104: Side HD Poly Brush | G104: 303050
A105: M-6100VK_21A85V5060H1P_G180_ON | B105: 01 | C105: M-6100 | D105: VK_21A85V5060H1P_G180_ON | E105: 1953 | F105: Ch21A 85V 5060H1P | G105: 303050
A106: M-6100VK_SET_ADJFB | B106: 01 | C106: M-6100 | D106: VK_SET_ADJFB | E106: 171 | F106: Adjustable Seat | G106: 303050
A107: M-6100VK_ALTSTBFLSLNS_B | B107: 01 | C107: M-6100 | D107: VK_ALTSTBFLSLNS_B | E107: N/C | F107: Alternate Lens-Blue | G107: 303050
A108: M-6100VK_CLNTOL_UMB | B108: 01 | C108: M-6100 | D108: VK_CLNTOL_UMB | E108: 295 | F108: Union Mix Brush | G108: 303050
A109: M-6100VK_OPRVID | B109: 01 | C109: M-6100 | D109: VK_OPRVID | E109: N/C | F109: Operator Video | G109: 303050
A110: M-6100VK_PWRVACWND_VACWND_ON | B110: 01 | C110: M-6100 | D110: VK_PWRVACWND_VACWND_ON | E110: 5017 | F110: Vacuum Wand | G110: 303050
A111: M-6100VK_CLNTOL_PYP | B111: 01 | C111: M-6100 | D111: VK_CLNTOL_PYP | E111: N/C | F111: Poly Brush | G111: 303050
A112: M-6100VK_CLNTOL_SWB | B112: 01 | C112: M-6100 | D112: VK_CLNTOL_SWB | E112: 295 | F112: Sand Wedge Brush | G112: 303050
A113: M-6100VK_21A85V5060H1P | B113: 01 | C113: M-6100 | D113: VK_21A85V5060H1P | E113: N/C | F113: Ch21A 85V 5060H1P | G113: 303050
A114: M-6100VK_BTY_G180C20 | B114: 01 | C114: M-6100 | D114: VK_BTY_G180C20 | E114: 2833 | F114: Bty Gel 180AH C20 | G114: 303050
A115: M-6100VK_PKG_CRT | B115: 01 | C115: M-6100 | D115: VK_PKG_CRT | E115: 681 | F115: Crate | G115: 303050
A116: M-6100VK_PKG_CRT_NC | B116: 01 | C116: M-6100 | D116: VK_PKG_CRT_NC | E116: N/C | F116: Crate | G116: 303050
A117: M-6100VK_21A85V5060H1P_W225_ON | B117: 01 | C117: M-6100 | D117: VK_21A85V5060H1P_W225_ON | E117: 2206 | F117: Ch21A 85V 5060H1P | G117: 303050
A118: M-6100VK_WRNLGTANDALM_SL | B118: 01 | C118: M-6100 | D118: VK_WRNLGTANDALM_SL | E118: 565 | F118: Strobe Light Lintel | G118: 303050
A119: M-6100VK_SDEBRSLOC_RH | B119: 01 | C119: M-6100 | D119: VK_SDEBRSLOC_RH | E119: N/C | F119: Side Brush: RH | G119: 303050
A120: M-6100VK_PKG_CRT_NO_CHG | B120: 01 | C120: M-6100 | D120: VK_PKG_CRT_NO_CHG | E120: N/C | F120: Crate No Charge | G120: 303050
A121: M-6100VK_SLADSTFLTPKG_RH | B121: 01 | C121: M-6100 | D121: VK_SLADSTFLTPKG_RH | E121: 7783 | F121: HEPA Dust Filter Pkg: RH | G121: 303050
A122: M-6100VK_PWRVACWND_VACWND | B122: 01 | C122: M-6100 | D122: VK_PWRVACWND_VACWND | E122: 2017 | F122: Vacuum Wand | G122: 303050
A123: M-6100VK_SDEBRSDSTCTL_D_D | B123: 01 | C123: M-6100 | D123: VK_SDEBRSDSTCTL_D_D | E123: 1909 | F123: SideBrshDustCntrl Dry D | G123: 303050
A124: M-6100VK_BTYCRT_2 | B124: 01 | C124: M-6100 | D124: VK_BTYCRT_2 | E124: 5083 | F124: Battery Cart 2 | G124: 303050
A125: M-6100VK_UPG | B125: 01 | C125: M-6100 | D125: VK_UPG | E125: N/C | F125: UPG | G125: 303050
A126: M-6100VK_MOPTYP_NWM | B126: 01 | C126: M-6100 | D126: VK_MOPTYP_NWM | E126: N/C | F126: White Mop | G126: 303050
A127: M-6100VK_SDEBRSDSTCTL_D_D_NC | B127: 01 | C127: M-6100 | D127: VK_SDEBRSDSTCTL_D_D_NC | E127: N/C | F127: SideBrshDustCntrl Dry D | G127: 303050
A128: M-6100VK_CHG_21A85V5060H1_ONBD | B128: 01 | C128: M-6100 | D128: VK_CHG_21A85V5060H1_ONBD | E128: 2206 | F128: Ch21A 85V 5060H1P | G128: 303050
A129: M-6100VK_ADLOPRMNL | B129: 01 | C129: M-6100 | D129: VK_ADLOPRMNL | E129: 209 | F129: Add Operator Manual | G129: 303050
A130: M-6100VK_WTY_STD | B130: 01 | C130: M-6100 | D130: VK_WTY_STD | E130: N/C | F130: Warranty STD | G130: 303050
A131: M-6100VK_PKG_SKD_NO_CHG | B131: 01 | C131: M-6100 | D131: VK_PKG_SKD_NO_CHG | E131: N/C | F131: Skid | G131: 303050
A132: M-6100VK_ADLBTY_1 | B132: 01 | C132: M-6100 | D132: VK_ADLBTY_1 | E132: 1811 | F132: Add. Bty | G132: 303050
A133: M-6100VK_PKG_SKD | B133: 01 | C133: M-6100 | D133: VK_PKG_SKD | E133: 357 | F133: Skid | G133: 303050
A134: M-6100VK_WTY_XTD | B134: 01 | C134: M-6100 | D134: VK_WTY_XTD | E134: 2411 | F134: Warranty Plus | G134: 303050
A135: M-6100VK_BTYWTRSYS | B135: 01 | C135: M-6100 | D135: VK_BTYWTRSYS | E135: 847 | F135: Battery Watering Sys | G135: 303050
A136: =C136&D136 -> M-6100VK_CSMSBTPARKIT | B136: 01 | C136: M-6100 | D136: VK_CSMSBTPARKIT | E136: 6378 | F136: Sunbelt -Parts Kit | G136: 303050
A137: M-6100VK_BLULGT | B137: 01 | C137: M-6100 | D137: VK_BLULGT | E137: 1128 | F137: Blue Light | G137: 303050
A138: M-6100VK_PWRVACWND_VACWNDHP | B138: 01 | C138: M-6100 | D138: VK_PWRVACWND_VACWNDHP | E138: 2335 | F138: Vacuum Wand HP | G138: 303050
A139: M-6100VK_SDEBMP | B139: 01 | C139: M-6100 | D139: VK_SDEBMP | E139: 223 | F139: Side Bumper | G139: 303050
A140: M-6100VK_BASE_6100-BTY | B140: 01 | C140: M-6100 | D140: VK_BASE_6100-BTY | E140: 24171 | F140: 6100 Battery Sweeper | G140: 303050
A141: M-6100VK_RERTRE_SNM | B141: 01 | C141: M-6100 | D141: VK_RERTRE_SNM | E141: 371 | F141: Trs Rear Solid NM | G141: 303050
A142: M-6100VK_SETBLT | B142: 01 | C142: M-6100 | D142: VK_SETBLT | E142: 175 | F142: Seat Belt | G142: 303050
A143: M-6100VK_WAR_XTD | B143: 01 | C143: M-6100 | D143: VK_WAR_XTD | E143: 2411 | F143: Warranty Plus | G143: 303050
A144: M-S680VK_CHG_27A85V5060H1P | B144: 01 | C144: M-S680 | D144: VK_CHG_27A85V5060H1P | E144: N/C | F144: CH27A 85-270V 5060H1P | G144: 303680
A145: M-S680VK_BTY_A245C20 | B145: 01 | C145: M-S680 | D145: VK_BTY_A245C20 | E145: 1190 | F145: AGM 245AH C/20 Battery | G145: 303680
A146: M-S680VK_CLNTOL_PYPW | B146: 01 | C146: M-S680 | D146: VK_CLNTOL_PYPW | E146: N/C | F146: Poly & Wire Brush | G146: 303680
A147: M-S680VK_CLNTOL_PYP | B147: 01 | C147: M-S680 | D147: VK_CLNTOL_PYP | E147: N/C | F147: Poly Brush | G147: 303680
A148: M-S680VK_CHG_WO | B148: 01 | C148: M-S680 | D148: VK_CHG_WO | E148: -270 | F148: Without Charger | G148: 303680
A149: M-S680VK_BTY_WO | B149: 01 | C149: M-S680 | D149: VK_BTY_WO | E149: -450 | F149: Without Battery | G149: 303680
A150: M-S680VK_PKG_PAD | B150: 01 | C150: M-S680 | D150: VK_PKG_PAD | E150: N/C | F150: Pad Wrap | G150: 303680
A151: M-S680VK_BTY_W225C20 | B151: 01 | C151: M-S680 | D151: VK_BTY_W225C20 | E151: N/C | F151: Bty Wet 225AH C20 | G151: 303680
A152: M-S680VK_PKG_SCNS | B152: 01 | C152: M-S680 | D152: VK_PKG_SCNS | E152: 595 | F152: NonStack Skid/Carton | G152: 303680
A153: M-S680VK_REF_S680_1050 | B153: 01 | C153: M-S680 | D153: VK_REF_S680_1050 | E153: 17509 | F153: S680 Battery Sweeper | G153: 303680
A154: M-S680VK_CARCREPKG | B154: 01 | C154: M-S680 | D154: VK_CARCREPKG | E154: 54 | F154: Carpet Care Pkg | G154: 303680
A155: M-S680VK_CLNTOL_NFB | B155: 01 | C155: M-S680 | D155: VK_CLNTOL_NFB | E155: 177 | F155: Natural Fiber Brush | G155: 303680
A156: M-S880VK_CLNTOL_PYPW | B156: 01 | C156: M-S880 | D156: VK_CLNTOL_PYPW | E156: N/C | F156: Poly & Wire Brush | G156: 303880
A157: M-S880VK_PKG_SCNS | B157: 01 | C157: M-S880 | D157: VK_PKG_SCNS | E157: 595 | F157: NonStack Skid/Carton | G157: 303880
A158: M-S880VK_BTY_W225C20 | B158: 01 | C158: M-S880 | D158: VK_BTY_W225C20 | E158: N/C | F158: Bty Wet 225AH C20 | G158: 303880
A159: M-S880VK_CHG_WO | B159: 01 | C159: M-S880 | D159: VK_CHG_WO | E159: -270 | F159: Without Charger | G159: 303880
A160: M-S880VK_BTY_WO | B160: 01 | C160: M-S880 | D160: VK_BTY_WO | E160: -450 | F160: Without Battery | G160: 303880
A161: M-S880VK_REF_S880_1200 | B161: 01 | C161: M-S880 | D161: VK_REF_S880_1200 | E161: 24497 | F161: S880 Battery Sweeper | G161: 303880
A162: M-S880VK_CLNTOL_PYP | B162: 01 | C162: M-S880 | D162: VK_CLNTOL_PYP | E162: N/C | F162: Poly Brush | G162: 303880
A163: M-S880VK_CLNTOL_NFB | B163: 01 | C163: M-S880 | D163: VK_CLNTOL_NFB | E163: 182 | F163: Natural Fiber Brush | G163: 303880
A164: M-S880VK_CHG_27A85V5060H1P | B164: 01 | C164: M-S880 | D164: VK_CHG_27A85V5060H1P | E164: N/C | F164: CH27A 85-270V 5060H1P | G164: 303880
A165: M-S880VK_BTY_A245C20 | B165: 01 | C165: M-S880 | D165: VK_BTY_A245C20 | E165: 1190 | F165: AGM 245AH C/20 Battery | G165: 303880
A166: M-S16HVK_PKG_PAD | B166: 01 | C166: M-S16H | D166: VK_PKG_PAD | E166: N/C | F166: Pad Wrap | G166: 304007
A167: M-S16HVK_ADLOPRMNL | B167: 01 | C167: M-S16H | D167: VK_ADLOPRMNL | E167: 209 | F167: Add Operator Manual | G167: 304007
A168: M-S16HVK_BLULGT_NC | B168: 01 | C168: M-S16H | D168: VK_BLULGT_NC | E168: N/C | F168: Blue Light | G168: 304007
A169: M-S16HVK_CHG_25A100V5060H1ON | B169: 01 | C169: M-S16H | D169: VK_CHG_25A100V5060H1ON | E169: 906 | F169: Ch25A 100V 50/60Hz 1Ph On | G169: 304007
A170: M-S16HVK_PKG_SKD | B170: 01 | C170: M-S16H | D170: VK_PKG_SKD | E170: 509 | F170: Skid | G170: 304007
A171: M-S16HVK_CLNTOL_PYPWIN | B171: 01 | C171: M-S16H | D171: VK_CLNTOL_PYPWIN | E171: 252 | F171: Poly Window Brush | G171: 304007
A172: M-S16HVK_SDEBRSLOC_D | B172: 01 | C172: M-S16H | D172: VK_SDEBRSLOC_D | E172: 1196 | F172: Side Brush: Dual | G172: 304007
A173: M-S16HVK_BASE_S16H_STD | B173: 01 | C173: M-S16H | D173: VK_BASE_S16H_STD | E173: 41847 | F173: S16 High Dump - STD | G173: 304007
A174: M-S16HVK_SDECLNTOL_PYP | B174: 01 | C174: M-S16H | D174: VK_SDECLNTOL_PYP | E174: N/C | F174: Side Poly Brush | G174: 304007
A175: M-S16HVK_BASE_S16H | B175: 01 | C175: M-S16H | D175: VK_BASE_S16H | E175: 41847 | F175: Sweeper S16 High Dump | G175: 304007
A176: M-S16HVK_CARCREPKG | B176: 01 | C176: M-S16H | D176: VK_CARCREPKG | E176: 710 | F176: Carpet Care Pkg | G176: 304007
A177: M-S16HVK_SET_DLXW | B177: 01 | C177: M-S16H | D177: VK_SET_DLXW | E177: 625 | F177: Deluxe Seat w/Armr. | G177: 304007
A178: M-S16HVK_OVHGRD | B178: 01 | C178: M-S16H | D178: VK_OVHGRD | E178: 1800 | F178: Overhead Guard | G178: 304007
A179: M-S16HVK_CLNTOL_PYPW | B179: 01 | C179: M-S16H | D179: VK_CLNTOL_PYPW | E179: N/C | F179: Poly & Wire Brush | G179: 304007
A180: M-S16HVK_PRDPKG | B180: 01 | C180: M-S16H | D180: VK_PRDPKG | E180: 3050 | F180: Productivity Package | G180: 304007
A181: M-S16HVK_SDEBRSDSTCTL_D_RH | B181: 01 | C181: M-S16H | D181: VK_SDEBRSDSTCTL_D_RH | E181: 1222 | F181: SideBrshDustCntrl Dry RH | G181: 304007
A182: M-S16HVK_PKG_SCNS_NC | B182: 01 | C182: M-S16H | D182: VK_PKG_SCNS_NC | E182: N/C | F182: NonStack Skid/Carton | G182: 304007
A183: M-S16HVK_CHG_33A100V5060H1POFF | B183: 01 | C183: M-S16H | D183: VK_CHG_33A100V5060H1POFF | E183: 270 | F183: Ch33A 100V 50/60Hz 1Ph Off | G183: 304007
A184: M-S16HVK_SDEBRSDSTCTL_D_D | B184: 01 | C184: M-S16H | D184: VK_SDEBRSDSTCTL_D_D | E184: 1859 | F184: SideBrshDustCntrl Dry D | G184: 304007
A185: M-S16HVK_MCHCOM_SBT | B185: 01 | C185: M-S16H | D185: VK_MCHCOM_SBT | E185: 1367 | F185: IRIS Telemetry | G185: 304007
A186: M-S16HVK_BTY_W360C20 | B186: 01 | C186: M-S16H | D186: VK_BTY_W360C20 | E186: 1188 | F186: Bty Wet 360AH C20 | G186: 304007
A187: M-S16HVK_BTY_L36V2M | B187: 01 | C187: M-S16H | D187: VK_BTY_L36V2M | E187: 8473 | F187: Bty Li-Ion 36v, 4.1kWh | G187: 304007
A188: M-S16HVK_ULERTG_ES | B188: 01 | C188: M-S16H | D188: VK_ULERTG_ES | E188: 3142 | F188: UL® Type ES | G188: 304007
A189: M-S16HVK_FREEXT | B189: 01 | C189: M-S16H | D189: VK_FREEXT | E189: 375 | F189: Fire Extinguisher | G189: 304007
A190: M-S16HVK_BTY_L36V6M | B190: 01 | C190: M-S16H | D190: VK_BTY_L36V6M | E190: 23343 | F190: Bty Li-Ion 36v, 12.2kWh | G190: 304007
A191: M-S16HVK_SLADSTFLTPKG_D | B191: 01 | C191: M-S16H | D191: VK_SLADSTFLTPKG_D | E191: 8707 | F191: HEPA Dust Filter Pkg: Dual | G191: 304007
A192: M-S16HVK_SFYLGTPKG | B192: 01 | C192: M-S16H | D192: VK_SFYLGTPKG | E192: 2389 | F192: Safety Light Package | G192: 304007
A193: M-S16HVK_CLNTOL_SWB | B193: 01 | C193: M-S16H | D193: VK_CLNTOL_SWB | E193: 252 | F193: Sand Wedge Brush | G193: 304007
A194: M-S16HVK_WRNLGTANDALM_AUSL | B194: 01 | C194: M-S16H | D194: VK_WRNLGTANDALM_AUSL | E194: 736 | F194: AV BU AlrmStrobe Lnl | G194: 304007
A195: M-S16HVK_FLRSYS_HEPA | B195: 01 | C195: M-S16H | D195: VK_FLRSYS_HEPA | E195: 6851 | F195: HEPA Filter System | G195: 304007
A196: M-S16HVK_SLADSTFLTPKG_RH | B196: 01 | C196: M-S16H | D196: VK_SLADSTFLTPKG_RH | E196: 8069 | F196: HEPA Dust Filter Pkg: RH | G196: 304007
A197: M-S16HVK_SRVMNL | B197: 01 | C197: M-S16H | D197: VK_SRVMNL | E197: 269 | F197: Service Manual | G197: 304007
A198: M-S16HVK_PWRVACWND_VACWND | B198: 01 | C198: M-S16H | D198: VK_PWRVACWND_VACWND | E198: 2017 | F198: Vacuum Wand | G198: 304007
A199: M-S16HVK_BTYWTRSYS_SF | B199: 01 | C199: M-S16H | D199: VK_BTYWTRSYS_SF | E199: 1261 | F199: Smart Fill | G199: 304007
A200: =C200&D200 -> M-S16HVK_BTY_L36V4M | B200: 01 | C200: M-S16H | D200: VK_BTY_L36V4M | E200: 16828 | F200: Bty Li-Ion 36v, 8.2kWh | G200: 304007
A201: M-S16HVK_HLTANDTALLGT | B201: 01 | C201: M-S16H | D201: VK_HLTANDTALLGT | E201: 656 | F201: Headlghts/Tail Lghts | G201: 304007
A202: M-S16HVK_PKG_SCNS | B202: 01 | C202: M-S16H | D202: VK_PKG_SCNS | E202: 777 | F202: NonStack Skid/Carton | G202: 304007
... 2451 more rows

Sheet MPF SAP Download PreConfigured (hidden)
A1: Master Price File (MPF) - PreConfigured Machines
A3: Download Date: | C3: 2025-04-11
A4: Price Adj Effective Date: | C4: 2025-05-19
A5: Table name = | C5: MPF_Table_PreConfigured (Columns C, D & E)
A7: Product Hierarchy | B7: Description | C7: Material | D7: Material Description | E7: 2022 List
A8: 301001 | B8: iMOP XL | C8: 9022386 | D8: SCRUBBER, [I-MOP XL+TEAL W/EXTRA BATT] | E8: 8206
A9: 301001 | B9: iMOP XL | C9: 1264254 | D9: SCRUBBER, [I-MOP XL+TEAL W/BATT & CHRGR] | E9: 6861
A10: 301002 | B10: iMOP XXL | C10: 1264255 | D10: SCRUBBER, [I-MOP XXL+TEAL W/BATT&CHRGR] | E10: 9209
A11: 301002 | B11: iMOP XXL | C11: 9022387 | D11: SCRUBBER, [I-MOP XXL+TEAL W/EXTRA BATT] | E11: 10923
A12: 301003 | B12: CS5 | C12: 1251580 | D12: SCRUBBER [CS5 BATTERY NAM] | E12: 2907
A13: 301004135 | B13: CS16 | C13: LPTB03328 | D13: SCRUBBER [CS16 BATTERY NA] | E13: 4681
A14: 301004136 | B14: CS16 Lithium Ion | C14: LPTB03794 | D14: SCRUBBER [CS16 LITHIUM ONB, NA] | E14: 4674
A15: 301006 | B15: iMOP Lite | C15: 1263271 | D15: SCRUBBER, [I-MOP LITE W/BATT & CHRGR] | E15: 5099
A16: 301006 | B16: iMOP Lite | C16: 9022310 | D16: I-MOP LITE W/EXTRA BATTERY | E16: 6176
A17: 302506 | B17: S9 (Battery Sweeper) | C17: 1069648 | D17: SWEEPER, 90CM, 12V [S9 NA, W/O B,W/ C] | E17: 5296
A18: 302508 | B18: S6 | C18: 1251268 | D18: SWEEPER [S6 NA EX W/ BATT, CORD] | E18: 3628
A19: 302509 | B19: Scout 6 | C19: 1251271 | D19: SWEEPER [SCOUT 6 W /IRIS] | E19: 3628
A20: 302509 | B20: Scout 6 | C20: 1251270 | D20: SWEEPER [SCOUT 6 W/ BATT, CORD] | E20: 3628
A21: 302510 | B21: S7 | C21: 1251272 | D21: SWEEPER [S7 NA W/ BATT, CORD] | E21: 7251
A22: 302511 | B22: Scout 7 | C22: 1251274 | D22: SWEEPER [SCOUT 7 W BATT, CORD] | E22: 7251
A23: 302601 | B23: SS10 | C23: 9003573-G | D23: SWEEPER, NA [S10] | E23: 17560
A24: 303050 | B24: 6100 | C24: 9006755-G | D24: MODEL 6100 RIDER SWEEPER [FINAL ASSY] | E24: 18946
A25: 306200 | B25: T1 | C25: 9004191-H | D25: SCRUBBER, 38CM, 11L, 120VAC [T1] | E25: 5236
A26: 306200 | B26: T1 | C26: 9004191 | D26: SCRUBBER, 38CM, 11L, 120VAC [T1] | E26: 5236
A27: 306200 | B27: T1 | C27: 9008225 | D27: SCRUBBER, 38CM, 11L, 120VAC [T1STLYSTMR] | E27: 4958
A28: 306200 | B28: T1 | C28: 9004195 | D28: SCRUBBER, 38CM, 11L, 230VAC [T1] | E28: 5064
A29: 306201 | B29: Speed Scrub 15" (3gal, Cord Elec Cyli | C29: 9004200-H | D29: SCRUBBER, 38CM, 11L, 120VAC [SS-15"] | E29: 5236
A30: 306201 | B30: Speed Scrub 15" (3gal, Cord Elec Cyli | C30: 9004200 | D30: SCRUBBER, 38CM, 11L, 120VAC [SS-15] | E30: 5236
A31: 306202 | B31: T1B | C31: 9008636 | D31: SCRUBBER, 38CM, 11L, 12VDC [T1B EX, AGM] | E31: 6581
A32: 306202 | B32: T1B | C32: 9008638 | D32: SCRUBBER, 38CM, 11L, 12VDC [T1B NA, Li] | E32: 8492
A33: 306202 | B33: T1B | C33: 9016849 | D33: SCRUBBER, 38CM, 11L, 12VDC [T1B AGMCASEY | E33: 6728
A34: 306202 | B34: T1B | C34: 9016537 | D34: SCRUBBER, 38CM, 11L, 12VDC [T1B AGM IRIS | E34: 7778
A35: 306202 | B35: T1B | C35: 9008635 | D35: SCRUBBER, 38CM, 11L, 12VDC [T1B NA, AGM] | E35: 6581
A36: 306202 | B36: T1B | C36: 9015201 | D36: SCRUBBER, 38CM, 11L, 12VDC[T1B COST Li] | E36: 8449
A37: 306203 | B37: SPEEDSCRUB BATT 15" | C37: 9008640 | D37: SCRUBBER, 2 GAL, Li BATT [NOB SS15] | E37: 8492
A38: 306203 | B38: SPEEDSCRUB BATT 15" | C38: 9008637 | D38: SCRUBBER, 38CM, 11L, 12VDC [SS-15", AGM] | E38: 6581
A39: 306300 | B39: T2 | C39: 9008727 | D39: SCRUBBER, 43CM, PUSH [T2, NA W/O CHRGR] | E39: 412
A40: 306304 | B40: WB-20 20" Autoscrub | C40: 9002791 | D40: SCRUBBER, 20INCH, 24VDC[WB-20B CTX CMPT] | E40: 7425
A41: 306307 | B41: T300 | C41: MV-T300-0080 | D41: SCRUBBER, 500D, DR, MP, ECNC [US] | E41: 13870
A42: 306307 | B42: T300 | C42: MV-T300-0112 | D42: SCRUBBER,600D,DR,CNV,140AH,PW [T300 ABM] | E42: 14160
A43: 306307 | B43: T300 | C43: MV-T300-0117 | D43: SCRUBBER,500O,DR,ECNC,150AH,PW[T300 ABM] | E43: 15018
A44: 306307 | B44: T300 | C44: MV-T300-0073 | D44: SCRUBBER, 600D, DR, PRO,ECNC,150AH[USPW] | E44: 16779
A45: 306307 | B45: T300 | C45: MV-T300-0135 | D45: SCRUBBER, 500D, DR, ECNC[T300D, ARMKCB]Y | E45: 16735
A46: 306307 | B46: T300 | C46: MV-T300-0078 | D46: SCRUBBER, 500D, DR, MP,ECNC,150A[US PW] | E46: 13550
A47: 306307 | B47: T300 | C47: MV-T300-0079 | D47: SCRUBBER, 500D, P, MP, CNV, 130AH [US] | E47: 9891
A48: 306307 | B48: T300 | C48: MV-T300-0009 | D48: SCRUBBER, 600D, DR, PRO, ECNC [T300 NA] | E48: 16475
A49: 306307 | B49: T300 | C49: MV-T300-0113 | D49: SCRUBBER,500D,DR,ECNC,150AH,PW[T300 ABM] | E49: 14307
A50: 306307 | B50: T300 | C50: MV-T300-0066 | D50: SCRUBBER, 430D, P, MEM, CNV,130AH[US PW] | E50: 8760
A51: 306307 | B51: T300 | C51: MV-T300-0116 | D51: SCRUBBER,500D,DR,CNV,140AH,PW [T300 ABM] | E51: 12724
A52: 306307 | B52: T300 | C52: MV-T300-0072 | D52: SCRUBBER, 600D, DR, MEM,CNV,150AH[US PW] | E52: 13254
A53: 306307 | B53: T300 | C53: MV-T300-0067 | D53: SCRUBBER, 500D, P, MEM, CNV,130AH[US PW] | E53: 9884
A54: 306307 | B54: T300 | C54: MV-T300-0111 | D54: SCRUBBER,600D,DR,CNV,150AH,PW [T300 ABM] | E54: 13558
A55: 306307 | B55: T300 | C55: MV-T300-0070 | D55: SCRUBBER, 500D, DR, PRO,CNV,150AH(US PW) | E55: 12297
A56: 306307 | B56: T300 | C56: MV-T300-0048 | D56: SCRUBBER, 500D, DR, ECNC[T300D, ARMKCB] | E56: 15608
A57: 306307 | B57: T300 | C57: MV-T300-0115 | D57: SCRUBBER,500D,DR,CNV,150AH,PW [T300 ABM] | E57: 12001
A58: 306307 | B58: T300 | C58: MV-T300-0114 | D58: SCRUBBER,500D,DR,ECNC,140AH,PW[T300 ABM] | E58: 14908
A59: 306307 | B59: T300 | C59: MV-T300-0091 | D59: SCRUBBER, 500D,DR, MEM, ECNC[T300D]US PW | E59: 14930
A60: 306307 | B60: T300 | C60: MV-T300-0068 | D60: SCRUBBER, 500D, DR, MEM,CNV,150AH[US PW] | E60: 11623
A61: 306307 | B61: T300 | C61: MV-T300-0011 | D61: SCRUBBER, 500O, DR, MEM, ECNC[T300 O NA] | E61: 14962
A62: 306307 | B62: T300 | C62: MV-T300-0134 | D62: SCRUBBER,500D, DR, ECNC [T300D,ARMK]PW Y | E62: 16420
A63: 306307 | B63: T300 | C63: MV-T300-0120 | D63: SCRUBBER,500O,DR,CNV,140AH,PW [T300 ABM] | E63: 13311
A64: 306307 | B64: T300 | C64: MV-T300-0077 | D64: SCRUBBER, 500D, P, MP, CNV,130AH[US PW] | E64: 9571
A65: 306307 | B65: T300 | C65: MV-T300-0010 | D65: SCRUBBER, 500O, DR, MEM [T300 O NA] | E65: 12741
A66: 306307 | B66: T300 | C66: MV-T300-0157 | D66: SCRUBBER, 430D, MEM, 130AH, OBC [US] | E66: 11062
A67: 306307 | B67: T300 | C67: MV-T300-0110 | D67: SCRUBBER,600D,DR,ECNC,140AH,PW[T300 ABM] | E67: 16467
A68: 306307 | B68: T300 | C68: MV-T300-0109 | D68: SCRUBBER,600D,DR,ECNC,150AH,PW[T300 ABM] | E68: 15952
A69: 306307 | B69: T300 | C69: MV-T300-0069 | D69: SCRUBBER, 500D, DR, MEM,ECNC,150A[US PW] | E69: 14468
A70: 306307 | B70: T300 | C70: MV-T300-0046 | D70: SCRUBBER, 500D, DR, MEM, ECNC,AGM[T300D] | E70: 15319
A71: 306307 | B71: T300 | C71: MV-T300-0118 | D71: SCRUBBER,500O,DR,ECNC,140AH,PW[T300 ABM] | E71: 15618
A72: 306307 | B72: T300 | C72: MV-T300-0074 | D72: SCRUBBER, 500O, DR, MEM,CNV,150AH[US PW] | E72: 12421
A73: 306307 | B73: T300 | C73: MV-T300-0119 | D73: SCRUBBER,500O,DR,CNV,150AH,PW [T300 ABM] | E73: 12712
A74: 306307 | B74: T300 | C74: MV-T300-0075 | D74: SCRUBBER, 500O, DR, MEM,ECNC,150A[US PW] | E74: 15298
A75: 306307 | B75: T300 | C75: MV-T300-0123 | D75: SCRUBBER, 500D, DR, ECNC [T300D,ARMK] PW | E75: 16646
A76: 306307 | B76: T300 | C76: MV-T300-0007 | D76: SCRUBBER, 500D, DR, PRO, ECNC [T300D NA] | E76: 14838
A77: 306307 | B77: T300 | C77: MV-T300-0008 | D77: SCRUBBER, 600D, DR, MEM [T300D NA] | E77: 13572
A78: 306307 | B78: T300 | C78: MV-T300-0006 | D78: SCRUBBER, 500D, DR, PRO [T300D NA] | E78: 12617
A79: 306307 | B79: T300 | C79: MV-T300-0001 | D79: SCRUBBER, 430D, PUSH, MEM [T300D NA] | E79: 9079
A80: 306307 | B80: T300 | C80: MV-T300-0005 | D80: SCRUBBER, 500D, DR, MEM, ECNC [T300D NA] | E80: 14164
A81: 306307 | B81: T300 | C81: MV-T300-0003 | D81: SCRUBBER, 500D, PUSH, MEM [T300D NA] | E81: 10204
A82: 306307 | B82: T300 | C82: MV-T300-0004 | D82: SCRUBBER, 500D, DR, MEM [T300D NA] | E82: 11943
A83: 306308 | B83: T300e | C83: MV-T300E-0047 | D83: SCRUBBER, 600D, DR, CNV, 150AH [US PW] | E83: 10382
A84: 306308 | B84: T300e | C84: MV-T300E-0044 | D84: SCRUBBER, 500D, PUSH, CNV, 130AH [US PW] | E84: 7923
A85: 306308 | B85: T300e | C85: MV-T300E-0083 | D85: SCRUBBER 500D, DR, 150AH, CNV, IRIS, SB | E85: 11976
A86: 306308 | B86: T300e | C86: MV-T300E-0048 | D86: SCRUBBER, 500O, DR, ECNC, 150AH [US PW] | E86: 12869
A87: 306308 | B87: T300e | C87: MV-T300E-0045 | D87: SCRUBBER, 500D, DR, IC, CNV,130AH[US PW] | E87: 10401
A88: 306308 | B88: T300e | C88: MV-T300E-0070 | D88: SCRUBBER 500O, DR,150AH,CNV,SUNBELT | E88: 11166
A89: 306308 | B89: T300e | C89: MV-T300E-0066 | D89: SCRUBBER,500D,PUSH,IC,150AH, ECNC, [PW] | E89: 10929
A90: 306308 | B90: T300e | C90: MV-T300E-0043 | D90: SCRUBBER, 430D, PUSH, CNV, 130AH [US PW] | E90: 7040
A91: 306308 | B91: T300e | C91: MV-T300E-0046 | D91: SCRUBBER, 500D, DR, IC,ECNC,130AH[US PW] | E91: 12622
A92: 306308 | B92: T300e | C92: MV-T300E-0008 | D92: SCRUBBER, 600D, DR, IC, ECNC[T300e D NA] | E92: 13721
A93: 306308 | B93: T300e | C93: MV-T300E-0005 | D93: SCRUBBER, 500D,DR,IC,130AH [T300e D NA] | E93: 10721
A94: 306308 | B94: T300e | C94: MV-T300E-0003 | D94: SCRUBBER, 500D, PUSH [T300e D NA] | E94: 8243
A95: 306308 | B95: T300e | C95: MV-T300E-0004 | D95: SCRUBBER, 500D, PUSH, IC,ECN[T300e D NA] | E95: 10974
A96: 306308 | B96: T300e | C96: MV-T300E-0007 | D96: SCRUBBER, 600D, DR [T300e D NA] | E96: 10702
A97: 306308 | B97: T300e | C97: MV-T300E-0002 | D97: SCRUBBER, 430D, PUSH [T300e D ECNC NA] | E97: 9581
A98: 306308 | B98: T300e | C98: MV-T300E-0009 | D98: SCRUBBER, 500O, DR [T300e O NA] | E98: 10968
A99: 306308 | B99: T300e | C99: MV-T300E-0010 | D99: SCRUBBER, 500O, DR, ECNC [T300e O NA] | E99: 13189
A100: 306308 | B100: T300e | C100: MV-T300E-0027 | D100: SCRUBBER, 500O, DR, ECNC [T300e O WM] | E100: 14680
A101: 306308 | B101: T300e | C101: MV-T300E-0006 | D101: SCRUBBER, 500D, DR, IC, ECNC[T300e D NA] | E101: 12942
A102: 306309 | B102: SS300 | C102: MV-SS300-0020 | D102: SCRUBBER, 600D, DR, IC,ECNC,150AH[US PW] | E102: 13401
A103: 306309 | B103: SS300 | C103: MV-SS300-0017 | D103: SCRUBBER, 500D, DR, IC, CNV,130AH[US PW] | E103: 10392
A104: 306309 | B104: SS300 | C104: MV-SS300-0025 | D104: SCRUBBER, 500D, DR, IC, 130AH [SS300D] | E104: 8661
A105: 306309 | B105: SS300 | C105: MV-SS300-0018 | D105: SCRUBBER, 500D, DR, IC,ECNC,130AH[US PW] | E105: 12614
A106: 306309 | B106: SS300 | C106: MV-SS300-0024 | D106: SCRUBBER, 500D, PUSH, 130AH [SS300D] | E106: 8234
A107: 306309 | B107: SS300 | C107: MV-SS300-0016 | D107: SCRUBBER, 500D, PUSH, CNV, 130AH [US PW] | E107: 7923
A108: 306309 | B108: SS300 | C108: MV-SS300-0004 | D108: SCRUBBER, 500D, P, IC,ECNC,130AH[SS300D] | E108: 10931
A109: 306309 | B109: SS300 | C109: MV-SS300-0021 | D109: SCRUBBER, 500O, DR, ECNC, 150AH [US PW] | E109: 12869
A110: 306309 | B110: SS300 | C110: MV-SS300-0015 | D110: SCRUBBER, 430D, PUSH, CNV, 130AH [US PW] | E110: 7045
A111: 306309 | B111: SS300 | C111: MV-SS300-0002 | D111: SCRUBBER, 430D, PUSH, ECNC,130AH[SS300D] | E111: 9587
A112: 306309 | B112: SS300 | C112: MV-SS300-0009 | D112: SCRUBBER, 500O, DR, 150AH [SS300 O] | E112: 10968
A113: 306309 | B113: SS300 | C113: MV-SS300-0001 | D113: SCRUBBER, 430D, PUSH, 130AH [SS300D] | E113: 7365
A114: 306309 | B114: SS300 | C114: MV-SS300-0007 | D114: SCRUBBER, 600D, DR, 150AH [SS300D] | E114: 10702
A115: 306309 | B115: SS300 | C115: MV-SS300-0012 | D115: SCRUBBER, 430D, P, IC,ECNC,130AH[SS300D] | E115: 9934
A116: 306309 | B116: SS300 | C116: MV-SS300-0008 | D116: SCRUBBER, 600D, DR, IC,ECNC,150A[SS300D] | E116: 13721
A117: 306309 | B117: SS300 | C117: MV-SS300-0010 | D117: SCRUBBER, 500O, DR, ECNC, 150AH[SS300 O] | E117: 13189
A118: 306309 | B118: SS300 | C118: MV-SS300-0005 | D118: SCRUBBER, 500D, DR, IC, 130AH [SS300D] | E118: 10712
A119: 306309 | B119: SS300 | C119: MV-SS300-0006 | D119: SCRUBBER, 500D, DR, IC,ECN,130AH[SS300D] | E119: 12934
A120: 306309 | B120: SS300 | C120: MV-SS300-0003 | D120: SCRUBBER, 500D, PUSH, 130AH [SS300D] | E120: 8243
A121: 306327 | B121: T290 | C121: LPTB03553 | D121: SCRUBBER [T290 50CM, AGM READY, W/O BAT] | E121: 7744
A122: 306327 | B122: T290 | C122: 9022000 | D122: SCRUBBER [T290 50CM, PA, 130AH WET, NA] | E122: 6691
A123: 306327 | B123: T290 | C123: 9022003 | D123: SCRUBBER [T290 50CM, 130AH WET, NA] | E123: 8191
A124: 306327 | B124: T290 | C124: 9022001 | D124: SCRUBBER [T290 50CM, PA, 150AH WET, NA] | E124: 6832
A125: 306327 | B125: T290 | C125: 1255467 | D125: SCRUBBER [T290 50CM, PA, W/O BATT, NA] | E125: 6243
A126: 306327 | B126: T290 | C126: 9022004 | D126: SCRUBBER [T290 50CM, 150AH WET, NA] | E126: 8334
A127: 306327 | B127: T290 | C127: 9022002 | D127: SCRUBBER [T290 50CM, PA, 140AH AGM, NA] | E127: 8022
A128: 306327 | B128: T290 | C128: 9022005 | D128: SCRUBBER [T290 50CM, 140AH AGM, NA] | E128: 9523
A129: 306327 | B129: T290 | C129: 1255468 | D129: SCRUBBER [T290 50CM, W/O BATT, NA] | E129: 7744
A130: 306328155 | B130: T291 - 55cm - Pad Assist | C130: 9023481 | D130: SCRUBBER[T681,85CM,PAD DRV,90AH Lithium, | E130: 25913
A131: 306328155 | B131: T291 - 55cm - Pad Assist | C131: 9023484 | D131: SCRUBBER[T681,85CM,W/BRUSH,180AH Lithium | E131: 28113
A132: 306328155 | B132: T291 - 55cm - Pad Assist | C132: 9023483 | D132: SCRUBBER[T681,85CM,W/BRUSH,90AH Lithium, | E132: 25913
A133: 306328155 | B133: T291 - 55cm - Pad Assist | C133: 9023482 | D133: SCRUBBER[T681,85CM,PAD DRV,180AH Lithium | E133: 28113
A134: 306328155 | B134: T291 - 55cm - Pad Assist | C134: 9300511 | D134: SCRUBBER [T581,50CM,LI-ION,180AH,NA] | E134: 17188
A135: 306328155 | B135: T291 - 55cm - Pad Assist | C135: 9300510 | D135: SCRUBBER [T581,50CM, LI-ION,90AH,NA] | E135: 14988
A136: 306328155 | B136: T291 - 55cm - Pad Assist | C136: 9300499 | D136: SCRUBBER [T391,80CM,NANO,SE,LI-ION,NA] | E136: 16933
A137: 306328155 | B137: T291 - 55cm - Pad Assist | C137: 9300498 | D137: SCRUBBER [T391,80CM,LI-ION,NA] | E137: 14092
A138: 306328155 | B138: T291 - 55cm - Pad Assist | C138: 9300497 | D138: SCRUBBER [T391,70CM,NANO,SE,LI-ION,NA] | E138: 16103
A139: 306328155 | B139: T291 - 55cm - Pad Assist | C139: 9300496 | D139: SCRUBBER [T391,70CM,LI-ION,NA] | E139: 13262
A140: 306328155 | B140: T291 - 55cm - Pad Assist | C140: 9300489 | D140: SCRUBBER [T291,50CM,ECH20,PA,LI-ION,NA] | E140: 10868
A141: 306328155 | B141: T291 - 55cm - Pad Assist | C141: 9300488 | D141: SCRUBBER [T291,50CM,CONV,PA,LI-ION,NA] | E141: 8792
A142: 306328155 | B142: T291 - 55cm - Pad Assist | C142: 9300493 | D142: SCRUBBER [T291,50CM,ECH20,PA,NO-BATT,NA] | E142: 8473
A143: 306328155 | B143: T291 - 55cm - Pad Assist | C143: 9300492 | D143: SCRUBBER [T291,50CM,CONV,PA,NO-BATT,NA] | E143: 6251
A144: 306328155 | B144: T291 - 55cm - Pad Assist | C144: 9300485 | D144: SCRUBBER [T291,50CM,ECH20,PA,AGM,NA] | E144: 10108
A145: 306328155 | B145: T291 - 55cm - Pad Assist | C145: 9300484 | D145: SCRUBBER [T291,50CM,CONV,PA,AGM,NA] | E145: 7886
A146: 306328155 | B146: T291 - 55cm - Pad Assist | C146: 9300481 | D146: SCRUBBER [T291,50CM,ECH20,PA,WET,NA] | E146: 8954
A147: 306328155 | B147: T291 - 55cm - Pad Assist | C147: 9300480 | D147: SCRUBBER [T291,50CM,CONV,PA,WET,NA] | E147: 6733
A148: 306328185 | B148: T291 - 50 cm - Self-Propel | C148: 9300491 | D148: SCRUBBER [T291,50CM,ECH20,SP,LI-ION,NA] | E148: 12168
A149: 306328185 | B149: T291 - 50 cm - Self-Propel | C149: 9300490 | D149: SCRUBBER [T291,50CM,CONV,SP,LI-ION,NA] | E149: 10092
A150: 306328185 | B150: T291 - 50 cm - Self-Propel | C150: 9300495 | D150: SCRUBBER [T291,50CM,ECH20,SP,NO-BATT,NA] | E150: 9864
A151: 306328185 | B151: T291 - 50 cm - Self-Propel | C151: 9300494 | D151: SCRUBBER [T291,50CM,CONV,SP,NO-BATT,NA] | E151: 7642
A152: 306328185 | B152: T291 - 50 cm - Self-Propel | C152: 9300487 | D152: SCRUBBER [T291,50CM,ECH20,SP,AGM,NA] | E152: 11499
A153: 306328185 | B153: T291 - 50 cm - Self-Propel | C153: 9300486 | D153: SCRUBBER [T291,50CM,CONV,SP,AGM,NA] | E153: 9277
A154: 306328185 | B154: T291 - 50 cm - Self-Propel | C154: 9300483 | D154: SCRUBBER [T291,50CM,ECH20,SP,WET,NA] | E154: 10345
A155: 306328185 | B155: T291 - 50 cm - Self-Propel | C155: 9300482 | D155: SCRUBBER [T291,50CM,CONV,SP,WET,NA] | E155: 8124
A156: 306340 | B156: T260 | C156: TN8001004 | D156: SCRUBBER [T260, 50CM, PUSH, GEL BAT, NA] | E156: 5405
A157: 306401 | B157: SS5 | C157: 9002587-G | D157: SCRUBBER, 600MM, DISK, CHRGR [SS] | E157: 12156
A158: 306405 | B158: X4 ROVR | C158: MV-X4ROVR-0004 | D158: SCRUBBER, X4ROVR, LI-ION, CNV [WALMART] | E158: 53165
A159: 306407 | B159: T500 | C159: MV-T500-0002 | D159: SCRUBBER,T500, 700D, MEM, 225AH, OBC, PW | E159: 19197
A160: 306407 | B160: T500 | C160: MV-T500-0073 | D160: SCRUBBER,T500,800D,PMEM,EC[PBLX],Env Swt | E160: 23901
A161: 306407 | B161: T500 | C161: MV-T500-0049 | D161: SCRUBBER,T500,700O,EC,220AH,OBC,PW [ABM] | E161: 24109
A162: 306407 | B162: T500 | C162: MV-T500-0004 | D162: SCRUBBER,T500, 700O, MEM, 225AH, OBC, PW | E162: 19901
A163: 306407 | B163: T500 | C163: MV-T500-0074 | D163: SCRUBBER,T500,700D,MEM,CNV,220AH,IRIS-SB | E163: 20390
A164: 306407 | B164: T500 | C164: MV-T500-0013 | D164: SCRUBBER,T500, 700O, PPAN, 225AH, OBC,PW | E164: 23863
A165: 306407 | B165: T500 | C165: MV-T500-0047 | D165: SCRUBBER,T500,700D,CNV,220AH,OBC,PW [ABM | E165: 20089
A166: 306407 | B166: T500 | C166: MV-T500-0007 | D166: SCRUBBER,T500,700D,MEM,ECNC,225AH,OBC,PW | E166: 22237
A167: 306407 | B167: T500 | C167: MV-T500-0012 | D167: SCRUBBER,T500, 800D, PPAN, 225AH, OBC,PW | E167: 24288
A168: 306407 | B168: T500 | C168: MV-T500-0008 | D168: SCRUBBER,T500,800D,MEM,ECNC,225AH,OBC,PW | E168: 23226
A169: 306407 | B169: T500 | C169: MV-T500-0003 | D169: SCRUBBER,T500, 800D, MEM, 225AH, OBC, PW | E169: 20186
A170: 306407 | B170: T500 | C170: MV-T500-0011 | D170: SCRUBBER,T500, 700D, PPAN, 225AH, OBC,PW | E170: 23301
A171: 306407 | B171: T500 | C171: MV-T500-0006 | D171: SCRUBBER,T500,650D,MEM,ECNC,225AH,OBC,PW | E171: 20762
A172: 306407 | B172: T500 | C172: MV-T500-0001 | D172: SCRUBBER,T500, 650D, MEM, 225AH, OBC, PW | E172: 17722
A173: 306407 | B173: T500 | C173: MV-T500-0046 | D173: SCRUBBER,T500,700D,CNV,260AH,SF,PW [ABM] | E173: 19867
A174: 306407 | B174: T500 | C174: MV-T500-0060 | D174: SCRUBBER,T500,700D, MEM, CNV,220AH [SBT] | E174: 20234
A175: 306407 | B175: T500 | C175: MV-T500-0051 | D175: SCRUBBER,T500,700O,CNV,220AH,OBC,PW [ABM | E175: 20981
A176: 306407 | B176: T500 | C176: MV-T500-0010 | D176: SCRUBBER,T500,700C,MEM,ECNC,225AH,OBC,PW | E176: 23445
A177: 306407 | B177: T500 | C177: MV-T500-0005 | D177: SCRUBBER,T500, 700C, MEM, 225AH, OBC, PW | E177: 20405
A178: 306407 | B178: T500 | C178: MV-T500-0044 | D178: SCRUBBER,T500, 700D,EC,260AH,SF,PW [ABM] | E178: 23026
A179: 306407 | B179: T500 | C179: MV-T500-0045 | D179: SCRUBBER,T500,700D,EC,220AH,OBC,PW [ABM] | E179: 23245
A180: 306407 | B180: T500 | C180: MV-T500-0050 | D180: SCRUBBER,T500,700O,CNV,260AH,SF,PW [ABM] | E180: 20764
A181: 306407 | B181: T500 | C181: MV-T500-0009 | D181: SCRUBBER,T500,700O,MEM,ECNC,225AH,OBC,PW | E181: 22941
A182: 306407 | B182: T500 | C182: MV-T500-0048 | D182: SCRUBBER,T500,700O,EC,260AH,SF,PW [ABM] | E182: 23893
A183: 306408 | B183: T500e | C183: MV-T500E-0012 | D183: SCRUBBER,T500E,700D,ECNC,225AH,OBC,SF,PW | E183: 20356
A184: 306408 | B184: T500e | C184: MV-T500E-0013 | D184: SCRUBBER,T500E,800D,ECNC,225AH,OBC,SF,PW | E184: 21244
A185: 306408 | B185: T500e | C185: MV-T500E-0028 | D185: SCRUBBER, T500E, 700D,CNV,225AH,OBC,WLMT | E185: 17880
A186: 306408 | B186: T500e | C186: MV-T500E-0005 | D186: SCRUBBER, T500E, 800D, 225AH, OBC, PW | E186: 17224
A187: 306408 | B187: T500e | C187: MV-T500E-0010 | D187: SCRUBBER, T500E, 700O, 225AH, OBC, SF,PW | E187: 18058
A188: 306408 | B188: T500e | C188: MV-T500E-0003 | D188: SCRUBBER, T500E, 650D, 225AH, OBC, PW | E188: 15526
A189: 306408 | B189: T500e | C189: MV-T500E-0043 | D189: SCRUBBER,T500E,700D,EC,260AH,SF,PW [ABM] | E189: 20963
A190: 306408 | B190: T500e | C190: MV-T500E-0006 | D190: SCRUBBER, T500E, 700O, 225AH, OBC, PW | E190: 17078
A191: 306408 | B191: T500e | C191: MV-T500E-0046 | D191: SCRUBBER,T500E, 700D, CNV,220AH,PW [ABM] | E191: 18023
A192: 306408 | B192: T500e | C192: MV-T500E-0030 | D192: SCRUBBER,T500E,700D,CNV,225AH,OBC,PW,WLM | E192: 17553
A193: 306408 | B193: T500e | C193: MV-T500E-0004 | D193: SCRUBBER, T500E, 700D, 225AH, OBC, PW | E193: 16336
A194: 306408 | B194: T500e | C194: MV-T500E-0029 | D194: SCRUBBER,T500E,800D,CNV,225AH,OBC,PW,WLM | E194: 18408
A195: 306408 | B195: T500e | C195: MV-T500E-0064 | D195: SCRUBBER, T500E, 800D, CNV, TPPL, WM | E195: 21788
A196: 306408 | B196: T500e | C196: MV-T500E-0009 | D196: SCRUBBER, T500E, 800D, 225AH, OBC, SF,PW | E196: 18204
A197: 306408 | B197: T500e | C197: MV-T500E-0045 | D197: SCRUBBER,T500E,700D,CNV,260AH,SF,PW [ABM | E197: 17802
A198: 306408 | B198: T500e | C198: MV-T500E-0014 | D198: SCRUBBER,T500E,700O,ECNC,225AH,OBC,SF,PW | E198: 21098
A199: 306408 | B199: T500e | C199: MV-T500E-0007 | D199: SCRUBBER, T500E, 650D, 225AH, OBC, SF,PW | E199: 16506
A200: 306408 | B200: T500e | C200: MV-T500E-0063 | D200: SCRUBBER, T500E, 800D, CNV, TPPL, PW, WM | E200: 21322
A201: 306408 | B201: T500e | C201: MV-T500E-0008 | D201: SCRUBBER, T500E, 700D, 225AH, OBC, SF,PW | E201: 17316
A202: 306408 | B202: T500e | C202: MV-T500E-0044 | D202: SCRUBBER,T500E,700D,EC,220AH,OBC,PW [ABM | E202: 21181
... 271 more rows

Sheet Vacuums
A1: Vacuums | C1: =Start_Here!$C19 -> Company Name
A2: =SUM(H180) -> 0 | C2: =Start_Here!$C20 -> Address
C3: =Start_Here!$C21 -> City, State Zip
C4: =Start_Here!$C22 -> Contact Name
C5: =Start_Here!$C$41 -> Rep Name
C6: =Start_Here!$C$37 -> Tennant Sales and Service Company
C7: =Start_Here!$C$38 -> 10400 Clean Street
C8: =Start_Here!$C$39 -> Eden Prairie, MN 55344
C9: =Start_Here!$C$43 -> 800-553-8033 | F9: Quote Date : | H9: =Letter!$A$25 -> 2020-09-22
C11: =Help!C2 -> US Date Rev - 5/6/2025
C14: New Machine Warranty
C15: 12 MONTHS ON PARTS | F15: Quote Request Information
C16: 12 MONTHS - LABOR | H16: Fax (quote only)
C17: NO TRAVEL | H17: Mail (quote,lit, specs)
H18: Fax + Mail
F20: Primary Use
H21: Inside
H22: Outside
C25: Description | E25: Referencel# | F25: Price Each | G25: Qty | H25: Extended Pr
B26: Upright, Portable, and Canister Vacuums | G26: =SUM(G28) -> 0
C28: V-WA-30 30" (762mm) Wide Area Vacuum | E28: 1068029 | F28: 4315 | H28: =G28*F28 -> 0 | I28: =IFERROR(IFERROR(VLOOKUP(E28,Surcharge!A:B,2,FALSE)*G28, VLOOKUP(E28 & "",Surcharge!A:B,2,FALSE)*G28), "") ->  | Q28: =VLOOKUP(E28,'MPF SAP Download PreConfigured'!C:E,3,FALSE) -> 4315
C29: Certified CRI Bronze Cleaning Performance. Comes standard with HEPA filtration, and spare bag and 75 ft. (23m) safety-yellow power cord. ETL US/C | G29: =SUM(G28) -> 0 | I29: =IFERROR(IFERROR(VLOOKUP(E29,Surcharge!A:B,2,FALSE)*G29, VLOOKUP(E29 & "",Surcharge!A:B,2,FALSE)*G29), "") -> 
C30: Boxed Dimensions: 18"L x 32.25 "W x 43.25 "H (457mm x 819mm x 196mm) * | G30: =SUM(G29) -> 0 | I30: =IFERROR(IFERROR(VLOOKUP(E30,Surcharge!A:B,2,FALSE)*G30, VLOOKUP(E30 & "",Surcharge!A:B,2,FALSE)*G30), "") -> 
C31: Shipping Weight: 100 lbs. (45.36kg) | G31: =SUM(G30) -> 0 | I31: =IFERROR(IFERROR(VLOOKUP(E31,Surcharge!A:B,2,FALSE)*G31, VLOOKUP(E31 & "",Surcharge!A:B,2,FALSE)*G31), "") -> 
C32: Made in the USA with Globally sourced components | G32: =SUM(G31) -> 0 | I32: =IFERROR(IFERROR(VLOOKUP(E32,Surcharge!A:B,2,FALSE)*G32, VLOOKUP(E32 & "",Surcharge!A:B,2,FALSE)*G32), "") -> 
I33: =IFERROR(IFERROR(VLOOKUP(E33,Surcharge!A:B,2,FALSE)*G33, VLOOKUP(E33 & "",Surcharge!A:B,2,FALSE)*G33), "") -> 
I34: =IFERROR(IFERROR(VLOOKUP(E34,Surcharge!A:B,2,FALSE)*G34, VLOOKUP(E34 & "",Surcharge!A:B,2,FALSE)*G34), "") -> 
I35: =IFERROR(IFERROR(VLOOKUP(E35,Surcharge!A:B,2,FALSE)*G35, VLOOKUP(E35 & "",Surcharge!A:B,2,FALSE)*G35), "") -> 
C36: V-LWU-13B Battery Light Weight Upright Commercial Vacuum | E36: 1236914 | F36: 1016 | H36: =G36*F36 -> 0 | I36: =IFERROR(IFERROR(VLOOKUP(E36,Surcharge!A:B,2,FALSE)*G36, VLOOKUP(E36 & "",Surcharge!A:B,2,FALSE)*G36), "") ->  | Q36: =VLOOKUP(E36,'MPF SAP Download PreConfigured'!C:E,3,FALSE) -> 1016
C37: Certified CRI Bronze Cleaning Performance. 44 VDC / 2.9 Ah lithium ion powered vacuum. Runtime 50 minutes. Weighs only 11 lbs (4.99 kg). Comes standard with HEPA filtration, spare belt and bag. Comes with battery and charger, UL certified. | G37: =SUM(G36) -> 0 | I37: =IFERROR(IFERROR(VLOOKUP(E37,Surcharge!A:B,2,FALSE)*G37, VLOOKUP(E37 & "",Surcharge!A:B,2,FALSE)*G37), "") -> 
G38: =SUM(G37) -> 0 | I38: =IFERROR(IFERROR(VLOOKUP(E38,Surcharge!A:B,2,FALSE)*G38, VLOOKUP(E38 & "",Surcharge!A:B,2,FALSE)*G38), "") -> 
C39: Boxed Dimensions: 35"L x 15"W x 7 "H (889mm x 381mm x 178mm) | G39: 0 | I39: =IFERROR(IFERROR(VLOOKUP(E39,Surcharge!A:B,2,FALSE)*G39, VLOOKUP(E39 & "",Surcharge!A:B,2,FALSE)*G39), "") -> 
C40: Shipping Weight: 17 lbs. (7.7kg) | G40: 0 | I40: =IFERROR(IFERROR(VLOOKUP(E40,Surcharge!A:B,2,FALSE)*G40, VLOOKUP(E40 & "",Surcharge!A:B,2,FALSE)*G40), "") -> 
C41: Made in the USA with Globally sourced components | G41: 0 | I41: =IFERROR(IFERROR(VLOOKUP(E41,Surcharge!A:B,2,FALSE)*G41, VLOOKUP(E41 & "",Surcharge!A:B,2,FALSE)*G41), "") -> 
I42: =IFERROR(IFERROR(VLOOKUP(E42,Surcharge!A:B,2,FALSE)*G42, VLOOKUP(E42 & "",Surcharge!A:B,2,FALSE)*G42), "") -> 
I43: =IFERROR(IFERROR(VLOOKUP(E43,Surcharge!A:B,2,FALSE)*G43, VLOOKUP(E43 & "",Surcharge!A:B,2,FALSE)*G43), "") -> 
C44: V-SMU-14 - 14" (356mm) Single Motor Vacuum | E44: 1060829 | F44: 663 | H44: =G44*F44 -> 0 | I44: =IFERROR(IFERROR(VLOOKUP(E44,Surcharge!A:B,2,FALSE)*G44, VLOOKUP(E44 & "",Surcharge!A:B,2,FALSE)*G44), "") ->  | Q44: =VLOOKUP(E44,'MPF SAP Download PreConfigured'!C:E,3,FALSE) -> 663
C45: Certified CRI Silver Cleaning Performance. 1.5-gallon (5.5-liter) bag capacity. Comes standard with 3-stage HEPA filtration, easy access crevice tool and dusting brush , 4:1 stretch hose, telescopic aluminum wand, spare belt and bag and 50 ft. (15m) safety-yellow power cord. ETL US/C | G45: =SUM(G44) -> 0 | I45: =IFERROR(IFERROR(VLOOKUP(E45,Surcharge!A:B,2,FALSE)*G45, VLOOKUP(E45 & "",Surcharge!A:B,2,FALSE)*G45), "") -> 
C46: Boxed Dimensions: 42.75"L x 17.25"W x 9.75"H (1090mm x 440mm x 250mm) * | G46: =SUM(G45) -> 0 | I46: =IFERROR(IFERROR(VLOOKUP(E46,Surcharge!A:B,2,FALSE)*G46, VLOOKUP(E46 & "",Surcharge!A:B,2,FALSE)*G46), "") -> 
C47: Shipping Weight: 21.75 lbs. (9.9 kg) | G47: =SUM(G46) -> 0 | I47: =IFERROR(IFERROR(VLOOKUP(E47,Surcharge!A:B,2,FALSE)*G47, VLOOKUP(E47 & "",Surcharge!A:B,2,FALSE)*G47), "") -> 
I48: =IFERROR(IFERROR(VLOOKUP(E48,Surcharge!A:B,2,FALSE)*G48, VLOOKUP(E48 & "",Surcharge!A:B,2,FALSE)*G48), "") -> 
I49: =IFERROR(IFERROR(VLOOKUP(E49,Surcharge!A:B,2,FALSE)*G49, VLOOKUP(E49 & "",Surcharge!A:B,2,FALSE)*G49), "") -> 
C50: V-DMU-14 - 14" (356mm) Dual Motor Vacuum | E50: 1068027 | F50: 865 | H50: =G50*F50 -> 0 | I50: =IFERROR(IFERROR(VLOOKUP(E50,Surcharge!A:B,2,FALSE)*G50, VLOOKUP(E50 & "",Surcharge!A:B,2,FALSE)*G50), "") ->  | Q50: =VLOOKUP(E50,'MPF SAP Download PreConfigured'!C:E,3,FALSE) -> 865
C51: Certified CRI Silver Cleaning Performance. 1.5-gallon (5.5-liter) bag capacity. Comes standard with 3-stage HEPA filtration, easy access crevice tool and dusting brush , 4:1 stretch hose, telescopic aluminum wand, spare bag and 50 ft. (15m) safety-yellow power cord. ETL US/C | G51: =SUM(G50) -> 0 | I51: =IFERROR(IFERROR(VLOOKUP(E51,Surcharge!A:B,2,FALSE)*G51, VLOOKUP(E51 & "",Surcharge!A:B,2,FALSE)*G51), "") -> 
G52: =SUM(G51) -> 0 | I52: =IFERROR(IFERROR(VLOOKUP(E52,Surcharge!A:B,2,FALSE)*G52, VLOOKUP(E52 & "",Surcharge!A:B,2,FALSE)*G52), "") -> 
C53: Boxed Dimensions: 42.75"L x 17.25"W x 9.75"H (1090mm x 440mm x 250mm) * | G53: =SUM(G52) -> 0 | I53: =IFERROR(IFERROR(VLOOKUP(E53,Surcharge!A:B,2,FALSE)*G53, VLOOKUP(E53 & "",Surcharge!A:B,2,FALSE)*G53), "") -> 
C54: Shipping Weight: 22.75 lbs. (9.9 kg) | G54: =SUM(G53) -> 0 | I54: =IFERROR(IFERROR(VLOOKUP(E54,Surcharge!A:B,2,FALSE)*G54, VLOOKUP(E54 & "",Surcharge!A:B,2,FALSE)*G54), "") -> 
I55: =IFERROR(IFERROR(VLOOKUP(E55,Surcharge!A:B,2,FALSE)*G55, VLOOKUP(E55 & "",Surcharge!A:B,2,FALSE)*G55), "") -> 
C57: V-CAN-16 Premium Dry Canister Vacuum Cleaner | E57: 1252618 | F57: 621 | H57: =G57*F57 -> 0 | Q57: =VLOOKUP(E57,'MPF SAP Download PreConfigured'!C:E,3,FALSE) -> 621
C58: CRI certified Bronze with optional high performance tool. 4.2 gallon (16 liter) capacity with multi-stage filtration including cloth filter, fleece bag and downstream HEPA cartridge. Comes standard with speed regulator, full bag indicator, chrome telescopic tube, wand with air flow regulator, floor tool, flat lance, round brush and small tool, 6.5 ft (2 m) hose, 40 ft (12m) detachable safety-yellow power cord. UL / CSA | G58: =SUM(G57) -> 0
G59: =SUM(G58) -> 0
C60: Boxed Dimensions: 16 x 17 x 20 in (400 x 435 x 515 mm) | G60: 0
C61: Shipping Weight: 20 lb / 9 kg | G61: 0
C64: V-CAN-12 Standard Dry Canister Vacuum Cleaner | E64: 1252616 | F64: 503 | H64: =G64*F64 -> 0 | Q64: =VLOOKUP(E64,'MPF SAP Download PreConfigured'!C:E,3,FALSE) -> 503
C65: CRI certified Bronze with optional high performance tool. 3.2 gallon (12 liter) capacity with multi-stage filtration including cloth filter, fleece bag and downstream foam filter. Comes standard with chrome tube, wand with air flow regulator, floor tool, flat lance, round brush and small tool, 6.2 ft (1.9 m) hose, 40 ft (12m) detachable safety-yellow power cord. UL / CSA | G65: =SUM(G64) -> 0
G66: =SUM(G65) -> 0
C67: Boxed Dimensions: 15.5 x 15.5 x 20 in (395 x 395 x 510 mm) | G67: 0
C68: Shipping Weight: 19.4 lb / 8.8 kg | G68: 0
C71: V-CAN-10 Compact Dry Canister Vacuum Cleaner | E71: 1244292 | F71: 365 | H71: =G71*F71 -> 0 | Q71: =VLOOKUP(E71,'MPF SAP Download PreConfigured'!C:E,3,FALSE) -> 365
C72: 2.6 gallon (10 liter) capacity, comes standard with paper bag, floor tool/crevice tool/dusting brush, 2-piece wand, 5 ft (1.5 m) hose and 26 ft (8 m) yellow power cord. Intertek ETL (US-Can) | G72: =SUM(G71) -> 0
G73: =SUM(G72) -> 0
C74: Boxed Dimensions: 13.2 x 13 x 13 in (335 x 330 x 330 mm). | G74: 0
C75: Shipping Weight: 15 lb / 6.7kg | G75: 0
I77: =IFERROR(IFERROR(VLOOKUP(E77,Surcharge!A:B,2,FALSE)*G77, VLOOKUP(E77 & "",Surcharge!A:B,2,FALSE)*G77), "") -> 
I78: =IFERROR(IFERROR(VLOOKUP(E78,Surcharge!A:B,2,FALSE)*G78, VLOOKUP(E78 & "",Surcharge!A:B,2,FALSE)*G78), "") -> 
C79: V-BP-6 Backpack Vacuum - Base Kit | E79: 9013473 | F79: 809 | H79: =G79*F79 -> 0 | I79: =IFERROR(IFERROR(VLOOKUP(E79,Surcharge!A:B,2,FALSE)*G79, VLOOKUP(E79 & "",Surcharge!A:B,2,FALSE)*G79), "") ->  | Q79: =VLOOKUP(E79,'MPF SAP Download PreConfigured'!C:E,3,FALSE) -> 809
C80: Ergonomic Commercial Backpack Vacuum - 10 amp vac motor, 6 qt. (5.7 litre) capacity, comes standard with 4-stage HEPA filtration, Deuter branded hiking harness, 14" (356 mm) hard floor tool, 14" (356mm) carpet floor tool, 15-ft (5m) crush proof 4:1 stretch hose and lightweight, two-piece aluminum wand, dust brush, crevice and upholstery tool. 50 ft. (15m) safety-yellow power cord. UL-CSA. CRI certified Gold with optional Hi-performance tool. | G80: =SUM(G79) -> 0 | I80: =IFERROR(IFERROR(VLOOKUP(E80,Surcharge!A:B,2,FALSE)*G80, VLOOKUP(E80 & "",Surcharge!A:B,2,FALSE)*G80), "") -> 
C81: Vacuum Boxed Dimensions: 26.8"L x 15.2"W x 14.2"H (680mm x 385mm x 360mm) | G81: =SUM(G80) -> 0 | I81: =IFERROR(IFERROR(VLOOKUP(E81,Surcharge!A:B,2,FALSE)*G81, VLOOKUP(E81 & "",Surcharge!A:B,2,FALSE)*G81), "") -> 
C82: Tools Boxed Dimensions: 32"L x 11" W x 4.5"H (813mm x 279mm x 114mm) | G82: 0 | I82: =IFERROR(IFERROR(VLOOKUP(E82,Surcharge!A:B,2,FALSE)*G82, VLOOKUP(E82 & "",Surcharge!A:B,2,FALSE)*G82), "") -> 
C83: Shipping Weight: vacuum 21.2 lbs. (9.6 kg) + tools 3.6 lbs (1.6 kg) = total 24.8 lbs (11.2 kg) | G83: 0 | I83: =IFERROR(IFERROR(VLOOKUP(E83,Surcharge!A:B,2,FALSE)*G83, VLOOKUP(E83 & "",Surcharge!A:B,2,FALSE)*G83), "") -> 
C84: *3 Total boxes will come with the order (in addition to the two above there will be a small accessory box. | G84: 0 | I84: =IFERROR(IFERROR(VLOOKUP(E84,Surcharge!A:B,2,FALSE)*G84, VLOOKUP(E84 & "",Surcharge!A:B,2,FALSE)*G84), "") -> 
I85: =IFERROR(IFERROR(VLOOKUP(E85,Surcharge!A:B,2,FALSE)*G85, VLOOKUP(E85 & "",Surcharge!A:B,2,FALSE)*G85), "") -> 
C86: V-BP-6 Backpack Vacuum - Standard Kit | E86: 9013474 | F86: 836 | H86: =G86*F86 -> 0 | I86: =IFERROR(IFERROR(VLOOKUP(E86,Surcharge!A:B,2,FALSE)*G86, VLOOKUP(E86 & "",Surcharge!A:B,2,FALSE)*G86), "") ->  | Q86: =VLOOKUP(E86,'MPF SAP Download PreConfigured'!C:E,3,FALSE) -> 836
C87: Ergonomic Commercial Backpack Vacuum - 10 amp vac motor, 6 qt. (5.7 litre) capacity, comes standard with 4-stage HEPA filtration, Deuter branded hiking harness, 14" (356 mm) hard floor tool, 14" (356mm) carpet floor tool, 15-ft (5m) crush proof 4:1 stretch hose and robust one-piece chrome telescoping wand, dust brush, crevice and upholstery tool. 50 ft. (15m) safety-yellow power cord. UL-CSA. CRI certified Gold with optional Hi-performance tool. | G87: =SUM(G86) -> 0 | I87: =IFERROR(IFERROR(VLOOKUP(E87,Surcharge!A:B,2,FALSE)*G87, VLOOKUP(E87 & "",Surcharge!A:B,2,FALSE)*G87), "") -> 
C88: Vacuum Boxed Dimensions: 26.8"L x 15.2"W x 14.2"H (680mm x 385mm x 360mm) | G88: =SUM(G87) -> 0 | I88: =IFERROR(IFERROR(VLOOKUP(E88,Surcharge!A:B,2,FALSE)*G88, VLOOKUP(E88 & "",Surcharge!A:B,2,FALSE)*G88), "") -> 
C89: Tools Boxed Dimensions: 44.5"L x 7.5" W x 3.5"H (1130mm x 191mm x 89mm) | G89: 0 | I89: =IFERROR(IFERROR(VLOOKUP(E89,Surcharge!A:B,2,FALSE)*G89, VLOOKUP(E89 & "",Surcharge!A:B,2,FALSE)*G89), "") -> 
C90: Shipping Weight: vacuum 21.2 lbs. (9.6 kg) + tools 4.8 lbs (2.2 kg) = total 26 lbs (11.8 kg) | G90: 0 | I90: =IFERROR(IFERROR(VLOOKUP(E90,Surcharge!A:B,2,FALSE)*G90, VLOOKUP(E90 & "",Surcharge!A:B,2,FALSE)*G90), "") -> 
C91: *3 Total boxes will come with the order (in addition to the two above there will be a small accessory box. | G91: 0 | I91: =IFERROR(IFERROR(VLOOKUP(E91,Surcharge!A:B,2,FALSE)*G91, VLOOKUP(E91 & "",Surcharge!A:B,2,FALSE)*G91), "") -> 
I92: =IFERROR(IFERROR(VLOOKUP(E92,Surcharge!A:B,2,FALSE)*G92, VLOOKUP(E92 & "",Surcharge!A:B,2,FALSE)*G92), "") -> 
C93: V-BP-6 Backpack Vacuum - Premium Kit (Sidewinder Tools) | E93: 9013475 | F93: 956 | H93: =G93*F93 -> 0 | I93: =IFERROR(IFERROR(VLOOKUP(E93,Surcharge!A:B,2,FALSE)*G93, VLOOKUP(E93 & "",Surcharge!A:B,2,FALSE)*G93), "") ->  | Q93: =VLOOKUP(E93,'MPF SAP Download PreConfigured'!C:E,3,FALSE) -> 956
C94: Ergonomic Commercial Backpack Vacuum - 10 amp vac motor, 6 qt. (5.7 litre) capacity, comes standard with 4-stage HEPA filtration, Deuter branded hiking harness, 18" (457 mm) Sidewinder branded hard floor tool, 18" (457 mm) Sidewinder branded carpet floor tool, 15-ft (5m) crush proof 4:1 stretch hose and two-piece anodized aluminum wand, dust brush, crevice and upholstery tool. 50 ft. (15m) safety-yellow power cord. UL-CSA. CRI certified Gold with optional Hi-performance tool. | G94: =SUM(G93) -> 0 | I94: =IFERROR(IFERROR(VLOOKUP(E94,Surcharge!A:B,2,FALSE)*G94, VLOOKUP(E94 & "",Surcharge!A:B,2,FALSE)*G94), "") -> 
G95: =SUM(G94) -> 0 | I95: =IFERROR(IFERROR(VLOOKUP(E95,Surcharge!A:B,2,FALSE)*G95, VLOOKUP(E95 & "",Surcharge!A:B,2,FALSE)*G95), "") -> 
C96: Vacuum Boxed Dimensions: 26.8"L x 15.2"W x 14.2"H (680mm x 385mm x 360mm) | G96: 0 | I96: =IFERROR(IFERROR(VLOOKUP(E96,Surcharge!A:B,2,FALSE)*G96, VLOOKUP(E96 & "",Surcharge!A:B,2,FALSE)*G96), "") -> 
C97: Tools Boxed Dimensions: 32"L x 11" W x 4.5"H (813mm x 279mm x 114mm) | G97: 0 | I97: =IFERROR(IFERROR(VLOOKUP(E97,Surcharge!A:B,2,FALSE)*G97, VLOOKUP(E97 & "",Surcharge!A:B,2,FALSE)*G97), "") -> 
C98: Shipping Weight: vacuum 21.2 lbs. (9.6 kg) + tools 3.4 lbs (1.5 kg) = total 24.6 lbs (11.2 kg) | G98: 0 | I98: =IFERROR(IFERROR(VLOOKUP(E98,Surcharge!A:B,2,FALSE)*G98, VLOOKUP(E98 & "",Surcharge!A:B,2,FALSE)*G98), "") -> 
C99: *3 Total boxes will come with the order (in addition to the two above there will be a small accessory box. | G99: 0 | I99: =IFERROR(IFERROR(VLOOKUP(E99,Surcharge!A:B,2,FALSE)*G99, VLOOKUP(E99 & "",Surcharge!A:B,2,FALSE)*G99), "") -> 
I100: =IFERROR(IFERROR(VLOOKUP(E100,Surcharge!A:B,2,FALSE)*G100, VLOOKUP(E100 & "",Surcharge!A:B,2,FALSE)*G100), "") -> 
C101: V-BP-6B Battery Backpack Vacuum - Base Kit | E101: 9017567 | F101: 2081 | H101: =G101*F101 -> 0 | I101: =IFERROR(IFERROR(VLOOKUP(E101,Surcharge!A:B,2,FALSE)*G101, VLOOKUP(E101 & "",Surcharge!A:B,2,FALSE)*G101), "") ->  | Q101: =VLOOKUP(E101,'MPF SAP Download PreConfigured'!C:E,3,FALSE) -> 2081
C102: Ergonomic Commercial Backpack Vacuum - 36 VDC / 10.4 Ah lithium ion powered battery vacuum. Runtime 55 minutes. 6 qt. (5.7 liter) capacity, comes standard with 4-stage HEPA filtration, Deuter branded hiking harness, 14" (356 mm) hard floor tool, 14" (356mm) carpet floor tool, 15-ft (5m) crush proof 4:1 stretch hose and lightweight, two-piece aluminum wand, dust brush, crevice and upholstery tool. ETL certified. CRI certified Silver with optional Hi-performance tool. Battery and charger included in price, battery ships separately. | G102: =SUM(G101) -> 0 | I102: =IFERROR(IFERROR(VLOOKUP(E102,Surcharge!A:B,2,FALSE)*G102, VLOOKUP(E102 & "",Surcharge!A:B,2,FALSE)*G102), "") -> 
G103: =SUM(G102) -> 0 | I103: =IFERROR(IFERROR(VLOOKUP(E103,Surcharge!A:B,2,FALSE)*G103, VLOOKUP(E103 & "",Surcharge!A:B,2,FALSE)*G103), "") -> 
C104: Vacuum Boxed Dimensions: 33.25"L x 16"W x 15"H (844.6mm x 406mm x 381mm) | G104: 0 | I104: =IFERROR(IFERROR(VLOOKUP(E104,Surcharge!A:B,2,FALSE)*G104, VLOOKUP(E104 & "",Surcharge!A:B,2,FALSE)*G104), "") -> 
C105: Tools Boxed Dimensions: 32"L x 11" W x 4.5"H (813mm x 279mm x 114mm) | G105: 0 | I105: =IFERROR(IFERROR(VLOOKUP(E105,Surcharge!A:B,2,FALSE)*G105, VLOOKUP(E105 & "",Surcharge!A:B,2,FALSE)*G105), "") -> 
C106: Battery Box Dimensions: 13.5"L x 4.5"W x 6.25"H (343mm x 114mm x 159mm) | G106: 0 | I106: =IFERROR(IFERROR(VLOOKUP(E106,Surcharge!A:B,2,FALSE)*G106, VLOOKUP(E106 & "",Surcharge!A:B,2,FALSE)*G106), "") -> 
C107: Shipping Weight: vacuum 23 lbs. (10.4 kg) + tools 3.6 lbs (1.6 kg) + battery box 6.2 lbs (2.8 kg) = total 32.8 lbs (14.8 kg) | G107: 0 | I107: =IFERROR(IFERROR(VLOOKUP(E107,Surcharge!A:B,2,FALSE)*G107, VLOOKUP(E107 & "",Surcharge!A:B,2,FALSE)*G107), "") -> 
C108: *4 Total boxes will come with the order (in addition to the three above there will be a small accessory box). | G108: 0 | I108: =IFERROR(IFERROR(VLOOKUP(E108,Surcharge!A:B,2,FALSE)*G108, VLOOKUP(E108 & "",Surcharge!A:B,2,FALSE)*G108), "") -> 
I109: =IFERROR(IFERROR(VLOOKUP(E109,Surcharge!A:B,2,FALSE)*G109, VLOOKUP(E109 & "",Surcharge!A:B,2,FALSE)*G109), "") -> 
C110: V-BP-6B Battery Backpack Vacuum - Standard Kit | E110: 9017570 | F110: 2151 | H110: =G110*F110 -> 0 | I110: =IFERROR(IFERROR(VLOOKUP(E110,Surcharge!A:B,2,FALSE)*G110, VLOOKUP(E110 & "",Surcharge!A:B,2,FALSE)*G110), "") ->  | Q110: =VLOOKUP(E110,'MPF SAP Download PreConfigured'!C:E,3,FALSE) -> 2151
C111: Ergonomic Commercial Backpack Vacuum - 36 VDC / 10.4 Ah lithium ion battery powered vacuum. Runtime 55 minutes. 6 qt. (5.7 liter) capacity, comes standard with 4-stage HEPA filtration, Deuter branded hiking harness, 14" (356 mm) hard floor tool, 14" (356mm) carpet floor tool, 15-ft (5m) crush proof 4:1 stretch hose and chrome telescoping wand, dust brush, crevice and upholstery tool. ETL certified. CRI certified Silver with optional Hi-performance tool. Battery and charger included in price, battery ships separately. | G111: =SUM(G110) -> 0 | I111: =IFERROR(IFERROR(VLOOKUP(E111,Surcharge!A:B,2,FALSE)*G111, VLOOKUP(E111 & "",Surcharge!A:B,2,FALSE)*G111), "") -> 
G112: =SUM(G111) -> 0 | I112: =IFERROR(IFERROR(VLOOKUP(E112,Surcharge!A:B,2,FALSE)*G112, VLOOKUP(E112 & "",Surcharge!A:B,2,FALSE)*G112), "") -> 
C113: Vacuum Boxed Dimensions: 33.25"L x 16"W x 15"H (844.6mm x 406mm x 381mm) | G113: 0 | I113: =IFERROR(IFERROR(VLOOKUP(E113,Surcharge!A:B,2,FALSE)*G113, VLOOKUP(E113 & "",Surcharge!A:B,2,FALSE)*G113), "") -> 
C114: Tools Boxed Dimensions: 44.5"L x 7.5" W x 3.5"H (1130mm x 191mm x 89mm) | G114: 0 | I114: =IFERROR(IFERROR(VLOOKUP(E114,Surcharge!A:B,2,FALSE)*G114, VLOOKUP(E114 & "",Surcharge!A:B,2,FALSE)*G114), "") -> 
C115: Battery Box Dimensions: 13.5"L x 4.5"W x 6.25"H (343mm x 114mm x 159mm) | G115: 0 | I115: =IFERROR(IFERROR(VLOOKUP(E115,Surcharge!A:B,2,FALSE)*G115, VLOOKUP(E115 & "",Surcharge!A:B,2,FALSE)*G115), "") -> 
C116: Shipping Weight: vacuum 23 lbs. (10.4 kg) + tools 3.6 lbs (1.6 kg) + battery box 6.2 lbs (2.8 kg) = total 32.8 lbs (14.8 kg) | G116: 0 | I116: =IFERROR(IFERROR(VLOOKUP(E116,Surcharge!A:B,2,FALSE)*G116, VLOOKUP(E116 & "",Surcharge!A:B,2,FALSE)*G116), "") -> 
C117: *4 Total boxes will come with the order (in addition to the three above there will be a small accessory box). | G117: 0 | I117: =IFERROR(IFERROR(VLOOKUP(E117,Surcharge!A:B,2,FALSE)*G117, VLOOKUP(E117 & "",Surcharge!A:B,2,FALSE)*G117), "") -> 
I118: =IFERROR(IFERROR(VLOOKUP(E118,Surcharge!A:B,2,FALSE)*G118, VLOOKUP(E118 & "",Surcharge!A:B,2,FALSE)*G118), "") -> 
C119: V-BP-6B Battery Backpack Vacuum - Premium Kit (Sidewinder Tools) | E119: 9017571 | F119: 2295 | H119: =G119*F119 -> 0 | I119: =IFERROR(IFERROR(VLOOKUP(E119,Surcharge!A:B,2,FALSE)*G119, VLOOKUP(E119 & "",Surcharge!A:B,2,FALSE)*G119), "") ->  | Q119: =VLOOKUP(E119,'MPF SAP Download PreConfigured'!C:E,3,FALSE) -> 2295
C120: Ergonomic Commercial Backpack Vacuum - 36 VDC / 10.4 Ah lithium ion powered vacuum. Runtime 55 minutes. 6 qt. (5.7 litre) capacity, comes standard with 4-stage HEPA filtration, Deuter branded hiking harness, 18" (457 mm) Sidewinder branded hard floor tool, 18" (457 mm) Sidewinder branded carpet floor tool, 15-ft (5m) crush proof 4:1 stretch hose and two-piece anodized aluminum wand, dust brush, crevice and upholstery tool. ETL certified. CRI certified Silver with optional Hi-performance tool. Battery and charger included in price, battery ships separately. | G120: =SUM(G119) -> 0 | I120: =IFERROR(IFERROR(VLOOKUP(E120,Surcharge!A:B,2,FALSE)*G120, VLOOKUP(E120 & "",Surcharge!A:B,2,FALSE)*G120), "") -> 
G121: =SUM(G120) -> 0 | I121: =IFERROR(IFERROR(VLOOKUP(E121,Surcharge!A:B,2,FALSE)*G121, VLOOKUP(E121 & "",Surcharge!A:B,2,FALSE)*G121), "") -> 
C122: Vacuum Boxed Dimensions: 33.25"L x 16"W x 15"H (844.6mm x 406mm x 381mm) | G122: 0 | I122: =IFERROR(IFERROR(VLOOKUP(E122,Surcharge!A:B,2,FALSE)*G122, VLOOKUP(E122 & "",Surcharge!A:B,2,FALSE)*G122), "") -> 
C123: Tools Boxed Dimensions: 32"L x 11" W x 4.5"H (813mm x 279mm x 114mm) | G123: 0 | I123: =IFERROR(IFERROR(VLOOKUP(E123,Surcharge!A:B,2,FALSE)*G123, VLOOKUP(E123 & "",Surcharge!A:B,2,FALSE)*G123), "") -> 
C124: Battery Box Dimensions: 13.5"L x 4.5"W x 6.25"H (343mm x 114mm x 159mm) | G124: 0 | I124: =IFERROR(IFERROR(VLOOKUP(E124,Surcharge!A:B,2,FALSE)*G124, VLOOKUP(E124 & "",Surcharge!A:B,2,FALSE)*G124), "") -> 
C125: Shipping Weight: vacuum 23 lbs. (10.4 kg) + tools 3.4 lbs (1.5 kg) + battery box 6.2 lbs (2.8 kg) = total 32.6 lbs (14.7 kg) | G125: 0 | I125: =IFERROR(IFERROR(VLOOKUP(E125,Surcharge!A:B,2,FALSE)*G125, VLOOKUP(E125 & "",Surcharge!A:B,2,FALSE)*G125), "") -> 
C126: *4 Total boxes will come with the order (in addition to the three above there will be a small accessory box). | G126: 0 | I126: =IFERROR(IFERROR(VLOOKUP(E126,Surcharge!A:B,2,FALSE)*G126, VLOOKUP(E126 & "",Surcharge!A:B,2,FALSE)*G126), "") -> 
I127: =IFERROR(IFERROR(VLOOKUP(E127,Surcharge!A:B,2,FALSE)*G127, VLOOKUP(E127 & "",Surcharge!A:B,2,FALSE)*G127), "") -> 
A129: Wet/Dry Vacuums | G129: =SUM(G131,G138,G145,G152,G159) -> 0 | I129: =IFERROR(IFERROR(VLOOKUP(E129,Surcharge!A:B,2,FALSE)*G129, VLOOKUP(E129 & "",Surcharge!A:B,2,FALSE)*G129), "") -> 
I130: =IFERROR(IFERROR(VLOOKUP(E130,Surcharge!A:B,2,FALSE)*G130, VLOOKUP(E130 & "",Surcharge!A:B,2,FALSE)*G130), "") -> 
C131: V-WD-24P 24-gal. Wet/Dry Vacuum with Pump & Front Mount Squeegee | E131: 9019349 | F131: 2465 | H131: =G131*F131 -> 0 | Q131: =VLOOKUP(E131,'MPF SAP Download PreConfigured'!C:E,3,FALSE) -> 2465
C132: 22.7 gallon gross volume tank capacity/14.5 gallon water volume tank capacity. 100" (2530 mm) waterlift with powerful submersible pump and front mount squeegee. Includes 16-ft. (5 m) vacuum hose, a 40-ft. (12 m) power cord, 2-pc. Aluminum/plastic wand, wand with air flor regulator and wet floor tool. Options include: dual filtration system, dust floor tool, flat lance, round brush and adaptor. | G132: =SUM(G131) -> 0
E133: Dual Filtration System sold as option | G133: =SUM(G132) -> 0
C134: Boxed dimensions: 24L x 19W x 37H (620mm x 495mm x 950mm) | G134: 0
C135: Shipping Weight: 87 lbs. (39.5 kg) | G135: 0
I137: =IFERROR(IFERROR(VLOOKUP(E137,Surcharge!A:B,2,FALSE)*G137, VLOOKUP(E137 & "",Surcharge!A:B,2,FALSE)*G137), "") -> 
C138: V-WD-24P 24-gal. Wet/Dry Vacuum with Pump | E138: 1244346 | F138: 1983 | H138: =G138*F138 -> 0 | I138: =IFERROR(IFERROR(VLOOKUP(E138,Surcharge!A:B,2,FALSE)*G138, VLOOKUP(E138 & "",Surcharge!A:B,2,FALSE)*G138), "") ->  | Q138: =VLOOKUP(E138,'MPF SAP Download PreConfigured'!C:E,3,FALSE) -> 1983
C139: 22.7 gallon gross volume tank capacity/14.5 gallon water volume tank capacity. 100" (2530 mm) waterlift with powerful submersible pump. Includes 16-ft. (5 m) vacuum hose, a 40-ft. (12 m) power cord, 2-pc. Aluminum/plastic wand, wand with air flor regulator and wet floor tool. Options include: front mount squeegee kit, dual filtration system, dust floor tool, flat lance, round brush and adaptor. | E139: Squeegee sold as option | G139: =SUM(G138) -> 0 | I139: =IFERROR(IFERROR(VLOOKUP(E139,Surcharge!A:B,2,FALSE)*G139, VLOOKUP(E139 & "",Surcharge!A:B,2,FALSE)*G139), "") -> 
E140: Dual Filtration System sold as option | G140: =SUM(G139) -> 0 | I140: =IFERROR(IFERROR(VLOOKUP(E140,Surcharge!A:B,2,FALSE)*G140, VLOOKUP(E140 & "",Surcharge!A:B,2,FALSE)*G140), "") -> 
C141: Boxed dimensions: 24L x 19W x 37H (620mm x 495mm x 950mm) | G141: 0
C142: Shipping Weight: 65 lbs. (29.6 kg) | G142: 0
I144: =IFERROR(IFERROR(VLOOKUP(E144,Surcharge!A:B,2,FALSE)*G144, VLOOKUP(E144 & "",Surcharge!A:B,2,FALSE)*G144), "") -> 
C145: V-WD-24 24-gal. Wet/Dry Vacuum with front mount squeegee | E145: 9019348 | F145: 1482 | H145: =G145*F145 -> 0 | Q145: =VLOOKUP(E145,'MPF SAP Download PreConfigured'!C:E,3,FALSE) -> 1482
C146: 24 gallon gross volume tank capacity/15.59 gallon water volume tank capacity. 100" (2530 mm) waterlift with front mount squeegee. Includes 16-ft. (5 m) vacuum hose, a 40-ft. (12 m) power cord, 2-pc. Aluminum/plastic wand, wand with air flor regulator, cloth filter, paper bag, dust floor tool, wet floor tool, flat lance, round brush and adaptor. Options include: carpet brush tool and upstream HEPA filter. | G146: =SUM(G145) -> 0
G147: =SUM(G146) -> 0
C148: Boxed dimensions: 24L x 19W x 37H (620mm x 495mm x 950mm) | G148: 0
C149: Shipping Weight: 79 lbs. (35.8 kg) | G149: 0
C152: V-WD-24 24-gal. Wet/Dry Vacuum | E152: 1245656 | F152: 1003 | H152: =G152*F152 -> 0 | I152: =IFERROR(IFERROR(VLOOKUP(E152,Surcharge!A:B,2,FALSE)*G152, VLOOKUP(E152 & "",Surcharge!A:B,2,FALSE)*G152), "") ->  | Q152: =VLOOKUP(E152,'MPF SAP Download PreConfigured'!C:E,3,FALSE) -> 1003
C153: 24 gallon gross volume tank capacity/15.59 gallon water volume tank capacity. 100" (2530 mm) waterlift. Includes 16-ft. (5 m) vacuum hose, a 40-ft. (12 m) power cord, 2-pc. Aluminum/plastic wand, wand with air flor regulator, cloth filter, paper bag, dust floor tool, wet floor tool, flat lance, round brush and adaptor. Options include: front mount squeegee kit, carpet brush tool and upstream HEPA filter. | E153: Squeegee sold as option | G153: =SUM(G152) -> 0 | I153: =IFERROR(IFERROR(VLOOKUP(E153,Surcharge!A:B,2,FALSE)*G153, VLOOKUP(E153 & "",Surcharge!A:B,2,FALSE)*G153), "") -> 
G154: =SUM(G153) -> 0 | I154: =IFERROR(IFERROR(VLOOKUP(E154,Surcharge!A:B,2,FALSE)*G154, VLOOKUP(E154 & "",Surcharge!A:B,2,FALSE)*G154), "") -> 
C155: Boxed dimensions: 24L x 19W x 37H (620mm x 495mm x 950mm) | G155: =SUM(G154) -> 0 | I155: =IFERROR(IFERROR(VLOOKUP(E155,Surcharge!A:B,2,FALSE)*G155, VLOOKUP(E155 & "",Surcharge!A:B,2,FALSE)*G155), "") -> 
C156: Shipping Weight: 59 lbs. (26.8 kg) | G156: =SUM(G155) -> 0 | I156: =IFERROR(IFERROR(VLOOKUP(E156,Surcharge!A:B,2,FALSE)*G156, VLOOKUP(E156 & "",Surcharge!A:B,2,FALSE)*G156), "") -> 
C159: V-WD-9 9-gal. Wet/Dry Vacuum | E159: 1244345 | F159: 634 | H159: =G159*F159 -> 0 | I159: =IFERROR(IFERROR(VLOOKUP(E159,Surcharge!A:B,2,FALSE)*G159, VLOOKUP(E159 & "",Surcharge!A:B,2,FALSE)*G159), "") ->  | Q159: =VLOOKUP(E159,'MPF SAP Download PreConfigured'!C:E,3,FALSE) -> 634
C160: 9 gallon gross volume tank capacity/6.6 gallon water volume tank capacity. 100" (2530 mm) waterlift. Includes 8-ft. (2.5 m) vacuum hose, a 28-ft. (8.5 m) power cord, 2-pc. Aluminum/plastic wand, wand with air flor regulator, cloth filter, paper bag, dust floor tool, wet floor tool, flat lance, round brush and adaptor. Options include: carpet brush tool and upstream HEPA filter. | G160: =SUM(G159) -> 0 | I160: =IFERROR(IFERROR(VLOOKUP(E160,Surcharge!A:B,2,FALSE)*G160, VLOOKUP(E160 & "",Surcharge!A:B,2,FALSE)*G160), "") -> 
G161: =SUM(G160) -> 0 | I161: =IFERROR(IFERROR(VLOOKUP(E161,Surcharge!A:B,2,FALSE)*G161, VLOOKUP(E161 & "",Surcharge!A:B,2,FALSE)*G161), "") -> 
C162: Boxed dimensions: 17L x 17W x 32H (420mm x 420mm x 820mm) | G162: =SUM(G161) -> 0 | I162: =IFERROR(IFERROR(VLOOKUP(E162,Surcharge!A:B,2,FALSE)*G162, VLOOKUP(E162 & "",Surcharge!A:B,2,FALSE)*G162), "") -> 
C163: Shipping Weight: 31 lbs. (13.9 kg) | G163: =SUM(G162) -> 0 | I163: =IFERROR(IFERROR(VLOOKUP(E163,Surcharge!A:B,2,FALSE)*G163, VLOOKUP(E163 & "",Surcharge!A:B,2,FALSE)*G163), "") -> 
I164: =IFERROR(IFERROR(VLOOKUP(E164,Surcharge!A:B,2,FALSE)*G164, VLOOKUP(E164 & "",Surcharge!A:B,2,FALSE)*G164), "") -> 
G166: =SUM(#REF!) -> 
F168: =ROUND(SUM(H28:H167), 0) -> 0 | G168: =SUM(F169) -> 0
E169: Machine Subtotal | F169: =ROUND(SUM(H28:H167), 0) -> 0 | G169: =G168 -> 0
B170: Discounts | G170: =SUM(G171) -> 0
G171: =SUM(G172:G173) -> 0
E172: Discount % | G172: =IF(F172 <> "", 1, 0) -> 0 | H172: =IF(G172*(F172*0.01)*F168 < 0, G172*(F172*0.01)*F168, -(G172*(F172*0.01)*F168)) -> 0
E173: Discount $ | G173: =IF(F173 <> "", 1, 0) -> 0 | H173: =IF(G173*F173 < 0, G173*F173, -(G173*F173)) -> 0
E174: Discount Total | F174: =SUM(H172:H173) -> 0 | G174: =SUM(F174) -> 0
F175: =#REF! ->  | G175: =#REF! -> 
G176: =G175 -> 
C177: Prepaid and Add | E177: Freight | G177: =IF(F177 <> "", 1, 0) -> 0 | H177: =G177*F177 -> 0
C178: Subject to all applicable taxes | E178: Tax | G178: 0 | H178: =G178*F178 -> 0
G179: =SUM(G180) -> 0
E180: MACHINE TOTAL* | G180: =SUM(H180) -> 0 | H180: =SUM(H28:H178) -> 0 | M180: This goes to "My Documents"
H181: =SUM(H180) -> 0
B182: Financing
C184: Is customer interested in financing? | D184: Yes
C186: If not, why?
C189: First Western Equipment Finance - Leasing Calculation Option: | E189: Option 1 | G189: Option 2 | J189: =Financing!A38 -> Rates 2025 - Rev. 5/6/2025
E190: Monthly Payment | F190: Cost Per Day | G190: Monthly Payment | H190: Cost Per Day | J190: =Financing!A39 -> “Blank Payment Amounts Indicate The Financing Option Or Purchase Options Selected Are Not
C191: Purchase Option: | E191: FWEF: $1 Buyout Lease | G191: FWEF: Municipal Lease | J191: =Financing!A40 -> Applicable Or The Machine Total Is Below The Minimum Amount For The Selected Vendor”
C192: 24 Months | E192: 0 | F192: 0 | G192: 0 | H192: 0 | J192: =Financing!A41 -> "Quoted monthly payments are estimates only and are based on a certain level of credit rating.
C193: 30 Months | E193: 0 | F193: 0 | G193: 0 | H193: 0 | J193: =Financing!A42 -> Actual monthly payments may be higher depending on your credit rating."
C194: 36 Months | E194: 0 | F194: 0 | G194: 0 | H194: 0 | J194: =Financing!A43 -> “Financing rates do not include Pre-Paid Service”
C195: 48 Months | E195: 0 | F195: 0 | G195: 0 | H195: 0 | J195: =Financing!A44 -> 0
D197: Benefits of Equipment Financing:
D198: • Spreads out investment over time. | F198: • Keep current with latest technology.
D199: • Preserve capital. | F199: • Service and parts bundling available.
D200: • Low monthly payment. | F200: • Pay for labor savings as you go.
C203: Bundled Offerings | E203: Flexclean – Fair Market Value | G203: Flexclean - $1 Buyout
C204: FlexClean: | E204: 36 Month Term | G204: 36 Month Term | J204: No | K204: AB Brushes
C205: Hours included per Month: | E205: Gold | F205: Silver | G205: Gold | H205: Silver | I205: Check
C206: < 30/mo. (Avg. 1hr./day) | K206: =FlexCleanCalc!$A21 -> “FlexClean monthly rates include payment for both machine and service.”
C207: < 60/mo. (Avg. 2hrs./day)
C208: < 90/mo. (Avg. 3hrs./day)
C209: *This value assumes one service contract regardless of the number of UNITS included in the quote
C212: Bundled Offerings | E212: Flexclean – Fair Market Value | G212: Flexclean - $1 Buyout
C213: FlexClean 2: | E213: 48 Month Term | G213: 48 Month Term
C214: Hours included per Month: | E214: Gold | F214: Silver | G214: Gold | H214: Silver
C215: < 30/mo. (Avg. 1hr./day)
C216: < 60/mo. (Avg. 2hrs./day)
C217: < 90/mo. (Avg. 3hrs./day)
C218: *This value assumes one service contract regardless of the number of UNITS included in the quote
C220: Bundled Offerings | E220: Flexclean – Fair Market Value | G220: Flexclean - $1 Buyout
C221: FlexClean 3: | E221: 60 Month Term | G221: 60 Month Term
C222: Hours included per Month: | E222: Gold | F222: Silver | G222: Gold | H222: Silver
C223: < 30/mo. (Avg. 1hr./day)
C224: < 60/mo. (Avg. 2hrs./day)
C225: < 90/mo. (Avg. 3hrs./day)
C226: *This value assumes one service contract regardless of the number of UNITS included in the quote
B228: TennantTrue | D228: 0
C230: Is customer interested in service program? | D230: Yes | E230: *State/County selection required for TennantTrue service options
C232: If not, why?
C234: Term: | D234: 36 | F234: AB Brushes | G234: No
C235: Monthly machine usage (hrs): | D235: < 30/mo. (Avg. 1hr./day)
C237: TennantTrue: | D237: Gold Contract | F237: Silver Contract
... 56 more rows

Sheet F_Series_Floor_Machine
A1: F_Series_Floor_Machine | C1: =Start_Here!$C19 -> Company Name
A2: =SUM(H53) -> 0 | C2: =Start_Here!$C20 -> Address
C3: =Start_Here!$C21 -> City, State Zip
C4: =Start_Here!$C22 -> Contact Name
C5: =Start_Here!$C$41 -> Rep Name
C6: =Start_Here!$C$37 -> Tennant Sales and Service Company
C7: =Start_Here!$C$38 -> 10400 Clean Street
C8: =Start_Here!$C$39 -> Eden Prairie, MN 55344
C9: =Start_Here!$C$43 -> 800-553-8033 | F9: Quote Date : | H9: =Letter!$A$25 -> 2020-09-22
C11: =Help!C2 -> US Date Rev - 5/6/2025
C15: New Machine Warranty
C16: Model FM-17SS, FM-20SS, FM20DS | F16: Quote Request Information
C17: 36 MONTHS PARTS | H17: Fax (quote only)
C18: 36 MONTHS – LABOR | H18: Mail (quote,lit, specs)
C19: NO TRAVEL | H19: Fax + Mail
C20: 10 YEARS ON ROTOMOLDED PLASTIC PARTS
F21: Primary Use
H22: Inside
H23: Outside
C26: Description | E26: Referencel# | F26: Price Each | G26: Qty | H26: Extended Pr
C28: FM-20-SS Heavy Duty 20" (508mm) Floor Machine | E28: 9007336 | F28: 1826 | H28: =G28*F28 -> 0 | I28: =IFERROR(IFERROR(VLOOKUP(E28,Surcharge!A:B,2,FALSE)*G28, VLOOKUP(E28 & "",Surcharge!A:B,2,FALSE)*G28), "") ->  | Q28: =VLOOKUP(E28,'MPF SAP Download PreConfigured'!C:E,3,FALSE) -> 1826
C29: 175 rpm (1.50 hp). Includes pad driver. CSA US/C* | G29: =SUM(G28) -> 0 | I29: =IFERROR(IFERROR(VLOOKUP(E29,Surcharge!A:B,2,FALSE)*G29, VLOOKUP(E29 & "",Surcharge!A:B,2,FALSE)*G29), "") -> 
C30: Boxed dimensions: 25L x 22W x 51H (635mm x 559mm x 1295mm) | G30: =SUM(G29) -> 0 | I30: =IFERROR(IFERROR(VLOOKUP(E30,Surcharge!A:B,2,FALSE)*G30, VLOOKUP(E30 & "",Surcharge!A:B,2,FALSE)*G30), "") -> 
C31: Shipping Weight: Unit 110 lbs. (50 kg) / Cu. Ft.: 16.25 (Cu. M .46) | G31: =SUM(G30) -> 0 | I31: =IFERROR(IFERROR(VLOOKUP(E31,Surcharge!A:B,2,FALSE)*G31, VLOOKUP(E31 & "",Surcharge!A:B,2,FALSE)*G31), "") -> 
I32: =IFERROR(IFERROR(VLOOKUP(E32,Surcharge!A:B,2,FALSE)*G32, VLOOKUP(E32 & "",Surcharge!A:B,2,FALSE)*G32), "") -> 
I33: =IFERROR(IFERROR(VLOOKUP(E33,Surcharge!A:B,2,FALSE)*G33, VLOOKUP(E33 & "",Surcharge!A:B,2,FALSE)*G33), "") -> 
C34: FM-20-DS Heavy Duty Dual Speed 20" (508mm) Floor Machine | E34: 9007334 | F34: 2838 | H34: =G34*F34 -> 0 | I34: =IFERROR(IFERROR(VLOOKUP(E34,Surcharge!A:B,2,FALSE)*G34, VLOOKUP(E34 & "",Surcharge!A:B,2,FALSE)*G34), "") ->  | Q34: =VLOOKUP(E34,'MPF SAP Download PreConfigured'!C:E,3,FALSE) -> 2838
C35: 185/330 rpm (1.50 hp). Includes pad driver. CSA US/C* | G35: =SUM(G34) -> 0 | I35: =IFERROR(IFERROR(VLOOKUP(E35,Surcharge!A:B,2,FALSE)*G35, VLOOKUP(E35 & "",Surcharge!A:B,2,FALSE)*G35), "") -> 
C36: Boxed dimensions: 25L x 22W x 51H (635mm x 559mm x 1295mm) | G36: =SUM(G35) -> 0 | I36: =IFERROR(IFERROR(VLOOKUP(E36,Surcharge!A:B,2,FALSE)*G36, VLOOKUP(E36 & "",Surcharge!A:B,2,FALSE)*G36), "") -> 
C37: Shipping Weight: Unit 96 lbs. (44 kg) / Cu. Ft.: 16.25 (Cu. M .46) | G37: =SUM(G36) -> 0 | I37: =IFERROR(IFERROR(VLOOKUP(E37,Surcharge!A:B,2,FALSE)*G37, VLOOKUP(E37 & "",Surcharge!A:B,2,FALSE)*G37), "") -> 
I38: =IFERROR(IFERROR(VLOOKUP(E38,Surcharge!A:B,2,FALSE)*G38, VLOOKUP(E38 & "",Surcharge!A:B,2,FALSE)*G38), "") -> 
G39: =SUM(#REF!) -> 
F41: =ROUND(SUM(H28:H41), 0) -> 0 | G41: =SUM(F42) -> 0
E42: Machine Subtotal | F42: =ROUND(SUM(H28:H41), 0) -> 0 | G42: =G41 -> 0
B43: Discounts | G43: =SUM(G44) -> 0
G44: =SUM(G45:G46) -> 0
E45: Discount % | G45: =IF(F45 <> "", 1, 0) -> 0 | H45: =IF(G45*(F45*0.01)*F41 < 0, G45*(F45*0.01)*F41, -(G45*(F45*0.01)*F41)) -> 0
E46: Discount $ | G46: =IF(F46 <> "", 1, 0) -> 0 | H46: =IF(G46*F46 < 0, G46*F46, -(G46*F46)) -> 0
E47: Discount Total | F47: =SUM(H45:H46) -> 0 | G47: =SUM(F47) -> 0
F48: =#REF! ->  | G48: =#REF! -> 
G49: =G48 -> 
C50: Prepaid and Add | E50: Freight | G50: =IF(F50 <> "", 1, 0) -> 0 | H50: =G50*F50 -> 0
C51: Subject to all applicable taxes | E51: Tax | G51: 0 | H51: =G51*F51 -> 0
G52: =SUM(G53) -> 0
E53: MACHINE TOTAL* | G53: =SUM(H53) -> 0 | H53: =SUM(H28:H51) -> 0 | M53: This goes to "My Documents"
H54: =SUM(H53) -> 0
B55: Financing
C57: Is customer interested in financing? | D57: Yes
C59: If not, why?
C62: First Western Equipment Finance - Leasing Calculation Option: | E62: Option 1 | G62: Option 2 | J62: =Financing!A38 -> Rates 2025 - Rev. 5/6/2025
E63: Monthly Payment | F63: Cost Per Day | G63: Monthly Payment | H63: Cost Per Day | J63: =Financing!A39 -> “Blank Payment Amounts Indicate The Financing Option Or Purchase Options Selected Are Not
C64: Purchase Option: | E64: FWEF: $1 Buyout Lease | G64: FWEF: Municipal Lease | J64: =Financing!A40 -> Applicable Or The Machine Total Is Below The Minimum Amount For The Selected Vendor”
C65: 24 Months | E65: 0 | F65: 0 | G65: 0 | H65: 0 | J65: =Financing!A41 -> "Quoted monthly payments are estimates only and are based on a certain level of credit rating.
C66: 30 Months | E66: 0 | F66: 0 | G66: 0 | H66: 0 | J66: =Financing!A42 -> Actual monthly payments may be higher depending on your credit rating."
C67: 36 Months | E67: 0 | F67: 0 | G67: 0 | H67: 0 | J67: =Financing!A43 -> “Financing rates do not include Pre-Paid Service”
C68: 48 Months | E68: 0 | F68: 0 | G68: 0 | H68: 0 | J68: =Financing!A44 -> 0
D70: Benefits of Equipment Financing:
D71: • Spreads out investment over time. | F71: • Keep current with latest technology.
D72: • Preserve capital. | F72: • Service and parts bundling available.
D73: • Low monthly payment. | F73: • Pay for labor savings as you go.
C76: Bundled Offerings | E76: Flexclean – Fair Market Value | G76: Flexclean - $1 Buyout
C77: FlexClean: | E77: 36 Month Term | G77: 36 Month Term | J77: No | K77: AB Brushes
C78: Hours included per Month: | E78: Gold | F78: Silver | G78: Gold | H78: Silver | I78: Check
C79: < 30/mo. (Avg. 1hr./day) | K79: =FlexCleanCalc!$A21 -> “FlexClean monthly rates include payment for both machine and service.”
C80: < 60/mo. (Avg. 2hrs./day)
C81: < 90/mo. (Avg. 3hrs./day)
C82: *This value assumes one service contract regardless of the number of UNITS included in the quote
C85: Bundled Offerings | E85: Flexclean – Fair Market Value | G85: Flexclean - $1 Buyout
C86: FlexClean 2: | E86: 48 Month Term | G86: 48 Month Term
C87: Hours included per Month: | E87: Gold | F87: Silver | G87: Gold | H87: Silver
C88: < 30/mo. (Avg. 1hr./day)
C89: < 60/mo. (Avg. 2hrs./day)
C90: < 90/mo. (Avg. 3hrs./day)
C91: *This value assumes one service contract regardless of the number of UNITS included in the quote
C93: Bundled Offerings | E93: Flexclean – Fair Market Value | G93: Flexclean - $1 Buyout
C94: FlexClean 3: | E94: 60 Month Term | G94: 60 Month Term
C95: Hours included per Month: | E95: Gold | F95: Silver | G95: Gold | H95: Silver
C96: < 30/mo. (Avg. 1hr./day)
C97: < 60/mo. (Avg. 2hrs./day)
C98: < 90/mo. (Avg. 3hrs./day)
C99: *This value assumes one service contract regardless of the number of UNITS included in the quote
B101: TennantTrue | D101: 0
C103: Is customer interested in service program? | D103: Yes | E103: *State/County selection required for TennantTrue service options
C105: If not, why?
C107: Term: | D107: 36 | F107: AB Brushes | G107: No
C108: Monthly machine usage (hrs): | D108: < 30/mo. (Avg. 1hr./day)
C110: TennantTrue: | D110: Gold Contract | F110: Silver Contract
C111: Per Visit
C112: Monthly
C113: Annually
C114: Pre-Pay Full Term
C115: Hourly Labor Rate
C116: Site Visit
C118: * Verify customer current pricing prior to quote.
C119: **All rates and fees above reflect service for one (1) unit with the exception of Block of Time service.
C120: *Block of Time is available in 1 Year Term only and is priced as such no matter the term selection on this template.
C124: Quote Special Instructions:
C127: =Start_Here!E36 -> Terms and Conditions
C128: =Start_Here!E37 -> Ask your local sales rep for estimated lead times. Verify when placing order
C129: =Start_Here!E38 -> All orders subject to acceptance by Tennant Sales and Service Company, Minneapolis, Minnesota
C130: =Start_Here!E39 -> Prices subject to change without notice.
C131: =Start_Here!E40 -> Terms: Net 30 days. Subject to any applicable taxes.
C132: =Start_Here!E41 -> Freight: Machines and accessory orders delivered FOB shipping point Frt PPD & Add
C133: =Start_Here!E42 -> Parts, supplies, detergents and floor treating material orders delivered FOB
C134: =Start_Here!E43 -> shipping point Frt PPD
C135: =Start_Here!E44 -> All orders are subject to Tennant’s General Terms and Conditions available at http://www.tennantco.com/terms.
C136: =Start_Here!E45 -> Printed General Terms and Conditions are also available upon request.
C137: =Start_Here!E46 -> 0
F139: Quote Date : | H139: =Letter!$A$25 -> 2020-09-22
B140: Order Placement Information: To place your order, fill in PO# and customer signatures,
B141: call or fax to the numbers listed below. Customer Purchase Order is required.
B142: If information is missing, orders will be entered and held until all information is received.
C143: Customer Number | E143: Cust Grp 3
C144: =Start_Here!$C$25 -> 0 | E144: =Start_Here!$C$29 -> 0
C145: =Start_Here!$B$18 -> Who Owns the Machine? (Sold-To Info) (Please Verify)
A146: Company | C146: =Start_Here!$C$19 -> Company Name
A147: Address | C147: =Start_Here!$C$20 -> Address
C148: =Start_Here!$C$21 -> City, State Zip
A149: Name | C149: =Start_Here!$C$22 -> Contact Name
A150: Phone | C150: =Start_Here!$C$23 -> Contact Phone
C151: =Start_Here!$B$11 -> Where is the Machine Being Shipped? (Ship-To Info) (Please Verify)
A152: Company | C152: =Start_Here!$C$12 -> Company Name
A153: Address | C153: =Start_Here!$C$13 -> Address
C154: =Start_Here!$C$14 -> City, State Zip
A155: Name | C155: =Start_Here!$C$15 -> Contact Name
A156: Phone | C156: =Start_Here!$C$16 -> Contact Phone
C157: =Start_Here!$B$31 -> Shipping / Carrier Instructions: | E157: Order Special Instructions:
C158: =Start_Here!$C$32 -> 0
C160: Customer Purchase Order No.
C161: (please attach copy)
C164: Tax Exempt | E164: Yes
E165: No
C166: If Yes, attach a copy of your exemption certificate.
C168: Requested Delivery Date
C169: =Start_Here!$C$28 -> 0
C171: =Start_Here!$C$26 -> 0 | E171: =Start_Here!$C$27 -> 0
B172: 0 | C172: Authorized Buyer (please print) | E172: Phone Number
B175: 0 | C175: Authorized Buyer Signature
C177: =Start_Here!$C$41 -> Rep Name
C178: Tennant Representative
A181: Specialized Maintenance Equipment
A182: =Start_Here!$C$47 -> 0
A183: =Start_Here!$C$48 -> TENNANT · 10400 Clean Street · Eden Prairie, MN 55344 ·

Sheet Burnishers
A1: Burnishers | C1: =Start_Here!$C19 -> Company Name
A2: =SUM(H49) -> 0 | C2: =Start_Here!$C20 -> Address
C3: =Start_Here!$C21 -> City, State Zip
C4: =Start_Here!$C22 -> Contact Name
C5: =Start_Here!$C$41 -> Rep Name
C6: =Start_Here!$C$37 -> Tennant Sales and Service Company
C7: =Start_Here!$C$38 -> 10400 Clean Street
C8: =Start_Here!$C$39 -> Eden Prairie, MN 55344
C9: =Start_Here!$C$43 -> 800-553-8033 | F9: Quote Date : | H9: =Letter!$A$25 -> 2020-09-22
C11: =Help!C2 -> US Date Rev - 5/6/2025
F12: Quote Request Information
H13: Fax (quote only)
C14: New Machine Warranty | H14: Mail (quote,lit, specs)
C15: 36 MONTHS or 2500 HOURS ON PARTS | H15: Fax + Mail
C16: 36 MONTHS – LABOR
C17: 90 DAYS - TRAVEL ON BATTERY UNITS ONLY | F17: Primary Use
C18: 10 YEARS ON ROTOMOLDED PLASTIC PARTS | H18: Inside
C19: BATTERIES ARE PRORATED OVER 1 YEAR | H19: Outside
C22: Description | E22: Referencel# | F22: Price Each | G22: Qty | H22: Extended Pr
G23: =SUM(G24) -> 0
C24: BR-2000-DC Dust Control Burnisher* - 2000 rpm 20" (508mm) | E24: 9007349 | F24: 3949 | H24: =G24*F24 -> 0 | I24: =IFERROR(IFERROR(VLOOKUP(E24,Surcharge!A:B,2,FALSE)*G24, VLOOKUP(E24 & "",Surcharge!A:B,2,FALSE)*G24), "") ->  | P24: =VLOOKUP(E24,'MPF SAP Download PreConfigured'!C:E,3,FALSE) -> 3949
C25: Complete package includes flexible pad driver, 75-ft. (23m) power cord, cloth filter bag and 1-pad. CSA US/C* | G25: =SUM(G24) -> 0 | I25: =IFERROR(IFERROR(VLOOKUP(E25,Surcharge!A:B,2,FALSE)*G25, VLOOKUP(E25 & "",Surcharge!A:B,2,FALSE)*G25), "") -> 
C26: Boxed dimensions: 34L x 27W x 51H (864mm x 686mm x 1295mm) | G26: =SUM(G25) -> 0 | I26: =IFERROR(IFERROR(VLOOKUP(E26,Surcharge!A:B,2,FALSE)*G26, VLOOKUP(E26 & "",Surcharge!A:B,2,FALSE)*G26), "") -> 
C27: Shipping Weight: 93 lbs. (42 kg) / Cu. Ft.: 27.09 (Cu. M. .76) | G27: =SUM(G26) -> 0 | I27: =IFERROR(IFERROR(VLOOKUP(E27,Surcharge!A:B,2,FALSE)*G27, VLOOKUP(E27 & "",Surcharge!A:B,2,FALSE)*G27), "") -> 
I28: =IFERROR(IFERROR(VLOOKUP(E28,Surcharge!A:B,2,FALSE)*G28, VLOOKUP(E28 & "",Surcharge!A:B,2,FALSE)*G28), "") -> 
G29: =SUM(G30) -> 0 | I29: =IFERROR(IFERROR(VLOOKUP(E29,Surcharge!A:B,2,FALSE)*G29, VLOOKUP(E29 & "",Surcharge!A:B,2,FALSE)*G29), "") -> 
C30: BR-1600-NDC Burnisher - 1600 rpm 20" (508mm) | E30: 9007347 | F30: 3020 | H30: =G30*F30 -> 0 | I30: =IFERROR(IFERROR(VLOOKUP(E30,Surcharge!A:B,2,FALSE)*G30, VLOOKUP(E30 & "",Surcharge!A:B,2,FALSE)*G30), "") ->  | P30: =VLOOKUP(E30,'MPF SAP Download PreConfigured'!C:E,3,FALSE) -> 3020
C31: Complete package includes flexible pad driver and a 75-ft. (23m) power cord. | G31: =SUM(G30) -> 0 | I31: =IFERROR(IFERROR(VLOOKUP(E31,Surcharge!A:B,2,FALSE)*G31, VLOOKUP(E31 & "",Surcharge!A:B,2,FALSE)*G31), "") -> 
C32: Boxed dimensions: 31L x 23W x 53H (787mm x 584mm x 1346mm) | G32: =SUM(G31) -> 0 | I32: =IFERROR(IFERROR(VLOOKUP(E32,Surcharge!A:B,2,FALSE)*G32, VLOOKUP(E32 & "",Surcharge!A:B,2,FALSE)*G32), "") -> 
C33: Shipping Weight: 100 lbs. (45 kg) / Cu. Ft.: 21.87 (Cu. M. .62) | G33: =SUM(G32) -> 0 | I33: =IFERROR(IFERROR(VLOOKUP(E33,Surcharge!A:B,2,FALSE)*G33, VLOOKUP(E33 & "",Surcharge!A:B,2,FALSE)*G33), "") -> 
I34: =IFERROR(IFERROR(VLOOKUP(E34,Surcharge!A:B,2,FALSE)*G34, VLOOKUP(E34 & "",Surcharge!A:B,2,FALSE)*G34), "") -> 
G35: =SUM(#REF!) -> 
F37: =ROUND(SUM(H24:H36), 0) -> 0 | G37: =SUM(F38) -> 0
E38: Machine Subtotal | F38: =ROUND(SUM(H24:H36), 0) -> 0 | G38: =G37 -> 0
B39: Discounts | G39: =SUM(G40) -> 0
G40: =SUM(G41:G42) -> 0
E41: Discount % | G41: =IF(F41 <> "", 1, 0) -> 0 | H41: =IF(G41*(F41*0.01)*F37 < 0, G41*(F41*0.01)*F37, -(G41*(F41*0.01)*F37)) -> 0
E42: Discount $ | G42: =IF(F42 <> "", 1, 0) -> 0 | H42: =IF(G42*F42 < 0, G42*F42, -(G42*F42)) -> 0
E43: Discount Total | F43: =SUM(H41:H42) -> 0 | G43: =SUM(F43) -> 0
F44: =#REF! ->  | G44: =#REF! -> 
G45: =G44 -> 
C46: Prepaid and Add | E46: Freight | G46: =IF(F46 <> "", 1, 0) -> 0 | H46: =G46*F46 -> 0
C47: Subject to all applicable taxes | E47: Tax | G47: 0 | H47: =G47*F47 -> 0
G48: =SUM(G49) -> 0
E49: MACHINE TOTAL* | G49: =SUM(H49) -> 0 | H49: =SUM(H24:H47) -> 0 | M49: This goes to "My Documents"
H50: =SUM(H49) -> 0
B51: Financing
C53: Is customer interested in financing? | D53: Yes
C55: If not, why?
C58: First Western Equipment Finance - Leasing Calculation Option: | E58: Option 1 | G58: Option 2 | J58: =Financing!A38 -> Rates 2025 - Rev. 5/6/2025
E59: Monthly Payment | F59: Cost Per Day | G59: Monthly Payment | H59: Cost Per Day | J59: =Financing!A39 -> “Blank Payment Amounts Indicate The Financing Option Or Purchase Options Selected Are Not
C60: Purchase Option: | E60: FWEF: $1 Buyout Lease | G60: FWEF: Municipal Lease | J60: =Financing!A40 -> Applicable Or The Machine Total Is Below The Minimum Amount For The Selected Vendor”
C61: 24 Months | E61: 0 | F61: 0 | G61: 0 | H61: 0 | J61: =Financing!A41 -> "Quoted monthly payments are estimates only and are based on a certain level of credit rating.
C62: 30 Months | E62: 0 | F62: 0 | G62: 0 | H62: 0 | J62: =Financing!A42 -> Actual monthly payments may be higher depending on your credit rating."
C63: 36 Months | E63: 0 | F63: 0 | G63: 0 | H63: 0 | J63: =Financing!A43 -> “Financing rates do not include Pre-Paid Service”
C64: 48 Months | E64: 0 | F64: 0 | G64: 0 | H64: 0 | J64: =Financing!A44 -> 0
D66: Benefits of Equipment Financing:
D67: • Spreads out investment over time. | F67: • Keep current with latest technology.
D68: • Preserve capital. | F68: • Service and parts bundling available.
D69: • Low monthly payment. | F69: • Pay for labor savings as you go.
C72: Bundled Offerings | E72: Flexclean – Fair Market Value | G72: Flexclean - $1 Buyout
C73: FlexClean: | E73: 36 Month Term | G73: 36 Month Term | J73: No | K73: AB Brushes
C74: Hours included per Month: | E74: Gold | F74: Silver | G74: Gold | H74: Silver | I74: Check
C75: < 30/mo. (Avg. 1hr./day) | K75: =FlexCleanCalc!$A21 -> “FlexClean monthly rates include payment for both machine and service.”
C76: < 60/mo. (Avg. 2hrs./day)
C77: < 90/mo. (Avg. 3hrs./day)
C78: *This value assumes one service contract regardless of the number of UNITS included in the quote
C81: Bundled Offerings | E81: Flexclean – Fair Market Value | G81: Flexclean - $1 Buyout
C82: FlexClean 2: | E82: 48 Month Term | G82: 48 Month Term
C83: Hours included per Month: | E83: Gold | F83: Silver | G83: Gold | H83: Silver
C84: < 30/mo. (Avg. 1hr./day)
C85: < 60/mo. (Avg. 2hrs./day)
C86: < 90/mo. (Avg. 3hrs./day)
C87: *This value assumes one service contract regardless of the number of UNITS included in the quote
C89: Bundled Offerings | E89: Flexclean – Fair Market Value | G89: Flexclean - $1 Buyout
C90: FlexClean 3: | E90: 60 Month Term | G90: 60 Month Term
C91: Hours included per Month: | E91: Gold | F91: Silver | G91: Gold | H91: Silver
C92: < 30/mo. (Avg. 1hr./day)
C93: < 60/mo. (Avg. 2hrs./day)
C94: < 90/mo. (Avg. 3hrs./day)
C95: *This value assumes one service contract regardless of the number of UNITS included in the quote
B97: TennantTrue | D97: 0
C99: Is customer interested in service program? | D99: Yes | E99: *State/County selection required for TennantTrue service options
C101: If not, why?
C103: Term: | D103: 36 | F103: AB Brushes | G103: No
C104: Monthly machine usage (hrs): | D104: < 30/mo. (Avg. 1hr./day)
C106: TennantTrue: | D106: Gold Contract | F106: Silver Contract
C107: Per Visit
C108: Monthly
C109: Annually
C110: Pre-Pay Full Term
C111: Hourly Labor Rate
C112: Site Visit
C114: * Verify customer current pricing prior to quote.
C115: **All rates and fees above reflect service for one (1) unit with the exception of Block of Time service.
C116: *Block of Time is available in 1 Year Term only and is priced as such no matter the term selection on this template.
C120: Quote Special Instructions:
C123: =Start_Here!E36 -> Terms and Conditions
C124: =Start_Here!E37 -> Ask your local sales rep for estimated lead times. Verify when placing order
C125: =Start_Here!E38 -> All orders subject to acceptance by Tennant Sales and Service Company, Minneapolis, Minnesota
C126: =Start_Here!E39 -> Prices subject to change without notice.
C127: =Start_Here!E40 -> Terms: Net 30 days. Subject to any applicable taxes.
C128: =Start_Here!E41 -> Freight: Machines and accessory orders delivered FOB shipping point Frt PPD & Add
C129: =Start_Here!E42 -> Parts, supplies, detergents and floor treating material orders delivered FOB
C130: =Start_Here!E43 -> shipping point Frt PPD
C131: =Start_Here!E44 -> All orders are subject to Tennant’s General Terms and Conditions available at http://www.tennantco.com/terms.
C132: =Start_Here!E45 -> Printed General Terms and Conditions are also available upon request.
C133: =Start_Here!E46 -> 0
F135: Quote Date : | H135: =Letter!$A$25 -> 2020-09-22
B136: Order Placement Information: To place your order, fill in PO# and customer signatures,
B137: call or fax to the numbers listed below. Customer Purchase Order is required.
B138: If information is missing, orders will be entered and held until all information is received.
C139: Customer Number | E139: Cust Grp 3
C140: =Start_Here!$C$25 -> 0 | E140: =Start_Here!$C$29 -> 0
C141: =Start_Here!$B$18 -> Who Owns the Machine? (Sold-To Info) (Please Verify)
A142: Company | C142: =Start_Here!$C$19 -> Company Name
A143: Address | C143: =Start_Here!$C$20 -> Address
C144: =Start_Here!$C$21 -> City, State Zip
A145: Name | C145: =Start_Here!$C$22 -> Contact Name
A146: Phone | C146: =Start_Here!$C$23 -> Contact Phone
C147: =Start_Here!$B$11 -> Where is the Machine Being Shipped? (Ship-To Info) (Please Verify)
A148: Company | C148: =Start_Here!$C$12 -> Company Name
A149: Address | C149: =Start_Here!$C$13 -> Address
C150: =Start_Here!$C$14 -> City, State Zip
A151: Name | C151: =Start_Here!$C$15 -> Contact Name
A152: Phone | C152: =Start_Here!$C$16 -> Contact Phone
C153: =Start_Here!$B$31 -> Shipping / Carrier Instructions: | E153: Order Special Instructions:
C154: =Start_Here!$C$32 -> 0
C156: Customer Purchase Order No.
C157: (please attach copy)
C160: Tax Exempt | E160: Yes
E161: No
C162: If Yes, attach a copy of your exemption certificate.
C164: Requested Delivery Date
C165: =Start_Here!$C$28 -> 0
C167: =Start_Here!$C$26 -> 0 | E167: =Start_Here!$C$27 -> 0
B168: 0 | C168: Authorized Buyer (please print) | E168: Phone Number
B171: 0 | C171: Authorized Buyer Signature
C173: =Start_Here!$C$41 -> Rep Name
C174: Tennant Representative
A177: Specialized Maintenance Equipment
A178: =Start_Here!$C$47 -> 0
A179: =Start_Here!$C$48 -> TENNANT · 10400 Clean Street · Eden Prairie, MN 55344 ·

Sheet B10
A1: B10 | C1: =Start_Here!$C19 -> Company Name
A2: =SUM(H80) -> 0 | C2: =Start_Here!$C20 -> Address
C3: =Start_Here!$C21 -> City, State Zip
C4: =Start_Here!$C22 -> Contact Name
C5: =Start_Here!$C$41 -> Rep Name
C6: =Start_Here!$C$37 -> Tennant Sales and Service Company
C7: =Start_Here!$C$38 -> 10400 Clean Street
C8: =Start_Here!$C$39 -> Eden Prairie, MN 55344
C9: =Start_Here!$C$43 -> 800-553-8033 | F9: Quote Date : | H9: =Letter!$A$25 -> 2020-09-22
C11: =Help!C2 -> US Date Rev - 5/6/2025
C12: BUILT-IN “TENNANT VALUE” INCLUDES:
C14: 610mm/690mm or 24"/27" burnishing path | E14: Standard (6) 6V 435AH battery pack
C15: Active Dust Control | E15: Battery Tray
C16: HEPA filtration - 99.97 @ .3 microns | E16: On Board Charger
C17: Automated Head Lift | E17: Rugged DuramerTM Tank Construction
C18: True free floating Head | E18: 69 dBa
C19: Supervisor lock-out | E19: Emergency Stop
C20: Back up Alarm | E20: Anti-Static Straps
C21: Adjustable Seat | E21: Hour Meter
C22: Operators manual | E22: QA Controls
C25: TENNANT COMPANY WARRANTY
C26: 3 YEARS OR 2000 HOURS ON ALL COMPONENTS, 2 YEARS LABOR
C27: 6 MONTHS TRAVEL, 10 YEARS ON DURAMERTM TANKS
F29: Quote Request Information
H30: Fax (quote only)
H31: Mail (quote,lit, specs)
H32: Fax + Mail
F34: Primary Use
H35: Inside
H36: Outside
C39: Description | E39: Referencel# | F39: Price Each | G39: Qty | H39: Extended Pr
G40: *
B41: Base Configuration | G41: =SUM(G42,G46,G52) -> 0
C42: Cleaning Type | G42: =SUM(G43:G44) -> 0
C43: B10 Battery Rider Burnisher 610mm/24" | E43: B10-610 | F43: 31966 | H43: =G43*F43 -> 0 | I43: =IFERROR(IFERROR(VLOOKUP(E43,Surcharge!A:B,2,FALSE)*G43, VLOOKUP(E43 & "",Surcharge!A:B,2,FALSE)*G43), "") -> 0
C44: B10 Battery Rider Burnisher 690mm/27" | E44: B10-690 | F44: 32861 | H44: =G44*F44 -> 0 | I44: =IFERROR(IFERROR(VLOOKUP(E44,Surcharge!A:B,2,FALSE)*G44, VLOOKUP(E44 & "",Surcharge!A:B,2,FALSE)*G44), "") -> 0
I45: =IFERROR(IFERROR(VLOOKUP(E45,Surcharge!A:B,2,FALSE)*G45, VLOOKUP(E45 & "",Surcharge!A:B,2,FALSE)*G45), "") -> 
C46: Battery Type | G46: =SUM(G47:G50) -> 0 | I46: =IFERROR(IFERROR(VLOOKUP(E46,Surcharge!A:B,2,FALSE)*G46, VLOOKUP(E46 & "",Surcharge!A:B,2,FALSE)*G46), "") -> 
C47: Wet 435AH C/20 (Kit of 6 batteries) | E47: 9010885 | F47: N/C | H47: =IF(G47=0," ","N/C") ->  | I47: =IFERROR(IFERROR(VLOOKUP(E47,Surcharge!A:B,2,FALSE)*G47, VLOOKUP(E47 & "",Surcharge!A:B,2,FALSE)*G47), "") -> 
C48: Sealed/MF AGM 390AH C/20 (Kit of 6 batteries) | E48: 9010886 | F48: 1291 | H48: =G48*F48 -> 0 | I48: =IFERROR(IFERROR(VLOOKUP(E48,Surcharge!A:B,2,FALSE)*G48, VLOOKUP(E48 & "",Surcharge!A:B,2,FALSE)*G48), "") -> 
I49: =IFERROR(IFERROR(VLOOKUP(E49,Surcharge!A:B,2,FALSE)*G49, VLOOKUP(E49 & "",Surcharge!A:B,2,FALSE)*G49), "") -> 
C50: Manual Battery Watering Kit (Note 1) | E50: 9009620 | F50: 853 | H50: =G50*F50 -> 0 | I50: =IFERROR(IFERROR(VLOOKUP(E50,Surcharge!A:B,2,FALSE)*G50, VLOOKUP(E50 & "",Surcharge!A:B,2,FALSE)*G50), "") -> 
I51: =IFERROR(IFERROR(VLOOKUP(E51,Surcharge!A:B,2,FALSE)*G51, VLOOKUP(E51 & "",Surcharge!A:B,2,FALSE)*G51), "") -> 
C52: Charger | G52: =SUM(G53:G53) -> 0 | I52: =IFERROR(IFERROR(VLOOKUP(E52,Surcharge!A:B,2,FALSE)*G52, VLOOKUP(E52 & "",Surcharge!A:B,2,FALSE)*G52), "") -> 
C53: 25A 120V AC 50/60Hz 1Ph (on board) | E53: 9010881 | F53: N/C | H53: =IF(G53=0," ","N/C") ->  | I53: =IFERROR(IFERROR(VLOOKUP(E53,Surcharge!A:B,2,FALSE)*G53, VLOOKUP(E53 & "",Surcharge!A:B,2,FALSE)*G53), "") -> 
I54: =IFERROR(IFERROR(VLOOKUP(E54,Surcharge!A:B,2,FALSE)*G54, VLOOKUP(E54 & "",Surcharge!A:B,2,FALSE)*G54), "") -> 
B55: Machine Protection & Safety | E55: Reference Number | G55: =SUM(G56:G56) -> 0 | I55: =IFERROR(IFERROR(VLOOKUP(E55,Surcharge!A:B,2,FALSE)*G55, VLOOKUP(E55 & "",Surcharge!A:B,2,FALSE)*G55), "") -> 
C56: Strobe Light on Tank | E56: 9010878 | F56: 797 | H56: =G56*F56 -> 0 | I56: =IFERROR(IFERROR(VLOOKUP(E56,Surcharge!A:B,2,FALSE)*G56, VLOOKUP(E56 & "",Surcharge!A:B,2,FALSE)*G56), "") -> 
I57: =IFERROR(IFERROR(VLOOKUP(E57,Surcharge!A:B,2,FALSE)*G57, VLOOKUP(E57 & "",Surcharge!A:B,2,FALSE)*G57), "") -> 
B58: Support (note 2) | G58: =SUM(G59:G62) -> 0 | I58: =IFERROR(IFERROR(VLOOKUP(E58,Surcharge!A:B,2,FALSE)*G58, VLOOKUP(E58 & "",Surcharge!A:B,2,FALSE)*G58), "") -> 
C59: B10 Operator Manual (English) | E59: 9010734 | F59: N/C | H59: =IF(G59=0," ","N/C") ->  | I59: =IFERROR(IFERROR(VLOOKUP(E59,Surcharge!A:B,2,FALSE)*G59, VLOOKUP(E59 & "",Surcharge!A:B,2,FALSE)*G59), "") -> 
C60: B10 Operator Manual (French) | E60: 9010732 | F60: N/C | I60: =IFERROR(IFERROR(VLOOKUP(E60,Surcharge!A:B,2,FALSE)*G60, VLOOKUP(E60 & "",Surcharge!A:B,2,FALSE)*G60), "") -> 
I61: =IFERROR(IFERROR(VLOOKUP(E61,Surcharge!A:B,2,FALSE)*G61, VLOOKUP(E61 & "",Surcharge!A:B,2,FALSE)*G61), "") -> 
C62: Packaging (Note 3) | G62: =SUM(G63:G64) -> 0 | I62: =IFERROR(IFERROR(VLOOKUP(E62,Surcharge!A:B,2,FALSE)*G62, VLOOKUP(E62 & "",Surcharge!A:B,2,FALSE)*G62), "") -> 
C63: Pad Wrap | F63: N/C | H63: =IF(G63=0," ","N/C") ->  | I63: =IFERROR(IFERROR(VLOOKUP(E63,Surcharge!A:B,2,FALSE)*G63, VLOOKUP(E63 & "",Surcharge!A:B,2,FALSE)*G63), "") -> 
C64: Skid w/Carton, Non-Stackable | E64: 9010888 | F64: 538 | H64: =G64*F64 -> 0 | I64: =IFERROR(IFERROR(VLOOKUP(E64,Surcharge!A:B,2,FALSE)*G64, VLOOKUP(E64 & "",Surcharge!A:B,2,FALSE)*G64), "") -> 
I65: =IFERROR(IFERROR(VLOOKUP(E65,Surcharge!A:B,2,FALSE)*G65, VLOOKUP(E65 & "",Surcharge!A:B,2,FALSE)*G65), "") -> 
G66: =SUM(#REF!) -> 
F68: =ROUND(SUM(H43:H67), 0) -> 0 | G68: =SUM(F69) -> 0
E69: Machine Subtotal | F69: =ROUND(SUM(H43:H67), 0) -> 0 | G69: =G68 -> 0
B70: Discounts | G70: =SUM(G71) -> 0
G71: =SUM(G72:G73) -> 0
E72: Discount % | G72: =IF(F72 <> "", 1, 0) -> 0 | H72: =IF(G72*(F72*0.01)*F68 < 0, G72*(F72*0.01)*F68, -(G72*(F72*0.01)*F68)) -> 0
E73: Discount $ | G73: =IF(F73 <> "", 1, 0) -> 0 | H73: =IF(G73*F73 < 0, G73*F73, -(G73*F73)) -> 0
E74: Discount Total | F74: =SUM(H72:H73) -> 0 | G74: =SUM(F74) -> 0
F75: =#REF! ->  | G75: =#REF! -> 
G76: =G75 -> 
C77: Prepaid and Add | E77: Freight | G77: =IF(F77 <> "", 1, 0) -> 0 | H77: =G77*F77 -> 0
C78: Subject to all applicable taxes | E78: Tax | G78: 0 | H78: =G78*F78 -> 0
G79: =SUM(G80) -> 0
E80: MACHINE TOTAL* | G80: =SUM(H80) -> 0 | H80: =SUM(H43:H78) -> 0 | M80: This goes to "My Documents"
H81: =SUM(H80) -> 0
B82: Financing
C84: Is customer interested in financing? | D84: Yes
C86: If not, why?
C89: First Western Equipment Finance - Leasing Calculation Option: | E89: Option 1 | G89: Option 2 | J89: =Financing!A38 -> Rates 2025 - Rev. 5/6/2025
E90: Monthly Payment | F90: Cost Per Day | G90: Monthly Payment | H90: Cost Per Day | J90: =Financing!A39 -> “Blank Payment Amounts Indicate The Financing Option Or Purchase Options Selected Are Not
C91: Purchase Option: | E91: FWEF: $1 Buyout Lease | G91: FWEF: Municipal Lease | J91: =Financing!A40 -> Applicable Or The Machine Total Is Below The Minimum Amount For The Selected Vendor”
C92: 24 Months | E92: 0 | F92: 0 | G92: 0 | H92: 0 | J92: =Financing!A41 -> "Quoted monthly payments are estimates only and are based on a certain level of credit rating.
C93: 30 Months | E93: 0 | F93: 0 | G93: 0 | H93: 0 | J93: =Financing!A42 -> Actual monthly payments may be higher depending on your credit rating."
C94: 36 Months | E94: 0 | F94: 0 | G94: 0 | H94: 0 | J94: =Financing!A43 -> “Financing rates do not include Pre-Paid Service”
C95: 48 Months | E95: 0 | F95: 0 | G95: 0 | H95: 0 | J95: =Financing!A44 -> 0
D97: Benefits of Equipment Financing:
D98: • Spreads out investment over time. | F98: • Keep current with latest technology.
D99: • Preserve capital. | F99: • Service and parts bundling available.
D100: • Low monthly payment. | F100: • Pay for labor savings as you go.
C103: Bundled Offerings | E103: Flexclean – Fair Market Value | G103: Flexclean - $1 Buyout
C104: FlexClean: | E104: 36 Month Term | G104: 36 Month Term | J104: No | K104: AB Brushes
C105: Hours included per Month: | E105: Gold | F105: Silver | G105: Gold | H105: Silver | I105: Check
C106: < 30/mo. (Avg. 1hr./day) | K106: =FlexCleanCalc!$A21 -> “FlexClean monthly rates include payment for both machine and service.”
C107: < 60/mo. (Avg. 2hrs./day)
C108: < 90/mo. (Avg. 3hrs./day)
C109: *This value assumes one service contract regardless of the number of UNITS included in the quote
C112: Bundled Offerings | E112: Flexclean – Fair Market Value | G112: Flexclean - $1 Buyout
C113: FlexClean 2: | E113: 48 Month Term | G113: 48 Month Term
C114: Hours included per Month: | E114: Gold | F114: Silver | G114: Gold | H114: Silver
C115: < 30/mo. (Avg. 1hr./day)
C116: < 60/mo. (Avg. 2hrs./day)
C117: < 90/mo. (Avg. 3hrs./day)
C118: *This value assumes one service contract regardless of the number of UNITS included in the quote
C120: Bundled Offerings | E120: Flexclean – Fair Market Value | G120: Flexclean - $1 Buyout
C121: FlexClean 3: | E121: 60 Month Term | G121: 60 Month Term
C122: Hours included per Month: | E122: Gold | F122: Silver | G122: Gold | H122: Silver
C123: < 30/mo. (Avg. 1hr./day)
C124: < 60/mo. (Avg. 2hrs./day)
C125: < 90/mo. (Avg. 3hrs./day)
C126: *This value assumes one service contract regardless of the number of UNITS included in the quote
B128: TennantTrue | D128: 0
C130: Is customer interested in service program? | D130: Yes | E130: *State/County selection required for TennantTrue service options
C132: If not, why?
C134: Term: | D134: 36 | F134: AB Brushes | G134: No
C135: Monthly machine usage (hrs): | D135: < 30/mo. (Avg. 1hr./day)
C137: TennantTrue: | D137: Gold Contract | F137: Silver Contract
C138: Per Visit | F138: 501
C139: Monthly | D139: 148 | F139: 88
C140: Annually | F140: 1035
C141: Pre-Pay Full Term | D141: 5119 | F141: 3042
C142: Hourly Labor Rate
C143: Site Visit
C145: * Verify customer current pricing prior to quote.
C146: **All rates and fees above reflect service for one (1) unit with the exception of Block of Time service.
C147: *Block of Time is available in 1 Year Term only and is priced as such no matter the term selection on this template.
C151: Quote Special Instructions:
C154: =Start_Here!E36 -> Terms and Conditions
C155: =Start_Here!E37 -> Ask your local sales rep for estimated lead times. Verify when placing order
C156: =Start_Here!E38 -> All orders subject to acceptance by Tennant Sales and Service Company, Minneapolis, Minnesota
C157: =Start_Here!E39 -> Prices subject to change without notice.
C158: =Start_Here!E40 -> Terms: Net 30 days. Subject to any applicable taxes.
C159: =Start_Here!E41 -> Freight: Machines and accessory orders delivered FOB shipping point Frt PPD & Add
C160: =Start_Here!E42 -> Parts, supplies, detergents and floor treating material orders delivered FOB
C161: =Start_Here!E43 -> shipping point Frt PPD
C162: =Start_Here!E44 -> All orders are subject to Tennant’s General Terms and Conditions available at http://www.tennantco.com/terms.
C163: =Start_Here!E45 -> Printed General Terms and Conditions are also available upon request.
C164: =Start_Here!E46 -> 0
F166: Quote Date : | H166: =Letter!$A$25 -> 2020-09-22
B167: Order Placement Information: To place your order, fill in PO# and customer signatures,
B168: call or fax to the numbers listed below. Customer Purchase Order is required.
B169: If information is missing, orders will be entered and held until all information is received.
C170: Customer Number | E170: Cust Grp 3
C171: =Start_Here!$C$25 -> 0 | E171: =Start_Here!$C$29 -> 0
C172: =Start_Here!$B$18 -> Who Owns the Machine? (Sold-To Info) (Please Verify)
A173: Company | C173: =Start_Here!$C$19 -> Company Name
A174: Address | C174: =Start_Here!$C$20 -> Address
C175: =Start_Here!$C$21 -> City, State Zip
A176: Name | C176: =Start_Here!$C$22 -> Contact Name
A177: Phone | C177: =Start_Here!$C$23 -> Contact Phone
C178: =Start_Here!$B$11 -> Where is the Machine Being Shipped? (Ship-To Info) (Please Verify)
A179: Company | C179: =Start_Here!$C$12 -> Company Name
A180: Address | C180: =Start_Here!$C$13 -> Address
C181: =Start_Here!$C$14 -> City, State Zip
A182: Name | C182: =Start_Here!$C$15 -> Contact Name
A183: Phone | C183: =Start_Here!$C$16 -> Contact Phone
C184: =Start_Here!$B$31 -> Shipping / Carrier Instructions: | E184: Order Special Instructions:
C185: =Start_Here!$C$32 -> 0
C187: Customer Purchase Order No.
C188: (please attach copy)
C191: Tax Exempt | E191: Yes
E192: No
C193: If Yes, attach a copy of your exemption certificate.
C195: Requested Delivery Date
C196: =Start_Here!$C$28 -> 0
C198: =Start_Here!$C$26 -> 0 | E198: =Start_Here!$C$27 -> 0
B199: 0 | C199: Authorized Buyer (please print) | E199: Phone Number
B202: 0 | C202: Authorized Buyer Signature
C204: =Start_Here!$C$41 -> Rep Name
C205: Tennant Representative
A208: Specialized Maintenance Equipment
A209: =Start_Here!$C$47 -> 0
A210: =Start_Here!$C$48 -> TENNANT · 10400 Clean Street · Eden Prairie, MN 55344 ·
B212: Notes
B213: 1 | C213: Factory installed pricing. Only available on wet batteries, not sealed.
B215: 2 | C215: Operator and Parts manuals can be ordered free of charge on Tennantco.com and service manuals on My Account.
B217: 3 | C217: Pad wrap available only in the Continental US and is the default packaging method.
C218: Customer MUST order Skid w/Carton, Non-Stackable or Skid w/Stretch Wrap if WITHOUT BATTERY is selected.
C219: Skid w/Carton, Non-Stackable is mandatory when shipping to AK and HI. Packaging is added at No Charge when shipping
C220: to these locations.
B222: 4 | C222: Shipping Weights and Dimensions | D222: Pad Wrap | E222: Skid w/ Carton
C224: 24" / 610mm Cleaning Path
C225: Weight (w/ 435AH Battery) | D225: 1,339 lbs / 608 Kg | E225: 1,346 lbs / 610 Kg
C226: Length | D226: 58.5" / 1,485mm | E226: 85" / 2,159mm
C227: Width | D227: 30" / 762mm | E227: 46" / 1,169mm
C228: Height | D228: 55" / 1,397mm | E228: 63" / 1,600mm
C230: 27" / 690mm Cleaning Path
C231: Weight (w/ 435AH Battery) | D231: 1,343 lbs / 610 Kg | E231: 1,350 lbs / 612 Kg
C232: Length | D232: 58.5" / 1,485mm | E232: 85" / 2,159mm
C233: Width | D233: 31.5" / 800mm | E233: 46" / 1,169mm
C234: Height | D234: 55" / 1,397mm | E234: 63" / 1,600mm

Sheet B7
A1: B7 | C1: =Start_Here!$C19 -> Company Name
A2: =SUM(H100) -> 0 | C2: =Start_Here!$C20 -> Address
C3: =Start_Here!$C21 -> City, State Zip
C4: =Start_Here!$C22 -> Contact Name
C5: =Start_Here!$C$41 -> Rep Name
C6: =Start_Here!$C$37 -> Tennant Sales and Service Company
C7: =Start_Here!$C$38 -> 10400 Clean Street
C8: =Start_Here!$C$39 -> Eden Prairie, MN 55344
C9: =Start_Here!$C$43 -> 800-553-8033 | F9: Quote Date : | H9: =Letter!$A$25 -> 2020-09-22
C11: =Help!C2 -> US Date Rev - 5/6/2025
C12: BUILT-IN “TENNANT VALUE” INCLUDES:
C14: 610mm/690mm or 24"/27" Burnishing Path | E14: On Board Charger
C15: Transaxel drive | E15: 3m/15 ft power cord
C16: Active Dust Control | E16: Battery Tray
C17: HEPA Filtration - 99.97 @ .3 microns | E17: Variable Bail
C18: Tooless Felt Dust skirt | E18: On-Board Trouble Shooting Guide
C19: Pad RPM - 1850 | E19: ETL Listed for the US and Canada
C20: Automated Down Pressure - Variable | E20: 64 dBa
C21: True Free Floating Head | E21: Emergency Stop
C22: Rugged DuramerTM Tank Construction | E22: Key Switch
C23: Two-Way Gas Assist Shock for Tank Open/Close | E23: Hour Meter
C24: Anti-Static Straps | E24: Operators manual
C25: Clamshell Tank Design | E25: Jacking Points/Shipping Tie Downs
C26: Unit shipped with 1 burnishing pad, paper bag and HEPA filter
C28: TENNANT COMPANY WARRANTY
C29: 3 YEARS OR 2000 HOURS - PARTS
C30: 1 YEAR - BATTERY CHARGERS
C31: 2 YEARS - LABOR
C32: 6 MONTHS - TRAVEL
C33: 10 YEARS ON DURAMERTM TANKS
F35: Quote Request Information
H36: Fax (quote only)
H37: Mail (quote,lit, specs)
H38: Fax + Mail
F40: Primary Use
H41: Inside
H42: Outside
C45: Description | E45: Reference # | F45: Price Each | G45: Qty | H45: Extended Pr
B46: Pre-Configured Machines | G46: =SUM(G47:G48) -> 0
C47: 690mm / 27", Self Propel, 330AH Battery, On-Board Charger, Automated Down Pressure, Active Dust Control System w/ Paper Filter Bag, HEPA Filter, Pad Wrap | E47: MV-B7-0008 | F47: 17899 | H47: =G47*F47 -> 0 | I47: =IFERROR(IFERROR(VLOOKUP(E47,Surcharge!A:B,2,FALSE)*G47, VLOOKUP(E47 & "",Surcharge!A:B,2,FALSE)*G47), "") -> 0
C48: 690mm / 27", Self Propel, 330AH Battery, On-Board Charger, Mechanical Down Pressure, Passive Dust Control System w/ Paper Filter Bag, Pad Wrap | E48: MV-B7-0009 | F48: 17015 | H48: 0 | I48: =IFERROR(IFERROR(VLOOKUP(E48,Surcharge!A:B,2,FALSE)*G48, VLOOKUP(E48 & "",Surcharge!A:B,2,FALSE)*G48), "") -> 0
G49: =SUM(G47:G48) -> 0 | I49: =IFERROR(IFERROR(VLOOKUP(E49,Surcharge!A:B,2,FALSE)*G49, VLOOKUP(E49 & "",Surcharge!A:B,2,FALSE)*G49), "") -> 
C50: Above unit(s) include an English Operator Manual. No additional options can be added or changed, including packaging/shipping. | G50: =SUM(G49) -> 0 | I50: =IFERROR(IFERROR(VLOOKUP(E50,Surcharge!A:B,2,FALSE)*G50, VLOOKUP(E50 & "",Surcharge!A:B,2,FALSE)*G50), "") -> 
G51: =SUM(G50) -> 0 | I51: =IFERROR(IFERROR(VLOOKUP(E51,Surcharge!A:B,2,FALSE)*G51, VLOOKUP(E51 & "",Surcharge!A:B,2,FALSE)*G51), "") -> 
C52: All units listed above will ship Pad Wrap via Logix Transportation. These units cannot ship to AK or HI. | G52: 0 | I52: =IFERROR(IFERROR(VLOOKUP(E52,Surcharge!A:B,2,FALSE)*G52, VLOOKUP(E52 & "",Surcharge!A:B,2,FALSE)*G52), "") -> 
G53: =SUM(G52) -> 0 | I53: =IFERROR(IFERROR(VLOOKUP(E53,Surcharge!A:B,2,FALSE)*G53, VLOOKUP(E53 & "",Surcharge!A:B,2,FALSE)*G53), "") -> 
B54: Base Configuration | E54: Reference Number | G54: =SUM(G55,G59,G63,G66,G69) -> 0 | I54: =IFERROR(IFERROR(VLOOKUP(E54,Surcharge!A:B,2,FALSE)*G54, VLOOKUP(E54 & "",Surcharge!A:B,2,FALSE)*G54), "") -> 
C55: Cleaning Type | G55: =SUM(G56:G57) -> 0 | I55: =IFERROR(IFERROR(VLOOKUP(E55,Surcharge!A:B,2,FALSE)*G55, VLOOKUP(E55 & "",Surcharge!A:B,2,FALSE)*G55), "") -> 
C56: B7 Battery Walk-Behind Burnisher 610mm/24" | E56: B7-610 | F56: 15467 | H56: =G56*F56 -> 0 | I56: =IFERROR(IFERROR(VLOOKUP(E56,Surcharge!A:B,2,FALSE)*G56, VLOOKUP(E56 & "",Surcharge!A:B,2,FALSE)*G56), "") -> 
C57: B7 Battery Walk-Behind Burnisher 690mm/27" | E57: B7-690 | F57: 16989 | H57: =G57*F57 -> 0 | I57: =IFERROR(IFERROR(VLOOKUP(E57,Surcharge!A:B,2,FALSE)*G57, VLOOKUP(E57 & "",Surcharge!A:B,2,FALSE)*G57), "") -> 
I58: =IFERROR(IFERROR(VLOOKUP(E58,Surcharge!A:B,2,FALSE)*G58, VLOOKUP(E58 & "",Surcharge!A:B,2,FALSE)*G58), "") -> 
C59: Battery Type | G59: =SUM(G60:G61) -> 0 | I59: =IFERROR(IFERROR(VLOOKUP(E59,Surcharge!A:B,2,FALSE)*G59, VLOOKUP(E59 & "",Surcharge!A:B,2,FALSE)*G59), "") -> 
C60: Wet 330AH C/20 (Kit of 6 batteries) | E60: 9012674 | F60: 910 | H60: =G60*F60 -> 0 | I60: =IFERROR(IFERROR(VLOOKUP(E60,Surcharge!A:B,2,FALSE)*G60, VLOOKUP(E60 & "",Surcharge!A:B,2,FALSE)*G60), "") -> 
C61: Sealed/MF AGM 312AH C/20 (Kit of 6 batteries) | E61: 9012676 | F61: 3640 | H61: =G61*F61 -> 0 | I61: =IFERROR(IFERROR(VLOOKUP(E61,Surcharge!A:B,2,FALSE)*G61, VLOOKUP(E61 & "",Surcharge!A:B,2,FALSE)*G61), "") -> 
I62: =IFERROR(IFERROR(VLOOKUP(E62,Surcharge!A:B,2,FALSE)*G62, VLOOKUP(E62 & "",Surcharge!A:B,2,FALSE)*G62), "") -> 
C63: Battery Watering System | G63: =SUM(G64) -> 0 | I63: =IFERROR(IFERROR(VLOOKUP(E63,Surcharge!A:B,2,FALSE)*G63, VLOOKUP(E63 & "",Surcharge!A:B,2,FALSE)*G63), "") -> 
C64: Manual Battery Watering Kit (Note 1) | E64: 9009620 | F64: 853 | H64: =G64*F64 -> 0 | I64: =IFERROR(IFERROR(VLOOKUP(E64,Surcharge!A:B,2,FALSE)*G64, VLOOKUP(E64 & "",Surcharge!A:B,2,FALSE)*G64), "") -> 
I65: =IFERROR(IFERROR(VLOOKUP(E65,Surcharge!A:B,2,FALSE)*G65, VLOOKUP(E65 & "",Surcharge!A:B,2,FALSE)*G65), "") -> 
C66: Charger | G66: =SUM(G67:G67) -> 0 | I66: =IFERROR(IFERROR(VLOOKUP(E66,Surcharge!A:B,2,FALSE)*G66, VLOOKUP(E66 & "",Surcharge!A:B,2,FALSE)*G66), "") -> 
C67: 25A 85-265V AC 50/60Hz 1Ph (on board) | E67: 9012668 | F67: N/C | H67: =IF(G67=0," ","N/C") ->  | I67: =IFERROR(IFERROR(VLOOKUP(E67,Surcharge!A:B,2,FALSE)*G67, VLOOKUP(E67 & "",Surcharge!A:B,2,FALSE)*G67), "") -> 
I68: =IFERROR(IFERROR(VLOOKUP(E68,Surcharge!A:B,2,FALSE)*G68, VLOOKUP(E68 & "",Surcharge!A:B,2,FALSE)*G68), "") -> 
C69: Down Pressure | G69: =SUM(G70:G71) -> 0 | I69: =IFERROR(IFERROR(VLOOKUP(E69,Surcharge!A:B,2,FALSE)*G69, VLOOKUP(E69 & "",Surcharge!A:B,2,FALSE)*G69), "") -> 
C70: Automated Down Pressure | E70: 9012641 | F70: N/C | H70: =IF(G70=0," ","N/C") ->  | I70: =IFERROR(IFERROR(VLOOKUP(E70,Surcharge!A:B,2,FALSE)*G70, VLOOKUP(E70 & "",Surcharge!A:B,2,FALSE)*G70), "") -> 
C71: Mechanical Set and Forget TM Down Pressure | E71: 9012640 | F71: -470 | H71: =G71*F71 -> 0 | I71: =IFERROR(IFERROR(VLOOKUP(E71,Surcharge!A:B,2,FALSE)*G71, VLOOKUP(E71 & "",Surcharge!A:B,2,FALSE)*G71), "") -> 
I72: =IFERROR(IFERROR(VLOOKUP(E72,Surcharge!A:B,2,FALSE)*G72, VLOOKUP(E72 & "",Surcharge!A:B,2,FALSE)*G72), "") -> 
B73: Cleaning Performance | E73: Reference Number | G73: =SUM(G74:G76) -> 0 | I73: =IFERROR(IFERROR(VLOOKUP(E73,Surcharge!A:B,2,FALSE)*G73, VLOOKUP(E73 & "",Surcharge!A:B,2,FALSE)*G73), "") -> 
C74: Dust Control, Active - HEPA Filtration to 99.97% @ .3 microns | E74: 9012651 | F74: N/C | H74: =IF(G74=0," ","N/C") ->  | I74: =IFERROR(IFERROR(VLOOKUP(E74,Surcharge!A:B,2,FALSE)*G74, VLOOKUP(E74 & "",Surcharge!A:B,2,FALSE)*G74), "") -> 
C75: Dust Control, Passive - 95% @ .3 microns | E75: PASSIVE | F75: -414 | H75: =G75*F75 -> 0 | I75: =IFERROR(IFERROR(VLOOKUP(E75,Surcharge!A:B,2,FALSE)*G75, VLOOKUP(E75 & "",Surcharge!A:B,2,FALSE)*G75), "") -> 
C76: Dust Control Filter, Paper Filter Bag | E76: 1210869 | F76: N/C | H76: =IF(G76=0," ","N/C") ->  | I76: =IFERROR(IFERROR(VLOOKUP(E76,Surcharge!A:B,2,FALSE)*G76, VLOOKUP(E76 & "",Surcharge!A:B,2,FALSE)*G76), "") -> 
I77: =IFERROR(IFERROR(VLOOKUP(E77,Surcharge!A:B,2,FALSE)*G77, VLOOKUP(E77 & "",Surcharge!A:B,2,FALSE)*G77), "") -> 
B78: Support (Note 2) | E78: Reference Number | G78: =SUM(G79:G82) -> 0 | I78: =IFERROR(IFERROR(VLOOKUP(E78,Surcharge!A:B,2,FALSE)*G78, VLOOKUP(E78 & "",Surcharge!A:B,2,FALSE)*G78), "") -> 
C79: B7 Operator Manual - English | E79: 9011840 | F79: N/C | H79: =IF(G79=0," ","N/C") ->  | I79: =IFERROR(IFERROR(VLOOKUP(E79,Surcharge!A:B,2,FALSE)*G79, VLOOKUP(E79 & "",Surcharge!A:B,2,FALSE)*G79), "") -> 
C80: B7 Operator Manual - French | E80: 9011486 | F80: N/C | I80: =IFERROR(IFERROR(VLOOKUP(E80,Surcharge!A:B,2,FALSE)*G80, VLOOKUP(E80 & "",Surcharge!A:B,2,FALSE)*G80), "") -> 
I81: =IFERROR(IFERROR(VLOOKUP(E81,Surcharge!A:B,2,FALSE)*G81, VLOOKUP(E81 & "",Surcharge!A:B,2,FALSE)*G81), "") -> 
C82: Packaging (Note 3) | G82: =SUM(G83:G84) -> 0 | I82: =IFERROR(IFERROR(VLOOKUP(E82,Surcharge!A:B,2,FALSE)*G82, VLOOKUP(E82 & "",Surcharge!A:B,2,FALSE)*G82), "") -> 
C83: Pad Wrap | E83: 44961 | F83: N/C | H83: =IF(G83=0," ","N/C") ->  | I83: =IFERROR(IFERROR(VLOOKUP(E83,Surcharge!A:B,2,FALSE)*G83, VLOOKUP(E83 & "",Surcharge!A:B,2,FALSE)*G83), "") -> 
C84: Skid w/Carton, Stackable | E84: 9012681 | F84: 381 | H84: =G84*F84 -> 0 | I84: =IFERROR(IFERROR(VLOOKUP(E84,Surcharge!A:B,2,FALSE)*G84, VLOOKUP(E84 & "",Surcharge!A:B,2,FALSE)*G84), "") -> 
I85: =IFERROR(IFERROR(VLOOKUP(E85,Surcharge!A:B,2,FALSE)*G85, VLOOKUP(E85 & "",Surcharge!A:B,2,FALSE)*G85), "") -> 
G86: =SUM(#REF!) -> 
F88: =ROUND(SUM(H47:H87), 0) -> 0 | G88: =SUM(F89) -> 0
E89: Machine Subtotal | F89: =ROUND(SUM(H47:H87), 0) -> 0 | G89: =G88 -> 0
B90: Discounts | G90: =SUM(G91) -> 0
G91: =SUM(G92:G93) -> 0
E92: Discount % | G92: =IF(F92 <> "", 1, 0) -> 0 | H92: =IF(G92*(F92*0.01)*F88 < 0, G92*(F92*0.01)*F88, -(G92*(F92*0.01)*F88)) -> 0
E93: Discount $ | G93: =IF(F93 <> "", 1, 0) -> 0 | H93: =IF(G93*F93 < 0, G93*F93, -(G93*F93)) -> 0
E94: Discount Total | F94: =SUM(H92:H93) -> 0 | G94: =SUM(F94) -> 0
F95: =#REF! ->  | G95: =#REF! -> 
G96: =G95 -> 
C97: Prepaid and Add | E97: Freight | G97: =IF(F97 <> "", 1, 0) -> 0 | H97: =G97*F97 -> 0
C98: Subject to all applicable taxes | E98: Tax | G98: 0 | H98: =G98*F98 -> 0
G99: =SUM(G100) -> 0
E100: MACHINE TOTAL* | G100: =SUM(H100) -> 0 | H100: =SUM(H47:H98) -> 0 | L100: This goes to "My Documents"
H101: =SUM(H100) -> 0
B102: Financing
C104: Is customer interested in financing? | D104: Yes
C106: If not, why?
C109: First Western Equipment Finance - Leasing Calculation Option: | E109: Option 1 | G109: Option 2 | J109: =Financing!A38 -> Rates 2025 - Rev. 5/6/2025
E110: Monthly Payment | F110: Cost Per Day | G110: Monthly Payment | H110: Cost Per Day | J110: =Financing!A39 -> “Blank Payment Amounts Indicate The Financing Option Or Purchase Options Selected Are Not
C111: Purchase Option: | E111: FWEF: $1 Buyout Lease | G111: FWEF: Municipal Lease | J111: =Financing!A40 -> Applicable Or The Machine Total Is Below The Minimum Amount For The Selected Vendor”
C112: 24 Months | E112: 0 | F112: 0 | G112: 0 | H112: 0 | J112: =Financing!A41 -> "Quoted monthly payments are estimates only and are based on a certain level of credit rating.
C113: 30 Months | E113: 0 | F113: 0 | G113: 0 | H113: 0 | J113: =Financing!A42 -> Actual monthly payments may be higher depending on your credit rating."
C114: 36 Months | E114: 0 | F114: 0 | G114: 0 | H114: 0 | J114: =Financing!A43 -> “Financing rates do not include Pre-Paid Service”
C115: 48 Months | E115: 0 | F115: 0 | G115: 0 | H115: 0 | J115: =Financing!A44 -> 0
D117: Benefits of Equipment Financing:
D118: • Spreads out investment over time. | F118: • Keep current with latest technology.
D119: • Preserve capital. | F119: • Service and parts bundling available.
D120: • Low monthly payment. | F120: • Pay for labor savings as you go.
C123: Bundled Offerings | E123: Flexclean – Fair Market Value | G123: Flexclean - $1 Buyout
C124: FlexClean: | E124: 36 Month Term | G124: 36 Month Term | J124: No | K124: AB Brushes
C125: Hours included per Month: | E125: Gold | F125: Silver | G125: Gold | H125: Silver | I125: Check
C126: < 30/mo. (Avg. 1hr./day) | K126: =FlexCleanCalc!$A21 -> “FlexClean monthly rates include payment for both machine and service.”
C127: < 60/mo. (Avg. 2hrs./day)
C128: < 90/mo. (Avg. 3hrs./day)
C129: *This value assumes one service contract regardless of the number of UNITS included in the quote
C132: Bundled Offerings | E132: Flexclean – Fair Market Value | G132: Flexclean - $1 Buyout
C133: FlexClean 2: | E133: 48 Month Term | G133: 48 Month Term
C134: Hours included per Month: | E134: Gold | F134: Silver | G134: Gold | H134: Silver
C135: < 30/mo. (Avg. 1hr./day)
C136: < 60/mo. (Avg. 2hrs./day)
C137: < 90/mo. (Avg. 3hrs./day)
C138: *This value assumes one service contract regardless of the number of UNITS included in the quote
C140: Bundled Offerings | E140: Flexclean – Fair Market Value | G140: Flexclean - $1 Buyout
C141: FlexClean 3: | E141: 60 Month Term | G141: 60 Month Term
C142: Hours included per Month: | E142: Gold | F142: Silver | G142: Gold | H142: Silver
C143: < 30/mo. (Avg. 1hr./day)
C144: < 60/mo. (Avg. 2hrs./day)
C145: < 90/mo. (Avg. 3hrs./day)
C146: *This value assumes one service contract regardless of the number of UNITS included in the quote
B148: TennantTrue | D148: 0
C150: Is customer interested in service program? | D150: Yes | E150: *State/County selection required for TennantTrue service options
C152: If not, why?
C154: Term: | D154: 36 | F154: AB Brushes | G154: No
C155: Monthly machine usage (hrs): | D155: < 30/mo. (Avg. 1hr./day)
C157: TennantTrue: | D157: Gold Contract | F157: Silver Contract
C158: Per Visit | F158: 336
C159: Monthly | D159: 112 | F159: 56
C160: Annually | F160: 659
C161: Pre-Pay Full Term | D161: 3882 | F161: 1936
C162: Hourly Labor Rate
C163: Site Visit
C165: * Verify customer current pricing prior to quote.
C166: **All rates and fees above reflect service for one (1) unit with the exception of Block of Time service.
C167: *Block of Time is available in 1 Year Term only and is priced as such no matter the term selection on this template.
C171: Quote Special Instructions:
C174: =Start_Here!E36 -> Terms and Conditions
C175: =Start_Here!E37 -> Ask your local sales rep for estimated lead times. Verify when placing order
C176: =Start_Here!E38 -> All orders subject to acceptance by Tennant Sales and Service Company, Minneapolis, Minnesota
C177: =Start_Here!E39 -> Prices subject to change without notice.
C178: =Start_Here!E40 -> Terms: Net 30 days. Subject to any applicable taxes.
C179: =Start_Here!E41 -> Freight: Machines and accessory orders delivered FOB shipping point Frt PPD & Add
C180: =Start_Here!E42 -> Parts, supplies, detergents and floor treating material orders delivered FOB
C181: =Start_Here!E43 -> shipping point Frt PPD
C182: =Start_Here!E44 -> All orders are subject to Tennant’s General Terms and Conditions available at http://www.tennantco.com/terms.
C183: =Start_Here!E45 -> Printed General Terms and Conditions are also available upon request.
C184: =Start_Here!E46 -> 0
F186: Quote Date : | H186: =Letter!$A$25 -> 2020-09-22
B187: Order Placement Information: To place your order, fill in PO# and customer signatures,
B188: call or fax to the numbers listed below. Customer Purchase Order is required.
B189: If information is missing, orders will be entered and held until all information is received.
C190: Customer Number | E190: Cust Grp 3
C191: =Start_Here!$C$25 -> 0 | E191: =Start_Here!$C$29 -> 0
C192: =Start_Here!$B$18 -> Who Owns the Machine? (Sold-To Info) (Please Verify)
A193: Company | C193: =Start_Here!$C$19 -> Company Name
A194: Address | C194: =Start_Here!$C$20 -> Address
C195: =Start_Here!$C$21 -> City, State Zip
A196: Name | C196: =Start_Here!$C$22 -> Contact Name
A197: Phone | C197: =Start_Here!$C$23 -> Contact Phone
C198: =Start_Here!$B$11 -> Where is the Machine Being Shipped? (Ship-To Info) (Please Verify)
A199: Company | C199: =Start_Here!$C$12 -> Company Name
A200: Address | C200: =Start_Here!$C$13 -> Address
C201: =Start_Here!$C$14 -> City, State Zip
A202: Name | C202: =Start_Here!$C$15 -> Contact Name
A203: Phone | C203: =Start_Here!$C$16 -> Contact Phone
C204: =Start_Here!$B$31 -> Shipping / Carrier Instructions: | E204: Order Special Instructions:
C205: =Start_Here!$C$32 -> 0
C207: Customer Purchase Order No.
C208: (please attach copy)
C211: Tax Exempt | E211: Yes
E212: No
C213: If Yes, attach a copy of your exemption certificate.
C215: Requested Delivery Date
C216: =Start_Here!$C$28 -> 0
C218: =Start_Here!$C$26 -> 0 | E218: =Start_Here!$C$27 -> 0
B219: 0 | C219: Authorized Buyer (please print) | E219: Phone Number
B222: 0 | C222: Authorized Buyer Signature
C224: =Start_Here!$C$41 -> Rep Name
C225: Tennant Representative
A228: Specialized Maintenance Equipment
A229: =Start_Here!$C$47 -> 0
A230: =Start_Here!$C$48 -> TENNANT · 10400 Clean Street · Eden Prairie, MN 55344 ·
B232: Notes
B233: 1 | C233: Factory installed pricing. Only available on wet batteries, not sealed.
B235: 2 | C235: Additional hard copy Operator and Parts Manuals can be ordered or digital copies can be downloaded from www.Tennantco.com.
C236: Additional service manuals can be ordered free of charge on My Account
B238: 7 | C238: Pad wrap available only in the Continental US and is the default packaging method.
C239: Skid w/Carton, Non-Stackable is mandatory when shipping to AK and HI. Packaging is added at No Charge when shipping
C240: to these locations.
B242: 8 | C242: Machine Weights and Dimensions | D242: Pad Wrap | E242: Skid w/Carton
C243: B7-610
C244: Weight | D244: 776lbs / 353 Kg | E244: 872 lbs / 396 Kg
... 8 more rows

Sheet B5
A1: B5 | C1: =Start_Here!$C19 -> Company Name
A2: =SUM(H104) -> 0 | C2: =Start_Here!$C20 -> Address
C3: =Start_Here!$C21 -> City, State Zip
C4: =Start_Here!$C22 -> Contact Name
C5: =Start_Here!$C$41 -> Rep Name
C6: =Start_Here!$C$37 -> Tennant Sales and Service Company
C7: =Start_Here!$C$38 -> 10400 Clean Street
C8: =Start_Here!$C$39 -> Eden Prairie, MN 55344
C9: =Start_Here!$C$43 -> 800-553-8033 | F9: Quote Date : | H9: =Letter!$A$25 -> 2020-09-22
C11: =Help!C2 -> US Date Rev - 5/6/2025
C12: BUILT-IN “TENNANT VALUE” INCLUDES:
C14: 510mm/20" Burnishing Path | E14: On Board Charger
C15: Push or Self Propel drive Available | E15: 3m/15 ft power cord
C16: Active Dust Control | E16: Standard (3) 12V 185 AH Battery Pack for Pad/Brush Assist
C17: HEPA Filtration - 99.97 @ .3 microns | E17: Standard (3) 12V 225 AH Battery Pack for Self Propel Drive Unit
C18: Tooless Felt Dust skirt | E18: Battery Tray
C19: Pad RPM - 2100 | E19: Variable Bail
C20: Automated Down Pressure - Variable (Self Propel unit only) | E20: On-Board Trouble Shooting Guide
C21: True Free Floating Head | E21: ETL Listed for the US and Canada
C22: Rugged DuramerTM Tank Construction | E22: 64 dBa
C23: Two-Way Gas Assist Shock for Tank Open/Close | E23: Emergency Stop
C24: Anti-Static Straps | E24: Key Switch
C25: Clamshell Tank Design | E25: Hour Meter
C26: Unit shipped with 1 burnishing pad, paper bag and HEPA filter | E26: Operators manual
E27: Jacking Points/Shipping Tie Downs
C29: TENNANT COMPANY WARRANTY
C30: 3 YEARS OR 2000 HOURS - PARTS
C31: 1 YEAR - BATTERY CHARGERS
C32: 2 YEARS - LABOR
C33: 6 MONTHS - TRAVEL
C34: 10 YEARS ON DURAMERTM TANKS
F36: Quote Request Information
H37: Fax (quote only)
H38: Mail (quote,lit, specs)
H39: Fax + Mail
F41: Primary Use
H42: Inside
H43: Outside
C46: Description | E46: Referencel# | F46: Price Each | G46: Qty | H46: Extended Pr
B47: Pre-Configured Machines | G47: =SUM(G48:G49) -> 0
C48: 510mm / 20", Self Propel, 225AH Battery, On-Board Charger, Automated Down Pressure, Active Dust Control System w/ Paper Filter Bag, HEPA Filte, Pad Wrap | E48: MV-B5-0010 | F48: 15430 | H48: =G48*F48 -> 0 | I48: =IFERROR(IFERROR(VLOOKUP(E48,Surcharge!A:B,2,FALSE)*G48, VLOOKUP(E48 & "",Surcharge!A:B,2,FALSE)*G48), "") -> 0
C49: 510mm / 20", Pad Assist, 185AH Battery, On-Board Charger, Mechanical Down Pressure, Passive Dust Control System w/ Paper Filter Bag, Pad Wrap | E49: MV-B5-0011 | F49: 10863 | H49: 0 | I49: =IFERROR(IFERROR(VLOOKUP(E49,Surcharge!A:B,2,FALSE)*G49, VLOOKUP(E49 & "",Surcharge!A:B,2,FALSE)*G49), "") -> 0
G50: =SUM(G48:G49) -> 0 | I50: =IFERROR(IFERROR(VLOOKUP(E50,Surcharge!A:B,2,FALSE)*G50, VLOOKUP(E50 & "",Surcharge!A:B,2,FALSE)*G50), "") -> 
C51: Above unit(s) include an English Operator Manual. No additional options can be added or changed, including packaging/shipping. | G51: =SUM(G50) -> 0 | I51: =IFERROR(IFERROR(VLOOKUP(E51,Surcharge!A:B,2,FALSE)*G51, VLOOKUP(E51 & "",Surcharge!A:B,2,FALSE)*G51), "") -> 
G52: =SUM(G51) -> 0 | I52: =IFERROR(IFERROR(VLOOKUP(E52,Surcharge!A:B,2,FALSE)*G52, VLOOKUP(E52 & "",Surcharge!A:B,2,FALSE)*G52), "") -> 
C53: All units listed above will ship Pad Wrap via Logix Transportation. These units cannot ship to AK or HI. | G53: =SUM(G52) -> 0 | I53: =IFERROR(IFERROR(VLOOKUP(E53,Surcharge!A:B,2,FALSE)*G53, VLOOKUP(E53 & "",Surcharge!A:B,2,FALSE)*G53), "") -> 
G54: =SUM(G53) -> 0 | I54: =IFERROR(IFERROR(VLOOKUP(E54,Surcharge!A:B,2,FALSE)*G54, VLOOKUP(E54 & "",Surcharge!A:B,2,FALSE)*G54), "") -> 
B55: Base Configuration | G55: =SUM(G56,G59,G63,G70,G73) -> 0 | I55: =IFERROR(IFERROR(VLOOKUP(E55,Surcharge!A:B,2,FALSE)*G55, VLOOKUP(E55 & "",Surcharge!A:B,2,FALSE)*G55), "") -> 
C56: Cleaning Type | G56: =SUM(G57) -> 0 | I56: =IFERROR(IFERROR(VLOOKUP(E56,Surcharge!A:B,2,FALSE)*G56, VLOOKUP(E56 & "",Surcharge!A:B,2,FALSE)*G56), "") -> 
C57: B5 Walk-Behind Battery Burnisher 510 mm/20" | E57: B5-510 | F57: 11747 | H57: =G57*F57 -> 0 | I57: =IFERROR(IFERROR(VLOOKUP(E57,Surcharge!A:B,2,FALSE)*G57, VLOOKUP(E57 & "",Surcharge!A:B,2,FALSE)*G57), "") -> 
I58: =IFERROR(IFERROR(VLOOKUP(E58,Surcharge!A:B,2,FALSE)*G58, VLOOKUP(E58 & "",Surcharge!A:B,2,FALSE)*G58), "") -> 
C59: Drive Type (Note 1) | G59: =SUM(G60:G61) -> 0 | I59: =IFERROR(IFERROR(VLOOKUP(E59,Surcharge!A:B,2,FALSE)*G59, VLOOKUP(E59 & "",Surcharge!A:B,2,FALSE)*G59), "") -> 
C60: Pad Assist | E60: Pad-B5 | F60: N/C | H60: =IF(G60=0," ","N/C") ->  | I60: =IFERROR(IFERROR(VLOOKUP(E60,Surcharge!A:B,2,FALSE)*G60, VLOOKUP(E60 & "",Surcharge!A:B,2,FALSE)*G60), "") -> 
C61: Self Propel | E61: Self-B5 | F61: 3240 | H61: =G61*F61 -> 0 | I61: =IFERROR(IFERROR(VLOOKUP(E61,Surcharge!A:B,2,FALSE)*G61, VLOOKUP(E61 & "",Surcharge!A:B,2,FALSE)*G61), "") -> 
I62: =IFERROR(IFERROR(VLOOKUP(E62,Surcharge!A:B,2,FALSE)*G62, VLOOKUP(E62 & "",Surcharge!A:B,2,FALSE)*G62), "") -> 
C63: Battery Type | G63: =SUM(G64:G68) -> 0 | I63: =IFERROR(IFERROR(VLOOKUP(E63,Surcharge!A:B,2,FALSE)*G63, VLOOKUP(E63 & "",Surcharge!A:B,2,FALSE)*G63), "") -> 
C64: Wet 185AH C/20 (Kit of 3 batteries) | E64: 9012670 | F64: N/C | H64: =IF(G64=0," ","N/C") ->  | I64: =IFERROR(IFERROR(VLOOKUP(E64,Surcharge!A:B,2,FALSE)*G64, VLOOKUP(E64 & "",Surcharge!A:B,2,FALSE)*G64), "") -> 
C65: Wet 225AH C/20 (Kit of 3 batteries) (Note 2) | E65: 9012671 | F65: 443 | H65: =G65*F65 -> 0 | I65: =IFERROR(IFERROR(VLOOKUP(E65,Surcharge!A:B,2,FALSE)*G65, VLOOKUP(E65 & "",Surcharge!A:B,2,FALSE)*G65), "") -> 
C66: Sealed/MF AGM 234AH C/20 (Kit of 3 batteries) | E66: 9012672 | F66: 2832 | H66: =G66*F66 -> 0 | I66: =IFERROR(IFERROR(VLOOKUP(E66,Surcharge!A:B,2,FALSE)*G66, VLOOKUP(E66 & "",Surcharge!A:B,2,FALSE)*G66), "") -> 
I67: =IFERROR(IFERROR(VLOOKUP(E67,Surcharge!A:B,2,FALSE)*G67, VLOOKUP(E67 & "",Surcharge!A:B,2,FALSE)*G67), "") -> 
C68: Manual Battery Watering Kit (Note 3) | E68: 9009620 | F68: 853 | H68: =G68*F68 -> 0 | I68: =IFERROR(IFERROR(VLOOKUP(E68,Surcharge!A:B,2,FALSE)*G68, VLOOKUP(E68 & "",Surcharge!A:B,2,FALSE)*G68), "") -> 
I69: =IFERROR(IFERROR(VLOOKUP(E69,Surcharge!A:B,2,FALSE)*G69, VLOOKUP(E69 & "",Surcharge!A:B,2,FALSE)*G69), "") -> 
C70: Charger | E70: Reference Number | G70: =SUM(G71:G71) -> 0 | I70: =IFERROR(IFERROR(VLOOKUP(E70,Surcharge!A:B,2,FALSE)*G70, VLOOKUP(E70 & "",Surcharge!A:B,2,FALSE)*G70), "") -> 
C71: 25A 85-265V AC 50/60Hz 1Ph On-Board for 185AH and 225AH | E71: 9012668 | F71: N/C | H71: =IF(G71=0," ","N/C") ->  | I71: =IFERROR(IFERROR(VLOOKUP(E71,Surcharge!A:B,2,FALSE)*G71, VLOOKUP(E71 & "",Surcharge!A:B,2,FALSE)*G71), "") -> 
I72: =IFERROR(IFERROR(VLOOKUP(E72,Surcharge!A:B,2,FALSE)*G72, VLOOKUP(E72 & "",Surcharge!A:B,2,FALSE)*G72), "") -> 
C73: Down Pressure | G73: =SUM(G74:G75) -> 0 | I73: =IFERROR(IFERROR(VLOOKUP(E73,Surcharge!A:B,2,FALSE)*G73, VLOOKUP(E73 & "",Surcharge!A:B,2,FALSE)*G73), "") -> 
C74: Automated Down Pressure | E74: 9012641 | F74: N/C | H74: =IF(G74=0," ","N/C") ->  | I74: =IFERROR(IFERROR(VLOOKUP(E74,Surcharge!A:B,2,FALSE)*G74, VLOOKUP(E74 & "",Surcharge!A:B,2,FALSE)*G74), "") -> 
C75: Mechanical Set and Forget TM Down Pressure (Note 1) | E75: 9012640 | F75: -470 | H75: =G75*F75 -> 0 | I75: =IFERROR(IFERROR(VLOOKUP(E75,Surcharge!A:B,2,FALSE)*G75, VLOOKUP(E75 & "",Surcharge!A:B,2,FALSE)*G75), "") -> 
I76: =IFERROR(IFERROR(VLOOKUP(E76,Surcharge!A:B,2,FALSE)*G76, VLOOKUP(E76 & "",Surcharge!A:B,2,FALSE)*G76), "") -> 
B77: Cleaning Performance | G77: =SUM(G78:G80) -> 0 | I77: =IFERROR(IFERROR(VLOOKUP(E77,Surcharge!A:B,2,FALSE)*G77, VLOOKUP(E77 & "",Surcharge!A:B,2,FALSE)*G77), "") -> 
C78: Dust Control System, Active - HEPA Filtration to 99.97% @ .3 microns | E78: 9012651 | F78: N/C | H78: =IF(G78=0," ","N/C") ->  | I78: =IFERROR(IFERROR(VLOOKUP(E78,Surcharge!A:B,2,FALSE)*G78, VLOOKUP(E78 & "",Surcharge!A:B,2,FALSE)*G78), "") -> 
C79: Dust Control System, Passive - 95% @ .3 microns | E79: PASSIVE | F79: -414 | H79: =G79*F79 -> 0 | I79: =IFERROR(IFERROR(VLOOKUP(E79,Surcharge!A:B,2,FALSE)*G79, VLOOKUP(E79 & "",Surcharge!A:B,2,FALSE)*G79), "") -> 
C80: Dust Control Filter, Paper Filter Bag | E80: 1210869 | F80: N/C | H80: =IF(G80=0," ","N/C") ->  | I80: =IFERROR(IFERROR(VLOOKUP(E80,Surcharge!A:B,2,FALSE)*G80, VLOOKUP(E80 & "",Surcharge!A:B,2,FALSE)*G80), "") -> 
I81: =IFERROR(IFERROR(VLOOKUP(E81,Surcharge!A:B,2,FALSE)*G81, VLOOKUP(E81 & "",Surcharge!A:B,2,FALSE)*G81), "") -> 
B82: Support (Note 4) | G82: =SUM(G83:G84) -> 0 | I82: =IFERROR(IFERROR(VLOOKUP(E82,Surcharge!A:B,2,FALSE)*G82, VLOOKUP(E82 & "",Surcharge!A:B,2,FALSE)*G82), "") -> 
C83: B5 Operator Manual - English | E83: 9011480 | F83: N/C | H83: =IF(G83=0," ","N/C") ->  | I83: =IFERROR(IFERROR(VLOOKUP(E83,Surcharge!A:B,2,FALSE)*G83, VLOOKUP(E83 & "",Surcharge!A:B,2,FALSE)*G83), "") -> 
C84: B5 Operator Manual - French | E84: 9011486 | F84: N/C | I84: =IFERROR(IFERROR(VLOOKUP(E84,Surcharge!A:B,2,FALSE)*G84, VLOOKUP(E84 & "",Surcharge!A:B,2,FALSE)*G84), "") -> 
I85: =IFERROR(IFERROR(VLOOKUP(E85,Surcharge!A:B,2,FALSE)*G85, VLOOKUP(E85 & "",Surcharge!A:B,2,FALSE)*G85), "") -> 
C86: Packaging (Note 5) | G86: =SUM(G87:G88) -> 0 | I86: =IFERROR(IFERROR(VLOOKUP(E86,Surcharge!A:B,2,FALSE)*G86, VLOOKUP(E86 & "",Surcharge!A:B,2,FALSE)*G86), "") -> 
C87: Pad Wrap | E87: 44961 | F87: N/C | H87: =IF(G87=0," ","N/C") ->  | I87: =IFERROR(IFERROR(VLOOKUP(E87,Surcharge!A:B,2,FALSE)*G87, VLOOKUP(E87 & "",Surcharge!A:B,2,FALSE)*G87), "") -> 
C88: Skid w/Carton, Stackable | E88: 9012678 | F88: 277 | H88: =G88*F88 -> 0 | I88: =IFERROR(IFERROR(VLOOKUP(E88,Surcharge!A:B,2,FALSE)*G88, VLOOKUP(E88 & "",Surcharge!A:B,2,FALSE)*G88), "") -> 
I89: =IFERROR(IFERROR(VLOOKUP(E89,Surcharge!A:B,2,FALSE)*G89, VLOOKUP(E89 & "",Surcharge!A:B,2,FALSE)*G89), "") -> 
G90: =SUM(#REF!) -> 
F92: =ROUND(SUM(H48:H91), 0) -> 0 | G92: =SUM(F93) -> 0
E93: Machine Subtotal | F93: =ROUND(SUM(H48:H91), 0) -> 0 | G93: =G92 -> 0
B94: Discounts | G94: =SUM(G95) -> 0
G95: =SUM(G96:G97) -> 0
E96: Discount % | G96: =IF(F96 <> "", 1, 0) -> 0 | H96: =IF(G96*(F96*0.01)*F92 < 0, G96*(F96*0.01)*F92, -(G96*(F96*0.01)*F92)) -> 0
E97: Discount $ | G97: =IF(F97 <> "", 1, 0) -> 0 | H97: =IF(G97*F97 < 0, G97*F97, -(G97*F97)) -> 0
E98: Discount Total | F98: =SUM(H96:H97) -> 0 | G98: =SUM(F98) -> 0
F99: =#REF! ->  | G99: =#REF! -> 
G100: =G99 -> 
C101: Prepaid and Add | E101: Freight | G101: =IF(F101 <> "", 1, 0) -> 0 | H101: =G101*F101 -> 0
C102: Subject to all applicable taxes | E102: Tax | G102: 0 | H102: =G102*F102 -> 0
G103: =SUM(G104) -> 0
E104: MACHINE TOTAL* | G104: =SUM(H104) -> 0 | H104: =SUM(H48:H102) -> 0 | M104: This goes to "My Documents"
H105: =SUM(H104) -> 0
B106: Financing
C108: Is customer interested in financing? | D108: Yes
C110: If not, why?
C113: First Western Equipment Finance - Leasing Calculation Option: | E113: Option 1 | G113: Option 2 | J113: =Financing!A38 -> Rates 2025 - Rev. 5/6/2025
E114: Monthly Payment | F114: Cost Per Day | G114: Monthly Payment | H114: Cost Per Day | J114: =Financing!A39 -> “Blank Payment Amounts Indicate The Financing Option Or Purchase Options Selected Are Not
C115: Purchase Option: | E115: FWEF: $1 Buyout Lease | G115: FWEF: Municipal Lease | J115: =Financing!A40 -> Applicable Or The Machine Total Is Below The Minimum Amount For The Selected Vendor”
C116: 24 Months | E116: 0 | F116: 0 | G116: 0 | H116: 0 | J116: =Financing!A41 -> "Quoted monthly payments are estimates only and are based on a certain level of credit rating.
C117: 30 Months | E117: 0 | F117: 0 | G117: 0 | H117: 0 | J117: =Financing!A42 -> Actual monthly payments may be higher depending on your credit rating."
C118: 36 Months | E118: 0 | F118: 0 | G118: 0 | H118: 0 | J118: =Financing!A43 -> “Financing rates do not include Pre-Paid Service”
C119: 48 Months | E119: 0 | F119: 0 | G119: 0 | H119: 0 | J119: =Financing!A44 -> 0
D121: Benefits of Equipment Financing:
D122: • Spreads out investment over time. | F122: • Keep current with latest technology.
D123: • Preserve capital. | F123: • Service and parts bundling available.
D124: • Low monthly payment. | F124: • Pay for labor savings as you go.
C127: Bundled Offerings | E127: Flexclean – Fair Market Value | G127: Flexclean - $1 Buyout
C128: FlexClean: | E128: 36 Month Term | G128: 36 Month Term | J128: No | K128: AB Brushes
C129: Hours included per Month: | E129: Gold | F129: Silver | G129: Gold | H129: Silver | I129: Check
C130: < 30/mo. (Avg. 1hr./day) | K130: =FlexCleanCalc!$A21 -> “FlexClean monthly rates include payment for both machine and service.”
C131: < 60/mo. (Avg. 2hrs./day)
C132: < 90/mo. (Avg. 3hrs./day)
C133: *This value assumes one service contract regardless of the number of UNITS included in the quote
C136: Bundled Offerings | E136: Flexclean – Fair Market Value | G136: Flexclean - $1 Buyout
C137: FlexClean 2: | E137: 48 Month Term | G137: 48 Month Term
C138: Hours included per Month: | E138: Gold | F138: Silver | G138: Gold | H138: Silver
C139: < 30/mo. (Avg. 1hr./day)
C140: < 60/mo. (Avg. 2hrs./day)
C141: < 90/mo. (Avg. 3hrs./day)
C142: *This value assumes one service contract regardless of the number of UNITS included in the quote
C144: Bundled Offerings | E144: Flexclean – Fair Market Value | G144: Flexclean - $1 Buyout
C145: FlexClean 3: | E145: 60 Month Term | G145: 60 Month Term
C146: Hours included per Month: | E146: Gold | F146: Silver | G146: Gold | H146: Silver
C147: < 30/mo. (Avg. 1hr./day)
C148: < 60/mo. (Avg. 2hrs./day)
C149: < 90/mo. (Avg. 3hrs./day)
C150: *This value assumes one service contract regardless of the number of UNITS included in the quote
B152: TennantTrue | D152: 0
C154: Is customer interested in service program? | D154: Yes | E154: *State/County selection required for TennantTrue service options
C156: If not, why?
C158: Term: | D158: 36 | F158: AB Brushes | G158: No
C159: Monthly machine usage (hrs): | D159: < 30/mo. (Avg. 1hr./day)
C161: TennantTrue: | D161: Gold Contract | F161: Silver Contract
C162: Per Visit | F162: 336
C163: Monthly | D163: 112 | F163: 56
C164: Annually | F164: 659
C165: Pre-Pay Full Term | D165: 3882 | F165: 1936
C166: Hourly Labor Rate
C167: Site Visit
C169: * Verify customer current pricing prior to quote.
C170: **All rates and fees above reflect service for one (1) unit with the exception of Block of Time service.
C171: *Block of Time is available in 1 Year Term only and is priced as such no matter the term selection on this template.
C175: Quote Special Instructions:
C178: =Start_Here!E36 -> Terms and Conditions
C179: =Start_Here!E37 -> Ask your local sales rep for estimated lead times. Verify when placing order
C180: =Start_Here!E38 -> All orders subject to acceptance by Tennant Sales and Service Company, Minneapolis, Minnesota
C181: =Start_Here!E39 -> Prices subject to change without notice.
C182: =Start_Here!E40 -> Terms: Net 30 days. Subject to any applicable taxes.
C183: =Start_Here!E41 -> Freight: Machines and accessory orders delivered FOB shipping point Frt PPD & Add
C184: =Start_Here!E42 -> Parts, supplies, detergents and floor treating material orders delivered FOB
C185: =Start_Here!E43 -> shipping point Frt PPD
C186: =Start_Here!E44 -> All orders are subject to Tennant’s General Terms and Conditions available at http://www.tennantco.com/terms.
C187: =Start_Here!E45 -> Printed General Terms and Conditions are also available upon request.
C188: =Start_Here!E46 -> 0
F190: Quote Date : | H190: =Letter!$A$25 -> 2020-09-22
B191: Order Placement Information: To place your order, fill in PO# and customer signatures,
B192: call or fax to the numbers listed below. Customer Purchase Order is required.
B193: If information is missing, orders will be entered and held until all information is received.
C194: Customer Number | E194: Cust Grp 3
C195: =Start_Here!$C$25 -> 0 | E195: =Start_Here!$C$29 -> 0
C196: =Start_Here!$B$18 -> Who Owns the Machine? (Sold-To Info) (Please Verify)
A197: Company | C197: =Start_Here!$C$19 -> Company Name
A198: Address | C198: =Start_Here!$C$20 -> Address
C199: =Start_Here!$C$21 -> City, State Zip
A200: Name | C200: =Start_Here!$C$22 -> Contact Name
A201: Phone | C201: =Start_Here!$C$23 -> Contact Phone
C202: =Start_Here!$B$11 -> Where is the Machine Being Shipped? (Ship-To Info) (Please Verify)
A203: Company | C203: =Start_Here!$C$12 -> Company Name
A204: Address | C204: =Start_Here!$C$13 -> Address
C205: =Start_Here!$C$14 -> City, State Zip
A206: Name | C206: =Start_Here!$C$15 -> Contact Name
A207: Phone | C207: =Start_Here!$C$16 -> Contact Phone
C208: =Start_Here!$B$31 -> Shipping / Carrier Instructions: | E208: Order Special Instructions:
C209: =Start_Here!$C$32 -> 0
C211: Customer Purchase Order No.
C212: (please attach copy)
C215: Tax Exempt | E215: Yes
E216: No
C217: If Yes, attach a copy of your exemption certificate.
C219: Requested Delivery Date
C220: =Start_Here!$C$28 -> 0
C222: =Start_Here!$C$26 -> 0 | E222: =Start_Here!$C$27 -> 0
B223: 0 | C223: Authorized Buyer (please print) | E223: Phone Number
B226: 0 | C226: Authorized Buyer Signature
C228: =Start_Here!$C$41 -> Rep Name
C229: Tennant Representative
A232: Specialized Maintenance Equipment
A233: =Start_Here!$C$47 -> 0
A234: =Start_Here!$C$48 -> TENNANT · 10400 Clean Street · Eden Prairie, MN 55344 ·
B236: Notes
B237: 1 | C237: When pad/brush assist unit is chosen, only mechanical Set and Forget™ down pressure is available.
C238: Mechanical down pressure can only be deducted from the self-propelled unit.
B240: 2 | C240: 225AH Battery is standard on units with the Self Propel Drive Type.
C241: When Self Propel is selected, this battery will be added at No Charge.
B243: 3 | C243: Factory installed pricing. Only available on wet batteries, not sealed.
... 11 more rows

Sheet S7_S6
A1: S7_S6 | C1: =Start_Here!$C19 -> Company Name
A2: =SUM(H51) -> 0 | C2: =Start_Here!$C20 -> Address
C3: =Start_Here!$C21 -> City, State Zip
C4: =Start_Here!$C22 -> Contact Name
C5: =Start_Here!$C$41 -> Rep Name
C6: =Start_Here!$C$37 -> Tennant Sales and Service Company
C7: =Start_Here!$C$38 -> 10400 Clean Street
C8: =Start_Here!$C$39 -> Eden Prairie, MN 55344
C9: =Start_Here!$C$43 -> 800-553-8033 | F9: Quote Date : | H9: =Letter!$A$25 -> 2020-09-22
C11: =Help!C2 -> US Date Rev - 5/6/2025
F12: Quote Request Information
H13: Fax (quote only)
H14: Mail (quote,lit, specs)
C15: EXCLUSIVE FACTORY-DIRECT WARRANTY | H15: Fax + Mail
C16: 12 MONTHS ON PARTS
C17: 12 MONTHS - LABOR | F17: Primary Use
C18: 90 DAYS - TRAVEL | H18: Inside
H19: Outside
C23: Description | E23: Referencel# | F23: Price Each | G23: Qty | H23: Extended Pr
G25: =SUM(G26) -> 0
C26: S7 - 28 in (700 mm) Battery Walk-Behind Sweeper | E26: 1251272 | F26: 7251 | H26: =G26*F26 -> 0 | I26: =IFERROR(IFERROR(VLOOKUP(E26,Surcharge!A:B,2,FALSE)*G26, VLOOKUP(E26 & "",Surcharge!A:B,2,FALSE)*G26), "") ->  | Q26: =VLOOKUP(E26,'MPF SAP Download PreConfigured'!C:E,3,FALSE) -> 7251
C27: 28" (700mm) cleaning path, 1.6 cu. Ft (45 L) hopper capacity, 140AH sealed battery on-board charger. | G27: =SUM(G26) -> 0 | I27: =IFERROR(IFERROR(VLOOKUP(E27,Surcharge!A:B,2,FALSE)*G27, VLOOKUP(E27 & "",Surcharge!A:B,2,FALSE)*G27), "") -> 
C28: Boxed dimensions: 47.25 in x 31.5 in x 41.5 in (L 1200 x W 800 x H 1050) | G28: =SUM(G27) -> 0 | I28: =IFERROR(IFERROR(VLOOKUP(E28,Surcharge!A:B,2,FALSE)*G28, VLOOKUP(E28 & "",Surcharge!A:B,2,FALSE)*G28), "") -> 
C29: Shipping Weight : 319 lb/144.5kg / Cu. Ft.: 35.8 | G29: =SUM(G28) -> 0 | I29: =IFERROR(IFERROR(VLOOKUP(E29,Surcharge!A:B,2,FALSE)*G29, VLOOKUP(E29 & "",Surcharge!A:B,2,FALSE)*G29), "") -> 
C32: S6 - 25 in (635 mm) Battery Walk-Behind Sweeper | E32: 1251268 | F32: 3628 | H32: =G32*F32 -> 0 | I32: =IFERROR(IFERROR(VLOOKUP(E32,Surcharge!A:B,2,FALSE)*G32, VLOOKUP(E32 & "",Surcharge!A:B,2,FALSE)*G32), "") ->  | Q32: =VLOOKUP(E32,'MPF SAP Download PreConfigured'!C:E,3,FALSE) -> 3628
C33: 25" (635mm) cleaning path, 1.25 cu. Ft (35 L) hopper capacity, 42 AH sealed battery and on-board charger. | G33: =SUM(G32) -> 0
C34: Boxed dimensions on pallet: 34.25 in x 21.75 in x 25 in (L 870 x W 550 x H 630) | G34: =SUM(G33) -> 0
C35: Shipping Weight : 123lb/56kg / Cu. Ft.: 10.8 | G35: =SUM(G34) -> 0
G37: =SUM(#REF!) -> 
F39: =ROUND(SUM(H26:H38), 0) -> 0 | G39: =SUM(F40) -> 0
E40: Machine Subtotal | F40: =ROUND(SUM(H26:H38), 0) -> 0 | G40: =G39 -> 0
B41: Discounts | G41: =SUM(G42) -> 0
G42: =SUM(G43:G44) -> 0
E43: Discount % | G43: =IF(F43 <> "", 1, 0) -> 0 | H43: =IF(G43*(F43*0.01)*F39 < 0, G43*(F43*0.01)*F39, -(G43*(F43*0.01)*F39)) -> 0
E44: Discount $ | G44: =IF(F44 <> "", 1, 0) -> 0 | H44: =IF(G44*F44 < 0, G44*F44, -(G44*F44)) -> 0
E45: Discount Total | F45: =SUM(H43:H44) -> 0 | G45: =SUM(F45) -> 0
F46: =#REF! ->  | G46: =#REF! -> 
G47: =G46 -> 
C48: Prepaid and Add | E48: Freight | G48: =IF(F48 <> "", 1, 0) -> 0 | H48: =G48*F48 -> 0
C49: Subject to all applicable taxes | E49: Tax | G49: 0 | H49: =G49*F49 -> 0
G50: =SUM(G51) -> 0
E51: MACHINE TOTAL* | G51: =SUM(H51) -> 0 | H51: =SUM(H26:H49) -> 0 | M51: This goes to "My Documents"
H52: =SUM(H51) -> 0
B53: Financing
C55: Is customer interested in financing? | D55: Yes
C57: If not, why?
C60: First Western Equipment Finance - Leasing Calculation Option: | E60: Option 1 | G60: Option 2 | J60: =Financing!A38 -> Rates 2025 - Rev. 5/6/2025
E61: Monthly Payment | F61: Cost Per Day | G61: Monthly Payment | H61: Cost Per Day | J61: =Financing!A39 -> “Blank Payment Amounts Indicate The Financing Option Or Purchase Options Selected Are Not
C62: Purchase Option: | E62: FWEF: $1 Buyout Lease | G62: FWEF: Municipal Lease | J62: =Financing!A40 -> Applicable Or The Machine Total Is Below The Minimum Amount For The Selected Vendor”
C63: 24 Months | E63: 0 | F63: 0 | G63: 0 | H63: 0 | J63: =Financing!A41 -> "Quoted monthly payments are estimates only and are based on a certain level of credit rating.
C64: 30 Months | E64: 0 | F64: 0 | G64: 0 | H64: 0 | J64: =Financing!A42 -> Actual monthly payments may be higher depending on your credit rating."
C65: 36 Months | E65: 0 | F65: 0 | G65: 0 | H65: 0 | J65: =Financing!A43 -> “Financing rates do not include Pre-Paid Service”
C66: 48 Months | E66: 0 | F66: 0 | G66: 0 | H66: 0 | J66: =Financing!A44 -> 0
D68: Benefits of Equipment Financing:
D69: • Spreads out investment over time. | F69: • Keep current with latest technology.
D70: • Preserve capital. | F70: • Service and parts bundling available.
D71: • Low monthly payment. | F71: • Pay for labor savings as you go.
C74: Bundled Offerings | E74: Flexclean – Fair Market Value | G74: Flexclean - $1 Buyout
C75: FlexClean: | E75: 36 Month Term | G75: 36 Month Term | J75: No | K75: AB Brushes
C76: Hours included per Month: | E76: Gold | F76: Silver | G76: Gold | H76: Silver | I76: Check
C77: < 30/mo. (Avg. 1hr./day) | K77: =FlexCleanCalc!$A21 -> “FlexClean monthly rates include payment for both machine and service.”
C78: < 60/mo. (Avg. 2hrs./day)
C79: < 90/mo. (Avg. 3hrs./day)
C80: *This value assumes one service contract regardless of the number of UNITS included in the quote
C83: Bundled Offerings | E83: Flexclean – Fair Market Value | G83: Flexclean - $1 Buyout
C84: FlexClean 2: | E84: 48 Month Term | G84: 48 Month Term
C85: Hours included per Month: | E85: Gold | F85: Silver | G85: Gold | H85: Silver
C86: < 30/mo. (Avg. 1hr./day)
C87: < 60/mo. (Avg. 2hrs./day)
C88: < 90/mo. (Avg. 3hrs./day)
C89: *This value assumes one service contract regardless of the number of UNITS included in the quote
C91: Bundled Offerings | E91: Flexclean – Fair Market Value | G91: Flexclean - $1 Buyout
C92: FlexClean 3: | E92: 60 Month Term | G92: 60 Month Term
C93: Hours included per Month: | E93: Gold | F93: Silver | G93: Gold | H93: Silver
C94: < 30/mo. (Avg. 1hr./day)
C95: < 60/mo. (Avg. 2hrs./day)
C96: < 90/mo. (Avg. 3hrs./day)
C97: *This value assumes one service contract regardless of the number of UNITS included in the quote
B99: TennantTrue | D99: 0
C101: Is customer interested in service program? | D101: Yes | E101: *State/County selection required for TennantTrue service options
C103: If not, why?
C105: Term: | D105: 36 | F105: AB Brushes | G105: No
C106: Monthly machine usage (hrs): | D106: < 30/mo. (Avg. 1hr./day)
C108: TennantTrue: | D108: Gold Contract | F108: Silver Contract
C109: Per Visit | F109: 433
C110: Monthly | D110: 112 | F110: 69
C111: Annually | F111: 816
C112: Pre-Pay Full Term | D112: 3882 | F112: 2397
C113: Hourly Labor Rate
C114: Site Visit
C116: * Verify customer current pricing prior to quote.
C117: **All rates and fees above reflect service for one (1) unit with the exception of Block of Time service.
C118: *Block of Time is available in 1 Year Term only and is priced as such no matter the term selection on this template.
C122: Quote Special Instructions:
C125: =Start_Here!E36 -> Terms and Conditions
C126: =Start_Here!E37 -> Ask your local sales rep for estimated lead times. Verify when placing order
C127: =Start_Here!E38 -> All orders subject to acceptance by Tennant Sales and Service Company, Minneapolis, Minnesota
C128: =Start_Here!E39 -> Prices subject to change without notice.
C129: =Start_Here!E40 -> Terms: Net 30 days. Subject to any applicable taxes.
C130: =Start_Here!E41 -> Freight: Machines and accessory orders delivered FOB shipping point Frt PPD & Add
C131: =Start_Here!E42 -> Parts, supplies, detergents and floor treating material orders delivered FOB
C132: =Start_Here!E43 -> shipping point Frt PPD
C133: =Start_Here!E44 -> All orders are subject to Tennant’s General Terms and Conditions available at http://www.tennantco.com/terms.
C134: =Start_Here!E45 -> Printed General Terms and Conditions are also available upon request.
C135: =Start_Here!E46 -> 0
F137: Quote Date : | H137: =Letter!$A$25 -> 2020-09-22
B138: Order Placement Information: To place your order, fill in PO# and customer signatures,
B139: call or fax to the numbers listed below. Customer Purchase Order is required.
B140: If information is missing, orders will be entered and held until all information is received.
C141: Customer Number | E141: Cust Grp 3
C142: =Start_Here!$C$25 -> 0 | E142: =Start_Here!$C$29 -> 0
C143: =Start_Here!$B$18 -> Who Owns the Machine? (Sold-To Info) (Please Verify)
A144: Company | C144: =Start_Here!$C$19 -> Company Name
A145: Address | C145: =Start_Here!$C$20 -> Address
C146: =Start_Here!$C$21 -> City, State Zip
A147: Name | C147: =Start_Here!$C$22 -> Contact Name
A148: Phone | C148: =Start_Here!$C$23 -> Contact Phone
C149: =Start_Here!$B$11 -> Where is the Machine Being Shipped? (Ship-To Info) (Please Verify)
A150: Company | C150: =Start_Here!$C$12 -> Company Name
A151: Address | C151: =Start_Here!$C$13 -> Address
C152: =Start_Here!$C$14 -> City, State Zip
A153: Name | C153: =Start_Here!$C$15 -> Contact Name
A154: Phone | C154: =Start_Here!$C$16 -> Contact Phone
C155: =Start_Here!$B$31 -> Shipping / Carrier Instructions: | E155: Order Special Instructions:
C156: =Start_Here!$C$32 -> 0
C158: Customer Purchase Order No.
C159: (please attach copy)
C162: Tax Exempt | E162: Yes
E163: No
C164: If Yes, attach a copy of your exemption certificate.
C166: Requested Delivery Date
C167: =Start_Here!$C$28 -> 0
C169: =Start_Here!$C$26 -> 0 | E169: =Start_Here!$C$27 -> 0
B170: 0 | C170: Authorized Buyer (please print) | E170: Phone Number
B173: 0 | C173: Authorized Buyer Signature
C175: =Start_Here!$C$41 -> Rep Name
C176: Tennant Representative
A179: Specialized Maintenance Equipment
A180: =Start_Here!$C$47 -> 0
A181: =Start_Here!$C$48 -> TENNANT · 10400 Clean Street · Eden Prairie, MN 55344 ·

Sheet 3640
A1: 3640 | C1: =Start_Here!$C19 -> Company Name
A2: =SUM(G132) -> 0 | C2: =Start_Here!$C20 -> Address
C3: =Start_Here!$C21 -> City, State Zip
C4: =Start_Here!$C22 -> Contact Name
C5: =Start_Here!$C$41 -> Rep Name
C6: =Start_Here!$C$37 -> Tennant Sales and Service Company
C7: =Start_Here!$C$38 -> 10400 Clean Street
C8: =Start_Here!$C$39 -> Eden Prairie, MN 55344
C9: =Start_Here!$C$43 -> 800-553-8033 | E9: Quote Date : | G9: =Letter!$A$25 -> 2020-09-22
C11: =Help!C2 -> US Date Rev - 5/6/2025
B12: BUILT-IN “TENNANT VALUE” INCLUDES:
D14: Variable Controls Height
B15: Standard 80cm/32" path width | D15: Fully Variable Forward/Reverse Speed Control
B16: Panel Filter with Timed Shaker | D16: Free-Floating Hopper
B17: High Air Flow Kit | D17: Hopper Capacity 85 l/3 cubic feet
B18: 130 AH Batteries with 11 Amp Off Board Charger | D18: Standard Side Brush (Select One)
B19: Battery Discharge Indicator w. Hour Meter | D19: Standard Main Brush (Select One)
B20: Self-adjusting Main and Side Brush | D20: Operator Training Video
B21: Direct Throw Sweeping | D21: Built in Spray Bottle/Glove Holder on Cover
B22: Quick Release Main Broom | D22: Hour Meter
B23: Parking Brake | D23: Key Switch
B25: TENNANT COMPANY WARRANTY
B26: 3 YEARS OR 2500 HOURS ON ALL COMPONENTS, 3 YEARS LABOR
B27: 90 DAYS TRAVEL, 10 YEARS ON DURAMERTM TANKS
E32: Quote Request Information
G33: Fax (quote only)
G34: Mail (quote,lit, specs)
G35: Fax + Mail
E37: Primary Use
G38: Inside
G39: Outside
A42: ` | C42: Description | D42: Reference # | E42: Price Each | F42: Qty | G42: Extended Price
B43: Base Configuration | F43: =SUM(F44,F47,F54,F59) -> 0
C44: Cleaning Type | F44: =SUM(F45) -> 0 | L44: =SUM(F44) -> 0 | M44: Surcharge Qty
C45: 3640 E Battery Powered Walk-Behind Sweeper | D45: 3640-E | E45: 17429 | G45: =F45*E45 -> 0 | H45: =IFERROR(IFERROR(VLOOKUP(D45,Surcharge!A:B,2,FALSE)*F45, VLOOKUP(D45 & "",Surcharge!A:B,2,FALSE)*F45), "") -> 0 | L45: =SUM(F45) -> 0 | M45: Surcharge Qty
H46: =IFERROR(IFERROR(VLOOKUP(D46,Surcharge!A:B,2,FALSE)*F46, VLOOKUP(D46 & "",Surcharge!A:B,2,FALSE)*F46), "") -> 
C47: Battery Type | F47: =SUM(F48:F52) -> 0 | H47: =IFERROR(IFERROR(VLOOKUP(D47,Surcharge!A:B,2,FALSE)*F47, VLOOKUP(D47 & "",Surcharge!A:B,2,FALSE)*F47), "") -> 
C48: Wet 130AH C/5 (Kit of 2 batteries) | D48: 80128 | E48: N/C | G48: =IF(F48=0," ","N/C") ->  | H48: =IFERROR(IFERROR(VLOOKUP(D48,Surcharge!A:B,2,FALSE)*F48, VLOOKUP(D48 & "",Surcharge!A:B,2,FALSE)*F48), "") -> 
C49: Wet 225AH C/6 (Kit of 2 batteries) (Extended Run Time Batteries) Requires 19A 100-240V AC 50/60Hz 1PH Charger | E49: 511 | G49: =F49*E49 -> 0 | H49: =IFERROR(IFERROR(VLOOKUP(D49,Surcharge!A:B,2,FALSE)*F49, VLOOKUP(D49 & "",Surcharge!A:B,2,FALSE)*F49), "") -> 
C50: Less Battery | E50: -262 | G50: =F50*E50 -> 0 | H50: =IFERROR(IFERROR(VLOOKUP(D50,Surcharge!A:B,2,FALSE)*F50, VLOOKUP(D50 & "",Surcharge!A:B,2,FALSE)*F50), "") -> 
H51: =IFERROR(IFERROR(VLOOKUP(D51,Surcharge!A:B,2,FALSE)*F51, VLOOKUP(D51 & "",Surcharge!A:B,2,FALSE)*F51), "") -> 
C52: Manual Battery Watering Kit (Note 1) | D52: 9009619 | E52: 631 | G52: =F52*E52 -> 0 | H52: =IFERROR(IFERROR(VLOOKUP(D52,Surcharge!A:B,2,FALSE)*F52, VLOOKUP(D52 & "",Surcharge!A:B,2,FALSE)*F52), "") -> 
H53: =IFERROR(IFERROR(VLOOKUP(D53,Surcharge!A:B,2,FALSE)*F53, VLOOKUP(D53 & "",Surcharge!A:B,2,FALSE)*F53), "") -> 
C54: Charger | D54: Reference Number | F54: =SUM(F55:F57) -> 0 | H54: =IFERROR(IFERROR(VLOOKUP(D54,Surcharge!A:B,2,FALSE)*F54, VLOOKUP(D54 & "",Surcharge!A:B,2,FALSE)*F54), "") -> 
C55: 11A 100-240V AC 50/60Hz 1 Ph - off board | D55: 1056034 | E55: N/C | G55: =IF(F55=0," ","N/C") ->  | H55: =IFERROR(IFERROR(VLOOKUP(D55,Surcharge!A:B,2,FALSE)*F55, VLOOKUP(D55 & "",Surcharge!A:B,2,FALSE)*F55), "") -> 
C56: 19A 100-240V AC 50/60Hz 1PH - off board | D56: 1029256 | E56: 186 | G56: =F56*E56 -> 0 | H56: =IFERROR(IFERROR(VLOOKUP(D56,Surcharge!A:B,2,FALSE)*F56, VLOOKUP(D56 & "",Surcharge!A:B,2,FALSE)*F56), "") -> 
C57: Less Charger | E57: -138 | G57: =F57*E57 -> 0 | H57: =IFERROR(IFERROR(VLOOKUP(D57,Surcharge!A:B,2,FALSE)*F57, VLOOKUP(D57 & "",Surcharge!A:B,2,FALSE)*F57), "") -> 
C59: UL Rating/UL | F59: =SUM(F60:F61) -> 0
C60: UL Type E | D60: 80452 | E60: N/C | G60: =IF(F60=0," ","N/C") -> 
C61: UL Type EE | D61: 80454 | E61: 2836 | G61: =F61*E61 -> 0
H62: =IFERROR(IFERROR(VLOOKUP(D62,Surcharge!A:B,2,FALSE)*F62, VLOOKUP(D62 & "",Surcharge!A:B,2,FALSE)*F62), "") -> 
B63: Packages (Note 2) | F63: =SUM(F64) -> 0 | H63: =IFERROR(IFERROR(VLOOKUP(D63,Surcharge!A:B,2,FALSE)*F63, VLOOKUP(D63 & "",Surcharge!A:B,2,FALSE)*F63), "") -> 
C64: Carpet Cleaning Equipment Pkg (Note 3) | F64: =SUM(F65:F66) -> 0 | H64: =IFERROR(IFERROR(VLOOKUP(D64,Surcharge!A:B,2,FALSE)*F64, VLOOKUP(D64 & "",Surcharge!A:B,2,FALSE)*F64), "") -> 
C65: Standard Run Time - for standard 130 AH batteries | D65: 80123 | E65: 648 | G65: =F65*E65 -> 0 | H65: =IFERROR(IFERROR(VLOOKUP(D65,Surcharge!A:B,2,FALSE)*F65, VLOOKUP(D65 & "",Surcharge!A:B,2,FALSE)*F65), "") -> 
C66: Extended Run Time - for 225 AH batteries | D66: 80040 | E66: 648 | G66: =F66*E66 -> 0 | H66: =IFERROR(IFERROR(VLOOKUP(D66,Surcharge!A:B,2,FALSE)*F66, VLOOKUP(D66 & "",Surcharge!A:B,2,FALSE)*F66), "") -> 
H67: =IFERROR(IFERROR(VLOOKUP(D67,Surcharge!A:B,2,FALSE)*F67, VLOOKUP(D67 & "",Surcharge!A:B,2,FALSE)*F67), "") -> 
B68: Cleaning Performance | F68: =SUM(F69:F80) -> 0 | H68: =IFERROR(IFERROR(VLOOKUP(D68,Surcharge!A:B,2,FALSE)*F68, VLOOKUP(D68 & "",Surcharge!A:B,2,FALSE)*F68), "") -> 
C69: Side Brush, Right Hand | E69: N/C | G69: =IF(F69=0," ","N/C") ->  | H69: =IFERROR(IFERROR(VLOOKUP(D69,Surcharge!A:B,2,FALSE)*F69, VLOOKUP(D69 & "",Surcharge!A:B,2,FALSE)*F69), "") -> 
C70: Side Brush, Dual (Note 4) | D70: 80150 | E70: 940 | G70: =F70*E70 -> 0 | H70: =IFERROR(IFERROR(VLOOKUP(D70,Surcharge!A:B,2,FALSE)*F70, VLOOKUP(D70 & "",Surcharge!A:B,2,FALSE)*F70), "") -> 
H71: =IFERROR(IFERROR(VLOOKUP(D71,Surcharge!A:B,2,FALSE)*F71, VLOOKUP(D71 & "",Surcharge!A:B,2,FALSE)*F71), "") -> 
C72: Live Wand (Note 5) | D72: 373143 | E72: N/C | G72: =IF(F72=0," ","N/C") ->  | H72: =IFERROR(IFERROR(VLOOKUP(D72,Surcharge!A:B,2,FALSE)*F72, VLOOKUP(D72 & "",Surcharge!A:B,2,FALSE)*F72), "") -> 
C73: Accessory Wand Kit (Note 6) | D73: 373138 | E73: 331 | G73: =F73*E73 -> 0 | H73: =IFERROR(IFERROR(VLOOKUP(D73,Surcharge!A:B,2,FALSE)*F73, VLOOKUP(D73 & "",Surcharge!A:B,2,FALSE)*F73), "") -> 
C74: Without Vacuum Wand | G74: =IF(F74=0," ","N/C") ->  | H74: =IFERROR(IFERROR(VLOOKUP(D74,Surcharge!A:B,2,FALSE)*F74, VLOOKUP(D74 & "",Surcharge!A:B,2,FALSE)*F74), "") -> 
H75: =IFERROR(IFERROR(VLOOKUP(D75,Surcharge!A:B,2,FALSE)*F75, VLOOKUP(D75 & "",Surcharge!A:B,2,FALSE)*F75), "") -> 
C76: Dust Control Filter, Panel Filter | E76: N/C | G76: =IF(F76=0," ","N/C") ->  | H76: =IFERROR(IFERROR(VLOOKUP(D76,Surcharge!A:B,2,FALSE)*F76, VLOOKUP(D76 & "",Surcharge!A:B,2,FALSE)*F76), "") -> 
C77: Dust Control Filter, Bag Filter (Note 7) | D77: 373146 | E77: -560 | G77: =F77*E77 -> 0 | H77: =IFERROR(IFERROR(VLOOKUP(D77,Surcharge!A:B,2,FALSE)*F77, VLOOKUP(D77 & "",Surcharge!A:B,2,FALSE)*F77), "") -> 
C78: HEPA Filter (Note 8) | D78: 324010 | E78: 7216 | G78: =F78*E78 -> 0 | H78: =IFERROR(IFERROR(VLOOKUP(D78,Surcharge!A:B,2,FALSE)*F78, VLOOKUP(D78 & "",Surcharge!A:B,2,FALSE)*F78), "") -> 
H79: =IFERROR(IFERROR(VLOOKUP(D79,Surcharge!A:B,2,FALSE)*F79, VLOOKUP(D79 & "",Surcharge!A:B,2,FALSE)*F79), "") -> 
C80: Hopper Dump Assist | D80: 80285 | E80: 209 | G80: =F80*E80 -> 0 | H80: =IFERROR(IFERROR(VLOOKUP(D80,Surcharge!A:B,2,FALSE)*F80, VLOOKUP(D80 & "",Surcharge!A:B,2,FALSE)*F80), "") -> 
H81: =IFERROR(IFERROR(VLOOKUP(D81,Surcharge!A:B,2,FALSE)*F81, VLOOKUP(D81 & "",Surcharge!A:B,2,FALSE)*F81), "") -> 
B82: Machine Protection & Safety | D82: Reference Number | F82: =SUM(F83:F86) -> 0 | H82: =IFERROR(IFERROR(VLOOKUP(D82,Surcharge!A:B,2,FALSE)*F82, VLOOKUP(D82 & "",Surcharge!A:B,2,FALSE)*F82), "") -> 
C83: Emergency Stop | D83: 80179 | E83: 346 | G83: =F83*E83 -> 0 | H83: =IFERROR(IFERROR(VLOOKUP(D83,Surcharge!A:B,2,FALSE)*F83, VLOOKUP(D83 & "",Surcharge!A:B,2,FALSE)*F83), "") -> 
H84: =IFERROR(IFERROR(VLOOKUP(D84,Surcharge!A:B,2,FALSE)*F84, VLOOKUP(D84 & "",Surcharge!A:B,2,FALSE)*F84), "") -> 
C85: Tires, Solid Rubber | E85: N/C | G85: =IF(F85=0," ","N/C") ->  | H85: =IFERROR(IFERROR(VLOOKUP(D85,Surcharge!A:B,2,FALSE)*F85, VLOOKUP(D85 & "",Surcharge!A:B,2,FALSE)*F85), "") -> 
C86: Tires, Wide Trac Pneumatic (Note 9) | D86: 80226 | E86: 676 | G86: =F86*E86 -> 0 | H86: =IFERROR(IFERROR(VLOOKUP(D86,Surcharge!A:B,2,FALSE)*F86, VLOOKUP(D86 & "",Surcharge!A:B,2,FALSE)*F86), "") -> 
H87: =IFERROR(IFERROR(VLOOKUP(D87,Surcharge!A:B,2,FALSE)*F87, VLOOKUP(D87 & "",Surcharge!A:B,2,FALSE)*F87), "") -> 
B88: Brushes | F88: =SUM(F89,F95) -> 0 | H88: =IFERROR(IFERROR(VLOOKUP(D88,Surcharge!A:B,2,FALSE)*F88, VLOOKUP(D88 & "",Surcharge!A:B,2,FALSE)*F88), "") -> 
C89: Main Brush (Note 10) | F89: =SUM(F90:F93) -> 0 | H89: =IFERROR(IFERROR(VLOOKUP(D89,Surcharge!A:B,2,FALSE)*F89, VLOOKUP(D89 & "",Surcharge!A:B,2,FALSE)*F89), "") -> 
C90: Polyprolyene Brush | D90: 80058 | E90: N/C | G90: =IF(F90=0," ","N/C") ->  | H90: =IFERROR(IFERROR(VLOOKUP(D90,Surcharge!A:B,2,FALSE)*F90, VLOOKUP(D90 & "",Surcharge!A:B,2,FALSE)*F90), "") -> 
C91: Polyprolyene & Wire Brush | D91: 378802 | E91: N/C | G91: =IF(F91=0," ","N/C") ->  | H91: =IFERROR(IFERROR(VLOOKUP(D91,Surcharge!A:B,2,FALSE)*F91, VLOOKUP(D91 & "",Surcharge!A:B,2,FALSE)*F91), "") -> 
C92: Union Mix Brush (Carpet) | D92: 80355 | E92: N/C | G92: =IF(F92=0," ","N/C") ->  | H92: =IFERROR(IFERROR(VLOOKUP(D92,Surcharge!A:B,2,FALSE)*F92, VLOOKUP(D92 & "",Surcharge!A:B,2,FALSE)*F92), "") -> 
C93: Sand Wedge Brush | D93: 80351 | E93: N/C | G93: =IF(F93=0," ","N/C") ->  | H93: =IFERROR(IFERROR(VLOOKUP(D93,Surcharge!A:B,2,FALSE)*F93, VLOOKUP(D93 & "",Surcharge!A:B,2,FALSE)*F93), "") -> 
H94: =IFERROR(IFERROR(VLOOKUP(D94,Surcharge!A:B,2,FALSE)*F94, VLOOKUP(D94 & "",Surcharge!A:B,2,FALSE)*F94), "") -> 
C95: Side Brush | F95: =SUM(F96) -> 0 | H95: =IFERROR(IFERROR(VLOOKUP(D95,Surcharge!A:B,2,FALSE)*F95, VLOOKUP(D95 & "",Surcharge!A:B,2,FALSE)*F95), "") -> 
C96: Polyprolyene Brush | D96: 80042 | E96: N/C | G96: =IF(F96=0," ","N/C") ->  | H96: =IFERROR(IFERROR(VLOOKUP(D96,Surcharge!A:B,2,FALSE)*F96, VLOOKUP(D96 & "",Surcharge!A:B,2,FALSE)*F96), "") -> 
H97: =IFERROR(IFERROR(VLOOKUP(D97,Surcharge!A:B,2,FALSE)*F97, VLOOKUP(D97 & "",Surcharge!A:B,2,FALSE)*F97), "") -> 
B98: Support | F98: =SUM(F99:F105) -> 0 | H98: =IFERROR(IFERROR(VLOOKUP(D98,Surcharge!A:B,2,FALSE)*F98, VLOOKUP(D98 & "",Surcharge!A:B,2,FALSE)*F98), "") -> 
C99: Operator Manual English | D99: 330560 | E99: N/C | G99: =IF(F99=0," ","N/C") ->  | H99: =IFERROR(IFERROR(VLOOKUP(D99,Surcharge!A:B,2,FALSE)*F99, VLOOKUP(D99 & "",Surcharge!A:B,2,FALSE)*F99), "") -> 
C100: Operator Manual Spanish | D100: 330562 | E100: N/C | H100: =IFERROR(IFERROR(VLOOKUP(D100,Surcharge!A:B,2,FALSE)*F100, VLOOKUP(D100 & "",Surcharge!A:B,2,FALSE)*F100), "") -> 
C101: Operator Manual French | D101: 330563 | E101: N/C | H101: =IFERROR(IFERROR(VLOOKUP(D101,Surcharge!A:B,2,FALSE)*F101, VLOOKUP(D101 & "",Surcharge!A:B,2,FALSE)*F101), "") -> 
C102: Operator Manual Japanese | D102: 330564 | E102: N/C | H102: =IFERROR(IFERROR(VLOOKUP(D102,Surcharge!A:B,2,FALSE)*F102, VLOOKUP(D102 & "",Surcharge!A:B,2,FALSE)*F102), "") -> 
C103: Additional Operator Manual | D103: see above | E103: 101 | G103: =F103*E103 -> 0 | H103: =IFERROR(IFERROR(VLOOKUP(D103,Surcharge!A:B,2,FALSE)*F103, VLOOKUP(D103 & "",Surcharge!A:B,2,FALSE)*F103), "") -> 
C104: 3640 Parts Manual | E104: 25 | G104: =F104*E104 -> 0 | H104: =IFERROR(IFERROR(VLOOKUP(D104,Surcharge!A:B,2,FALSE)*F104, VLOOKUP(D104 & "",Surcharge!A:B,2,FALSE)*F104), "") -> 
C105: 3640 Service Manual | D105: 330565 | E105: 229 | G105: =F105*E105 -> 0 | H105: =IFERROR(IFERROR(VLOOKUP(D105,Surcharge!A:B,2,FALSE)*F105, VLOOKUP(D105 & "",Surcharge!A:B,2,FALSE)*F105), "") -> 
H106: =IFERROR(IFERROR(VLOOKUP(D106,Surcharge!A:B,2,FALSE)*F106, VLOOKUP(D106 & "",Surcharge!A:B,2,FALSE)*F106), "") -> 
C107: Packaging (Note 11) | F107: =SUM(F108:F110) -> 0 | H107: =IFERROR(IFERROR(VLOOKUP(D107,Surcharge!A:B,2,FALSE)*F107, VLOOKUP(D107 & "",Surcharge!A:B,2,FALSE)*F107), "") -> 
C108: Pad Wrap | E108: N/C | G108: =IF(F108=0," ","N/C") ->  | H108: =IFERROR(IFERROR(VLOOKUP(D108,Surcharge!A:B,2,FALSE)*F108, VLOOKUP(D108 & "",Surcharge!A:B,2,FALSE)*F108), "") -> 
C109: Skid w/Carton, Stackable | D109: 9005746 | E109: 496 | G109: =F109*E109 -> 0 | H109: =IFERROR(IFERROR(VLOOKUP(D109,Surcharge!A:B,2,FALSE)*F109, VLOOKUP(D109 & "",Surcharge!A:B,2,FALSE)*F109), "") -> 
C110: Skid w/Stretch Wrap | D110: 9005748 | E110: 336 | G110: =F110*E110 -> 0 | H110: =IFERROR(IFERROR(VLOOKUP(D110,Surcharge!A:B,2,FALSE)*F110, VLOOKUP(D110 & "",Surcharge!A:B,2,FALSE)*F110), "") -> 
H111: =IFERROR(IFERROR(VLOOKUP(D111,Surcharge!A:B,2,FALSE)*F111, VLOOKUP(D111 & "",Surcharge!A:B,2,FALSE)*F111), "") -> 
F112: =SUM(#REF!) -> 
B114: Custom Solution--write in description, qty, price, and PN if applicable | F114: =SUM(E115) -> 0
D115: Insert Prices Here | E115: =SUM(F116:F119) -> 0
D116: Custom | F116: =IF(E116 <> "", 1, 0) -> 0 | G116: =F116*E116 -> 0
D117: Custom | F117: =IF(E117 <> "", 1, 0) -> 0 | G117: =F117*E117 -> 0
D118: Custom | F118: 0 | G118: =F118*E118 -> 0
D119: Custom | F119: 0 | G119: =F119*E119 -> 0
E120: =ROUND(SUM(G45:G119), 0) -> 0 | F120: =SUM(E121) -> 0
D121: Machine Subtotal | E121: =ROUND(SUM(G45:G119), 0) -> 0 | F121: =F120 -> 0
B122: Discounts | F122: =SUM(F123) -> 0
F123: =SUM(F124:F125) -> 0
D124: Discount % | F124: =IF(E124 <> "", 1, 0) -> 0 | G124: =IF(F124*(E124*0.01)*E120 < 0, F124*(E124*0.01)*E120, -(F124*(E124*0.01)*E120)) -> 0
D125: Discount $ | F125: =IF(E125 <> "", 1, 0) -> 0 | G125: =IF(F125*E125 < 0, F125*E125, -(F125*E125)) -> 0
D126: Discount Total | E126: =SUM(G124:G125) -> 0 | F126: =SUM(E126) -> 0
E127: =#REF! ->  | F127: =#REF! -> 
F128: =F127 -> 
C129: Prepaid and Add | D129: Freight | F129: =IF(E129 <> "", 1, 0) -> 0 | G129: =F129*E129 -> 0
C130: Subject to all applicable taxes | D130: Tax | F130: 0 | G130: =F130*E130 -> 0
F131: =SUM(F132) -> 0
D132: MACHINE TOTAL* | F132: =SUM(G132) -> 0 | G132: =SUM(G45:G130) -> 0 | K132: This goes to "My Documents"
G133: =SUM(G132) -> 0
B134: Financing
C136: Is customer interested in financing? | D136: Yes
C138: If not, why?
C141: First Western Equipment Finance - Leasing Calculation Option: | D141: Option 1 | F141: Option 2 | J141: =Financing!A38 -> Rates 2025 - Rev. 5/6/2025
D142: Monthly Payment | E142: Cost Per Day | F142: Monthly Payment | G142: Cost Per Day | J142: =Financing!A39 -> “Blank Payment Amounts Indicate The Financing Option Or Purchase Options Selected Are Not
C143: Purchase Option: | D143: FWEF: $1 Buyout Lease | F143: FWEF: Municipal Lease | J143: =Financing!A40 -> Applicable Or The Machine Total Is Below The Minimum Amount For The Selected Vendor”
C144: 24 Months | D144: 0 | E144: 0 | F144: 0 | G144: 0 | J144: =Financing!A41 -> "Quoted monthly payments are estimates only and are based on a certain level of credit rating.
C145: 30 Months | D145: 0 | E145: 0 | F145: 0 | G145: 0 | J145: =Financing!A42 -> Actual monthly payments may be higher depending on your credit rating."
C146: 36 Months | D146: 0 | E146: 0 | F146: 0 | G146: 0 | J146: =Financing!A43 -> “Financing rates do not include Pre-Paid Service”
C147: 48 Months | D147: 0 | E147: 0 | F147: 0 | G147: 0 | I147: =Financing!A44 -> 0
D149: Benefits of Equipment Financing:
D150: • Spreads out investment over time. | F150: • Keep current with latest technology.
D151: • Preserve capital. | F151: • Service and parts bundling available.
D152: • Low monthly payment. | F152: • Pay for labor savings as you go.
C155: Bundled Offerings | D155: Flexclean – Fair Market Value | F155: Flexclean - $1 Buyout
C156: FlexClean: | D156: 36 Month Term | F156: 36 Month Term | I156: No | J156: AB Brushes
C157: Hours included per Month: | D157: Gold | E157: Silver | F157: Gold | G157: Silver | H157: Check
C158: < 30/mo. (Avg. 1hr./day) | I158: =FlexCleanCalc!$A21 -> “FlexClean monthly rates include payment for both machine and service.”
C159: < 60/mo. (Avg. 2hrs./day)
C160: < 90/mo. (Avg. 3hrs./day)
C161: *This value assumes one service contract regardless of the number of UNITS included in the quote
C164: Bundled Offerings | D164: Flexclean – Fair Market Value | F164: Flexclean - $1 Buyout
C165: FlexClean 2: | D165: 48 Month Term | F165: 48 Month Term
C166: Hours included per Month: | D166: Gold | E166: Silver | F166: Gold | G166: Silver
C167: < 30/mo. (Avg. 1hr./day)
C168: < 60/mo. (Avg. 2hrs./day)
C169: < 90/mo. (Avg. 3hrs./day)
C170: *This value assumes one service contract regardless of the number of UNITS included in the quote
C172: Bundled Offerings | D172: Flexclean – Fair Market Value | F172: Flexclean - $1 Buyout
C173: FlexClean 3: | D173: 60 Month Term | F173: 60 Month Term
C174: Hours included per Month: | D174: Gold | E174: Silver | F174: Gold | G174: Silver
C175: < 30/mo. (Avg. 1hr./day)
C176: < 60/mo. (Avg. 2hrs./day)
C177: < 90/mo. (Avg. 3hrs./day)
C178: *This value assumes one service contract regardless of the number of UNITS included in the quote
B180: TennantTrue
C182: Is customer interested in service program? | D182: Yes | E182: *State/County selection required for TennantTrue service options
C184: If not, why?
C186: Term: | D186: 36 | F186: AB Brushes | G186: No
C187: Monthly machine usage (hrs): | D187: < 30/mo. (Avg. 1hr./day)
C189: TennantTrue: | D189: Gold Contract | F189: Silver Contract
C190: Per Visit | F190: 433
C191: Monthly | D191: 137 | F191: 69
C192: Annually | F192: 816
C193: Pre-Pay Full Term | D193: 4726 | F193: 2397
C194: Hourly Labor Rate
C195: Site Visit
C197: * Verify customer current pricing prior to quote.
C198: **All rates and fees above reflect service for one (1) unit with the exception of Block of Time service.
C199: *Block of Time is available in 1 Year Term only and is priced as such no matter the term selection on this template.
B203: Quote Special Instructions:
B206: =Start_Here!E36 -> Terms and Conditions
B207: =Start_Here!E37 -> Ask your local sales rep for estimated lead times. Verify when placing order
B208: =Start_Here!E38 -> All orders subject to acceptance by Tennant Sales and Service Company, Minneapolis, Minnesota
B209: =Start_Here!E39 -> Prices subject to change without notice.
B210: =Start_Here!E40 -> Terms: Net 30 days. Subject to any applicable taxes.
B211: =Start_Here!E41 -> Freight: Machines and accessory orders delivered FOB shipping point Frt PPD & Add
B212: =Start_Here!E42 -> Parts, supplies, detergents and floor treating material orders delivered FOB
B213: =Start_Here!E43 -> shipping point Frt PPD
B214: =Start_Here!E44 -> All orders are subject to Tennant’s General Terms and Conditions available at http://www.tennantco.com/terms.
B215: =Start_Here!E45 -> Printed General Terms and Conditions are also available upon request.
B216: =Start_Here!E46 -> 0
E218: Quote Date : | G218: =Letter!$A$25 -> 2020-09-22
A219: Order Placement Information: To place your order, fill in PO# and customer signatures,
A220: call or fax to the numbers listed below. Customer Purchase Order is required.
A221: If information is missing, orders will be entered and held until all information is received.
C222: Customer Number | E222: Cust Grp 3
C223: =Start_Here!$C$25 -> 0 | E223: =Start_Here!$C$29 -> 0
C224: =Start_Here!$B$18 -> Who Owns the Machine? (Sold-To Info) (Please Verify)
A225: Company | C225: =Start_Here!$C$19 -> Company Name
A226: Address | C226: =Start_Here!$C$20 -> Address
C227: =Start_Here!$C$21 -> City, State Zip
A228: Name | C228: =Start_Here!$C$22 -> Contact Name
A229: Phone | C229: =Start_Here!$C$23 -> Contact Phone
C230: =Start_Here!$B$11 -> Where is the Machine Being Shipped? (Ship-To Info) (Please Verify)
A231: Company | C231: =Start_Here!$C$12 -> Company Name
A232: Address | C232: =Start_Here!$C$13 -> Address
C233: =Start_Here!$C$14 -> City, State Zip
A234: Name | C234: =Start_Here!$C$15 -> Contact Name
... 54 more rows

Sheet S16L_Standard_Config
A1: S16L_Standard_Config | C1: =Start_Here!$C19 -> Company Name
A2: =SUM(G105) -> 0 | C2: =Start_Here!$C20 -> Address
C3: =Start_Here!$C21 -> City, State Zip
C4: =Start_Here!$C22 -> Contact Name
C5: =Start_Here!$C$41 -> Rep Name
C6: =Start_Here!$C$37 -> Tennant Sales and Service Company
C7: =Start_Here!$C$38 -> 10400 Clean Street
C8: =Start_Here!$C$39 -> Eden Prairie, MN 55344
C9: =Start_Here!$C$43 -> 800-553-8033 | E9: Quote Date : | G9: =Letter!$A$25 -> 2020-09-22
C11: =Help!C2 -> US Date Rev - 5/6/2025
C12: BUILT-IN "TENNANT VALUE" INCLUDES:
C14: MaxPro™ Sweeping Technology | D14: Wet Sweeping By-Pass
C15: 1-Step™ Control Module | D15: UL-Label (Type E)
C16: 46" (1170mm) Sweep Path | D16: Tool-less Side Panel Removal
C17: No-Tool Brush Change | D17: Soft corner rollers all-around
C18: Multi-stage Air Filtration & Dust Control | D18: Hour Meter
C19: Stage 1: Perma-filter™ | D19: Battery Discharge Indicator
C20: Stage 2: Panel filter | D20: Horn
C21: 97.0 ft² (9.0 m2) Pleated Media | D21: Cup Holders
C22: Flap and Trap Debris Pedal | D22: Automatic Parking Brake
C23: Retractable Right Hand Side Brush | D23: Yellow Maintenance Touch Points
C24: Thermo-Sentry™ Hopper Fire Sensor | D24: Seat occupancy interlock safety switch
C25: Worn main brush indicator light | D25: Main and right side brush (Standard)
C26: 5.3 ft3 (150 L) Hopper Volume Capacity | D26: Onboard Diagnostics
C27: 200 lbs (90 kg) Hopper Weight Capacity | D27: Operator and parts manual
C28: Duramer™ Hopper Construction
C30: TENNANT COMPANY WARRANTY
C31: 3 YEARS OR 2000 HOURS - PARTS
C32: 6 MONTHS - LABOR
C33: 6 MONTHS - TRAVEL
C34: 10 YEARS ON DURAMERTM HOPPER
C35: CUSTOM Options May Add 1 Week Or More to Standard Lead Times
E37: Quote Request Information
G38: Fax (quote only)
G39: Mail (quote,lit, specs)
G40: Fax + Mail
E42: Primary Use
G43: Inside
G44: Outside
C47: Description | D47: Reference # | E47: Price Each | F47: Qty | G47: Extended Price
B48: Standard Configurations (Note 1) | F48: =SUM(F50,F53,F56,F59) -> 0
L49: =SUM(F49) -> 0 | M49: Surcharge Qty
C50: S16L Rider - Sweeper, Wet 360AH C/20 Batteries, Off-Board 25A 100-240V AC 50/60Hz 1Ph, UL Type E, Right Hand Side Brush, Standard Seat | D50: S16L-1000 | E50: 34722 | G50: =F50*E50 -> 0 | H50: =IFERROR(IFERROR(VLOOKUP(D50,Surcharge!A:B,2,FALSE)*F50, VLOOKUP(D50 & "",Surcharge!A:B,2,FALSE)*F50), "") -> 
C51: Choice of Brushes, Operator Manual, and Shipment Packaging available. | F51: =SUM(F50) -> 0 | H51: =IFERROR(IFERROR(VLOOKUP(D51,Surcharge!A:B,2,FALSE)*F51, VLOOKUP(D51 & "",Surcharge!A:B,2,FALSE)*F51), "") -> 
H52: =IFERROR(IFERROR(VLOOKUP(D52,Surcharge!A:B,2,FALSE)*F52, VLOOKUP(D52 & "",Surcharge!A:B,2,FALSE)*F52), "") -> 
C53: S16L Rider - Sweeper, Wet 360AH C/20 Batteries, Smart-Fill Battery Watering System, On-Board 25A 100-240V AC 50/60Hz 1Ph Charger, UL Type E, Right Side Brush, Vacuum Wand, Removable Hopper Bins, AV Bu Alarm w/Strobe on Lintel | D53: S16L-2000 | E53: 40352 | G53: =F53*E53 -> 0 | H53: =IFERROR(IFERROR(VLOOKUP(D53,Surcharge!A:B,2,FALSE)*F53, VLOOKUP(D53 & "",Surcharge!A:B,2,FALSE)*F53), "") -> 
C54: Choice of Fire Extinguisher, Overhead Guard, Brushes, Operator Manual, Parts Manual, and Shipment Packaging available. | F54: =SUM(F53) -> 0 | H54: =IFERROR(IFERROR(VLOOKUP(D54,Surcharge!A:B,2,FALSE)*F54, VLOOKUP(D54 & "",Surcharge!A:B,2,FALSE)*F54), "") -> 
C56: S16L Rider - Sweeper, Wet 360AH C/20 Batteries, Smart-Fill Battery Watering System, On-Board 25A 100-240V AC 50/60Hz 1Ph Charger, UL Type E, Carpet Care Package, Right Hand Side Brush, Vacuum Wand, Removable Hopper Bins, Standard Seat, AU BU Alarm w/Strobe on Lintel (Carpet Care Package includes Natural Fiber Brush) | D56: S16L-2002 | E56: 41062 | G56: =F56*E56 -> 0
C57: Choice of Fire Extinguisher, Overhead Guard, Brushes, Operator Manual, Parts Manual, and Shipment Packaging available. | F57: =SUM(F56) -> 0
H58: =IFERROR(IFERROR(VLOOKUP(D58,Surcharge!A:B,2,FALSE)*F58, VLOOKUP(D58 & "",Surcharge!A:B,2,FALSE)*F58), "") -> 
C59: S16L Rider - Sweeper, Wet 360AH C/20 Batteries, Smart-Fill Battery Watering System, On-Board 33A 100-240V AC 50/60Hz 1Ph Charger, UL Type E, Productivity Package, Safety Light Package, Removable Hopper Bins, Deluxe Seat w/Armrest | D59: S16L-3000 | E59: 44304 | G59: =F59*E59 -> 0
C60: Choice of Fire Extinguisher, Overhead Guard, Brushes, Operator Manual, Parts Manual, and Shipment Packaging available. | F60: =SUM(F59) -> 0
B62: Machine Protection & Safety | F62: =SUM(F63:F64) -> 0
C63: Overhead Guard | D63: 9045052 | E63: 1682 | G63: =F63*E63 -> 0
C64: Fire Extinguisher | D64: 9045069 | E64: 350 | G64: =F64*E64 -> 0
H65: =IFERROR(IFERROR(VLOOKUP(D65,Surcharge!A:B,2,FALSE)*F65, VLOOKUP(D65 & "",Surcharge!A:B,2,FALSE)*F65), "") -> 
B66: Brushes and Pads | D66: Reference Number | F66: =SUM(F67,F74) -> 0 | H66: =IFERROR(IFERROR(VLOOKUP(D66,Surcharge!A:B,2,FALSE)*F66, VLOOKUP(D66 & "",Surcharge!A:B,2,FALSE)*F66), "") -> 
C67: Main Sweeping Brushes | F67: =SUM(F68:F72) -> 0 | H67: =IFERROR(IFERROR(VLOOKUP(D67,Surcharge!A:B,2,FALSE)*F67, VLOOKUP(D67 & "",Surcharge!A:B,2,FALSE)*F67), "") -> 
C68: Polypropylene Brush | D68: 1240255 | E68: N/C | G68: =IF(F68=0," ","N/C") ->  | H68: =IFERROR(IFERROR(VLOOKUP(D68,Surcharge!A:B,2,FALSE)*F68, VLOOKUP(D68 & "",Surcharge!A:B,2,FALSE)*F68), "") -> 
C69: Polypropylene and Wire Brush | D69: 1254155 | E69: N/C | G69: =IF(F69=0," ","N/C") ->  | H69: =IFERROR(IFERROR(VLOOKUP(D69,Surcharge!A:B,2,FALSE)*F69, VLOOKUP(D69 & "",Surcharge!A:B,2,FALSE)*F69), "") -> 
C70: Polypropylene, Window Brush | D70: 1239052 | E70: 252 | G70: =F70*E70 -> 0 | H70: =IFERROR(IFERROR(VLOOKUP(D70,Surcharge!A:B,2,FALSE)*F70, VLOOKUP(D70 & "",Surcharge!A:B,2,FALSE)*F70), "") -> 
C71: Sand Wedge Brush | D71: 1239051 | E71: 252 | G71: =F71*E71 -> 0 | H71: =IFERROR(IFERROR(VLOOKUP(D71,Surcharge!A:B,2,FALSE)*F71, VLOOKUP(D71 & "",Surcharge!A:B,2,FALSE)*F71), "") -> 
C72: Natural Fiber Brush | D72: 1239050 | E72: 252 | G72: =F72*E72 -> 0
H73: =IFERROR(IFERROR(VLOOKUP(D73,Surcharge!A:B,2,FALSE)*F73, VLOOKUP(D73 & "",Surcharge!A:B,2,FALSE)*F73), "") -> 
C74: Side Sweeping Brushes | F74: =SUM(F75:F75) -> 0 | H74: =IFERROR(IFERROR(VLOOKUP(D74,Surcharge!A:B,2,FALSE)*F74, VLOOKUP(D74 & "",Surcharge!A:B,2,FALSE)*F74), "") -> 
C75: Polypropylene Brush | D75: 1225549 | E75: N/C | G75: =IF(F75=0," ","N/C") ->  | H75: =IFERROR(IFERROR(VLOOKUP(D75,Surcharge!A:B,2,FALSE)*F75, VLOOKUP(D75 & "",Surcharge!A:B,2,FALSE)*F75), "") -> 
H76: =IFERROR(IFERROR(VLOOKUP(D76,Surcharge!A:B,2,FALSE)*F76, VLOOKUP(D76 & "",Surcharge!A:B,2,FALSE)*F76), "") -> 
B77: Support (Note 2) | F77: =SUM(F78:F86) -> 0 | H77: =IFERROR(IFERROR(VLOOKUP(D77,Surcharge!A:B,2,FALSE)*F77, VLOOKUP(D77 & "",Surcharge!A:B,2,FALSE)*F77), "") -> 
C78: Standard Warranty | E78: N/C | G78: =IF(F78=0," ","N/C") ->  | H78: =IFERROR(IFERROR(VLOOKUP(D78,Surcharge!A:B,2,FALSE)*F78, VLOOKUP(D78 & "",Surcharge!A:B,2,FALSE)*F78), "") -> 
C79: Ultimate Performance Guarantee | E79: N/C | G79: =IF(F79=0," ","N/C") ->  | H79: =IFERROR(IFERROR(VLOOKUP(D79,Surcharge!A:B,2,FALSE)*F79, VLOOKUP(D79 & "",Surcharge!A:B,2,FALSE)*F79), "") -> 
C80: Operator Manual (English) | D80: 9045321 | E80: N/C | G80: =IF(F80=0," ","N/C") ->  | H80: =IFERROR(IFERROR(VLOOKUP(D80,Surcharge!A:B,2,FALSE)*F80, VLOOKUP(D80 & "",Surcharge!A:B,2,FALSE)*F80), "") -> 
C81: Operator Manual (Spanish) | D81: 9045322 | E81: N/C | H81: =IFERROR(IFERROR(VLOOKUP(D81,Surcharge!A:B,2,FALSE)*F81, VLOOKUP(D81 & "",Surcharge!A:B,2,FALSE)*F81), "") -> 
C82: Operator Manual (French) | D82: 9045323 | E82: N/C | H82: =IFERROR(IFERROR(VLOOKUP(D82,Surcharge!A:B,2,FALSE)*F82, VLOOKUP(D82 & "",Surcharge!A:B,2,FALSE)*F82), "") -> 
C83: Parts Manual | D83: 9045325 | E83: N/C | G83: =IF(F83=0," ","N/C") -> 
C84: Service Manual | D84: 9045326 | G84: =F84*E84 -> 0 | H84: =IFERROR(IFERROR(VLOOKUP(D84,Surcharge!A:B,2,FALSE)*F84, VLOOKUP(D84 & "",Surcharge!A:B,2,FALSE)*F84), "") -> 
H85: =IFERROR(IFERROR(VLOOKUP(D85,Surcharge!A:B,2,FALSE)*F85, VLOOKUP(D85 & "",Surcharge!A:B,2,FALSE)*F85), "") -> 
C86: Packaging (Note 3) | F86: =SUM(F87:F89) -> 0 | H86: =IFERROR(IFERROR(VLOOKUP(D86,Surcharge!A:B,2,FALSE)*F86, VLOOKUP(D86 & "",Surcharge!A:B,2,FALSE)*F86), "") -> 
C87: Skid w/Carton, Non-Stackable | D87: 9045304 | E87: 777 | G87: =F87*E87 -> 0 | H87: =IFERROR(IFERROR(VLOOKUP(D87,Surcharge!A:B,2,FALSE)*F87, VLOOKUP(D87 & "",Surcharge!A:B,2,FALSE)*F87), "") -> 
C88: Skid | D88: 9045305 | E88: 509 | G88: =F88*E88 -> 0 | H88: =IFERROR(IFERROR(VLOOKUP(D88,Surcharge!A:B,2,FALSE)*F88, VLOOKUP(D88 & "",Surcharge!A:B,2,FALSE)*F88), "") -> 
C89: Pad Wrap | E89: N/C | G89: =IF(F89=0," ","N/C") ->  | H89: =IFERROR(IFERROR(VLOOKUP(D89,Surcharge!A:B,2,FALSE)*F89, VLOOKUP(D89 & "",Surcharge!A:B,2,FALSE)*F89), "") -> 
H90: =IFERROR(IFERROR(VLOOKUP(D90,Surcharge!A:B,2,FALSE)*F90, VLOOKUP(D90 & "",Surcharge!A:B,2,FALSE)*F90), "") -> 
F91: =SUM(#REF!) -> 
E93: =ROUND(SUM(G50:G92), 0) -> 0 | F93: =SUM(E94) -> 0
D94: Machine Subtotal | E94: =ROUND(SUM(G50:G92), 0) -> 0 | F94: =F93 -> 0
B95: Discounts | F95: =SUM(F96) -> 0
F96: =SUM(F97:F98) -> 0
D97: Discount % | F97: =IF(E97 <> "", 1, 0) -> 0 | G97: =IF(F97*(E97*0.01)*E93 < 0, F97*(E97*0.01)*E93, -(F97*(E97*0.01)*E93)) -> 0
D98: Discount $ | F98: =IF(E98 <> "", 1, 0) -> 0 | G98: =IF(F98*E98 < 0, F98*E98, -(F98*E98)) -> 0
D99: Discount Total | E99: =SUM(G97:G98) -> 0 | F99: =SUM(E99) -> 0
E100: =#REF! ->  | F100: =#REF! -> 
F101: =F100 -> 
C102: Prepaid and Add | D102: Freight | F102: =IF(E102 <> "", 1, 0) -> 0 | G102: =F102*E102 -> 0
C103: Subject to all applicable taxes | D103: Tax | F103: 0 | G103: =F103*E103 -> 0
F104: =SUM(F105) -> 0
D105: MACHINE TOTAL* | F105: =SUM(G105) -> 0 | G105: =SUM(G50:G103) -> 0 | K105: This goes to "My Documents"
G106: =SUM(G105) -> 0
B107: Financing
C109: Is customer interested in financing? | D109: Yes
C111: If not, why?
C114: First Western Equipment Finance - Leasing Calculation Option: | D114: Option 1 | F114: Option 2 | J114: =Financing!A38 -> Rates 2025 - Rev. 5/6/2025
D115: Monthly Payment | E115: Cost Per Day | F115: Monthly Payment | G115: Cost Per Day | J115: =Financing!A39 -> “Blank Payment Amounts Indicate The Financing Option Or Purchase Options Selected Are Not
C116: Purchase Option: | D116: FWEF: $1 Buyout Lease | F116: FWEF: Municipal Lease | J116: =Financing!A40 -> Applicable Or The Machine Total Is Below The Minimum Amount For The Selected Vendor”
C117: 24 Months | D117: 0 | E117: 0 | F117: 0 | G117: 0 | J117: =Financing!A41 -> "Quoted monthly payments are estimates only and are based on a certain level of credit rating.
C118: 30 Months | D118: 0 | E118: 0 | F118: 0 | G118: 0 | J118: =Financing!A42 -> Actual monthly payments may be higher depending on your credit rating."
C119: 36 Months | D119: 0 | E119: 0 | F119: 0 | G119: 0 | J119: =Financing!A43 -> “Financing rates do not include Pre-Paid Service”
C120: 48 Months | D120: 0 | E120: 0 | F120: 0 | G120: 0
D122: Benefits of Equipment Financing:
D123: • Spreads out investment over time. | F123: • Keep current with latest technology.
D124: • Preserve capital. | F124: • Service and parts bundling available.
D125: • Low monthly payment. | F125: • Pay for labor savings as you go.
C128: Bundled Offerings | D128: Flexclean – Fair Market Value | F128: Flexclean - $1 Buyout
C129: FlexClean: | D129: 36 Month Term | F129: 36 Month Term | I129: No | J129: AB Brushes
C130: Hours included per Month: | D130: Gold | E130: Silver | F130: Gold | G130: Silver | H130: Check
C131: < 30/mo. (Avg. 1hr./day) | I131: =FlexCleanCalc!$A21 -> “FlexClean monthly rates include payment for both machine and service.”
C132: < 60/mo. (Avg. 2hrs./day)
C133: < 90/mo. (Avg. 3hrs./day)
C134: *This value assumes one service contract regardless of the number of UNITS included in the quote
C137: Bundled Offerings | D137: Flexclean – Fair Market Value | F137: Flexclean - $1 Buyout
C138: FlexClean 2: | D138: 48 Month Term | F138: 48 Month Term
C139: Hours included per Month: | D139: Gold | E139: Silver | F139: Gold | G139: Silver
C140: < 30/mo. (Avg. 1hr./day)
C141: < 60/mo. (Avg. 2hrs./day)
C142: < 90/mo. (Avg. 3hrs./day)
C143: *This value assumes one service contract regardless of the number of UNITS included in the quote
C145: Bundled Offerings | D145: Flexclean – Fair Market Value | F145: Flexclean - $1 Buyout
C146: FlexClean 3: | D146: 60 Month Term | F146: 60 Month Term
C147: Hours included per Month: | D147: Gold | E147: Silver | F147: Gold | G147: Silver
C148: < 30/mo. (Avg. 1hr./day)
C149: < 60/mo. (Avg. 2hrs./day)
C150: < 90/mo. (Avg. 3hrs./day)
C151: *This value assumes one service contract regardless of the number of UNITS included in the quote
B153: TennantTrue
C155: Is customer interested in service program? | D155: Yes | E155: *State/County selection required for TennantTrue service options
C157: If not, why?
C159: Term: | D159: 36 | F159: AB Brushes | G159: No
C160: Monthly machine usage (hrs): | D160: < 30/mo. (Avg. 1hr./day)
C162: TennantTrue: | D162: Gold Contract | F162: Silver Contract
C163: Per Visit | F163: 473
C164: Monthly | D164: 208 | F164: 99
C165: Annually | F165: 1160
C166: Pre-Pay Full Term | D166: 7200 | F166: 3411
C167: Hourly Labor Rate
C168: Site Visit
C170: * Verify customer current pricing prior to quote.
C171: **All rates and fees above reflect service for one (1) unit with the exception of Block of Time service.
C172: *Block of Time is available in 1 Year Term only and is priced as such no matter the term selection on this template.
D174: 0 | E174: 0
B176: Quote Special Instructions:
B179: =Start_Here!E36 -> Terms and Conditions
B180: =Start_Here!E37 -> Ask your local sales rep for estimated lead times. Verify when placing order
B181: =Start_Here!E38 -> All orders subject to acceptance by Tennant Sales and Service Company, Minneapolis, Minnesota
B182: =Start_Here!E39 -> Prices subject to change without notice.
B183: =Start_Here!E40 -> Terms: Net 30 days. Subject to any applicable taxes.
B184: =Start_Here!E41 -> Freight: Machines and accessory orders delivered FOB shipping point Frt PPD & Add
B185: =Start_Here!E42 -> Parts, supplies, detergents and floor treating material orders delivered FOB
B186: =Start_Here!E43 -> shipping point Frt PPD
B187: =Start_Here!E44 -> All orders are subject to Tennant’s General Terms and Conditions available at http://www.tennantco.com/terms.
B188: =Start_Here!E45 -> Printed General Terms and Conditions are also available upon request.
B189: =Start_Here!E46 -> 0
E191: Quote Date : | G191: =Letter!$A$25 -> 2020-09-22
A192: Order Placement Information: To place your order, fill in PO# and customer signatures,
A193: call or fax to the numbers listed below. Customer Purchase Order is required.
A194: If information is missing, orders will be entered and held until all information is received.
C196: Customer Number | E196: Cust Grp 3
C197: =Start_Here!$C$25 -> 0 | E197: =Start_Here!$C$29 -> 0
C198: =Start_Here!$B$18 -> Who Owns the Machine? (Sold-To Info) (Please Verify)
A199: Company | C199: =Start_Here!$C$19 -> Company Name
A200: Address | C200: =Start_Here!$C$20 -> Address
C201: =Start_Here!$C$21 -> City, State Zip
A202: Name | C202: =Start_Here!$C$22 -> Contact Name
A203: Phone | C203: =Start_Here!$C$23 -> Contact Phone
C204: =Start_Here!$B$11 -> Where is the Machine Being Shipped? (Ship-To Info) (Please Verify)
A205: Company | C205: =Start_Here!$C$12 -> Company Name
A206: Address | C206: =Start_Here!$C$13 -> Address
C207: =Start_Here!$C$14 -> City, State Zip
A208: Name | C208: =Start_Here!$C$15 -> Contact Name
A209: Phone | C209: =Start_Here!$C$16 -> Contact Phone
C210: =Start_Here!$B$31 -> Shipping / Carrier Instructions: | E210: Order Special Instructions:
C211: =Start_Here!$C$32 -> 0
C213: Customer Purchase Order No.
C214: (please attach copy)
C217: Tax Exempt | E217: Yes
E218: No
C219: If Yes, attach a copy of your exemption certificate.
C221: Requested Delivery Date
C222: =Start_Here!$C$28 -> 0
C224: =Start_Here!$C$26 -> 0 | E224: =Start_Here!$C$27 -> 0
B225: 0 | C225: Authorized Buyer (please print) | E225: Phone Number
B228: 0 | C228: Authorized Buyer Signature
C230: =Start_Here!$C$41 -> Rep Name
C231: Tennant Representative
D233: Specialized Maintenance Equipment
C234: =Start_Here!$C$48 -> TENNANT · 10400 Clean Street · Eden Prairie, MN 55344 ·
D235: =Start_Here!$C$49 -> PHONE:800-553-8033 · FAX:763-513-2116
B238: SPECIAL INFORMATION
B240: Notes
B241: 1 | C241: Standard Configurations are set configurations as listed and cannot be altered.
C242: However, these are partial configurations which require the selection of
C243: Brushes, Operator Manuals, Service Manual, and Shipment Packaging.
C244: Except where otherwise noted.
... 6 more rows

Sheet 6100
A1: 6100 | C1: =Start_Here!$C19 -> Company Name
A2: =SUM(G146) -> 0 | C2: =Start_Here!$C20 -> Address
C3: =Start_Here!$C21 -> City, State Zip
C4: =Start_Here!$C22 -> Contact Name
C5: =Start_Here!$C$41 -> Rep Name
C6: =Start_Here!$C$37 -> Tennant Sales and Service Company
C7: =Start_Here!$C$38 -> 10400 Clean Street
C8: =Start_Here!$C$39 -> Eden Prairie, MN 55344
C9: =Start_Here!$C$43 -> 800-553-8033 | E9: Quote Date : | G9: =Letter!$A$25 -> 2020-09-22
C11: =Help!C2 -> US Date Rev - 5/6/2025
C12: BUILT-IN "TENNANT VALUE" INCLUDES:
B14: Glide-In/Out Wheeled Hopper | D14: Panel Filter with VCS® System
B15: Color-Coded Wiring | D15: Low Effort Steering
B16: Corrosion-Proof Hopper & Shrouds | D16: Cup Holder
B17: Corner Rollers All-Around | D17: 360o Visibility
B18: Removable Side Panels | D18: Self Adjusting Recirculation Skirt
B19: High Visibility Operation Decals | D19: High Flow Radial Discharge Fan
B20: Auto-On Side Brush | D20: 36" Doorway Pass-Through Clearance
B21: WipeCleanTM Polyethylene Shrouds | D21: Wet 225AH C/20
B22: Retractable Sidebrush Assembly | D22: 21A 85-265V AC 50/60Hz 1Ph Charger
B23: Hour Meter | D23: Large Built-In Utility Tray
B24: Standard Main Sweeping Brush (Select One) | D24: Battery Discharge Indicator
B25: Standard Side Sweeping Brush (Select One) | D25: Power Shutdown Switch
B26: InstantAccessTM Filter | D26: Heavy-Duty Motor Controller (p/n 83187)
B27: No-Tool Brush & Filter Change
C30: TENNANT COMPANY WARRANTY
C31: 2 YEARS OR 1000 HOURS - PARTS
C32: 6 MONTHS - LABOR
C33: 6 MONTHS - TRAVEL
C34: 10 YEARS ON DURAMERTM HOPPER
C35: CUSTOM Options May Add 1 Week Or More to Standard Lead Times
E37: Quote Request Information
G38: Fax (quote only)
G39: Mail (quote,lit, specs)
G40: Fax + Mail
E42: Primary Use
G43: Inside
G44: Outside
C47: Description | D47: Reference # | E47: Price Each | F47: Qty | G47: Extended Price
B48: Base Configuration | F48: =SUM(F49,F52,F59) -> 0
C49: Cleaning Type | F49: =SUM(F50) -> 0 | L49: =SUM(F49) -> 0 | M49: Surcharge Qty
C50: 6100 Battery Rider Sweeper | D50: 6100-B | E50: 24171 | G50: =F50*E50 -> 0 | H50: =IFERROR(IFERROR(VLOOKUP(D50,Surcharge!A:B,2,FALSE)*F50, VLOOKUP(D50 & "",Surcharge!A:B,2,FALSE)*F50), "") -> 0 | P50: =VLOOKUP(Q50,'MPF SAP Download (2)'!A:E,5,FALSE) -> 24171 | Q50: M-6100VK_BASE_6100-BTY
H51: =IFERROR(IFERROR(VLOOKUP(D51,Surcharge!A:B,2,FALSE)*F51, VLOOKUP(D51 & "",Surcharge!A:B,2,FALSE)*F51), "") -> 
C52: Battery Type (Note 1 and 2) | F52: =SUM(F53:F57) -> 0 | H52: =IFERROR(IFERROR(VLOOKUP(D52,Surcharge!A:B,2,FALSE)*F52, VLOOKUP(D52 & "",Surcharge!A:B,2,FALSE)*F52), "") -> 
C53: Wet 225 AH C/20 (Kit of 6 batteries) | D53: 81698 | E53: N/C | G53: =IF(F53=0," ","N/C") ->  | H53: =IFERROR(IFERROR(VLOOKUP(D53,Surcharge!A:B,2,FALSE)*F53, VLOOKUP(D53 & "",Surcharge!A:B,2,FALSE)*F53), "") ->  | P53: =VLOOKUP(Q53,'MPF SAP Download (2)'!A:E,5,FALSE) -> N/C | Q53: M-6100VK_BTY_W225C20
C54: Sealed/MF Gel 180AH C/20 (Kit of 6 batteries) | D54: 324448 | E54: 2833 | G54: =F54*E54 -> 0 | H54: =IFERROR(IFERROR(VLOOKUP(D54,Surcharge!A:B,2,FALSE)*F54, VLOOKUP(D54 & "",Surcharge!A:B,2,FALSE)*F54), "") ->  | P54: =VLOOKUP(Q54,'MPF SAP Download (2)'!A:E,5,FALSE) -> 2833 | Q54: M-6100VK_BTY_G180C20
C55: Less Battery, DEDUCT (Note 3) | D55: LESS BATTERY | E55: -496 | G55: =F55*E55 -> 0 | H55: =IFERROR(IFERROR(VLOOKUP(D55,Surcharge!A:B,2,FALSE)*F55, VLOOKUP(D55 & "",Surcharge!A:B,2,FALSE)*F55), "") ->  | P55: =VLOOKUP(Q55,'MPF SAP Download (2)'!A:E,5,FALSE) -> -496 | Q55: M-6100VK_BTY_WO
H56: =IFERROR(IFERROR(VLOOKUP(D56,Surcharge!A:B,2,FALSE)*F56, VLOOKUP(D56 & "",Surcharge!A:B,2,FALSE)*F56), "") -> 
C57: Manual Battery Watering Kit | D57: 9009620 | E57: 847 | G57: =F57*E57 -> 0 | H57: =IFERROR(IFERROR(VLOOKUP(D57,Surcharge!A:B,2,FALSE)*F57, VLOOKUP(D57 & "",Surcharge!A:B,2,FALSE)*F57), "") ->  | P57: =VLOOKUP(Q57,'MPF SAP Download (2)'!A:E,5,FALSE) -> 847 | Q57: M-6100VK_BTYWTRSYS
H58: =IFERROR(IFERROR(VLOOKUP(D58,Surcharge!A:B,2,FALSE)*F58, VLOOKUP(D58 & "",Surcharge!A:B,2,FALSE)*F58), "") -> 
C59: Charger | F59: =SUM(F60:F64) -> 0 | H59: =IFERROR(IFERROR(VLOOKUP(D59,Surcharge!A:B,2,FALSE)*F59, VLOOKUP(D59 & "",Surcharge!A:B,2,FALSE)*F59), "") -> 
C60: 21A 85-265V AC 50/60Hz 1Ph - Off Board for Wet 225AH Battery | D60: 9003372 | E60: N/C | G60: =IF(F60=0," ","N/C") ->  | H60: =IFERROR(IFERROR(VLOOKUP(D60,Surcharge!A:B,2,FALSE)*F60, VLOOKUP(D60 & "",Surcharge!A:B,2,FALSE)*F60), "") ->  | P60: =VLOOKUP(Q60,'MPF SAP Download (2)'!A:E,5,FALSE) -> N/C | Q60: M-6100VK_21A85V5060H1P
C61: 21A 85-265V AC 50/60Hz 1Ph - Off Board for Gel 180AH Battery | D61: 314567 | E61: 481 | G61: =F61*E61 -> 0 | H61: =IFERROR(IFERROR(VLOOKUP(D61,Surcharge!A:B,2,FALSE)*F61, VLOOKUP(D61 & "",Surcharge!A:B,2,FALSE)*F61), "") ->  | P61: =VLOOKUP(Q61,'MPF SAP Download (2)'!A:E,5,FALSE) -> 481 | Q61: M-6100VK_21A85V5060H1P_G180
C62: 21A 85-265V AC 50/60Hz 1Ph - On Board for Wet 225AH Battery | D62: 326246 | E62: 2206 | G62: =F62*E62 -> 0 | H62: =IFERROR(IFERROR(VLOOKUP(D62,Surcharge!A:B,2,FALSE)*F62, VLOOKUP(D62 & "",Surcharge!A:B,2,FALSE)*F62), "") ->  | P62: =VLOOKUP(Q62,'MPF SAP Download (2)'!A:E,5,FALSE) -> 2206 | Q62: M-6100VK_21A85V5060H1P_W225_ON
C63: 21A 85-265V AC 50/60Hz 1Ph - On Board for Gel 180AH Battery | D63: 325736 | E63: 1953 | G63: =F63*E63 -> 0 | P63: =VLOOKUP(Q63,'MPF SAP Download (2)'!A:E,5,FALSE) -> 1953 | Q63: M-6100VK_21A85V5060H1P_G180_ON
C64: Less Charger, DEDUCT | D64: LESS CHARGER | E64: -321 | G64: =F64*E64 -> 0 | H64: =IFERROR(IFERROR(VLOOKUP(D64,Surcharge!A:B,2,FALSE)*F64, VLOOKUP(D64 & "",Surcharge!A:B,2,FALSE)*F64), "") ->  | P64: =VLOOKUP(Q64,'MPF SAP Download (2)'!A:E,5,FALSE) -> -321 | Q64: M-6100VK_CHG_WO
H65: =IFERROR(IFERROR(VLOOKUP(D65,Surcharge!A:B,2,FALSE)*F65, VLOOKUP(D65 & "",Surcharge!A:B,2,FALSE)*F65), "") -> 
B66: Packages | F66: =SUM(F67:F69) -> 0 | H66: =IFERROR(IFERROR(VLOOKUP(D66,Surcharge!A:B,2,FALSE)*F66, VLOOKUP(D66 & "",Surcharge!A:B,2,FALSE)*F66), "") -> 
C67: HEPA Dust Filter Package - Right Hand Side Brush (Note 4) | D67: HDR-6100 | E67: 7783 | G67: =F67*E67 -> 0 | H67: =IFERROR(IFERROR(VLOOKUP(D67,Surcharge!A:B,2,FALSE)*F67, VLOOKUP(D67 & "",Surcharge!A:B,2,FALSE)*F67), "") ->  | P67: =VLOOKUP(Q67,'MPF SAP Download (2)'!A:E,5,FALSE) -> 7783 | Q67: M-6100VK_SLADSTFLTPKG_RH
C68: Dry Dust Control (RH), HEPA Filter System | F68: =SUM(F67) -> 0 | H68: =IFERROR(IFERROR(VLOOKUP(D68,Surcharge!A:B,2,FALSE)*F68, VLOOKUP(D68 & "",Surcharge!A:B,2,FALSE)*F68), "") -> 
C69: HEPA Dust Filter Package - Dual Side Brush (Note 4) | D69: HDD-6100 | E69: 8445 | G69: =F69*E69 -> 0 | H69: =IFERROR(IFERROR(VLOOKUP(D69,Surcharge!A:B,2,FALSE)*F69, VLOOKUP(D69 & "",Surcharge!A:B,2,FALSE)*F69), "") ->  | P69: =VLOOKUP(Q69,'MPF SAP Download (2)'!A:E,5,FALSE) -> 8445 | Q69: M-6100VK_SLADSTFLTPKG_D
C70: Dry Dust Control (Dual), HEPA Filter System | F70: =SUM(F69) -> 0 | H70: =IFERROR(IFERROR(VLOOKUP(D70,Surcharge!A:B,2,FALSE)*F70, VLOOKUP(D70 & "",Surcharge!A:B,2,FALSE)*F70), "") -> 
H71: =IFERROR(IFERROR(VLOOKUP(D71,Surcharge!A:B,2,FALSE)*F71, VLOOKUP(D71 & "",Surcharge!A:B,2,FALSE)*F71), "") -> 
B72: Cleaning Performance | D72: Reference Number | F72: =SUM(F73:F80) -> 0 | H72: =IFERROR(IFERROR(VLOOKUP(D72,Surcharge!A:B,2,FALSE)*F72, VLOOKUP(D72 & "",Surcharge!A:B,2,FALSE)*F72), "") -> 
C73: Dual Sweeping Side Brush (Note 5) | D73: 83228 | E73: 1196 | G73: =F73*E73 -> 0 | H73: =IFERROR(IFERROR(VLOOKUP(D73,Surcharge!A:B,2,FALSE)*F73, VLOOKUP(D73 & "",Surcharge!A:B,2,FALSE)*F73), "") ->  | P73: =VLOOKUP(Q73,'MPF SAP Download (2)'!A:E,5,FALSE) -> 1196 | Q73: M-6100VK_SDEBRSLOC_D
C74: Side Brush Dust Control, Dry, Right Hand | D74: 326579 | E74: 1246 | G74: =F74*E74 -> 0 | H74: =IFERROR(IFERROR(VLOOKUP(D74,Surcharge!A:B,2,FALSE)*F74, VLOOKUP(D74 & "",Surcharge!A:B,2,FALSE)*F74), "") ->  | P74: =VLOOKUP(Q74,'MPF SAP Download (2)'!A:E,5,FALSE) -> 1246 | Q74: M-6100VK_SDEBRSDSTCTL_D_RH
C75: Side Brush Dust Control, Dry, Dual | D75: 326593 | E75: 1909 | G75: 0 | H75: =IFERROR(IFERROR(VLOOKUP(D75,Surcharge!A:B,2,FALSE)*F75, VLOOKUP(D75 & "",Surcharge!A:B,2,FALSE)*F75), "") ->  | P75: =VLOOKUP(Q75,'MPF SAP Download (2)'!A:E,5,FALSE) -> 1909 | Q75: M-6100VK_SDEBRSDSTCTL_D_D
C76: High Performance Vacuum Wand (dual vacuum motors) (Note 6) | D76: 83436 | E76: 2335 | G76: =F76*E76 -> 0 | H76: =IFERROR(IFERROR(VLOOKUP(D76,Surcharge!A:B,2,FALSE)*F76, VLOOKUP(D76 & "",Surcharge!A:B,2,FALSE)*F76), "") ->  | P76: =VLOOKUP(Q76,'MPF SAP Download (2)'!A:E,5,FALSE) -> 2335 | Q76: M-6100VK_PWRVACWND_VACWNDHP
C77: High Performance Vacuum Wand w/On-Board Charger (dual vacuum motors) (Note 6) | D77: 83436 & 326589 | E77: 5331 | G77: 0 | H77: =IFERROR(IFERROR(VLOOKUP(D77,Surcharge!A:B,2,FALSE)*F77, VLOOKUP(D77 & "",Surcharge!A:B,2,FALSE)*F77), "") ->  | P77: =VLOOKUP(Q77,'MPF SAP Download (2)'!A:E,5,FALSE) -> 5331 | Q77: M-6100VK_PWRVACWND_VACWNDHP_ON
C78: Vacuum Wand (Note 6) | D78: 83230 | E78: 2017 | G78: 0 | H78: =IFERROR(IFERROR(VLOOKUP(D78,Surcharge!A:B,2,FALSE)*F78, VLOOKUP(D78 & "",Surcharge!A:B,2,FALSE)*F78), "") ->  | P78: =VLOOKUP(Q78,'MPF SAP Download (2)'!A:E,5,FALSE) -> 2017 | Q78: M-6100VK_PWRVACWND_VACWND
C79: Vacuum Wand w/On-Board Charger (Note 6) | D79: 83230 & 326589 | E79: 5017 | G79: 0 | H79: =IFERROR(IFERROR(VLOOKUP(D79,Surcharge!A:B,2,FALSE)*F79, VLOOKUP(D79 & "",Surcharge!A:B,2,FALSE)*F79), "") ->  | P79: =VLOOKUP(Q79,'MPF SAP Download (2)'!A:E,5,FALSE) -> 5017 | Q79: M-6100VK_PWRVACWND_VACWND_ON
C80: HEPA Filter System (Note 7) | D80: 324539 | E80: 6542 | G80: 0 | H80: =IFERROR(IFERROR(VLOOKUP(D80,Surcharge!A:B,2,FALSE)*F80, VLOOKUP(D80 & "",Surcharge!A:B,2,FALSE)*F80), "") ->  | P80: =VLOOKUP(Q80,'MPF SAP Download (2)'!A:E,5,FALSE) -> 6542 | Q80: M-6100VK_FLRSYS_HEPA
H81: =IFERROR(IFERROR(VLOOKUP(D81,Surcharge!A:B,2,FALSE)*F81, VLOOKUP(D81 & "",Surcharge!A:B,2,FALSE)*F81), "") -> 
B82: Machine Protection & Safety | E82: Price | F82: =SUM(F83:F93) -> 0 | H82: =IFERROR(IFERROR(VLOOKUP(D82,Surcharge!A:B,2,FALSE)*F82, VLOOKUP(D82 & "",Surcharge!A:B,2,FALSE)*F82), "") -> 
C83: Side Bumper GlideByTM Protective Side Molding [Not w/rollout 83357] | D83: 83434 | E83: 223 | G83: =F83*E83 -> 0 | H83: =IFERROR(IFERROR(VLOOKUP(D83,Surcharge!A:B,2,FALSE)*F83, VLOOKUP(D83 & "",Surcharge!A:B,2,FALSE)*F83), "") ->  | P83: =VLOOKUP(Q83,'MPF SAP Download (2)'!A:E,5,FALSE) -> 223 | Q83: M-6100VK_SDEBMP
C84: Adjustable Seat (front/back) | D84: 83193 | E84: 171 | G84: 0 | H84: =IFERROR(IFERROR(VLOOKUP(D84,Surcharge!A:B,2,FALSE)*F84, VLOOKUP(D84 & "",Surcharge!A:B,2,FALSE)*F84), "") ->  | P84: =VLOOKUP(Q84,'MPF SAP Download (2)'!A:E,5,FALSE) -> 171 | Q84: M-6100VK_SET_ADJFB
C85: Seat Belt | D85: 83266 | E85: 175 | G85: 0 | H85: =IFERROR(IFERROR(VLOOKUP(D85,Surcharge!A:B,2,FALSE)*F85, VLOOKUP(D85 & "",Surcharge!A:B,2,FALSE)*F85), "") ->  | P85: =VLOOKUP(Q85,'MPF SAP Download (2)'!A:E,5,FALSE) -> 175 | Q85: M-6100VK_SETBLT
C86: Rear Tires, Solid, Non-Marking (in lieu of standard) | D86: 374178 | E86: 371 | G86: 0 | H86: =IFERROR(IFERROR(VLOOKUP(D86,Surcharge!A:B,2,FALSE)*F86, VLOOKUP(D86 & "",Surcharge!A:B,2,FALSE)*F86), "") ->  | P86: =VLOOKUP(Q86,'MPF SAP Download (2)'!A:E,5,FALSE) -> 371 | Q86: M-6100VK_RERTRE_SNM
C87: Audio BU Alarm w/o vac wand | D87: 384497 | E87: 577 | G87: 0 | H87: =IFERROR(IFERROR(VLOOKUP(D87,Surcharge!A:B,2,FALSE)*F87, VLOOKUP(D87 & "",Surcharge!A:B,2,FALSE)*F87), "") ->  | P87: =VLOOKUP(Q87,'MPF SAP Download (2)'!A:E,5,FALSE) -> 577 | Q87: M-6100VK_WRNLGTANDALM_AU
C88: Audio BU Alarm with vac wand | D88: 384498 | E88: 577 | G88: =F88*E88 -> 0 | H88: =IFERROR(IFERROR(VLOOKUP(D88,Surcharge!A:B,2,FALSE)*F88, VLOOKUP(D88 & "",Surcharge!A:B,2,FALSE)*F88), "") ->  | P88: =VLOOKUP(Q88,'MPF SAP Download (2)'!A:E,5,FALSE) -> 577 | Q88: M-6100VK_WRNLGTANDALM_AU
C89: AV BU Alarm w/ Strobe Light on Lintel w/o vac wand | D89: 374350 | E89: 789 | G89: 0 | H89: =IFERROR(IFERROR(VLOOKUP(D89,Surcharge!A:B,2,FALSE)*F89, VLOOKUP(D89 & "",Surcharge!A:B,2,FALSE)*F89), "") ->  | P89: =VLOOKUP(Q89,'MPF SAP Download (2)'!A:E,5,FALSE) -> 789 | Q89: M-6100VK_WRNLGTANDALM_AUSL
C90: AV BU Alarm w/ Strobe Light on Lintel with vac wand | D90: 374349 | E90: 789 | G90: =F90*E90 -> 0 | H90: =IFERROR(IFERROR(VLOOKUP(D90,Surcharge!A:B,2,FALSE)*F90, VLOOKUP(D90 & "",Surcharge!A:B,2,FALSE)*F90), "") ->  | P90: =VLOOKUP(Q90,'MPF SAP Download (2)'!A:E,5,FALSE) -> 789 | Q90: M-6100VK_WRNLGTANDALM_AUSL
C91: Blue Light (Note 9) | D91: 9021424 | E91: 1128 | G91: =F91*E91 -> 0
C92: Work Light, Single | D92: 83202 | E92: 435 | G92: =F92*E92 -> 0 | H92: =IFERROR(IFERROR(VLOOKUP(D92,Surcharge!A:B,2,FALSE)*F92, VLOOKUP(D92 & "",Surcharge!A:B,2,FALSE)*F92), "") ->  | P92: =VLOOKUP(Q92,'MPF SAP Download (2)'!A:E,5,FALSE) -> 435 | Q92: M-6100VK_WRKLGT
C93: Fire Extinguisher | D93: 83220 | E93: 235 | G93: =F93*E93 -> 0 | H93: =IFERROR(IFERROR(VLOOKUP(D93,Surcharge!A:B,2,FALSE)*F93, VLOOKUP(D93 & "",Surcharge!A:B,2,FALSE)*F93), "") ->  | P93: =VLOOKUP(Q93,'MPF SAP Download (2)'!A:E,5,FALSE) -> 235 | Q93: M-6100VK_FREEXT
H94: =IFERROR(IFERROR(VLOOKUP(D94,Surcharge!A:B,2,FALSE)*F94, VLOOKUP(D94 & "",Surcharge!A:B,2,FALSE)*F94), "") -> 
B95: Brushes and Pads | F95: =SUM(F96,F102) -> 0 | H95: =IFERROR(IFERROR(VLOOKUP(D95,Surcharge!A:B,2,FALSE)*F95, VLOOKUP(D95 & "",Surcharge!A:B,2,FALSE)*F95), "") -> 
C96: Main Sweeping Brushes | F96: =SUM(F97:F100) -> 0 | H96: =IFERROR(IFERROR(VLOOKUP(D96,Surcharge!A:B,2,FALSE)*F96, VLOOKUP(D96 & "",Surcharge!A:B,2,FALSE)*F96), "") -> 
C97: Polypropylene Brush | D97: 81888 | E97: N/C | G97: =IF(F97=0," ","N/C") ->  | H97: =IFERROR(IFERROR(VLOOKUP(D97,Surcharge!A:B,2,FALSE)*F97, VLOOKUP(D97 & "",Surcharge!A:B,2,FALSE)*F97), "") ->  | P97: =VLOOKUP(Q97,'MPF SAP Download (2)'!A:E,5,FALSE) -> N/C | Q97: M-6100VK_CLNTOL_PYP
C98: Polypropylene, Window Brush | D98: 370048 | E98: N/C | G98: =IF(F98=0," ","N/C") ->  | H98: =IFERROR(IFERROR(VLOOKUP(D98,Surcharge!A:B,2,FALSE)*F98, VLOOKUP(D98 & "",Surcharge!A:B,2,FALSE)*F98), "") ->  | P98: =VLOOKUP(Q98,'MPF SAP Download (2)'!A:E,5,FALSE) -> N/C | Q98: M-6100VK_CLNTOL_PYPWIN
C99: Union Mix Brush (Note 10) | D99: 83031 | E99: 295 | G99: =F99*E99 -> 0 | H99: =IFERROR(IFERROR(VLOOKUP(D99,Surcharge!A:B,2,FALSE)*F99, VLOOKUP(D99 & "",Surcharge!A:B,2,FALSE)*F99), "") ->  | P99: =VLOOKUP(Q99,'MPF SAP Download (2)'!A:E,5,FALSE) -> 295 | Q99: M-6100VK_CLNTOL_UMB
C100: Sand Wedge Brush | D100: 83030 | E100: 295 | G100: =F100*E100 -> 0 | H100: =IFERROR(IFERROR(VLOOKUP(D100,Surcharge!A:B,2,FALSE)*F100, VLOOKUP(D100 & "",Surcharge!A:B,2,FALSE)*F100), "") ->  | P100: =VLOOKUP(Q100,'MPF SAP Download (2)'!A:E,5,FALSE) -> 295 | Q100: M-6100VK_CLNTOL_SWB
H101: =IFERROR(IFERROR(VLOOKUP(D101,Surcharge!A:B,2,FALSE)*F101, VLOOKUP(D101 & "",Surcharge!A:B,2,FALSE)*F101), "") -> 
C102: Side Sweeping Brushes | F102: =SUM(F103:F104) -> 0 | H102: =IFERROR(IFERROR(VLOOKUP(D102,Surcharge!A:B,2,FALSE)*F102, VLOOKUP(D102 & "",Surcharge!A:B,2,FALSE)*F102), "") -> 
C103: Polypropylene Brush | D103: 80042 | E103: N/C | G103: =IF(F103=0," ","N/C") ->  | H103: =IFERROR(IFERROR(VLOOKUP(D103,Surcharge!A:B,2,FALSE)*F103, VLOOKUP(D103 & "",Surcharge!A:B,2,FALSE)*F103), "") ->  | P103: =VLOOKUP(Q103,'MPF SAP Download (2)'!A:E,5,FALSE) -> N/C | Q103: M-6100VK_SDECLNTOL_PYP
C104: Heavy Duty Polypropylene Brush | D104: 378804 | E104: N/C | G104: =IF(F104=0," ","N/C") ->  | H104: =IFERROR(IFERROR(VLOOKUP(D104,Surcharge!A:B,2,FALSE)*F104, VLOOKUP(D104 & "",Surcharge!A:B,2,FALSE)*F104), "") ->  | P104: =VLOOKUP(Q104,'MPF SAP Download (2)'!A:E,5,FALSE) -> N/C | Q104: M-6100VK_SDECLNTOL_HDPYP
H105: =IFERROR(IFERROR(VLOOKUP(D105,Surcharge!A:B,2,FALSE)*F105, VLOOKUP(D105 & "",Surcharge!A:B,2,FALSE)*F105), "") -> 
B106: Support | D106: Reference Number | F106: =SUM(F107:F117) -> 0 | H106: =IFERROR(IFERROR(VLOOKUP(D106,Surcharge!A:B,2,FALSE)*F106, VLOOKUP(D106 & "",Surcharge!A:B,2,FALSE)*F106), "") -> 
C107: Standard Warranty | E107: N/C | G107: =IF(F107=0," ","N/C") ->  | H107: =IFERROR(IFERROR(VLOOKUP(D107,Surcharge!A:B,2,FALSE)*F107, VLOOKUP(D107 & "",Surcharge!A:B,2,FALSE)*F107), "") ->  | P107: =VLOOKUP(Q107,'MPF SAP Download (2)'!A:E,5,FALSE) -> N/C | Q107: M-6100VK_WTY_STD
C108: Extended Warranty (Note 11) | D108: 42405 | E108: 2411 | G108: =F108*E108 -> 0 | H108: =IFERROR(IFERROR(VLOOKUP(D108,Surcharge!A:B,2,FALSE)*F108, VLOOKUP(D108 & "",Surcharge!A:B,2,FALSE)*F108), "") ->  | P108: =VLOOKUP(Q108,'MPF SAP Download (2)'!A:E,5,FALSE) -> 2411 | Q108: M-6100VK_WAR_XTD
C109: Ultimate Performance Guarantee | D109: 50619 | E109: N/C | G109: =IF(F109=0," ","N/C") ->  | H109: =IFERROR(IFERROR(VLOOKUP(D109,Surcharge!A:B,2,FALSE)*F109, VLOOKUP(D109 & "",Surcharge!A:B,2,FALSE)*F109), "") ->  | P109: =VLOOKUP(Q109,'MPF SAP Download (2)'!A:E,5,FALSE) -> N/C | Q109: M-6100VK_UPG
C110: Operator Manual (English) | D110: 330250 | E110: N/C | H110: =IFERROR(IFERROR(VLOOKUP(D110,Surcharge!A:B,2,FALSE)*F110, VLOOKUP(D110 & "",Surcharge!A:B,2,FALSE)*F110), "") ->  | P110: =VLOOKUP(Q110,'MPF SAP Download (2)'!A:E,5,FALSE) ->  | Q110: M-6100
C111: Operator Manual (Spanish) | D111: 330252 | E111: N/C | H111: =IFERROR(IFERROR(VLOOKUP(D111,Surcharge!A:B,2,FALSE)*F111, VLOOKUP(D111 & "",Surcharge!A:B,2,FALSE)*F111), "") ->  | P111: =VLOOKUP(Q111,'MPF SAP Download (2)'!A:E,5,FALSE) ->  | Q111: M-6100
C112: Operator Manual (French) | D112: 330253 | E112: N/C | H112: =IFERROR(IFERROR(VLOOKUP(D112,Surcharge!A:B,2,FALSE)*F112, VLOOKUP(D112 & "",Surcharge!A:B,2,FALSE)*F112), "") ->  | P112: =VLOOKUP(Q112,'MPF SAP Download (2)'!A:E,5,FALSE) ->  | Q112: M-6100
C113: Additional Operator Manual | D113: SEE ABOVE | E113: 209 | G113: 0 | H113: =IFERROR(IFERROR(VLOOKUP(D113,Surcharge!A:B,2,FALSE)*F113, VLOOKUP(D113 & "",Surcharge!A:B,2,FALSE)*F113), "") ->  | P113: =VLOOKUP(Q113,'MPF SAP Download (2)'!A:E,5,FALSE) -> 209 | Q113: M-6100VK_ADLOPRMNL
C114: Parts Manual | E114: 28 | G114: =F114*E114 -> 0 | H114: =IFERROR(IFERROR(VLOOKUP(D114,Surcharge!A:B,2,FALSE)*F114, VLOOKUP(D114 & "",Surcharge!A:B,2,FALSE)*F114), "") ->  | P114: =VLOOKUP(Q114,'MPF SAP Download (2)'!A:E,5,FALSE) -> 28 | Q114: M-6100VK_PARMNL
C115: Service Manual | D115: 330255 | E115: 272 | G115: 0 | H115: =IFERROR(IFERROR(VLOOKUP(D115,Surcharge!A:B,2,FALSE)*F115, VLOOKUP(D115 & "",Surcharge!A:B,2,FALSE)*F115), "") ->  | P115: =VLOOKUP(Q115,'MPF SAP Download (2)'!A:E,5,FALSE) -> 272 | Q115: M-6100VK_SRVMNL
H116: =IFERROR(IFERROR(VLOOKUP(D116,Surcharge!A:B,2,FALSE)*F116, VLOOKUP(D116 & "",Surcharge!A:B,2,FALSE)*F116), "") -> 
C117: Packaging (Note 12) | F117: =SUM(F118:F120) -> 0 | H117: =IFERROR(IFERROR(VLOOKUP(D117,Surcharge!A:B,2,FALSE)*F117, VLOOKUP(D117 & "",Surcharge!A:B,2,FALSE)*F117), "") -> 
C118: Pad Wrap | E118: N/C | G118: =IF(F118=0," ","N/C") ->  | H118: =IFERROR(IFERROR(VLOOKUP(D118,Surcharge!A:B,2,FALSE)*F118, VLOOKUP(D118 & "",Surcharge!A:B,2,FALSE)*F118), "") ->  | P118: =VLOOKUP(Q118,'MPF SAP Download (2)'!A:E,5,FALSE) -> N/C | Q118: M-6100VK_PKG_PAD
C119: Crate | D119: 83353 | E119: 681 | G119: =F119*E119 -> 0 | H119: =IFERROR(IFERROR(VLOOKUP(D119,Surcharge!A:B,2,FALSE)*F119, VLOOKUP(D119 & "",Surcharge!A:B,2,FALSE)*F119), "") ->  | P119: =VLOOKUP(Q119,'MPF SAP Download (2)'!A:E,5,FALSE) -> 681 | Q119: M-6100VK_PKG_CRT
C120: Skid | D120: 375230 | E120: 357 | G120: =F120*E120 -> 0 | H120: =IFERROR(IFERROR(VLOOKUP(D120,Surcharge!A:B,2,FALSE)*F120, VLOOKUP(D120 & "",Surcharge!A:B,2,FALSE)*F120), "") ->  | P120: =VLOOKUP(Q120,'MPF SAP Download (2)'!A:E,5,FALSE) -> 357 | Q120: M-6100VK_PKG_SKD
H121: =IFERROR(IFERROR(VLOOKUP(D121,Surcharge!A:B,2,FALSE)*F121, VLOOKUP(D121 & "",Surcharge!A:B,2,FALSE)*F121), "") -> 
B122: Custom Solutions | F122: =SUM(F123) -> 0 | H122: =IFERROR(IFERROR(VLOOKUP(D122,Surcharge!A:B,2,FALSE)*F122, VLOOKUP(D122 & "",Surcharge!A:B,2,FALSE)*F122), "") -> 
C123: Custom Color (Note 13) | D123: 324138 | E123: 4404 | G123: =F123*E123 -> 0 | H123: =IFERROR(IFERROR(VLOOKUP(D123,Surcharge!A:B,2,FALSE)*F123, VLOOKUP(D123 & "",Surcharge!A:B,2,FALSE)*F123), "") ->  | P123: =VLOOKUP(Q123,'MPF SAP Download (2)'!A:E,5,FALSE) -> 4404 | Q123: M-6100VK_CSMSLN_CC
H124: =IFERROR(IFERROR(VLOOKUP(D124,Surcharge!A:B,2,FALSE)*F124, VLOOKUP(D124 & "",Surcharge!A:B,2,FALSE)*F124), "") -> 
F126: =SUM(#REF!) -> 
B128: Custom Solution--write in description, qty, price, and PN if applicable | F128: =SUM(E129) -> 0
D129: Insert Prices Here | E129: =SUM(F130:F133) -> 0
D130: Custom | F130: =IF(E130 <> "", 1, 0) -> 0 | G130: =F130*E130 -> 0
D131: Custom | F131: =IF(E131 <> "", 1, 0) -> 0 | G131: =F131*E131 -> 0
D132: Custom | F132: 0 | G132: =F132*E132 -> 0
D133: Custom | F133: 0 | G133: =F133*E133 -> 0
E134: =ROUND(SUM(G50:G133), 0) -> 0 | F134: =SUM(E135) -> 0
D135: Machine Subtotal | E135: =ROUND(SUM(G50:G133), 0) -> 0 | F135: =F134 -> 0
B136: Discounts | F136: =SUM(F137) -> 0
F137: =SUM(F138:F139) -> 0
D138: Discount % | F138: =IF(E138 <> "", 1, 0) -> 0 | G138: =IF(F138*(E138*0.01)*E134 < 0, F138*(E138*0.01)*E134, -(F138*(E138*0.01)*E134)) -> 0
D139: Discount $ | F139: =IF(E139 <> "", 1, 0) -> 0 | G139: =IF(F139*E139 < 0, F139*E139, -(F139*E139)) -> 0
D140: Discount Total | E140: =SUM(G138:G139) -> 0 | F140: =SUM(E140) -> 0
E141: =#REF! ->  | F141: =#REF! -> 
F142: =F141 -> 
C143: Prepaid and Add | D143: Freight | F143: =IF(E143 <> "", 1, 0) -> 0 | G143: =F143*E143 -> 0
C144: Subject to all applicable taxes | D144: Tax | F144: 0 | G144: =F144*E144 -> 0
F145: =SUM(F146) -> 0
D146: MACHINE TOTAL* | F146: =SUM(G146) -> 0 | G146: =SUM(G50:G144) -> 0 | K146: This goes to "My Documents"
G147: =SUM(G146) -> 0
B148: Financing
C150: Is customer interested in financing? | D150: Yes
C152: If not, why?
C155: First Western Equipment Finance - Leasing Calculation Option: | D155: Option 1 | F155: Option 2 | J155: =Financing!A38 -> Rates 2025 - Rev. 5/6/2025
D156: Monthly Payment | E156: Cost Per Day | F156: Monthly Payment | G156: Cost Per Day | J156: =Financing!A39 -> “Blank Payment Amounts Indicate The Financing Option Or Purchase Options Selected Are Not
C157: Purchase Option: | D157: FWEF: $1 Buyout Lease | F157: FWEF: Municipal Lease | J157: =Financing!A40 -> Applicable Or The Machine Total Is Below The Minimum Amount For The Selected Vendor”
C158: 24 Months | D158: 0 | E158: 0 | F158: 0 | G158: 0 | J158: =Financing!A41 -> "Quoted monthly payments are estimates only and are based on a certain level of credit rating.
C159: 30 Months | D159: 0 | E159: 0 | F159: 0 | G159: 0 | J159: =Financing!A42 -> Actual monthly payments may be higher depending on your credit rating."
C160: 36 Months | D160: 0 | E160: 0 | F160: 0 | G160: 0 | J160: =Financing!A43 -> “Financing rates do not include Pre-Paid Service”
C161: 48 Months | D161: 0 | E161: 0 | F161: 0 | G161: 0 | I161: =Financing!A44 -> 0
D163: Benefits of Equipment Financing:
D164: • Spreads out investment over time. | F164: • Keep current with latest technology.
D165: • Preserve capital. | F165: • Service and parts bundling available.
D166: • Low monthly payment. | F166: • Pay for labor savings as you go.
C169: Bundled Offerings | D169: Flexclean – Fair Market Value | F169: Flexclean - $1 Buyout
C170: FlexClean: | D170: 36 Month Term | F170: 36 Month Term | I170: No | J170: AB Brushes
C171: Hours included per Month: | D171: Gold | E171: Silver | F171: Gold | G171: Silver | H171: Check
C172: < 30/mo. (Avg. 1hr./day) | I172: =FlexCleanCalc!$A21 -> “FlexClean monthly rates include payment for both machine and service.”
C173: < 60/mo. (Avg. 2hrs./day)
C174: < 90/mo. (Avg. 3hrs./day)
C175: *This value assumes one service contract regardless of the number of UNITS included in the quote
C178: Bundled Offerings | D178: Flexclean – Fair Market Value | F178: Flexclean - $1 Buyout
C179: FlexClean 2: | D179: 48 Month Term | F179: 48 Month Term
C180: Hours included per Month: | D180: Gold | E180: Silver | F180: Gold | G180: Silver
C181: < 30/mo. (Avg. 1hr./day)
C182: < 60/mo. (Avg. 2hrs./day)
C183: < 90/mo. (Avg. 3hrs./day)
C184: *This value assumes one service contract regardless of the number of UNITS included in the quote
C186: Bundled Offerings | D186: Flexclean – Fair Market Value | F186: Flexclean - $1 Buyout
C187: FlexClean 3: | D187: 60 Month Term | F187: 60 Month Term
C188: Hours included per Month: | D188: Gold | E188: Silver | F188: Gold | G188: Silver
C189: < 30/mo. (Avg. 1hr./day)
C190: < 60/mo. (Avg. 2hrs./day)
C191: < 90/mo. (Avg. 3hrs./day)
C192: *This value assumes one service contract regardless of the number of UNITS included in the quote
B194: TennantTrue
C196: Is customer interested in service program? | D196: Yes | E196: *State/County selection required for TennantTrue service options
C198: If not, why?
C200: Term: | D200: 36 | F200: AB Brushes | G200: No
C201: Monthly machine usage (hrs): | D201: < 30/mo. (Avg. 1hr./day)
C203: TennantTrue: | D203: Gold Contract | F203: Silver Contract
C204: Per Visit | F204: 473
C205: Monthly | D205: 208 | F205: 99
C206: Annually | F206: 1160
C207: Pre-Pay Full Term | D207: 7200 | F207: 3411
C208: Hourly Labor Rate
C209: Site Visit
C211: * Verify customer current pricing prior to quote.
C212: **All rates and fees above reflect service for one (1) unit with the exception of Block of Time service.
C213: *Block of Time is available in 1 Year Term only and is priced as such no matter the term selection on this template.
D215: 0 | E215: 0
B217: Quote Special Instructions:
B220: =Start_Here!E36 -> Terms and Conditions
B221: =Start_Here!E37 -> Ask your local sales rep for estimated lead times. Verify when placing order
B222: =Start_Here!E38 -> All orders subject to acceptance by Tennant Sales and Service Company, Minneapolis, Minnesota
B223: =Start_Here!E39 -> Prices subject to change without notice.
B224: =Start_Here!E40 -> Terms: Net 30 days. Subject to any applicable taxes.
B225: =Start_Here!E41 -> Freight: Machines and accessory orders delivered FOB shipping point Frt PPD & Add
B226: =Start_Here!E42 -> Parts, supplies, detergents and floor treating material orders delivered FOB
B227: =Start_Here!E43 -> shipping point Frt PPD
B228: =Start_Here!E44 -> All orders are subject to Tennant’s General Terms and Conditions available at http://www.tennantco.com/terms.
B229: =Start_Here!E45 -> Printed General Terms and Conditions are also available upon request.
B230: =Start_Here!E46 -> 0
... 86 more rows

Sheet S680
A1: S680 | C1: =Start_Here!$C19 -> Company Name
A2: =SUM(G101) -> 0 | C2: =Start_Here!$C20 -> Address
C3: =Start_Here!$C21 -> City, State Zip
C4: =Start_Here!$C22 -> Contact Name
C5: =Start_Here!$C$41 -> Rep Name
C6: =Start_Here!$C$37 -> Tennant Sales and Service Company
C7: =Start_Here!$C$38 -> 10400 Clean Street
C8: =Start_Here!$C$39 -> Eden Prairie, MN 55344
C9: =Start_Here!$C$43 -> 800-553-8033 | E9: Quote Date : | G9: =Letter!$A$25 -> 2020-09-22
C11: =Help!C2 -> US Date Rev - 5/6/2025
C12: BUILT-IN "TENNANT VALUE" INCLUDES:
B14: 42" (1050 mm) Sweep Path | D14: Horn
B15: 2.5 ft3 / 70L Low-Dump Hopper Volume Capacity | D15: Low Effort Steering
B16: Corrosion-Proof Hopper & Shrouds | D16: Adjustable Side Brush RPM
B17: Front Corner Rollers | D17: 360o Visibility
B18: Flap and Trap Debris Pedal | D18: Self-Leveling Main Brush
B19: High Visibility Operation Decals | D19: Amber Strobe Light
B20: Glide-In/Out Wheeled Hopper | D20: Thermo-Sentry™ Hopper Fire Sensor
B21: Retractable Side Brush Assemblies | D21: Wet 225AH C/20 Batteries
B22: Hour Meter | D22: 27A 85-270V AC 50/60Hz 1Ph Charger
B23: Standard Main Sweeping Brush (Select One) | D23: Battery Discharge Indicator
B24: Standard Dual Side Sweeping Brushes | D24: Power Shutdown Switch
B25: No-Tool Main Brush & Filter Change | D25: Operator Manual
B26: Seat occupancy interlock safety switch
C30: TENNANT COMPANY WARRANTY
C31: 2 YEARS OR 1000 HOURS - PARTS
C32: 6 MONTHS - LABOR
C33: 6 MONTHS - TRAVEL
C34: 10 YEARS ON DURAMERTM HOPPER
E37: Quote Request Information
G38: Fax (quote only)
G39: Mail (quote,lit, specs)
G40: Fax + Mail
E42: Primary Use
G43: Inside
G44: Outside
C47: Description | D47: Reference # | E47: Price Each | F47: Qty | G47: Extended Price
B48: Base Configuration | F48: =SUM(F49,F52,F57) -> 0
C49: Cleaning Type | F49: =SUM(F50) -> 0 | L49: =SUM(F49) -> 0 | M49: Surcharge Qty
C50: S680 Ride-On Sweeper 1050 mm/42" w/ Dual Side Brushes | D50: S680_1050 | E50: 17509 | G50: =F50*E50 -> 0 | H50: =IFERROR(IFERROR(VLOOKUP(D50,Surcharge!A:B,2,FALSE)*F50, VLOOKUP(D50 & "",Surcharge!A:B,2,FALSE)*F50), "") ->  | P50: =VLOOKUP(Q50,'MPF SAP Download (2)'!A:E,5,FALSE) -> 24171 | Q50: M-6100VK_BASE_6100-BTY
H51: =IFERROR(IFERROR(VLOOKUP(D51,Surcharge!A:B,2,FALSE)*F51, VLOOKUP(D51 & "",Surcharge!A:B,2,FALSE)*F51), "") -> 
C52: Battery Type | F52: =SUM(F53:F55) -> 0 | H52: =IFERROR(IFERROR(VLOOKUP(D52,Surcharge!A:B,2,FALSE)*F52, VLOOKUP(D52 & "",Surcharge!A:B,2,FALSE)*F52), "") -> 
C53: Wet 225AH C/20 | D53: 9022613 | E53: N/C | G53: =IF(F53=0," ","N/C") ->  | H53: =IFERROR(IFERROR(VLOOKUP(D53,Surcharge!A:B,2,FALSE)*F53, VLOOKUP(D53 & "",Surcharge!A:B,2,FALSE)*F53), "") ->  | P53: =VLOOKUP(Q53,'MPF SAP Download (2)'!A:E,5,FALSE) -> N/C | Q53: M-6100VK_BTY_W225C20
C54: Sealed/MF AGM 245AH C/20 | D54: 9022614 | E54: 1190 | G54: =F54*E54 -> 0 | H54: =IFERROR(IFERROR(VLOOKUP(D54,Surcharge!A:B,2,FALSE)*F54, VLOOKUP(D54 & "",Surcharge!A:B,2,FALSE)*F54), "") ->  | P54: =VLOOKUP(Q54,'MPF SAP Download (2)'!A:E,5,FALSE) -> 2833 | Q54: M-6100VK_BTY_G180C20
C55: Without Battery | D55: LESS BATTERY | E55: -450 | G55: =F55*E55 -> 0 | H55: =IFERROR(IFERROR(VLOOKUP(D55,Surcharge!A:B,2,FALSE)*F55, VLOOKUP(D55 & "",Surcharge!A:B,2,FALSE)*F55), "") ->  | P55: =VLOOKUP(Q55,'MPF SAP Download (2)'!A:E,5,FALSE) -> -496 | Q55: M-6100VK_BTY_WO
C57: Charger | F57: =SUM(F58:F59) -> 0 | H57: =IFERROR(IFERROR(VLOOKUP(D57,Surcharge!A:B,2,FALSE)*F57, VLOOKUP(D57 & "",Surcharge!A:B,2,FALSE)*F57), "") -> 
C58: 27A 85-270V AC 50/60Hz 1Ph - Off Board | D58: 9015391 | E58: N/C | G58: =IF(F58=0," ","N/C") ->  | H58: =IFERROR(IFERROR(VLOOKUP(D58,Surcharge!A:B,2,FALSE)*F58, VLOOKUP(D58 & "",Surcharge!A:B,2,FALSE)*F58), "") ->  | P58: =VLOOKUP(Q58,'MPF SAP Download (2)'!A:E,5,FALSE) -> 847 | Q58: M-6100VK_BTYWTRSYS
C59: Without Charger | D59: LESS CHARGER | E59: -270 | G59: =F59*E59 -> 0 | H59: =IFERROR(IFERROR(VLOOKUP(D59,Surcharge!A:B,2,FALSE)*F59, VLOOKUP(D59 & "",Surcharge!A:B,2,FALSE)*F59), "") -> 
B61: Packages | F61: =SUM(F62) -> 0 | H61: =IFERROR(IFERROR(VLOOKUP(D61,Surcharge!A:B,2,FALSE)*F61, VLOOKUP(D61 & "",Surcharge!A:B,2,FALSE)*F61), "") -> 
C62: Carpet Care Package (Note 1) | D62: 9022636 | E62: 54 | G62: =F62*E62 -> 0 | H62: =IFERROR(IFERROR(VLOOKUP(D62,Surcharge!A:B,2,FALSE)*F62, VLOOKUP(D62 & "",Surcharge!A:B,2,FALSE)*F62), "") ->  | P62: =VLOOKUP(Q62,'MPF SAP Download (2)'!A:E,5,FALSE) -> 7783 | Q62: M-6100VK_SLADSTFLTPKG_RH
F63: =SUM(F62) -> 0 | H63: =IFERROR(IFERROR(VLOOKUP(D63,Surcharge!A:B,2,FALSE)*F63, VLOOKUP(D63 & "",Surcharge!A:B,2,FALSE)*F63), "") -> 
B64: Brushes and Pads | F64: =SUM(F65,F70) -> 0 | P64: =VLOOKUP(Q64,'MPF SAP Download (2)'!A:E,5,FALSE) -> 8445 | Q64: M-6100VK_SLADSTFLTPKG_D
C65: Main Sweeping Brushes | F65: =SUM(F66:F68) -> 0 | H65: =IFERROR(IFERROR(VLOOKUP(D65,Surcharge!A:B,2,FALSE)*F65, VLOOKUP(D65 & "",Surcharge!A:B,2,FALSE)*F65), "") -> 
C66: Polypropylene Brush | D66: 9022617 | E66: N/C | G66: =IF(F66=0," ","N/C") ->  | H66: =IFERROR(IFERROR(VLOOKUP(D66,Surcharge!A:B,2,FALSE)*F66, VLOOKUP(D66 & "",Surcharge!A:B,2,FALSE)*F66), "") -> 
C67: Polypropylene and Wire Brush | D67: 9022619 | E67: N/C | H67: =IFERROR(IFERROR(VLOOKUP(D67,Surcharge!A:B,2,FALSE)*F67, VLOOKUP(D67 & "",Surcharge!A:B,2,FALSE)*F67), "") -> 
C68: Natural Fiber Brush (Note 1) | D68: 9022618 | E68: 177 | G68: =F68*E68 -> 0 | H68: =IFERROR(IFERROR(VLOOKUP(D68,Surcharge!A:B,2,FALSE)*F68, VLOOKUP(D68 & "",Surcharge!A:B,2,FALSE)*F68), "") ->  | P68: =VLOOKUP(Q68,'MPF SAP Download (2)'!A:E,5,FALSE) -> 1196 | Q68: M-6100VK_SDEBRSLOC_D
H69: =IFERROR(IFERROR(VLOOKUP(D69,Surcharge!A:B,2,FALSE)*F69, VLOOKUP(D69 & "",Surcharge!A:B,2,FALSE)*F69), "") ->  | P69: =VLOOKUP(Q69,'MPF SAP Download (2)'!A:E,5,FALSE) -> 1246 | Q69: M-6100VK_SDEBRSDSTCTL_D_RH
C70: Side Sweeping Brushes | F70: =SUM(F71) -> 0 | H70: =IFERROR(IFERROR(VLOOKUP(D70,Surcharge!A:B,2,FALSE)*F70, VLOOKUP(D70 & "",Surcharge!A:B,2,FALSE)*F70), "") ->  | P70: =VLOOKUP(Q70,'MPF SAP Download (2)'!A:E,5,FALSE) -> 1909 | Q70: M-6100VK_SDEBRSDSTCTL_D_D
C71: Polypropylene Brush | G71: =IF(F71=0," ","N/C") ->  | H71: =IFERROR(IFERROR(VLOOKUP(D71,Surcharge!A:B,2,FALSE)*F71, VLOOKUP(D71 & "",Surcharge!A:B,2,FALSE)*F71), "") ->  | P71: =VLOOKUP(Q71,'MPF SAP Download (2)'!A:E,5,FALSE) -> 2335 | Q71: M-6100VK_PWRVACWND_VACWNDHP
